Workbook

Sheet Toelichting
A1: =RIGHT(CELL("filename", A1), LEN(CELL("filename", A1)) - SEARCH("]", CELL("filename", A1))) -> Toelichting
E3: Toelichting bij model: GAW sheet Gas
E5: Dit Excel-bestand bevat het model waarmee de Gestandaardiseerde Activa Waarde (GAW) voor regionale netbeheerders gas voor de periode 2017 - 2021 worden berekend. Dit dient als invoer voor de kapitaalkosten in de x-factorberekening.
E6: In het model worden voor de netbeheerders alle investeringen, desinvesteringen, opgegeven afschrijvingen, etc. ingevoerd per jaar waarna het model de jaarlijkse boekwaardes en totalen berekend.
E7: Op de dashboards zijn de resultaten te vinden die als invoer dienen voor de x-factorberekening.
E9: Databronnen
B11: Bronnen
E12: t/m 2006: Kapitaalkostensheet RNB’s zoals gehanteerd voor het x-factorbesluit NG4R en gepubliceerd op 14 september 2010.
E13: 2007 en 2008: Kapitaalkostensheet RNB’s zoals gehanteerd voor het x-factorbesluit NG4R en gepubliceerd op 14 september 2010. In aanvulling daarop zijn wijzigingen aangebracht op de gegevens van Enexis in verband met het opnemen van investeringen in software voor de meetdienst.
E14: 2009 t/m 2011: Gevalideerde en gecontroleerde data conform PRD-uitvraag over de betreffende jaren met eventuele aanpassingen daarop als gevolg van uitvraag CORR2009-2011 in het voorjaar van 2013.
E15: 2012: Gevalideerde en gecontroleerde data conform PRD-uitvraag over 2012
E16: Aanpassingen i.h.k.v. herstelbesluiten 11 september 2014: correspondentie met netbeheerders
E17: Data 2013 t/m 2015: Gevalideerde en gecontroleerde data conform RD-uitvraag over 2013 t/m 2015
E22: Toelichting bij aannames en parameters in het model
E24: Het model rekent door na de toetsencombinatie: ctrl+alt+F9 of met de updateknoppen op de dashboards.
B26: Werking model
E28: BOVEN DE MOTORKAP
G31: Inputs | O31: Dashboards
E36: ONDER DE MOTORKAP
G41: Input verwerking | K41: Berekeningen | O41: Resultaten
B48: Model flow (indeling werkbladen)
G50: Inputs | K50: Berekeningen | O50: Resultaten
G53: InpC | K53: Tijd | O53: Check
G55: InpNetbeheerder1 | K55: CPI
G57: ... | K57: ActieveNetbeheerder
G59: InpNetbeheerderN
K62: GAW
K67: Indexatie
O69: Dashboard Netbeheerder
O71: Dashboard Boekjaar
K72: UI & Overgenomen Netten
B77: Belangrijkste modelaannames en keuzes
E78: Ten behoeve van transparantie en flexibiliteit zijn in het model de inputs, berekeningen en resultaten uit elkaar gehaald.
E79: Het wijzigen van een input werkt door in het hele model (na het updaten!).
E80: Per netbeheerder zijn de inputs, berekeningen en outputs voor de Netten en Gasaansluitingen van elkaar gescheiden
E81: Vanwege de extra benodigde flexibiliteit m.b.t. Uitzonderlijke Investeringen en Overgenomen Netten staan die berekeningen op zichzelf en hebben zij alleen input nodig bij de eigen berekeningen.
E82: Vanaf 2010 worden in de berekeningen van de boekwaardes geen desinvesteringen en bijzondere waardeverminderingen meer meegenomen, met uitzondering van opbrengsten bij desinvesteringen en overdracht van activa tussen netbeheerders. Het ontbreken van de correctie maakt de berekeningen vanaf dat moment eenvoudiger. Dat betekent eveneens dat de data met betrekking tot desinvesteringen vanaf het jaar 2010 niet meer geheel volledig is. Soms zijn nog bedragen opgenomen (die dan geen impact meer hebben op de berekeningen, soms ontbreken de bedragen.
E83: Bij de gasaansluitingsdienst is onderscheid gemaakt tussen aanschafwaarde investeringen >40m3 en <40m3. In de GAW berekeningen wordt voor >40m3 t/m 2010 gewerkt met 38,5% van de totale waarde zoals aangegeven in de PRD. Vanaf 2011 zijn de waardes in de PRD correct ingevoerd en is de correctie van 38,5% niet meer nodig. De 38,5% correctie t/m 2010 is in de invoer al meergenomen.
B85: In te stellen variabelen / vlaggen in het model
E86: Het model werkt met één regionale netbeheerder tegelijk. Dit houdt in dat op het Dashboard Netbeheerder de juiste netbeheerder geselecteerd dient te zijn alvorens het model door te rekenen. Het werkblad ActieveNebeheerder haalt de gegevens op uit het werkblad van de relevante netbeheerder die daarna gebruikt worden voor de berekeningen op het werkblad GAW. Vervolgens haalt het werkblad Indexatie de gegevens op uit het werkblad GAW.
E87: Alle berekeningen bestaan uit blokken. In ieder blok worden eerst alle relevante inputs voor de berekening onder elkaar gezet waarna de berekening volgt. Berekeningen zijn dan te doorgronden zonder door verschillende werkbladen heen te moeten zoeken naar de verwijzingen.
E88: Dit model maakt gebruik van een tijdslijn en doorgetrokken formules. Alle formules in een rij zijn daarom over de tijd gelijk aan de eerste formule in kolom K.
E89: In het werkblad InpC zijn alle overige inputvariabelen gedefinieerd die nodig zijn voor een juiste werking van het model. Waaronder de CPI, investeringsjaren en mogelijke afschrijvingstermijnen. Daarnaast zijn hier de netbeheerders opgegeven die corresponderen met de verschillende input werkbladen InpNetbeheerder.
E91: Er wordt veelvuldig gebruik gemaakt van vlaggen in de vorm van 0/1. Deze geven in een berekening aan of iets wel of niet voorkomt. Bijvoorbeeld, in de jaren t/m 2006 is gebruik gemaakt van handmatige afschrijvingen. In dit model zal de vlag voor handmatige afschrijvingen dus t/m 2006 op 1 staan en vanaf 2007 op 0. Als in de inputs de looptijd voor handmatige afschrijvingen aangepast wordt, dan zal de vlag zich ook aanpassen.
E94: Legenda
B96: Tabbladen
E97: Toelichting en templates
E98: Output (dashboards)
E99: Invoer van data algemeen en per netbeheerder
E100: Berekeningen
E101: Checks en waarschuwingen
B103: Cellen
E104: Inputdata
E105: Inputdata overgenomen van het dashboard
E106: Waarde opgehaald uit een andere cel ten behoeve van een berekening
E107: Berekening
E108: Waarde of berekening die speciale aandacht vraagt
E109: Invoerlijn die op een later moment ingevoerd dient te worden. (Ten behoeve van flexibiliteit bij UI's)
E110: Losse invoer voor berekeningen
E111: Checkwaarde correct
E112: Checkwaarde incorrect
B114: Tekst
E115: Opgehaalde data van hetzelfde werkblad
E116: Opgehaalde data van een ander werkblad
E117: Berekening die geëxporteerd wordt naar een ander werkblad
B119: Celnamen
E120: ActBeheerder | I120: ='Dashboard Netbeheerder'!$N$4
E121: ActJaar | I121: ='Dashboard Boekjaar'!$N$5
E122: Beheerder1 | I122: ='Dashboard Boekjaar'!$K$11
E123: Chk_Tol | I123: =InpC!$G$98
E124: ColumnKey | I124: =InpC!$G$10
E125: Jaartallen | I125: =InpC!$G$17:$G$35
E126: Netbeheerders | I126: =InpC!$G$56:$G$71
E127: PrintBeheerder | I127: ='Dashboard Netbeheerder'!$E$11
E128: PrintBeheerder2 | I128: ='Dashboard Netbeheerder'!$E$42
E129: PrintJaar | I129: ='Dashboard Boekjaar'!$E$11
E130: PrintJaar2 | I130: ='Dashboard Boekjaar'!$E$42
E131: Tijdslijn | I131: ='Dashboard Netbeheerder'!$K$11:$CL$11
B133: Macros()
E134: LanguageKey() | I134: Voor Excelversies voor 2007. Bepaald de gebruikte taal bij het opstarten van dit workbook en past op basis daarvan in de inputs de kolomsleutel aan. Deze input wordt gebruikt door de indirectfunctie in het werkblad "Actieve Netbeheerder"
E135: Optimise() | I135: Rekent voor de geselecteerde netbeheerder de activawaardes uit en toont die op het dashboard.
E136: OpBeheerders() | I136: Gaat op basis van het geselecteerde jaar op het Dashboard Boekjaar alle netbeheerders af en geeft op het dashboard een overzicht van de boekwaardes in dat jaar. De boekwaardes van iedere netbeheerder worden naast elkaar geprint ter vergelijking.

Sheet Versiebeheer (openbaar)
A1: =RIGHT(CELL("filename", A1), LEN(CELL("filename", A1)) - SEARCH("]", CELL("filename", A1))) -> Versiebeheer (openbaar)
E3: Dit blad bevat uitsluitend openbare gegevens aangaande de verschillende versies van de GAW-sheet.
E4: Aangezien dit ook toegevoegde waarde heeft voor belanghebbenden, kan dit blad ook extern gepubliceerd worden.
E6: Over deze versie
E8: Dit bestand heeft versiebenaming GAW sheet G 02o
E9: Versie 02o bevat data tot en met 2015. FNOP is verwerkt en de start-GAW voor EHD is aangepast. Een externe versie van versie 02n is als derde conceptversie toegestuurd aan RNB's in het kader van de conceptmodellen 2017-2021.
E11: Overzicht van tot standkoming van dit bestand
B13: Ontwikkelfase (t/m zomer 2013)
E14: Versies opgeleverd in ontwikkelfase: "01t" (concept) en "02a" (definitief)
E15: Versies gedeeld met netbeheerders in ontwikkelfase: "01w" (eerste concept op 2 aug 2013) en "02a" (tweede concept op 11 sept 2013)
B17: Publicaties als onderdeel van besluiten
E18: Versie gepubliceerd bij x-factorbesluiten (primo) NG5R, dd 2 oktober 2013: "02c"
E19: Versie gepubliceerd bij herziene x-factorbesluiten (primo) NG5R, dd 11 september 2014: "02d"
G20: (toelichting bij deze versie: nieuwe versie i.v.m. aanpassing van enkele gegevens van Liander 2008-2011)
E21: Versie gepubliceerd bij x-factorbesluiten (primo) NG6R, dd 12 september 2016: "02o"
B23: Doorontwikkeling voor REG2017 (september 2016)
E24: Versie 02o bevat data tot en met 2015. FNOP is aangemaakt als nieuwe nb. Ook volgorde netbeheerders aangepast.
E25: Start-GAW voor EHD is aangepast aan de nieuwe waarden. Start-GAW Stedin voor de gasaansluitdienst is ook aangepast.
E26: De overname van private netten door Westland is opgenomen in het tabblad 'UI&overgenomen netten'

Sheet Dashboard Netbeheerder
L2: Kapitaalkosten Regionale Netwerkbeheerders Gas
L4: Actieve Netbeheerder: | N4: Stedin
L5: Gemarkeerd jaar: | N5: 2004
B9: Overzicht Geïndexeerde Activa Waarde Actieve Netbeheerder*
E11: TRANSPORTDIENST: Enexis excl. FNOP | K11: =Tijd!K$4 -> 2004 | L11: =Tijd!L$4 -> 2005 | M11: =Tijd!M$4 -> 2006 | N11: =Tijd!N$4 -> 2007 | O11: =Tijd!O$4 -> 2008 | P11: =Tijd!P$4 -> 2009 | Q11: =Tijd!Q$4 -> 2010 | R11: =Tijd!R$4 -> 2011 | S11: =Tijd!S$4 -> 2012 | T11: =Tijd!T$4 -> 2013 | U11: =Tijd!U$4 -> 2014 | V11: =Tijd!V$4 -> 2015 | W11: =Tijd!W$4 -> 2016 | X11: =Tijd!X$4 -> 2017 | Y11: =Tijd!Y$4 -> 2018 | Z11: =Tijd!Z$4 -> 2019 | AA11: =Tijd!AA$4 -> 2020 | AB11: =Tijd!AB$4 -> 2021 | AC11: =Tijd!AC$4 -> 2022 | AD11: =Tijd!AD$4 -> 2023 | AE11: =Tijd!AE$4 -> 2024 | AF11: =Tijd!AF$4 -> 2025 | AG11: =Tijd!AG$4 -> 2026 | AH11: =Tijd!AH$4 -> 2027 | AI11: =Tijd!AI$4 -> 2028 | AJ11: =Tijd!AJ$4 -> 2029 | AK11: =Tijd!AK$4 -> 2030 | AL11: =Tijd!AL$4 -> 2031 | AM11: =Tijd!AM$4 -> 2032 | AN11: =Tijd!AN$4 -> 2033 | AO11: =Tijd!AO$4 -> 2034 | AP11: =Tijd!AP$4 -> 2035 | AQ11: =Tijd!AQ$4 -> 2036 | AR11: =Tijd!AR$4 -> 2037 | AS11: =Tijd!AS$4 -> 2038 | AT11: =Tijd!AT$4 -> 2039 | AU11: =Tijd!AU$4 -> 2040 | AV11: =Tijd!AV$4 -> 2041 | AW11: =Tijd!AW$4 -> 2042 | AX11: =Tijd!AX$4 -> 2043 | AY11: =Tijd!AY$4 -> 2044 | AZ11: =Tijd!AZ$4 -> 2045 | BA11: =Tijd!BA$4 -> 2046 | BB11: =Tijd!BB$4 -> 2047 | BC11: =Tijd!BC$4 -> 2048 | BD11: =Tijd!BD$4 -> 2049 | BE11: =Tijd!BE$4 -> 2050 | BF11: =Tijd!BF$4 -> 2051 | BG11: =Tijd!BG$4 -> 2052 | BH11: =Tijd!BH$4 -> 2053 | BI11: =Tijd!BI$4 -> 2054 | BJ11: =Tijd!BJ$4 -> 2055 | BK11: =Tijd!BK$4 -> 2056 | BL11: =Tijd!BL$4 -> 2057 | BM11: =Tijd!BM$4 -> 2058 | BN11: =Tijd!BN$4 -> 2059 | BO11: =Tijd!BO$4 -> 2060 | BP11: =Tijd!BP$4 -> 2061 | BQ11: =Tijd!BQ$4 -> 2062 | BR11: =Tijd!BR$4 -> 2063 | BS11: =Tijd!BS$4 -> 2064 | BT11: =Tijd!BT$4 -> 2065 | BU11: =Tijd!BU$4 -> 2066 | BV11: =Tijd!BV$4 -> 2067 | BW11: =Tijd!BW$4 -> 2068 | BX11: =Tijd!BX$4 -> 2069 | BY11: =Tijd!BY$4 -> 2070 | BZ11: =Tijd!BZ$4 -> 2071 | CA11: =Tijd!CA$4 -> 2072 | CB11: =Tijd!CB$4 -> 2073 | CC11: =Tijd!CC$4 -> 2074 | CD11: =Tijd!CD$4 -> 2075 | CE11: =Tijd!CE$4 -> 2076 | CF11: =Tijd!CF$4 -> 2077 | CG11: =Tijd!CG$4 -> 2078 | CH11: =Tijd!CH$4 -> 2079 | CI11: =Tijd!CI$4 -> 2080 | CJ11: =Tijd!CJ$4 -> 2081 | CK11: =Tijd!CK$4 -> 2082 | CL11: =Tijd!CL$4 -> 2083
E12: Start-GAW (excl. bijzonderheden)
E13: =Indexatie!E$347 -> Investeringsbedrag boekjaar Start-GAW | F13: =Indexatie!F$347 -> 0 | G13: =Indexatie!G$347 -> 0 | H13: =Indexatie!H$347 -> € | I13: =Indexatie!I$347 -> 1509470093 | J13: =Indexatie!J$347 -> 0 | K13: =Indexatie!K$347 -> 1509470093 | L13: =Indexatie!L$347 -> 0 | M13: =Indexatie!M$347 -> 0 | N13: =Indexatie!N$347 -> 0 | O13: =Indexatie!O$347 -> 0 | P13: =Indexatie!P$347 -> 0 | Q13: =Indexatie!Q$347 -> 0 | R13: =Indexatie!R$347 -> 0 | S13: =Indexatie!S$347 -> 0 | T13: =Indexatie!T$347 -> 0 | U13: =Indexatie!U$347 -> 0 | V13: =Indexatie!V$347 -> 0 | W13: =Indexatie!W$347 -> 0 | X13: =Indexatie!X$347 -> 0 | Y13: =Indexatie!Y$347 -> 0 | Z13: =Indexatie!Z$347 -> 0 | AA13: =Indexatie!AA$347 -> 0 | AB13: =Indexatie!AB$347 -> 0 | AC13: =Indexatie!AC$347 -> 0 | AD13: =Indexatie!AD$347 -> 0 | AE13: =Indexatie!AE$347 -> 0 | AF13: =Indexatie!AF$347 -> 0 | AG13: =Indexatie!AG$347 -> 0 | AH13: =Indexatie!AH$347 -> 0 | AI13: =Indexatie!AI$347 -> 0 | AJ13: =Indexatie!AJ$347 -> 0 | AK13: =Indexatie!AK$347 -> 0 | AL13: =Indexatie!AL$347 -> 0 | AM13: =Indexatie!AM$347 -> 0 | AN13: =Indexatie!AN$347 -> 0 | AO13: =Indexatie!AO$347 -> 0 | AP13: =Indexatie!AP$347 -> 0 | AQ13: =Indexatie!AQ$347 -> 0 | AR13: =Indexatie!AR$347 -> 0 | AS13: =Indexatie!AS$347 -> 0 | AT13: =Indexatie!AT$347 -> 0 | AU13: =Indexatie!AU$347 -> 0 | AV13: =Indexatie!AV$347 -> 0 | AW13: =Indexatie!AW$347 -> 0 | AX13: =Indexatie!AX$347 -> 0 | AY13: =Indexatie!AY$347 -> 0 | AZ13: =Indexatie!AZ$347 -> 0 | BA13: =Indexatie!BA$347 -> 0 | BB13: =Indexatie!BB$347 -> 0 | BC13: =Indexatie!BC$347 -> 0 | BD13: =Indexatie!BD$347 -> 0 | BE13: =Indexatie!BE$347 -> 0 | BF13: =Indexatie!BF$347 -> 0 | BG13: =Indexatie!BG$347 -> 0 | BH13: =Indexatie!BH$347 -> 0 | BI13: =Indexatie!BI$347 -> 0 | BJ13: =Indexatie!BJ$347 -> 0 | BK13: =Indexatie!BK$347 -> 0 | BL13: =Indexatie!BL$347 -> 0 | BM13: =Indexatie!BM$347 -> 0 | BN13: =Indexatie!BN$347 -> 0 | BO13: =Indexatie!BO$347 -> 0 | BP13: =Indexatie!BP$347 -> 0 | BQ13: =Indexatie!BQ$347 -> 0 | BR13: =Indexatie!BR$347 -> 0 | BS13: =Indexatie!BS$347 -> 0 | BT13: =Indexatie!BT$347 -> 0 | BU13: =Indexatie!BU$347 -> 0 | BV13: =Indexatie!BV$347 -> 0 | BW13: =Indexatie!BW$347 -> 0 | BX13: =Indexatie!BX$347 -> 0 | BY13: =Indexatie!BY$347 -> 0 | BZ13: =Indexatie!BZ$347 -> 0 | CA13: =Indexatie!CA$347 -> 0 | CB13: =Indexatie!CB$347 -> 0 | CC13: =Indexatie!CC$347 -> 0 | CD13: =Indexatie!CD$347 -> 0 | CE13: =Indexatie!CE$347 -> 0 | CF13: =Indexatie!CF$347 -> 0 | CG13: =Indexatie!CG$347 -> 0 | CH13: =Indexatie!CH$347 -> 0 | CI13: =Indexatie!CI$347 -> 0 | CJ13: =Indexatie!CJ$347 -> 0 | CK13: =Indexatie!CK$347 -> 0 | CL13: =Indexatie!CL$347 -> 0
E14: =Indexatie!E$283 -> Afschrijvingen Start-GAW | F14: =Indexatie!F$283 -> 0 | G14: =Indexatie!G$283 -> 0 | H14: =Indexatie!H$283 -> € | I14: =Indexatie!I$283 -> 1767700119 | J14: =Indexatie!J$283 -> 0 | K14: =Indexatie!K$283 -> 47567954.1 | L14: =Indexatie!L$283 -> 48091201.6 | M14: =Indexatie!M$283 -> 48956843.23 | N14: =Indexatie!N$283 -> 49642239.03 | O14: =Indexatie!O$283 -> 50188303.66 | P14: =Indexatie!P$283 -> 51794329.38 | Q14: =Indexatie!Q$283 -> 51949712.37 | R14: =Indexatie!R$283 -> 52728958.05 | S14: =Indexatie!S$283 -> 54099910.96 | T14: =Indexatie!T$283 -> 55344208.92 | U14: =Indexatie!U$283 -> 56893846.77 | V14: =Indexatie!V$283 -> 57462785.23 | W14: =Indexatie!W$283 -> 57922487.52 | X14: =Indexatie!X$283 -> 57922487.52 | Y14: =Indexatie!Y$283 -> 57922487.52 | Z14: =Indexatie!Z$283 -> 57922487.52 | AA14: =Indexatie!AA$283 -> 57922487.52 | AB14: =Indexatie!AB$283 -> 57922487.52 | AC14: =Indexatie!AC$283 -> 57922487.52 | AD14: =Indexatie!AD$283 -> 57922487.52 | AE14: =Indexatie!AE$283 -> 57922487.52 | AF14: =Indexatie!AF$283 -> 57922487.52 | AG14: =Indexatie!AG$283 -> 57922487.52 | AH14: =Indexatie!AH$283 -> 57922487.52 | AI14: =Indexatie!AI$283 -> 57922487.52 | AJ14: =Indexatie!AJ$283 -> 57922487.52 | AK14: =Indexatie!AK$283 -> 57922487.52 | AL14: =Indexatie!AL$283 -> 57922487.52 | AM14: =Indexatie!AM$283 -> 57922487.52 | AN14: =Indexatie!AN$283 -> 57922487.52 | AO14: =Indexatie!AO$283 -> 57922487.52 | AP14: =Indexatie!AP$283 -> 42452562.73 | AQ14: =Indexatie!AQ$283 -> 0 | AR14: =Indexatie!AR$283 -> 0 | AS14: =Indexatie!AS$283 -> 0 | AT14: =Indexatie!AT$283 -> 0 | AU14: =Indexatie!AU$283 -> 0 | AV14: =Indexatie!AV$283 -> 0 | AW14: =Indexatie!AW$283 -> 0 | AX14: =Indexatie!AX$283 -> 0 | AY14: =Indexatie!AY$283 -> 0 | AZ14: =Indexatie!AZ$283 -> 0 | BA14: =Indexatie!BA$283 -> 0 | BB14: =Indexatie!BB$283 -> 0 | BC14: =Indexatie!BC$283 -> 0 | BD14: =Indexatie!BD$283 -> 0 | BE14: =Indexatie!BE$283 -> 0 | BF14: =Indexatie!BF$283 -> 0 | BG14: =Indexatie!BG$283 -> 0 | BH14: =Indexatie!BH$283 -> 0 | BI14: =Indexatie!BI$283 -> 0 | BJ14: =Indexatie!BJ$283 -> 0 | BK14: =Indexatie!BK$283 -> 0 | BL14: =Indexatie!BL$283 -> 0 | BM14: =Indexatie!BM$283 -> 0 | BN14: =Indexatie!BN$283 -> 0 | BO14: =Indexatie!BO$283 -> 0 | BP14: =Indexatie!BP$283 -> 0 | BQ14: =Indexatie!BQ$283 -> 0 | BR14: =Indexatie!BR$283 -> 0 | BS14: =Indexatie!BS$283 -> 0 | BT14: =Indexatie!BT$283 -> 0 | BU14: =Indexatie!BU$283 -> 0 | BV14: =Indexatie!BV$283 -> 0 | BW14: =Indexatie!BW$283 -> 0 | BX14: =Indexatie!BX$283 -> 0 | BY14: =Indexatie!BY$283 -> 0 | BZ14: =Indexatie!BZ$283 -> 0 | CA14: =Indexatie!CA$283 -> 0 | CB14: =Indexatie!CB$283 -> 0 | CC14: =Indexatie!CC$283 -> 0 | CD14: =Indexatie!CD$283 -> 0 | CE14: =Indexatie!CE$283 -> 0 | CF14: =Indexatie!CF$283 -> 0 | CG14: =Indexatie!CG$283 -> 0 | CH14: =Indexatie!CH$283 -> 0 | CI14: =Indexatie!CI$283 -> 0 | CJ14: =Indexatie!CJ$283 -> 0 | CK14: =Indexatie!CK$283 -> 0 | CL14: =Indexatie!CL$283 -> 0
E15: =Indexatie!E$243 -> Boekwaarde Start-GAW | F15: =Indexatie!F$243 -> 0 | G15: =Indexatie!G$243 -> 0 | H15: =Indexatie!H$243 -> € | I15: =Indexatie!I$243 -> 2.634343928e+10 | J15: =Indexatie!J$243 -> 0 | K15: =Indexatie!K$243 -> 1461902139 | L15: =Indexatie!L$243 -> 1429891861 | M15: =Indexatie!M$243 -> 1406673071 | N15: =Indexatie!N$243 -> 1376724255 | O15: =Indexatie!O$243 -> 1341679918 | P15: =Indexatie!P$243 -> 1332819346 | Q15: =Indexatie!Q$243 -> 1284868092 | R15: =Indexatie!R$243 -> 1251412155 | S15: =Indexatie!S$243 -> 1229848960 | T15: =Indexatie!T$243 -> 1202791277 | U15: =Indexatie!U$243 -> 1179575586 | V15: =Indexatie!V$243 -> 1133908557 | W15: =Indexatie!W$243 -> 1085057338 | X15: =Indexatie!X$243 -> 1027134850 | Y15: =Indexatie!Y$243 -> 969212363 | Z15: =Indexatie!Z$243 -> 911289875.5 | AA15: =Indexatie!AA$243 -> 853367387.9 | AB15: =Indexatie!AB$243 -> 795444900.4 | AC15: =Indexatie!AC$243 -> 737522412.9 | AD15: =Indexatie!AD$243 -> 679599925.4 | AE15: =Indexatie!AE$243 -> 621677437.9 | AF15: =Indexatie!AF$243 -> 563754950.4 | AG15: =Indexatie!AG$243 -> 505832462.9 | AH15: =Indexatie!AH$243 -> 447909975.3 | AI15: =Indexatie!AI$243 -> 389987487.8 | AJ15: =Indexatie!AJ$243 -> 332065000.3 | AK15: =Indexatie!AK$243 -> 274142512.8 | AL15: =Indexatie!AL$243 -> 216220025.3 | AM15: =Indexatie!AM$243 -> 158297537.8 | AN15: =Indexatie!AN$243 -> 100375050.2 | AO15: =Indexatie!AO$243 -> 42452562.73 | AP15: =Indexatie!AP$243 -> 2.318001717e-06 | AQ15: =Indexatie!AQ$243 -> 2.318001717e-06 | AR15: =Indexatie!AR$243 -> 2.318001717e-06 | AS15: =Indexatie!AS$243 -> 2.318001717e-06 | AT15: =Indexatie!AT$243 -> 2.318001717e-06 | AU15: =Indexatie!AU$243 -> 2.318001717e-06 | AV15: =Indexatie!AV$243 -> 2.318001717e-06 | AW15: =Indexatie!AW$243 -> 2.318001717e-06 | AX15: =Indexatie!AX$243 -> 2.318001717e-06 | AY15: =Indexatie!AY$243 -> 2.318001717e-06 | AZ15: =Indexatie!AZ$243 -> 2.318001717e-06 | BA15: =Indexatie!BA$243 -> 2.318001717e-06 | BB15: =Indexatie!BB$243 -> 2.318001717e-06 | BC15: =Indexatie!BC$243 -> 2.318001717e-06 | BD15: =Indexatie!BD$243 -> 2.318001717e-06 | BE15: =Indexatie!BE$243 -> 2.318001717e-06 | BF15: =Indexatie!BF$243 -> 1.903623343e-06 | BG15: =Indexatie!BG$243 -> 1.903623343e-06 | BH15: =Indexatie!BH$243 -> 1.903623343e-06 | BI15: =Indexatie!BI$243 -> 1.903623343e-06 | BJ15: =Indexatie!BJ$243 -> 1.903623343e-06 | BK15: =Indexatie!BK$243 -> 1.903623343e-06 | BL15: =Indexatie!BL$243 -> 1.903623343e-06 | BM15: =Indexatie!BM$243 -> 1.903623343e-06 | BN15: =Indexatie!BN$243 -> 1.903623343e-06 | BO15: =Indexatie!BO$243 -> 1.903623343e-06 | BP15: =Indexatie!BP$243 -> 1.903623343e-06 | BQ15: =Indexatie!BQ$243 -> 1.903623343e-06 | BR15: =Indexatie!BR$243 -> 1.903623343e-06 | BS15: =Indexatie!BS$243 -> 1.903623343e-06 | BT15: =Indexatie!BT$243 -> 1.903623343e-06 | BU15: =Indexatie!BU$243 -> 1.903623343e-06 | BV15: =Indexatie!BV$243 -> 1.903623343e-06 | BW15: =Indexatie!BW$243 -> 1.903623343e-06 | BX15: =Indexatie!BX$243 -> 1.903623343e-06 | BY15: =Indexatie!BY$243 -> 1.903623343e-06 | BZ15: =Indexatie!BZ$243 -> 1.903623343e-06 | CA15: =Indexatie!CA$243 -> 1.903623343e-06 | CB15: =Indexatie!CB$243 -> 1.903623343e-06 | CC15: =Indexatie!CC$243 -> 1.903623343e-06 | CD15: =Indexatie!CD$243 -> 1.903623343e-06 | CE15: =Indexatie!CE$243 -> 1.903623343e-06 | CF15: =Indexatie!CF$243 -> 1.903623343e-06 | CG15: =Indexatie!CG$243 -> 1.903623343e-06 | CH15: =Indexatie!CH$243 -> 1.903623343e-06 | CI15: =Indexatie!CI$243 -> 1.903623343e-06 | CJ15: =Indexatie!CJ$243 -> 1.903623343e-06 | CK15: =Indexatie!CK$243 -> 1.903623343e-06 | CL15: =Indexatie!CL$243 -> 1.903623343e-06
E17: Nieuwe investeringen (excl. bijzonderheden)
E18: =Indexatie!E$336 -> Investeringsbedrag boekjaar | F18: =Indexatie!F$336 -> 0 | G18: =Indexatie!G$336 -> 0 | H18: =Indexatie!H$336 -> € | I18: =Indexatie!I$336 -> 562861030 | J18: =Indexatie!J$336 -> 0 | K18: =Indexatie!K$336 -> 18983208 | L18: =Indexatie!L$336 -> 17974125 | M18: =Indexatie!M$336 -> 29011236 | N18: =Indexatie!N$336 -> 42037497 | O18: =Indexatie!O$336 -> 39243643.12 | P18: =Indexatie!P$336 -> 41982305.53 | Q18: =Indexatie!Q$336 -> 50384610.93 | R18: =Indexatie!R$336 -> 58352823.69 | S18: =Indexatie!S$336 -> 61809884.57 | T18: =Indexatie!T$336 -> 73896955.8 | U18: =Indexatie!U$336 -> 75693611.07 | V18: =Indexatie!V$336 -> 53491129.33 | W18: =Indexatie!W$336 -> 0 | X18: =Indexatie!X$336 -> 0 | Y18: =Indexatie!Y$336 -> 0 | Z18: =Indexatie!Z$336 -> 0 | AA18: =Indexatie!AA$336 -> 0 | AB18: =Indexatie!AB$336 -> 0 | AC18: =Indexatie!AC$336 -> 0 | AD18: =Indexatie!AD$336 -> 0 | AE18: =Indexatie!AE$336 -> 0 | AF18: =Indexatie!AF$336 -> 0 | AG18: =Indexatie!AG$336 -> 0 | AH18: =Indexatie!AH$336 -> 0 | AI18: =Indexatie!AI$336 -> 0 | AJ18: =Indexatie!AJ$336 -> 0 | AK18: =Indexatie!AK$336 -> 0 | AL18: =Indexatie!AL$336 -> 0 | AM18: =Indexatie!AM$336 -> 0 | AN18: =Indexatie!AN$336 -> 0 | AO18: =Indexatie!AO$336 -> 0 | AP18: =Indexatie!AP$336 -> 0 | AQ18: =Indexatie!AQ$336 -> 0 | AR18: =Indexatie!AR$336 -> 0 | AS18: =Indexatie!AS$336 -> 0 | AT18: =Indexatie!AT$336 -> 0 | AU18: =Indexatie!AU$336 -> 0 | AV18: =Indexatie!AV$336 -> 0 | AW18: =Indexatie!AW$336 -> 0 | AX18: =Indexatie!AX$336 -> 0 | AY18: =Indexatie!AY$336 -> 0 | AZ18: =Indexatie!AZ$336 -> 0 | BA18: =Indexatie!BA$336 -> 0 | BB18: =Indexatie!BB$336 -> 0 | BC18: =Indexatie!BC$336 -> 0 | BD18: =Indexatie!BD$336 -> 0 | BE18: =Indexatie!BE$336 -> 0 | BF18: =Indexatie!BF$336 -> 0 | BG18: =Indexatie!BG$336 -> 0 | BH18: =Indexatie!BH$336 -> 0 | BI18: =Indexatie!BI$336 -> 0 | BJ18: =Indexatie!BJ$336 -> 0 | BK18: =Indexatie!BK$336 -> 0 | BL18: =Indexatie!BL$336 -> 0 | BM18: =Indexatie!BM$336 -> 0 | BN18: =Indexatie!BN$336 -> 0 | BO18: =Indexatie!BO$336 -> 0 | BP18: =Indexatie!BP$336 -> 0 | BQ18: =Indexatie!BQ$336 -> 0 | BR18: =Indexatie!BR$336 -> 0 | BS18: =Indexatie!BS$336 -> 0 | BT18: =Indexatie!BT$336 -> 0 | BU18: =Indexatie!BU$336 -> 0 | BV18: =Indexatie!BV$336 -> 0 | BW18: =Indexatie!BW$336 -> 0 | BX18: =Indexatie!BX$336 -> 0 | BY18: =Indexatie!BY$336 -> 0 | BZ18: =Indexatie!BZ$336 -> 0 | CA18: =Indexatie!CA$336 -> 0 | CB18: =Indexatie!CB$336 -> 0 | CC18: =Indexatie!CC$336 -> 0 | CD18: =Indexatie!CD$336 -> 0 | CE18: =Indexatie!CE$336 -> 0 | CF18: =Indexatie!CF$336 -> 0 | CG18: =Indexatie!CG$336 -> 0 | CH18: =Indexatie!CH$336 -> 0 | CI18: =Indexatie!CI$336 -> 0 | CJ18: =Indexatie!CJ$336 -> 0 | CK18: =Indexatie!CK$336 -> 0 | CL18: =Indexatie!CL$336 -> 0
E19: =Indexatie!E$299 -> Afschrijvingen | F19: =Indexatie!F$299 -> 0 | G19: =Indexatie!G$299 -> 0 | H19: =Indexatie!H$299 -> € | I19: =Indexatie!I$299 -> 605143647.1 | J19: =Indexatie!J$299 -> 0 | K19: =Indexatie!K$299 -> 235959 | L19: =Indexatie!L$299 -> 680514.2404 | M19: =Indexatie!M$299 -> 1258224.749 | N19: =Indexatie!N$299 -> 2117053.036 | O19: =Indexatie!O$299 -> 3072777.59 | P19: =Indexatie!P$299 -> 4084914.895 | Q19: =Indexatie!Q$299 -> 5104516.232 | R19: =Indexatie!R$299 -> 6370549.552 | S19: =Indexatie!S$299 -> 7895178.663 | T19: =Indexatie!T$299 -> 9829380.774 | U19: =Indexatie!U$299 -> 12149474.67 | V19: =Indexatie!V$299 -> 13875195.47 | W19: =Indexatie!W$299 -> 14587674.64 | X19: =Indexatie!X$299 -> 14586297.09 | Y19: =Indexatie!Y$299 -> 14375872.19 | Z19: =Indexatie!Z$299 -> 14140010.77 | AA19: =Indexatie!AA$299 -> 14114574.25 | AB19: =Indexatie!AB$299 -> 14114574.25 | AC19: =Indexatie!AC$299 -> 14114574.25 | AD19: =Indexatie!AD$299 -> 14109709.04 | AE19: =Indexatie!AE$299 -> 13923613.87 | AF19: =Indexatie!AF$299 -> 13732330.41 | AG19: =Indexatie!AG$299 -> 13722276.93 | AH19: =Indexatie!AH$299 -> 13722276.93 | AI19: =Indexatie!AI$299 -> 13722276.93 | AJ19: =Indexatie!AJ$299 -> 13712524.89 | AK19: =Indexatie!AK$299 -> 13701756.73 | AL19: =Indexatie!AL$299 -> 13698926.74 | AM19: =Indexatie!AM$299 -> 13695629.52 | AN19: =Indexatie!AN$299 -> 13690552.47 | AO19: =Indexatie!AO$299 -> 13650047.69 | AP19: =Indexatie!AP$299 -> 13583016.66 | AQ19: =Indexatie!AQ$299 -> 13475535.91 | AR19: =Indexatie!AR$299 -> 13317269.14 | AS19: =Indexatie!AS$299 -> 13128813.65 | AT19: =Indexatie!AT$299 -> 12929080.04 | AU19: =Indexatie!AU$299 -> 12768628.83 | AV19: =Indexatie!AV$299 -> 12645449.32 | AW19: =Indexatie!AW$299 -> 12466006.72 | AX19: =Indexatie!AX$299 -> 12283329.07 | AY19: =Indexatie!AY$299 -> 12194326.02 | AZ19: =Indexatie!AZ$299 -> 12128519.09 | BA19: =Indexatie!BA$299 -> 12093567.75 | BB19: =Indexatie!BB$299 -> 12093567.75 | BC19: =Indexatie!BC$299 -> 12093567.75 | BD19: =Indexatie!BD$299 -> 11937712.26 | BE19: =Indexatie!BE$299 -> 11616817.07 | BF19: =Indexatie!BF$299 -> 10325223.56 | BG19: =Indexatie!BG$299 -> 9738268.578 | BH19: =Indexatie!BH$299 -> 9061180.695 | BI19: =Indexatie!BI$299 -> 8415645.399 | BJ19: =Indexatie!BJ$299 -> 7668575.041 | BK19: =Indexatie!BK$299 -> 6708526.945 | BL19: =Indexatie!BL$299 -> 5612221.011 | BM19: =Indexatie!BM$299 -> 4379156.992 | BN19: =Indexatie!BN$299 -> 2956068.326 | BO19: =Indexatie!BO$299 -> 1692096.047 | BP19: =Indexatie!BP$299 -> 1124502.036 | BQ19: =Indexatie!BQ$299 -> 1032023.724 | BR19: =Indexatie!BR$299 -> 926179.8363 | BS19: =Indexatie!BS$299 -> 801661.2205 | BT19: =Indexatie!BT$299 -> 651210.8977 | BU19: =Indexatie!BU$299 -> 513637.5526 | BV19: =Indexatie!BV$299 -> 414583.002 | BW19: =Indexatie!BW$299 -> 314065.5037 | BX19: =Indexatie!BX$299 -> 197075.4126 | BY19: =Indexatie!BY$299 -> 67299.85984 | BZ19: =Indexatie!BZ$299 -> 0 | CA19: =Indexatie!CA$299 -> 0 | CB19: =Indexatie!CB$299 -> 0 | CC19: =Indexatie!CC$299 -> 0 | CD19: =Indexatie!CD$299 -> 0 | CE19: =Indexatie!CE$299 -> 0 | CF19: =Indexatie!CF$299 -> 0 | CG19: =Indexatie!CG$299 -> 0 | CH19: =Indexatie!CH$299 -> 0 | CI19: =Indexatie!CI$299 -> 0 | CJ19: =Indexatie!CJ$299 -> 0 | CK19: =Indexatie!CK$299 -> 0 | CL19: =Indexatie!CL$299 -> 0
E20: =Indexatie!E$259 -> Boekwaarde | F20: =Indexatie!F$259 -> 0 | G20: =Indexatie!G$259 -> 0 | H20: =Indexatie!H$259 -> € | I20: =Indexatie!I$259 -> 1.359293656e+10 | J20: =Indexatie!J$259 -> 0 | K20: =Indexatie!K$259 -> 18747249 | L20: =Indexatie!L$259 -> 36247079.5 | M20: =Indexatie!M$259 -> 64652538.18 | N20: =Indexatie!N$259 -> 105478117.7 | O20: =Indexatie!O$259 -> 142809242.5 | P20: =Indexatie!P$259 -> 185276528.9 | Q20: =Indexatie!Q$259 -> 231112453.2 | R20: =Indexatie!R$259 -> 286561414.1 | S20: =Indexatie!S$259 -> 347926716.8 | T20: =Indexatie!T$259 -> 419996606.3 | U20: =Indexatie!U$259 -> 495300647.7 | V20: =Indexatie!V$259 -> 539869588 | W20: =Indexatie!W$259 -> 529600870.1 | X20: =Indexatie!X$259 -> 515014573 | Y20: =Indexatie!Y$259 -> 500638700.8 | Z20: =Indexatie!Z$259 -> 486498690 | AA20: =Indexatie!AA$259 -> 472384115.8 | AB20: =Indexatie!AB$259 -> 458269541.5 | AC20: =Indexatie!AC$259 -> 444154967.3 | AD20: =Indexatie!AD$259 -> 430045258.2 | AE20: =Indexatie!AE$259 -> 416121644.4 | AF20: =Indexatie!AF$259 -> 402389314 | AG20: =Indexatie!AG$259 -> 388667037 | AH20: =Indexatie!AH$259 -> 374944760.1 | AI20: =Indexatie!AI$259 -> 361222483.2 | AJ20: =Indexatie!AJ$259 -> 347509958.3 | AK20: =Indexatie!AK$259 -> 333808201.5 | AL20: =Indexatie!AL$259 -> 320109274.8 | AM20: =Indexatie!AM$259 -> 306413645.3 | AN20: =Indexatie!AN$259 -> 292723092.8 | AO20: =Indexatie!AO$259 -> 279073045.1 | AP20: =Indexatie!AP$259 -> 265490028.5 | AQ20: =Indexatie!AQ$259 -> 252014492.6 | AR20: =Indexatie!AR$259 -> 238697223.4 | AS20: =Indexatie!AS$259 -> 225568409.8 | AT20: =Indexatie!AT$259 -> 212639329.7 | AU20: =Indexatie!AU$259 -> 199870700.9 | AV20: =Indexatie!AV$259 -> 187225251.6 | AW20: =Indexatie!AW$259 -> 174759244.9 | AX20: =Indexatie!AX$259 -> 162475915.8 | AY20: =Indexatie!AY$259 -> 150281589.8 | AZ20: =Indexatie!AZ$259 -> 138153070.7 | BA20: =Indexatie!BA$259 -> 126059502.9 | BB20: =Indexatie!BB$259 -> 113965935.2 | BC20: =Indexatie!BC$259 -> 101872367.4 | BD20: =Indexatie!BD$259 -> 89934655.18 | BE20: =Indexatie!BE$259 -> 78317838.12 | BF20: =Indexatie!BF$259 -> 63099662.28 | BG20: =Indexatie!BG$259 -> 53361393.7 | BH20: =Indexatie!BH$259 -> 44300213.01 | BI20: =Indexatie!BI$259 -> 35884567.61 | BJ20: =Indexatie!BJ$259 -> 28215992.57 | BK20: =Indexatie!BK$259 -> 21507465.62 | BL20: =Indexatie!BL$259 -> 15895244.61 | BM20: =Indexatie!BM$259 -> 11516087.62 | BN20: =Indexatie!BN$259 -> 8560019.296 | BO20: =Indexatie!BO$259 -> 6867923.25 | BP20: =Indexatie!BP$259 -> 5743421.214 | BQ20: =Indexatie!BQ$259 -> 4711397.49 | BR20: =Indexatie!BR$259 -> 3785217.654 | BS20: =Indexatie!BS$259 -> 2983556.433 | BT20: =Indexatie!BT$259 -> 2332345.535 | BU20: =Indexatie!BU$259 -> 1818707.983 | BV20: =Indexatie!BV$259 -> 1404124.981 | BW20: =Indexatie!BW$259 -> 1090059.477 | BX20: =Indexatie!BX$259 -> 892984.0645 | BY20: =Indexatie!BY$259 -> 825684.2047 | BZ20: =Indexatie!BZ$259 -> 825684.2047 | CA20: =Indexatie!CA$259 -> 825684.2047 | CB20: =Indexatie!CB$259 -> 825684.2047 | CC20: =Indexatie!CC$259 -> 825684.2047 | CD20: =Indexatie!CD$259 -> 825684.2047 | CE20: =Indexatie!CE$259 -> 825684.2047 | CF20: =Indexatie!CF$259 -> 825684.2047 | CG20: =Indexatie!CG$259 -> 825684.2047 | CH20: =Indexatie!CH$259 -> 825684.2047 | CI20: =Indexatie!CI$259 -> 825684.2047 | CJ20: =Indexatie!CJ$259 -> 825684.2047 | CK20: =Indexatie!CK$259 -> 825684.2047 | CL20: =Indexatie!CL$259 -> 825684.2047
E22: Bijzonderheid: precario
E23: =GAW!E$95 -> Investeringsbedrag boekjaar precario | F23: =GAW!F$95 -> 0 | G23: =GAW!G$95 -> 0 | H23: =GAW!H$95 -> € | I23: =GAW!I$95 -> 0 | J23: =GAW!J$95 -> 0 | K23: =GAW!K$95 -> 0 | L23: =GAW!L$95 -> 0 | M23: =GAW!M$95 -> 0 | N23: =GAW!N$95 -> 0 | O23: =GAW!O$95 -> 0 | P23: =GAW!P$95 -> 0 | Q23: =GAW!Q$95 -> 0 | R23: =GAW!R$95 -> 0 | S23: =GAW!S$95 -> 0 | T23: =GAW!T$95 -> 0 | U23: =GAW!U$95 -> 0 | V23: =GAW!V$95 -> 0 | W23: =GAW!W$95 -> 0 | X23: =GAW!X$95 -> 0 | Y23: =GAW!Y$95 -> 0 | Z23: =GAW!Z$95 -> 0 | AA23: =GAW!AA$95 -> 0 | AB23: =GAW!AB$95 -> 0 | AC23: =GAW!AC$95 -> 0 | AD23: =GAW!AD$95 -> 0 | AE23: =GAW!AE$95 -> 0 | AF23: =GAW!AF$95 -> 0 | AG23: =GAW!AG$95 -> 0 | AH23: =GAW!AH$95 -> 0 | AI23: =GAW!AI$95 -> 0 | AJ23: =GAW!AJ$95 -> 0 | AK23: =GAW!AK$95 -> 0 | AL23: =GAW!AL$95 -> 0 | AM23: =GAW!AM$95 -> 0 | AN23: =GAW!AN$95 -> 0 | AO23: =GAW!AO$95 -> 0 | AP23: =GAW!AP$95 -> 0 | AQ23: =GAW!AQ$95 -> 0 | AR23: =GAW!AR$95 -> 0 | AS23: =GAW!AS$95 -> 0 | AT23: =GAW!AT$95 -> 0 | AU23: =GAW!AU$95 -> 0 | AV23: =GAW!AV$95 -> 0 | AW23: =GAW!AW$95 -> 0 | AX23: =GAW!AX$95 -> 0 | AY23: =GAW!AY$95 -> 0 | AZ23: =GAW!AZ$95 -> 0 | BA23: =GAW!BA$95 -> 0 | BB23: =GAW!BB$95 -> 0 | BC23: =GAW!BC$95 -> 0 | BD23: =GAW!BD$95 -> 0 | BE23: =GAW!BE$95 -> 0 | BF23: =GAW!BF$95 -> 0 | BG23: =GAW!BG$95 -> 0 | BH23: =GAW!BH$95 -> 0 | BI23: =GAW!BI$95 -> 0 | BJ23: =GAW!BJ$95 -> 0 | BK23: =GAW!BK$95 -> 0 | BL23: =GAW!BL$95 -> 0 | BM23: =GAW!BM$95 -> 0 | BN23: =GAW!BN$95 -> 0 | BO23: =GAW!BO$95 -> 0 | BP23: =GAW!BP$95 -> 0 | BQ23: =GAW!BQ$95 -> 0 | BR23: =GAW!BR$95 -> 0 | BS23: =GAW!BS$95 -> 0 | BT23: =GAW!BT$95 -> 0 | BU23: =GAW!BU$95 -> 0 | BV23: =GAW!BV$95 -> 0 | BW23: =GAW!BW$95 -> 0 | BX23: =GAW!BX$95 -> 0 | BY23: =GAW!BY$95 -> 0 | BZ23: =GAW!BZ$95 -> 0 | CA23: =GAW!CA$95 -> 0 | CB23: =GAW!CB$95 -> 0 | CC23: =GAW!CC$95 -> 0 | CD23: =GAW!CD$95 -> 0 | CE23: =GAW!CE$95 -> 0 | CF23: =GAW!CF$95 -> 0 | CG23: =GAW!CG$95 -> 0 | CH23: =GAW!CH$95 -> 0 | CI23: =GAW!CI$95 -> 0 | CJ23: =GAW!CJ$95 -> 0 | CK23: =GAW!CK$95 -> 0 | CL23: =GAW!CL$95 -> 0
E24: =Indexatie!E$27 -> Afschrijvingen precario | F24: =Indexatie!F$27 -> 0 | G24: =Indexatie!G$27 -> 0 | H24: =Indexatie!H$27 -> € | I24: =Indexatie!I$27 -> 0 | J24: =Indexatie!J$27 -> 0 | K24: =Indexatie!K$27 -> 0 | L24: =Indexatie!L$27 -> 0 | M24: =Indexatie!M$27 -> 0 | N24: =Indexatie!N$27 -> 0 | O24: =Indexatie!O$27 -> 0 | P24: =Indexatie!P$27 -> 0 | Q24: =Indexatie!Q$27 -> 0 | R24: =Indexatie!R$27 -> 0 | S24: =Indexatie!S$27 -> 0 | T24: =Indexatie!T$27 -> 0 | U24: =Indexatie!U$27 -> 0 | V24: =Indexatie!V$27 -> 0 | W24: =Indexatie!W$27 -> 0 | X24: =Indexatie!X$27 -> 0 | Y24: =Indexatie!Y$27 -> 0 | Z24: =Indexatie!Z$27 -> 0 | AA24: =Indexatie!AA$27 -> 0 | AB24: =Indexatie!AB$27 -> 0 | AC24: =Indexatie!AC$27 -> 0 | AD24: =Indexatie!AD$27 -> 0 | AE24: =Indexatie!AE$27 -> 0 | AF24: =Indexatie!AF$27 -> 0 | AG24: =Indexatie!AG$27 -> 0 | AH24: =Indexatie!AH$27 -> 0 | AI24: =Indexatie!AI$27 -> 0 | AJ24: =Indexatie!AJ$27 -> 0 | AK24: =Indexatie!AK$27 -> 0 | AL24: =Indexatie!AL$27 -> 0 | AM24: =Indexatie!AM$27 -> 0 | AN24: =Indexatie!AN$27 -> 0 | AO24: =Indexatie!AO$27 -> 0 | AP24: =Indexatie!AP$27 -> 0 | AQ24: =Indexatie!AQ$27 -> 0 | AR24: =Indexatie!AR$27 -> 0 | AS24: =Indexatie!AS$27 -> 0 | AT24: =Indexatie!AT$27 -> 0 | AU24: =Indexatie!AU$27 -> 0 | AV24: =Indexatie!AV$27 -> 0 | AW24: =Indexatie!AW$27 -> 0 | AX24: =Indexatie!AX$27 -> 0 | AY24: =Indexatie!AY$27 -> 0 | AZ24: =Indexatie!AZ$27 -> 0 | BA24: =Indexatie!BA$27 -> 0 | BB24: =Indexatie!BB$27 -> 0 | BC24: =Indexatie!BC$27 -> 0 | BD24: =Indexatie!BD$27 -> 0 | BE24: =Indexatie!BE$27 -> 0 | BF24: =Indexatie!BF$27 -> 0 | BG24: =Indexatie!BG$27 -> 0 | BH24: =Indexatie!BH$27 -> 0 | BI24: =Indexatie!BI$27 -> 0 | BJ24: =Indexatie!BJ$27 -> 0 | BK24: =Indexatie!BK$27 -> 0 | BL24: =Indexatie!BL$27 -> 0 | BM24: =Indexatie!BM$27 -> 0 | BN24: =Indexatie!BN$27 -> 0 | BO24: =Indexatie!BO$27 -> 0 | BP24: =Indexatie!BP$27 -> 0 | BQ24: =Indexatie!BQ$27 -> 0 | BR24: =Indexatie!BR$27 -> 0 | BS24: =Indexatie!BS$27 -> 0 | BT24: =Indexatie!BT$27 -> 0 | BU24: =Indexatie!BU$27 -> 0 | BV24: =Indexatie!BV$27 -> 0 | BW24: =Indexatie!BW$27 -> 0 | BX24: =Indexatie!BX$27 -> 0 | BY24: =Indexatie!BY$27 -> 0 | BZ24: =Indexatie!BZ$27 -> 0 | CA24: =Indexatie!CA$27 -> 0 | CB24: =Indexatie!CB$27 -> 0 | CC24: =Indexatie!CC$27 -> 0 | CD24: =Indexatie!CD$27 -> 0 | CE24: =Indexatie!CE$27 -> 0 | CF24: =Indexatie!CF$27 -> 0 | CG24: =Indexatie!CG$27 -> 0 | CH24: =Indexatie!CH$27 -> 0 | CI24: =Indexatie!CI$27 -> 0 | CJ24: =Indexatie!CJ$27 -> 0 | CK24: =Indexatie!CK$27 -> 0 | CL24: =Indexatie!CL$27 -> 0
E25: =Indexatie!E$23 -> Boekwaarde precario | F25: =Indexatie!F$23 -> 0 | G25: =Indexatie!G$23 -> 0 | H25: =Indexatie!H$23 -> € | I25: =Indexatie!I$23 -> 0 | J25: =Indexatie!J$23 -> 0 | K25: =Indexatie!K$23 -> 0 | L25: =Indexatie!L$23 -> 0 | M25: =Indexatie!M$23 -> 0 | N25: =Indexatie!N$23 -> 0 | O25: =Indexatie!O$23 -> 0 | P25: =Indexatie!P$23 -> 0 | Q25: =Indexatie!Q$23 -> 0 | R25: =Indexatie!R$23 -> 0 | S25: =Indexatie!S$23 -> 0 | T25: =Indexatie!T$23 -> 0 | U25: =Indexatie!U$23 -> 0 | V25: =Indexatie!V$23 -> 0 | W25: =Indexatie!W$23 -> 0 | X25: =Indexatie!X$23 -> 0 | Y25: =Indexatie!Y$23 -> 0 | Z25: =Indexatie!Z$23 -> 0 | AA25: =Indexatie!AA$23 -> 0 | AB25: =Indexatie!AB$23 -> 0 | AC25: =Indexatie!AC$23 -> 0 | AD25: =Indexatie!AD$23 -> 0 | AE25: =Indexatie!AE$23 -> 0 | AF25: =Indexatie!AF$23 -> 0 | AG25: =Indexatie!AG$23 -> 0 | AH25: =Indexatie!AH$23 -> 0 | AI25: =Indexatie!AI$23 -> 0 | AJ25: =Indexatie!AJ$23 -> 0 | AK25: =Indexatie!AK$23 -> 0 | AL25: =Indexatie!AL$23 -> 0 | AM25: =Indexatie!AM$23 -> 0 | AN25: =Indexatie!AN$23 -> 0 | AO25: =Indexatie!AO$23 -> 0 | AP25: =Indexatie!AP$23 -> 0 | AQ25: =Indexatie!AQ$23 -> 0 | AR25: =Indexatie!AR$23 -> 0 | AS25: =Indexatie!AS$23 -> 0 | AT25: =Indexatie!AT$23 -> 0 | AU25: =Indexatie!AU$23 -> 0 | AV25: =Indexatie!AV$23 -> 0 | AW25: =Indexatie!AW$23 -> 0 | AX25: =Indexatie!AX$23 -> 0 | AY25: =Indexatie!AY$23 -> 0 | AZ25: =Indexatie!AZ$23 -> 0 | BA25: =Indexatie!BA$23 -> 0 | BB25: =Indexatie!BB$23 -> 0 | BC25: =Indexatie!BC$23 -> 0 | BD25: =Indexatie!BD$23 -> 0 | BE25: =Indexatie!BE$23 -> 0 | BF25: =Indexatie!BF$23 -> 0 | BG25: =Indexatie!BG$23 -> 0 | BH25: =Indexatie!BH$23 -> 0 | BI25: =Indexatie!BI$23 -> 0 | BJ25: =Indexatie!BJ$23 -> 0 | BK25: =Indexatie!BK$23 -> 0 | BL25: =Indexatie!BL$23 -> 0 | BM25: =Indexatie!BM$23 -> 0 | BN25: =Indexatie!BN$23 -> 0 | BO25: =Indexatie!BO$23 -> 0 | BP25: =Indexatie!BP$23 -> 0 | BQ25: =Indexatie!BQ$23 -> 0 | BR25: =Indexatie!BR$23 -> 0 | BS25: =Indexatie!BS$23 -> 0 | BT25: =Indexatie!BT$23 -> 0 | BU25: =Indexatie!BU$23 -> 0 | BV25: =Indexatie!BV$23 -> 0 | BW25: =Indexatie!BW$23 -> 0 | BX25: =Indexatie!BX$23 -> 0 | BY25: =Indexatie!BY$23 -> 0 | BZ25: =Indexatie!BZ$23 -> 0 | CA25: =Indexatie!CA$23 -> 0 | CB25: =Indexatie!CB$23 -> 0 | CC25: =Indexatie!CC$23 -> 0 | CD25: =Indexatie!CD$23 -> 0 | CE25: =Indexatie!CE$23 -> 0 | CF25: =Indexatie!CF$23 -> 0 | CG25: =Indexatie!CG$23 -> 0 | CH25: =Indexatie!CH$23 -> 0 | CI25: =Indexatie!CI$23 -> 0 | CJ25: =Indexatie!CJ$23 -> 0 | CK25: =Indexatie!CK$23 -> 0 | CL25: =Indexatie!CL$23 -> 0
E27: Bijzonderheid: UI's
E28: ='UI & Overgenomen Netten'!E$151 -> Investeringsbedrag UI's | F28: ='UI & Overgenomen Netten'!F$151 -> 0 | G28: ='UI & Overgenomen Netten'!G$151 -> 0 | H28: ='UI & Overgenomen Netten'!H$151 -> € | I28: ='UI & Overgenomen Netten'!I$151 -> 0 | J28: ='UI & Overgenomen Netten'!J$151 -> 0 | K28: ='UI & Overgenomen Netten'!K$151 -> 0 | L28: ='UI & Overgenomen Netten'!L$151 -> 0 | M28: ='UI & Overgenomen Netten'!M$151 -> 0 | N28: ='UI & Overgenomen Netten'!N$151 -> 0 | O28: ='UI & Overgenomen Netten'!O$151 -> 0 | P28: ='UI & Overgenomen Netten'!P$151 -> 0 | Q28: ='UI & Overgenomen Netten'!Q$151 -> 0 | R28: ='UI & Overgenomen Netten'!R$151 -> 0 | S28: ='UI & Overgenomen Netten'!S$151 -> 0 | T28: ='UI & Overgenomen Netten'!T$151 -> 0 | U28: ='UI & Overgenomen Netten'!U$151 -> 0 | V28: ='UI & Overgenomen Netten'!V$151 -> 0 | W28: ='UI & Overgenomen Netten'!W$151 -> 0 | X28: ='UI & Overgenomen Netten'!X$151 -> 0 | Y28: ='UI & Overgenomen Netten'!Y$151 -> 0 | Z28: ='UI & Overgenomen Netten'!Z$151 -> 0 | AA28: ='UI & Overgenomen Netten'!AA$151 -> 0 | AB28: ='UI & Overgenomen Netten'!AB$151 -> 0 | AC28: ='UI & Overgenomen Netten'!AC$151 -> 0 | AD28: ='UI & Overgenomen Netten'!AD$151 -> 0 | AE28: ='UI & Overgenomen Netten'!AE$151 -> 0 | AF28: ='UI & Overgenomen Netten'!AF$151 -> 0 | AG28: ='UI & Overgenomen Netten'!AG$151 -> 0 | AH28: ='UI & Overgenomen Netten'!AH$151 -> 0 | AI28: ='UI & Overgenomen Netten'!AI$151 -> 0 | AJ28: ='UI & Overgenomen Netten'!AJ$151 -> 0 | AK28: ='UI & Overgenomen Netten'!AK$151 -> 0 | AL28: ='UI & Overgenomen Netten'!AL$151 -> 0 | AM28: ='UI & Overgenomen Netten'!AM$151 -> 0 | AN28: ='UI & Overgenomen Netten'!AN$151 -> 0 | AO28: ='UI & Overgenomen Netten'!AO$151 -> 0 | AP28: ='UI & Overgenomen Netten'!AP$151 -> 0 | AQ28: ='UI & Overgenomen Netten'!AQ$151 -> 0 | AR28: ='UI & Overgenomen Netten'!AR$151 -> 0 | AS28: ='UI & Overgenomen Netten'!AS$151 -> 0 | AT28: ='UI & Overgenomen Netten'!AT$151 -> 0 | AU28: ='UI & Overgenomen Netten'!AU$151 -> 0 | AV28: ='UI & Overgenomen Netten'!AV$151 -> 0 | AW28: ='UI & Overgenomen Netten'!AW$151 -> 0 | AX28: ='UI & Overgenomen Netten'!AX$151 -> 0 | AY28: ='UI & Overgenomen Netten'!AY$151 -> 0 | AZ28: ='UI & Overgenomen Netten'!AZ$151 -> 0 | BA28: ='UI & Overgenomen Netten'!BA$151 -> 0 | BB28: ='UI & Overgenomen Netten'!BB$151 -> 0 | BC28: ='UI & Overgenomen Netten'!BC$151 -> 0 | BD28: ='UI & Overgenomen Netten'!BD$151 -> 0 | BE28: ='UI & Overgenomen Netten'!BE$151 -> 0 | BF28: ='UI & Overgenomen Netten'!BF$151 -> 0 | BG28: ='UI & Overgenomen Netten'!BG$151 -> 0 | BH28: ='UI & Overgenomen Netten'!BH$151 -> 0 | BI28: ='UI & Overgenomen Netten'!BI$151 -> 0 | BJ28: ='UI & Overgenomen Netten'!BJ$151 -> 0 | BK28: ='UI & Overgenomen Netten'!BK$151 -> 0 | BL28: ='UI & Overgenomen Netten'!BL$151 -> 0 | BM28: ='UI & Overgenomen Netten'!BM$151 -> 0 | BN28: ='UI & Overgenomen Netten'!BN$151 -> 0 | BO28: ='UI & Overgenomen Netten'!BO$151 -> 0 | BP28: ='UI & Overgenomen Netten'!BP$151 -> 0 | BQ28: ='UI & Overgenomen Netten'!BQ$151 -> 0 | BR28: ='UI & Overgenomen Netten'!BR$151 -> 0 | BS28: ='UI & Overgenomen Netten'!BS$151 -> 0 | BT28: ='UI & Overgenomen Netten'!BT$151 -> 0 | BU28: ='UI & Overgenomen Netten'!BU$151 -> 0 | BV28: ='UI & Overgenomen Netten'!BV$151 -> 0 | BW28: ='UI & Overgenomen Netten'!BW$151 -> 0 | BX28: ='UI & Overgenomen Netten'!BX$151 -> 0 | BY28: ='UI & Overgenomen Netten'!BY$151 -> 0 | BZ28: ='UI & Overgenomen Netten'!BZ$151 -> 0 | CA28: ='UI & Overgenomen Netten'!CA$151 -> 0 | CB28: ='UI & Overgenomen Netten'!CB$151 -> 0 | CC28: ='UI & Overgenomen Netten'!CC$151 -> 0 | CD28: ='UI & Overgenomen Netten'!CD$151 -> 0 | CE28: ='UI & Overgenomen Netten'!CE$151 -> 0 | CF28: ='UI & Overgenomen Netten'!CF$151 -> 0 | CG28: ='UI & Overgenomen Netten'!CG$151 -> 0 | CH28: ='UI & Overgenomen Netten'!CH$151 -> 0 | CI28: ='UI & Overgenomen Netten'!CI$151 -> 0 | CJ28: ='UI & Overgenomen Netten'!CJ$151 -> 0 | CK28: ='UI & Overgenomen Netten'!CK$151 -> 0 | CL28: ='UI & Overgenomen Netten'!CL$151 -> 0
E29: ='UI & Overgenomen Netten'!E$141 -> Afschrijvingen UI's | F29: ='UI & Overgenomen Netten'!F$141 -> 0 | G29: ='UI & Overgenomen Netten'!G$141 -> 0 | H29: ='UI & Overgenomen Netten'!H$141 -> € | I29: ='UI & Overgenomen Netten'!I$141 -> 0 | J29: ='UI & Overgenomen Netten'!J$141 -> 0 | K29: ='UI & Overgenomen Netten'!K$141 -> 0 | L29: ='UI & Overgenomen Netten'!L$141 -> 0 | M29: ='UI & Overgenomen Netten'!M$141 -> 0 | N29: ='UI & Overgenomen Netten'!N$141 -> 0 | O29: ='UI & Overgenomen Netten'!O$141 -> 0 | P29: ='UI & Overgenomen Netten'!P$141 -> 0 | Q29: ='UI & Overgenomen Netten'!Q$141 -> 0 | R29: ='UI & Overgenomen Netten'!R$141 -> 0 | S29: ='UI & Overgenomen Netten'!S$141 -> 0 | T29: ='UI & Overgenomen Netten'!T$141 -> 0 | U29: ='UI & Overgenomen Netten'!U$141 -> 0 | V29: ='UI & Overgenomen Netten'!V$141 -> 0 | W29: ='UI & Overgenomen Netten'!W$141 -> 0 | X29: ='UI & Overgenomen Netten'!X$141 -> 0 | Y29: ='UI & Overgenomen Netten'!Y$141 -> 0 | Z29: ='UI & Overgenomen Netten'!Z$141 -> 0 | AA29: ='UI & Overgenomen Netten'!AA$141 -> 0 | AB29: ='UI & Overgenomen Netten'!AB$141 -> 0 | AC29: ='UI & Overgenomen Netten'!AC$141 -> 0 | AD29: ='UI & Overgenomen Netten'!AD$141 -> 0 | AE29: ='UI & Overgenomen Netten'!AE$141 -> 0 | AF29: ='UI & Overgenomen Netten'!AF$141 -> 0 | AG29: ='UI & Overgenomen Netten'!AG$141 -> 0 | AH29: ='UI & Overgenomen Netten'!AH$141 -> 0 | AI29: ='UI & Overgenomen Netten'!AI$141 -> 0 | AJ29: ='UI & Overgenomen Netten'!AJ$141 -> 0 | AK29: ='UI & Overgenomen Netten'!AK$141 -> 0 | AL29: ='UI & Overgenomen Netten'!AL$141 -> 0 | AM29: ='UI & Overgenomen Netten'!AM$141 -> 0 | AN29: ='UI & Overgenomen Netten'!AN$141 -> 0 | AO29: ='UI & Overgenomen Netten'!AO$141 -> 0 | AP29: ='UI & Overgenomen Netten'!AP$141 -> 0 | AQ29: ='UI & Overgenomen Netten'!AQ$141 -> 0 | AR29: ='UI & Overgenomen Netten'!AR$141 -> 0 | AS29: ='UI & Overgenomen Netten'!AS$141 -> 0 | AT29: ='UI & Overgenomen Netten'!AT$141 -> 0 | AU29: ='UI & Overgenomen Netten'!AU$141 -> 0 | AV29: ='UI & Overgenomen Netten'!AV$141 -> 0 | AW29: ='UI & Overgenomen Netten'!AW$141 -> 0 | AX29: ='UI & Overgenomen Netten'!AX$141 -> 0 | AY29: ='UI & Overgenomen Netten'!AY$141 -> 0 | AZ29: ='UI & Overgenomen Netten'!AZ$141 -> 0 | BA29: ='UI & Overgenomen Netten'!BA$141 -> 0 | BB29: ='UI & Overgenomen Netten'!BB$141 -> 0 | BC29: ='UI & Overgenomen Netten'!BC$141 -> 0 | BD29: ='UI & Overgenomen Netten'!BD$141 -> 0 | BE29: ='UI & Overgenomen Netten'!BE$141 -> 0 | BF29: ='UI & Overgenomen Netten'!BF$141 -> 0 | BG29: ='UI & Overgenomen Netten'!BG$141 -> 0 | BH29: ='UI & Overgenomen Netten'!BH$141 -> 0 | BI29: ='UI & Overgenomen Netten'!BI$141 -> 0 | BJ29: ='UI & Overgenomen Netten'!BJ$141 -> 0 | BK29: ='UI & Overgenomen Netten'!BK$141 -> 0 | BL29: ='UI & Overgenomen Netten'!BL$141 -> 0 | BM29: ='UI & Overgenomen Netten'!BM$141 -> 0 | BN29: ='UI & Overgenomen Netten'!BN$141 -> 0 | BO29: ='UI & Overgenomen Netten'!BO$141 -> 0 | BP29: ='UI & Overgenomen Netten'!BP$141 -> 0 | BQ29: ='UI & Overgenomen Netten'!BQ$141 -> 0 | BR29: ='UI & Overgenomen Netten'!BR$141 -> 0 | BS29: ='UI & Overgenomen Netten'!BS$141 -> 0 | BT29: ='UI & Overgenomen Netten'!BT$141 -> 0 | BU29: ='UI & Overgenomen Netten'!BU$141 -> 0 | BV29: ='UI & Overgenomen Netten'!BV$141 -> 0 | BW29: ='UI & Overgenomen Netten'!BW$141 -> 0 | BX29: ='UI & Overgenomen Netten'!BX$141 -> 0 | BY29: ='UI & Overgenomen Netten'!BY$141 -> 0 | BZ29: ='UI & Overgenomen Netten'!BZ$141 -> 0 | CA29: ='UI & Overgenomen Netten'!CA$141 -> 0 | CB29: ='UI & Overgenomen Netten'!CB$141 -> 0 | CC29: ='UI & Overgenomen Netten'!CC$141 -> 0 | CD29: ='UI & Overgenomen Netten'!CD$141 -> 0 | CE29: ='UI & Overgenomen Netten'!CE$141 -> 0 | CF29: ='UI & Overgenomen Netten'!CF$141 -> 0 | CG29: ='UI & Overgenomen Netten'!CG$141 -> 0 | CH29: ='UI & Overgenomen Netten'!CH$141 -> 0 | CI29: ='UI & Overgenomen Netten'!CI$141 -> 0 | CJ29: ='UI & Overgenomen Netten'!CJ$141 -> 0 | CK29: ='UI & Overgenomen Netten'!CK$141 -> 0 | CL29: ='UI & Overgenomen Netten'!CL$141 -> 0
E30: ='UI & Overgenomen Netten'!E$131 -> Boekwaarde UI's | F30: ='UI & Overgenomen Netten'!F$131 -> 0 | G30: ='UI & Overgenomen Netten'!G$131 -> 0 | H30: ='UI & Overgenomen Netten'!H$131 -> € | I30: ='UI & Overgenomen Netten'!I$131 -> 0 | J30: ='UI & Overgenomen Netten'!J$131 -> 0 | K30: ='UI & Overgenomen Netten'!K$131 -> 0 | L30: ='UI & Overgenomen Netten'!L$131 -> 0 | M30: ='UI & Overgenomen Netten'!M$131 -> 0 | N30: ='UI & Overgenomen Netten'!N$131 -> 0 | O30: ='UI & Overgenomen Netten'!O$131 -> 0 | P30: ='UI & Overgenomen Netten'!P$131 -> 0 | Q30: ='UI & Overgenomen Netten'!Q$131 -> 0 | R30: ='UI & Overgenomen Netten'!R$131 -> 0 | S30: ='UI & Overgenomen Netten'!S$131 -> 0 | T30: ='UI & Overgenomen Netten'!T$131 -> 0 | U30: ='UI & Overgenomen Netten'!U$131 -> 0 | V30: ='UI & Overgenomen Netten'!V$131 -> 0 | W30: ='UI & Overgenomen Netten'!W$131 -> 0 | X30: ='UI & Overgenomen Netten'!X$131 -> 0 | Y30: ='UI & Overgenomen Netten'!Y$131 -> 0 | Z30: ='UI & Overgenomen Netten'!Z$131 -> 0 | AA30: ='UI & Overgenomen Netten'!AA$131 -> 0 | AB30: ='UI & Overgenomen Netten'!AB$131 -> 0 | AC30: ='UI & Overgenomen Netten'!AC$131 -> 0 | AD30: ='UI & Overgenomen Netten'!AD$131 -> 0 | AE30: ='UI & Overgenomen Netten'!AE$131 -> 0 | AF30: ='UI & Overgenomen Netten'!AF$131 -> 0 | AG30: ='UI & Overgenomen Netten'!AG$131 -> 0 | AH30: ='UI & Overgenomen Netten'!AH$131 -> 0 | AI30: ='UI & Overgenomen Netten'!AI$131 -> 0 | AJ30: ='UI & Overgenomen Netten'!AJ$131 -> 0 | AK30: ='UI & Overgenomen Netten'!AK$131 -> 0 | AL30: ='UI & Overgenomen Netten'!AL$131 -> 0 | AM30: ='UI & Overgenomen Netten'!AM$131 -> 0 | AN30: ='UI & Overgenomen Netten'!AN$131 -> 0 | AO30: ='UI & Overgenomen Netten'!AO$131 -> 0 | AP30: ='UI & Overgenomen Netten'!AP$131 -> 0 | AQ30: ='UI & Overgenomen Netten'!AQ$131 -> 0 | AR30: ='UI & Overgenomen Netten'!AR$131 -> 0 | AS30: ='UI & Overgenomen Netten'!AS$131 -> 0 | AT30: ='UI & Overgenomen Netten'!AT$131 -> 0 | AU30: ='UI & Overgenomen Netten'!AU$131 -> 0 | AV30: ='UI & Overgenomen Netten'!AV$131 -> 0 | AW30: ='UI & Overgenomen Netten'!AW$131 -> 0 | AX30: ='UI & Overgenomen Netten'!AX$131 -> 0 | AY30: ='UI & Overgenomen Netten'!AY$131 -> 0 | AZ30: ='UI & Overgenomen Netten'!AZ$131 -> 0 | BA30: ='UI & Overgenomen Netten'!BA$131 -> 0 | BB30: ='UI & Overgenomen Netten'!BB$131 -> 0 | BC30: ='UI & Overgenomen Netten'!BC$131 -> 0 | BD30: ='UI & Overgenomen Netten'!BD$131 -> 0 | BE30: ='UI & Overgenomen Netten'!BE$131 -> 0 | BF30: ='UI & Overgenomen Netten'!BF$131 -> 0 | BG30: ='UI & Overgenomen Netten'!BG$131 -> 0 | BH30: ='UI & Overgenomen Netten'!BH$131 -> 0 | BI30: ='UI & Overgenomen Netten'!BI$131 -> 0 | BJ30: ='UI & Overgenomen Netten'!BJ$131 -> 0 | BK30: ='UI & Overgenomen Netten'!BK$131 -> 0 | BL30: ='UI & Overgenomen Netten'!BL$131 -> 0 | BM30: ='UI & Overgenomen Netten'!BM$131 -> 0 | BN30: ='UI & Overgenomen Netten'!BN$131 -> 0 | BO30: ='UI & Overgenomen Netten'!BO$131 -> 0 | BP30: ='UI & Overgenomen Netten'!BP$131 -> 0 | BQ30: ='UI & Overgenomen Netten'!BQ$131 -> 0 | BR30: ='UI & Overgenomen Netten'!BR$131 -> 0 | BS30: ='UI & Overgenomen Netten'!BS$131 -> 0 | BT30: ='UI & Overgenomen Netten'!BT$131 -> 0 | BU30: ='UI & Overgenomen Netten'!BU$131 -> 0 | BV30: ='UI & Overgenomen Netten'!BV$131 -> 0 | BW30: ='UI & Overgenomen Netten'!BW$131 -> 0 | BX30: ='UI & Overgenomen Netten'!BX$131 -> 0 | BY30: ='UI & Overgenomen Netten'!BY$131 -> 0 | BZ30: ='UI & Overgenomen Netten'!BZ$131 -> 0 | CA30: ='UI & Overgenomen Netten'!CA$131 -> 0 | CB30: ='UI & Overgenomen Netten'!CB$131 -> 0 | CC30: ='UI & Overgenomen Netten'!CC$131 -> 0 | CD30: ='UI & Overgenomen Netten'!CD$131 -> 0 | CE30: ='UI & Overgenomen Netten'!CE$131 -> 0 | CF30: ='UI & Overgenomen Netten'!CF$131 -> 0 | CG30: ='UI & Overgenomen Netten'!CG$131 -> 0 | CH30: ='UI & Overgenomen Netten'!CH$131 -> 0 | CI30: ='UI & Overgenomen Netten'!CI$131 -> 0 | CJ30: ='UI & Overgenomen Netten'!CJ$131 -> 0 | CK30: ='UI & Overgenomen Netten'!CK$131 -> 0 | CL30: ='UI & Overgenomen Netten'!CL$131 -> 0
E32: Bijzonderheid: overgenomen netten
E33: ='UI & Overgenomen Netten'!E$156 -> Investeringsbedrag overgenomen netten | F33: ='UI & Overgenomen Netten'!F$156 -> 0 | G33: ='UI & Overgenomen Netten'!G$156 -> 0 | H33: ='UI & Overgenomen Netten'!H$156 -> € | I33: ='UI & Overgenomen Netten'!I$156 -> 0 | J33: ='UI & Overgenomen Netten'!J$156 -> 0 | K33: ='UI & Overgenomen Netten'!K$156 -> 0 | L33: ='UI & Overgenomen Netten'!L$156 -> 0 | M33: ='UI & Overgenomen Netten'!M$156 -> 0 | N33: ='UI & Overgenomen Netten'!N$156 -> 0 | O33: ='UI & Overgenomen Netten'!O$156 -> 0 | P33: ='UI & Overgenomen Netten'!P$156 -> 0 | Q33: ='UI & Overgenomen Netten'!Q$156 -> 0 | R33: ='UI & Overgenomen Netten'!R$156 -> 0 | S33: ='UI & Overgenomen Netten'!S$156 -> 0 | T33: ='UI & Overgenomen Netten'!T$156 -> 0 | U33: ='UI & Overgenomen Netten'!U$156 -> 0 | V33: ='UI & Overgenomen Netten'!V$156 -> 0 | W33: ='UI & Overgenomen Netten'!W$156 -> 0 | X33: ='UI & Overgenomen Netten'!X$156 -> 0 | Y33: ='UI & Overgenomen Netten'!Y$156 -> 0 | Z33: ='UI & Overgenomen Netten'!Z$156 -> 0 | AA33: ='UI & Overgenomen Netten'!AA$156 -> 0 | AB33: ='UI & Overgenomen Netten'!AB$156 -> 0 | AC33: ='UI & Overgenomen Netten'!AC$156 -> 0 | AD33: ='UI & Overgenomen Netten'!AD$156 -> 0 | AE33: ='UI & Overgenomen Netten'!AE$156 -> 0 | AF33: ='UI & Overgenomen Netten'!AF$156 -> 0 | AG33: ='UI & Overgenomen Netten'!AG$156 -> 0 | AH33: ='UI & Overgenomen Netten'!AH$156 -> 0 | AI33: ='UI & Overgenomen Netten'!AI$156 -> 0 | AJ33: ='UI & Overgenomen Netten'!AJ$156 -> 0 | AK33: ='UI & Overgenomen Netten'!AK$156 -> 0 | AL33: ='UI & Overgenomen Netten'!AL$156 -> 0 | AM33: ='UI & Overgenomen Netten'!AM$156 -> 0 | AN33: ='UI & Overgenomen Netten'!AN$156 -> 0 | AO33: ='UI & Overgenomen Netten'!AO$156 -> 0 | AP33: ='UI & Overgenomen Netten'!AP$156 -> 0 | AQ33: ='UI & Overgenomen Netten'!AQ$156 -> 0 | AR33: ='UI & Overgenomen Netten'!AR$156 -> 0 | AS33: ='UI & Overgenomen Netten'!AS$156 -> 0 | AT33: ='UI & Overgenomen Netten'!AT$156 -> 0 | AU33: ='UI & Overgenomen Netten'!AU$156 -> 0 | AV33: ='UI & Overgenomen Netten'!AV$156 -> 0 | AW33: ='UI & Overgenomen Netten'!AW$156 -> 0 | AX33: ='UI & Overgenomen Netten'!AX$156 -> 0 | AY33: ='UI & Overgenomen Netten'!AY$156 -> 0 | AZ33: ='UI & Overgenomen Netten'!AZ$156 -> 0 | BA33: ='UI & Overgenomen Netten'!BA$156 -> 0 | BB33: ='UI & Overgenomen Netten'!BB$156 -> 0 | BC33: ='UI & Overgenomen Netten'!BC$156 -> 0 | BD33: ='UI & Overgenomen Netten'!BD$156 -> 0 | BE33: ='UI & Overgenomen Netten'!BE$156 -> 0 | BF33: ='UI & Overgenomen Netten'!BF$156 -> 0 | BG33: ='UI & Overgenomen Netten'!BG$156 -> 0 | BH33: ='UI & Overgenomen Netten'!BH$156 -> 0 | BI33: ='UI & Overgenomen Netten'!BI$156 -> 0 | BJ33: ='UI & Overgenomen Netten'!BJ$156 -> 0 | BK33: ='UI & Overgenomen Netten'!BK$156 -> 0 | BL33: ='UI & Overgenomen Netten'!BL$156 -> 0 | BM33: ='UI & Overgenomen Netten'!BM$156 -> 0 | BN33: ='UI & Overgenomen Netten'!BN$156 -> 0 | BO33: ='UI & Overgenomen Netten'!BO$156 -> 0 | BP33: ='UI & Overgenomen Netten'!BP$156 -> 0 | BQ33: ='UI & Overgenomen Netten'!BQ$156 -> 0 | BR33: ='UI & Overgenomen Netten'!BR$156 -> 0 | BS33: ='UI & Overgenomen Netten'!BS$156 -> 0 | BT33: ='UI & Overgenomen Netten'!BT$156 -> 0 | BU33: ='UI & Overgenomen Netten'!BU$156 -> 0 | BV33: ='UI & Overgenomen Netten'!BV$156 -> 0 | BW33: ='UI & Overgenomen Netten'!BW$156 -> 0 | BX33: ='UI & Overgenomen Netten'!BX$156 -> 0 | BY33: ='UI & Overgenomen Netten'!BY$156 -> 0 | BZ33: ='UI & Overgenomen Netten'!BZ$156 -> 0 | CA33: ='UI & Overgenomen Netten'!CA$156 -> 0 | CB33: ='UI & Overgenomen Netten'!CB$156 -> 0 | CC33: ='UI & Overgenomen Netten'!CC$156 -> 0 | CD33: ='UI & Overgenomen Netten'!CD$156 -> 0 | CE33: ='UI & Overgenomen Netten'!CE$156 -> 0 | CF33: ='UI & Overgenomen Netten'!CF$156 -> 0 | CG33: ='UI & Overgenomen Netten'!CG$156 -> 0 | CH33: ='UI & Overgenomen Netten'!CH$156 -> 0 | CI33: ='UI & Overgenomen Netten'!CI$156 -> 0 | CJ33: ='UI & Overgenomen Netten'!CJ$156 -> 0 | CK33: ='UI & Overgenomen Netten'!CK$156 -> 0 | CL33: ='UI & Overgenomen Netten'!CL$156 -> 0
E34: ='UI & Overgenomen Netten'!E$146 -> Afschrijvingen overgenomen netten | F34: ='UI & Overgenomen Netten'!F$146 -> 0 | G34: ='UI & Overgenomen Netten'!G$146 -> 0 | H34: ='UI & Overgenomen Netten'!H$146 -> € | I34: ='UI & Overgenomen Netten'!I$146 -> 0 | J34: ='UI & Overgenomen Netten'!J$146 -> 0 | K34: ='UI & Overgenomen Netten'!K$146 -> 0 | L34: ='UI & Overgenomen Netten'!L$146 -> 0 | M34: ='UI & Overgenomen Netten'!M$146 -> 0 | N34: ='UI & Overgenomen Netten'!N$146 -> 0 | O34: ='UI & Overgenomen Netten'!O$146 -> 0 | P34: ='UI & Overgenomen Netten'!P$146 -> 0 | Q34: ='UI & Overgenomen Netten'!Q$146 -> 0 | R34: ='UI & Overgenomen Netten'!R$146 -> 0 | S34: ='UI & Overgenomen Netten'!S$146 -> 0 | T34: ='UI & Overgenomen Netten'!T$146 -> 0 | U34: ='UI & Overgenomen Netten'!U$146 -> 0 | V34: ='UI & Overgenomen Netten'!V$146 -> 0 | W34: ='UI & Overgenomen Netten'!W$146 -> 0 | X34: ='UI & Overgenomen Netten'!X$146 -> 0 | Y34: ='UI & Overgenomen Netten'!Y$146 -> 0 | Z34: ='UI & Overgenomen Netten'!Z$146 -> 0 | AA34: ='UI & Overgenomen Netten'!AA$146 -> 0 | AB34: ='UI & Overgenomen Netten'!AB$146 -> 0 | AC34: ='UI & Overgenomen Netten'!AC$146 -> 0 | AD34: ='UI & Overgenomen Netten'!AD$146 -> 0 | AE34: ='UI & Overgenomen Netten'!AE$146 -> 0 | AF34: ='UI & Overgenomen Netten'!AF$146 -> 0 | AG34: ='UI & Overgenomen Netten'!AG$146 -> 0 | AH34: ='UI & Overgenomen Netten'!AH$146 -> 0 | AI34: ='UI & Overgenomen Netten'!AI$146 -> 0 | AJ34: ='UI & Overgenomen Netten'!AJ$146 -> 0 | AK34: ='UI & Overgenomen Netten'!AK$146 -> 0 | AL34: ='UI & Overgenomen Netten'!AL$146 -> 0 | AM34: ='UI & Overgenomen Netten'!AM$146 -> 0 | AN34: ='UI & Overgenomen Netten'!AN$146 -> 0 | AO34: ='UI & Overgenomen Netten'!AO$146 -> 0 | AP34: ='UI & Overgenomen Netten'!AP$146 -> 0 | AQ34: ='UI & Overgenomen Netten'!AQ$146 -> 0 | AR34: ='UI & Overgenomen Netten'!AR$146 -> 0 | AS34: ='UI & Overgenomen Netten'!AS$146 -> 0 | AT34: ='UI & Overgenomen Netten'!AT$146 -> 0 | AU34: ='UI & Overgenomen Netten'!AU$146 -> 0 | AV34: ='UI & Overgenomen Netten'!AV$146 -> 0 | AW34: ='UI & Overgenomen Netten'!AW$146 -> 0 | AX34: ='UI & Overgenomen Netten'!AX$146 -> 0 | AY34: ='UI & Overgenomen Netten'!AY$146 -> 0 | AZ34: ='UI & Overgenomen Netten'!AZ$146 -> 0 | BA34: ='UI & Overgenomen Netten'!BA$146 -> 0 | BB34: ='UI & Overgenomen Netten'!BB$146 -> 0 | BC34: ='UI & Overgenomen Netten'!BC$146 -> 0 | BD34: ='UI & Overgenomen Netten'!BD$146 -> 0 | BE34: ='UI & Overgenomen Netten'!BE$146 -> 0 | BF34: ='UI & Overgenomen Netten'!BF$146 -> 0 | BG34: ='UI & Overgenomen Netten'!BG$146 -> 0 | BH34: ='UI & Overgenomen Netten'!BH$146 -> 0 | BI34: ='UI & Overgenomen Netten'!BI$146 -> 0 | BJ34: ='UI & Overgenomen Netten'!BJ$146 -> 0 | BK34: ='UI & Overgenomen Netten'!BK$146 -> 0 | BL34: ='UI & Overgenomen Netten'!BL$146 -> 0 | BM34: ='UI & Overgenomen Netten'!BM$146 -> 0 | BN34: ='UI & Overgenomen Netten'!BN$146 -> 0 | BO34: ='UI & Overgenomen Netten'!BO$146 -> 0 | BP34: ='UI & Overgenomen Netten'!BP$146 -> 0 | BQ34: ='UI & Overgenomen Netten'!BQ$146 -> 0 | BR34: ='UI & Overgenomen Netten'!BR$146 -> 0 | BS34: ='UI & Overgenomen Netten'!BS$146 -> 0 | BT34: ='UI & Overgenomen Netten'!BT$146 -> 0 | BU34: ='UI & Overgenomen Netten'!BU$146 -> 0 | BV34: ='UI & Overgenomen Netten'!BV$146 -> 0 | BW34: ='UI & Overgenomen Netten'!BW$146 -> 0 | BX34: ='UI & Overgenomen Netten'!BX$146 -> 0 | BY34: ='UI & Overgenomen Netten'!BY$146 -> 0 | BZ34: ='UI & Overgenomen Netten'!BZ$146 -> 0 | CA34: ='UI & Overgenomen Netten'!CA$146 -> 0 | CB34: ='UI & Overgenomen Netten'!CB$146 -> 0 | CC34: ='UI & Overgenomen Netten'!CC$146 -> 0 | CD34: ='UI & Overgenomen Netten'!CD$146 -> 0 | CE34: ='UI & Overgenomen Netten'!CE$146 -> 0 | CF34: ='UI & Overgenomen Netten'!CF$146 -> 0 | CG34: ='UI & Overgenomen Netten'!CG$146 -> 0 | CH34: ='UI & Overgenomen Netten'!CH$146 -> 0 | CI34: ='UI & Overgenomen Netten'!CI$146 -> 0 | CJ34: ='UI & Overgenomen Netten'!CJ$146 -> 0 | CK34: ='UI & Overgenomen Netten'!CK$146 -> 0 | CL34: ='UI & Overgenomen Netten'!CL$146 -> 0
E35: ='UI & Overgenomen Netten'!E$136 -> Boekwaarde overgenomen netten | F35: ='UI & Overgenomen Netten'!F$136 -> 0 | G35: ='UI & Overgenomen Netten'!G$136 -> 0 | H35: ='UI & Overgenomen Netten'!H$136 -> € | I35: ='UI & Overgenomen Netten'!I$136 -> 0 | J35: ='UI & Overgenomen Netten'!J$136 -> 0 | K35: ='UI & Overgenomen Netten'!K$136 -> 0 | L35: ='UI & Overgenomen Netten'!L$136 -> 0 | M35: ='UI & Overgenomen Netten'!M$136 -> 0 | N35: ='UI & Overgenomen Netten'!N$136 -> 0 | O35: ='UI & Overgenomen Netten'!O$136 -> 0 | P35: ='UI & Overgenomen Netten'!P$136 -> 0 | Q35: ='UI & Overgenomen Netten'!Q$136 -> 0 | R35: ='UI & Overgenomen Netten'!R$136 -> 0 | S35: ='UI & Overgenomen Netten'!S$136 -> 0 | T35: ='UI & Overgenomen Netten'!T$136 -> 0 | U35: ='UI & Overgenomen Netten'!U$136 -> 0 | V35: ='UI & Overgenomen Netten'!V$136 -> 0 | W35: ='UI & Overgenomen Netten'!W$136 -> 0 | X35: ='UI & Overgenomen Netten'!X$136 -> 0 | Y35: ='UI & Overgenomen Netten'!Y$136 -> 0 | Z35: ='UI & Overgenomen Netten'!Z$136 -> 0 | AA35: ='UI & Overgenomen Netten'!AA$136 -> 0 | AB35: ='UI & Overgenomen Netten'!AB$136 -> 0 | AC35: ='UI & Overgenomen Netten'!AC$136 -> 0 | AD35: ='UI & Overgenomen Netten'!AD$136 -> 0 | AE35: ='UI & Overgenomen Netten'!AE$136 -> 0 | AF35: ='UI & Overgenomen Netten'!AF$136 -> 0 | AG35: ='UI & Overgenomen Netten'!AG$136 -> 0 | AH35: ='UI & Overgenomen Netten'!AH$136 -> 0 | AI35: ='UI & Overgenomen Netten'!AI$136 -> 0 | AJ35: ='UI & Overgenomen Netten'!AJ$136 -> 0 | AK35: ='UI & Overgenomen Netten'!AK$136 -> 0 | AL35: ='UI & Overgenomen Netten'!AL$136 -> 0 | AM35: ='UI & Overgenomen Netten'!AM$136 -> 0 | AN35: ='UI & Overgenomen Netten'!AN$136 -> 0 | AO35: ='UI & Overgenomen Netten'!AO$136 -> 0 | AP35: ='UI & Overgenomen Netten'!AP$136 -> 0 | AQ35: ='UI & Overgenomen Netten'!AQ$136 -> 0 | AR35: ='UI & Overgenomen Netten'!AR$136 -> 0 | AS35: ='UI & Overgenomen Netten'!AS$136 -> 0 | AT35: ='UI & Overgenomen Netten'!AT$136 -> 0 | AU35: ='UI & Overgenomen Netten'!AU$136 -> 0 | AV35: ='UI & Overgenomen Netten'!AV$136 -> 0 | AW35: ='UI & Overgenomen Netten'!AW$136 -> 0 | AX35: ='UI & Overgenomen Netten'!AX$136 -> 0 | AY35: ='UI & Overgenomen Netten'!AY$136 -> 0 | AZ35: ='UI & Overgenomen Netten'!AZ$136 -> 0 | BA35: ='UI & Overgenomen Netten'!BA$136 -> 0 | BB35: ='UI & Overgenomen Netten'!BB$136 -> 0 | BC35: ='UI & Overgenomen Netten'!BC$136 -> 0 | BD35: ='UI & Overgenomen Netten'!BD$136 -> 0 | BE35: ='UI & Overgenomen Netten'!BE$136 -> 0 | BF35: ='UI & Overgenomen Netten'!BF$136 -> 0 | BG35: ='UI & Overgenomen Netten'!BG$136 -> 0 | BH35: ='UI & Overgenomen Netten'!BH$136 -> 0 | BI35: ='UI & Overgenomen Netten'!BI$136 -> 0 | BJ35: ='UI & Overgenomen Netten'!BJ$136 -> 0 | BK35: ='UI & Overgenomen Netten'!BK$136 -> 0 | BL35: ='UI & Overgenomen Netten'!BL$136 -> 0 | BM35: ='UI & Overgenomen Netten'!BM$136 -> 0 | BN35: ='UI & Overgenomen Netten'!BN$136 -> 0 | BO35: ='UI & Overgenomen Netten'!BO$136 -> 0 | BP35: ='UI & Overgenomen Netten'!BP$136 -> 0 | BQ35: ='UI & Overgenomen Netten'!BQ$136 -> 0 | BR35: ='UI & Overgenomen Netten'!BR$136 -> 0 | BS35: ='UI & Overgenomen Netten'!BS$136 -> 0 | BT35: ='UI & Overgenomen Netten'!BT$136 -> 0 | BU35: ='UI & Overgenomen Netten'!BU$136 -> 0 | BV35: ='UI & Overgenomen Netten'!BV$136 -> 0 | BW35: ='UI & Overgenomen Netten'!BW$136 -> 0 | BX35: ='UI & Overgenomen Netten'!BX$136 -> 0 | BY35: ='UI & Overgenomen Netten'!BY$136 -> 0 | BZ35: ='UI & Overgenomen Netten'!BZ$136 -> 0 | CA35: ='UI & Overgenomen Netten'!CA$136 -> 0 | CB35: ='UI & Overgenomen Netten'!CB$136 -> 0 | CC35: ='UI & Overgenomen Netten'!CC$136 -> 0 | CD35: ='UI & Overgenomen Netten'!CD$136 -> 0 | CE35: ='UI & Overgenomen Netten'!CE$136 -> 0 | CF35: ='UI & Overgenomen Netten'!CF$136 -> 0 | CG35: ='UI & Overgenomen Netten'!CG$136 -> 0 | CH35: ='UI & Overgenomen Netten'!CH$136 -> 0 | CI35: ='UI & Overgenomen Netten'!CI$136 -> 0 | CJ35: ='UI & Overgenomen Netten'!CJ$136 -> 0 | CK35: ='UI & Overgenomen Netten'!CK$136 -> 0 | CL35: ='UI & Overgenomen Netten'!CL$136 -> 0
E37: Totalen
E38: Investeringsbedrag boekjaar | H38: € | K38: =SUM( K13, K18, K23, K28, K33 ) -> 1528453301 | L38: =SUM( L13, L18, L23, L28, L33 ) -> 17974125 | M38: 29011236 | N38: 42037497 | O38: 39243643.12 | P38: 41982305.53 | Q38: 50384610.93 | R38: 58352823.69 | S38: 61809884.57 | T38: 73896955.8 | U38: 75693611.07 | V38: 53491129.33 | W38: 0 | X38: 0 | Y38: 0 | Z38: 0 | AA38: 0 | AB38: 0 | AC38: 0 | AD38: 0 | AE38: 0 | AF38: 0 | AG38: 0 | AH38: 0 | AI38: 0 | AJ38: 0 | AK38: 0 | AL38: 0 | AM38: 0 | AN38: 0 | AO38: 0 | AP38: 0 | AQ38: 0 | AR38: 0 | AS38: 0 | AT38: 0 | AU38: 0 | AV38: 0 | AW38: 0 | AX38: 0 | AY38: 0 | AZ38: 0 | BA38: 0 | BB38: 0 | BC38: 0 | BD38: 0 | BE38: 0 | BF38: 0 | BG38: 0 | BH38: 0 | BI38: 0 | BJ38: 0 | BK38: 0 | BL38: 0 | BM38: 0 | BN38: 0 | BO38: 0 | BP38: 0 | BQ38: 0 | BR38: 0 | BS38: 0 | BT38: 0 | BU38: 0 | BV38: 0 | BW38: 0 | BX38: =SUM( BX13, BX18, BX23, BX28, BX33 ) -> 0 | BY38: 0 | BZ38: 0 | CA38: 0 | CB38: 0 | CC38: 0 | CD38: 0 | CE38: 0 | CF38: 0 | CG38: 0 | CH38: 0 | CI38: 0 | CJ38: 0 | CK38: 0 | CL38: 0
E39: Afschrijvingen | H39: € | K39: =SUM( K14, K19, K24, K29, K34 ) -> 47803913.1 | L39: 48771715.84 | M39: 50215067.98 | N39: 51759292.07 | O39: 53261081.25 | P39: 55879244.28 | Q39: 57054228.6 | R39: 59099507.61 | S39: 61995089.63 | T39: 65173589.69 | U39: 69043321.44 | V39: 71337980.71 | W39: 72510162.15 | X39: 72508784.61 | Y39: 72298359.71 | Z39: 72062498.28 | AA39: 72037061.77 | AB39: 72037061.77 | AC39: 72037061.77 | AD39: 72032196.56 | AE39: 71846101.38 | AF39: 71654817.93 | AG39: 71644764.44 | AH39: 71644764.44 | AI39: 71644764.44 | AJ39: 71635012.4 | AK39: 71624244.25 | AL39: 71621414.25 | AM39: 71618117.03 | AN39: 71613039.98 | AO39: 71572535.2 | AP39: 56035579.39 | AQ39: 13475535.91 | AR39: 13317269.14 | AS39: 13128813.65 | AT39: 12929080.04 | AU39: 12768628.83 | AV39: 12645449.32 | AW39: 12466006.72 | AX39: 12283329.07 | AY39: 12194326.02 | AZ39: 12128519.09 | BA39: 12093567.75 | BB39: 12093567.75 | BC39: 12093567.75 | BD39: 11937712.26 | BE39: 11616817.07 | BF39: 10325223.56 | BG39: 9738268.578 | BH39: 9061180.695 | BI39: 8415645.399 | BJ39: 7668575.041 | BK39: 6708526.945 | BL39: 5612221.011 | BM39: 4379156.992 | BN39: 2956068.326 | BO39: 1692096.047 | BP39: 1124502.036 | BQ39: 1032023.724 | BR39: 926179.8363 | BS39: 801661.2205 | BT39: 651210.8977 | BU39: 513637.5526 | BV39: 414583.002 | BW39: 314065.5037 | BX39: 197075.4126 | BY39: 67299.85984 | BZ39: 0 | CA39: 0 | CB39: 0 | CC39: 0 | CD39: 0 | CE39: 0 | CF39: 0 | CG39: 0 | CH39: 0 | CI39: 0 | CJ39: 0 | CK39: 0 | CL39: 0
E40: Boekwaarde | H40: € | K40: 1480649388 | L40: =SUM( L15, L20, L25, L30, L35 ) -> 1466138940 | M40: 1471325609 | N40: 1482202373 | O40: 1484489161 | P40: 1518095875 | Q40: 1515980545 | R40: 1537973569 | S40: 1577775677 | T40: 1622787884 | U40: 1674876234 | V40: 1673778145 | W40: 1614658208 | X40: 1542149423 | Y40: 1469851064 | Z40: 1397788565 | AA40: 1325751504 | AB40: 1253714442 | AC40: 1181677380 | AD40: 1109645184 | AE40: 1037799082 | AF40: 966144264.3 | AG40: 894499499.9 | AH40: 822854735.4 | AI40: 751209971 | AJ40: 679574958.6 | AK40: 607950714.3 | AL40: 536329300.1 | AM40: 464711183.1 | AN40: 393098143.1 | AO40: 321525607.9 | AP40: 265490028.5 | AQ40: 252014492.6 | AR40: 238697223.4 | AS40: 225568409.8 | AT40: 212639329.7 | AU40: 199870700.9 | AV40: 187225251.6 | AW40: 174759244.9 | AX40: 162475915.8 | AY40: 150281589.8 | AZ40: 138153070.7 | BA40: 126059502.9 | BB40: 113965935.2 | BC40: 101872367.4 | BD40: 89934655.18 | BE40: 78317838.12 | BF40: 63099662.28 | BG40: 53361393.7 | BH40: 44300213.01 | BI40: 35884567.61 | BJ40: 28215992.57 | BK40: 21507465.62 | BL40: 15895244.61 | BM40: 11516087.62 | BN40: 8560019.296 | BO40: 6867923.25 | BP40: 5743421.214 | BQ40: 4711397.49 | BR40: 3785217.654 | BS40: 2983556.433 | BT40: 2332345.535 | BU40: 1818707.983 | BV40: 1404124.981 | BW40: 1090059.477 | BX40: 892984.0645 | BY40: 825684.2047 | BZ40: 825684.2047 | CA40: 825684.2047 | CB40: 825684.2047 | CC40: 825684.2047 | CD40: 825684.2047 | CE40: 825684.2047 | CF40: 825684.2047 | CG40: 825684.2047 | CH40: 825684.2047 | CI40: 825684.2047 | CJ40: 825684.2047 | CK40: 825684.2047 | CL40: 825684.2047
E42: AANSLUITDIENST: Enexis excl. FNOP | K42: =Tijd!K$4 -> 2004 | L42: =Tijd!L$4 -> 2005 | M42: =Tijd!M$4 -> 2006 | N42: =Tijd!N$4 -> 2007 | O42: =Tijd!O$4 -> 2008 | P42: =Tijd!P$4 -> 2009 | Q42: =Tijd!Q$4 -> 2010 | R42: =Tijd!R$4 -> 2011 | S42: =Tijd!S$4 -> 2012 | T42: =Tijd!T$4 -> 2013 | U42: =Tijd!U$4 -> 2014 | V42: =Tijd!V$4 -> 2015 | W42: =Tijd!W$4 -> 2016 | X42: =Tijd!X$4 -> 2017 | Y42: =Tijd!Y$4 -> 2018 | Z42: =Tijd!Z$4 -> 2019 | AA42: =Tijd!AA$4 -> 2020 | AB42: =Tijd!AB$4 -> 2021 | AC42: =Tijd!AC$4 -> 2022 | AD42: =Tijd!AD$4 -> 2023 | AE42: =Tijd!AE$4 -> 2024 | AF42: =Tijd!AF$4 -> 2025 | AG42: =Tijd!AG$4 -> 2026 | AH42: =Tijd!AH$4 -> 2027 | AI42: =Tijd!AI$4 -> 2028 | AJ42: =Tijd!AJ$4 -> 2029 | AK42: =Tijd!AK$4 -> 2030 | AL42: =Tijd!AL$4 -> 2031 | AM42: =Tijd!AM$4 -> 2032 | AN42: =Tijd!AN$4 -> 2033 | AO42: =Tijd!AO$4 -> 2034 | AP42: =Tijd!AP$4 -> 2035 | AQ42: =Tijd!AQ$4 -> 2036 | AR42: =Tijd!AR$4 -> 2037 | AS42: =Tijd!AS$4 -> 2038 | AT42: =Tijd!AT$4 -> 2039 | AU42: =Tijd!AU$4 -> 2040 | AV42: =Tijd!AV$4 -> 2041 | AW42: =Tijd!AW$4 -> 2042 | AX42: =Tijd!AX$4 -> 2043 | AY42: =Tijd!AY$4 -> 2044 | AZ42: =Tijd!AZ$4 -> 2045 | BA42: =Tijd!BA$4 -> 2046 | BB42: =Tijd!BB$4 -> 2047 | BC42: =Tijd!BC$4 -> 2048 | BD42: =Tijd!BD$4 -> 2049 | BE42: =Tijd!BE$4 -> 2050 | BF42: =Tijd!BF$4 -> 2051 | BG42: =Tijd!BG$4 -> 2052 | BH42: =Tijd!BH$4 -> 2053 | BI42: =Tijd!BI$4 -> 2054 | BJ42: =Tijd!BJ$4 -> 2055 | BK42: =Tijd!BK$4 -> 2056 | BL42: =Tijd!BL$4 -> 2057 | BM42: =Tijd!BM$4 -> 2058 | BN42: =Tijd!BN$4 -> 2059 | BO42: =Tijd!BO$4 -> 2060 | BP42: =Tijd!BP$4 -> 2061 | BQ42: =Tijd!BQ$4 -> 2062 | BR42: =Tijd!BR$4 -> 2063 | BS42: =Tijd!BS$4 -> 2064 | BT42: =Tijd!BT$4 -> 2065 | BU42: =Tijd!BU$4 -> 2066 | BV42: =Tijd!BV$4 -> 2067 | BW42: =Tijd!BW$4 -> 2068 | BX42: =Tijd!BX$4 -> 2069 | BY42: =Tijd!BY$4 -> 2070 | BZ42: =Tijd!BZ$4 -> 2071 | CA42: =Tijd!CA$4 -> 2072 | CB42: =Tijd!CB$4 -> 2073 | CC42: =Tijd!CC$4 -> 2074 | CD42: =Tijd!CD$4 -> 2075 | CE42: =Tijd!CE$4 -> 2076 | CF42: =Tijd!CF$4 -> 2077 | CG42: =Tijd!CG$4 -> 2078 | CH42: =Tijd!CH$4 -> 2079 | CI42: =Tijd!CI$4 -> 2080 | CJ42: =Tijd!CJ$4 -> 2081 | CK42: =Tijd!CK$4 -> 2082 | CL42: =Tijd!CL$4 -> 2083
E43: Start-GAW (excl. bijzonderheden)
E44: =GAW!E$6132 -> Investeringsbedrag boekjaar Start-GAW | F44: =GAW!F$6132 -> 0 | G44: =GAW!G$6132 -> 0 | H44: =GAW!H$6132 -> € | I44: =GAW!I$6132 -> 260952396.8 | J44: =GAW!J$6132 -> 0 | K44: =GAW!K$6132 -> 0 | L44: =GAW!L$6132 -> 0 | M44: =GAW!M$6132 -> 0 | N44: =GAW!N$6132 -> 0 | O44: =GAW!O$6132 -> 260952396.8 | P44: =GAW!P$6132 -> 0 | Q44: =GAW!Q$6132 -> 0 | R44: =GAW!R$6132 -> 0 | S44: =GAW!S$6132 -> 0 | T44: =GAW!T$6132 -> 0 | U44: =GAW!U$6132 -> 0 | V44: =GAW!V$6132 -> 0 | W44: =GAW!W$6132 -> 0 | X44: =GAW!X$6132 -> 0 | Y44: =GAW!Y$6132 -> 0 | Z44: =GAW!Z$6132 -> 0 | AA44: =GAW!AA$6132 -> 0 | AB44: =GAW!AB$6132 -> 0 | AC44: =GAW!AC$6132 -> 0 | AD44: =GAW!AD$6132 -> 0 | AE44: =GAW!AE$6132 -> 0 | AF44: =GAW!AF$6132 -> 0 | AG44: =GAW!AG$6132 -> 0 | AH44: =GAW!AH$6132 -> 0 | AI44: =GAW!AI$6132 -> 0 | AJ44: =GAW!AJ$6132 -> 0 | AK44: =GAW!AK$6132 -> 0 | AL44: =GAW!AL$6132 -> 0 | AM44: =GAW!AM$6132 -> 0 | AN44: =GAW!AN$6132 -> 0 | AO44: =GAW!AO$6132 -> 0 | AP44: =GAW!AP$6132 -> 0 | AQ44: =GAW!AQ$6132 -> 0 | AR44: =GAW!AR$6132 -> 0 | AS44: =GAW!AS$6132 -> 0 | AT44: =GAW!AT$6132 -> 0 | AU44: =GAW!AU$6132 -> 0 | AV44: =GAW!AV$6132 -> 0 | AW44: =GAW!AW$6132 -> 0 | AX44: =GAW!AX$6132 -> 0 | AY44: =GAW!AY$6132 -> 0 | AZ44: =GAW!AZ$6132 -> 0 | BA44: =GAW!BA$6132 -> 0 | BB44: =GAW!BB$6132 -> 0 | BC44: =GAW!BC$6132 -> 0 | BD44: =GAW!BD$6132 -> 0 | BE44: =GAW!BE$6132 -> 0 | BF44: =GAW!BF$6132 -> 0 | BG44: =GAW!BG$6132 -> 0 | BH44: =GAW!BH$6132 -> 0 | BI44: =GAW!BI$6132 -> 0 | BJ44: =GAW!BJ$6132 -> 0 | BK44: =GAW!BK$6132 -> 0 | BL44: =GAW!BL$6132 -> 0 | BM44: =GAW!BM$6132 -> 0 | BN44: =GAW!BN$6132 -> 0 | BO44: =GAW!BO$6132 -> 0 | BP44: =GAW!BP$6132 -> 0 | BQ44: =GAW!BQ$6132 -> 0 | BR44: =GAW!BR$6132 -> 0 | BS44: =GAW!BS$6132 -> 0 | BT44: =GAW!BT$6132 -> 0 | BU44: =GAW!BU$6132 -> 0 | BV44: =GAW!BV$6132 -> 0 | BW44: =GAW!BW$6132 -> 0 | BX44: =GAW!BX$6132 -> 0 | BY44: =GAW!BY$6132 -> 0 | BZ44: =GAW!BZ$6132 -> 0 | CA44: =GAW!CA$6132 -> 0 | CB44: =GAW!CB$6132 -> 0 | CC44: =GAW!CC$6132 -> 0 | CD44: =GAW!CD$6132 -> 0 | CE44: =GAW!CE$6132 -> 0 | CF44: =GAW!CF$6132 -> 0 | CG44: =GAW!CG$6132 -> 0 | CH44: =GAW!CH$6132 -> 0 | CI44: =GAW!CI$6132 -> 0 | CJ44: =GAW!CJ$6132 -> 0 | CK44: =GAW!CK$6132 -> 0 | CL44: =GAW!CL$6132 -> 0
E45: =Indexatie!E$376 -> Afschrijvingen Start-GAW | F45: =Indexatie!F$376 -> 0 | G45: =Indexatie!G$376 -> 0 | H45: =Indexatie!H$376 -> € | I45: =Indexatie!I$376 -> 286298333 | J45: =Indexatie!J$376 -> 0 | K45: =Indexatie!K$376 -> 0 | L45: =Indexatie!L$376 -> 0 | M45: =Indexatie!M$376 -> 0 | N45: =Indexatie!N$376 -> 0 | O45: =Indexatie!O$376 -> 0 | P45: =Indexatie!P$376 -> 9664903.584 | Q45: =Indexatie!Q$376 -> 9664903.584 | R45: =Indexatie!R$376 -> 9809877.138 | S45: =Indexatie!S$376 -> 10064933.94 | T45: =Indexatie!T$376 -> 10296427.42 | U45: =Indexatie!U$376 -> 10584727.39 | V45: =Indexatie!V$376 -> 10690574.67 | W45: =Indexatie!W$376 -> 10776099.26 | X45: =Indexatie!X$376 -> 10776099.26 | Y45: =Indexatie!Y$376 -> 10776099.26 | Z45: =Indexatie!Z$376 -> 10776099.26 | AA45: =Indexatie!AA$376 -> 10776099.26 | AB45: =Indexatie!AB$376 -> 10776099.26 | AC45: =Indexatie!AC$376 -> 10776099.26 | AD45: =Indexatie!AD$376 -> 10776099.26 | AE45: =Indexatie!AE$376 -> 10776099.26 | AF45: =Indexatie!AF$376 -> 10776099.26 | AG45: =Indexatie!AG$376 -> 10776099.26 | AH45: =Indexatie!AH$376 -> 10776099.26 | AI45: =Indexatie!AI$376 -> 10776099.26 | AJ45: =Indexatie!AJ$376 -> 10776099.26 | AK45: =Indexatie!AK$376 -> 10776099.26 | AL45: =Indexatie!AL$376 -> 10776099.26 | AM45: =Indexatie!AM$376 -> 10776099.26 | AN45: =Indexatie!AN$376 -> 10776099.26 | AO45: =Indexatie!AO$376 -> 10776099.26 | AP45: =Indexatie!AP$376 -> 10776099.26 | AQ45: =Indexatie!AQ$376 -> 0 | AR45: =Indexatie!AR$376 -> 0 | AS45: =Indexatie!AS$376 -> 0 | AT45: =Indexatie!AT$376 -> 0 | AU45: =Indexatie!AU$376 -> 0 | AV45: =Indexatie!AV$376 -> 0 | AW45: =Indexatie!AW$376 -> 0 | AX45: =Indexatie!AX$376 -> 0 | AY45: =Indexatie!AY$376 -> 0 | AZ45: =Indexatie!AZ$376 -> 0 | BA45: =Indexatie!BA$376 -> 0 | BB45: =Indexatie!BB$376 -> 0 | BC45: =Indexatie!BC$376 -> 0 | BD45: =Indexatie!BD$376 -> 0 | BE45: =Indexatie!BE$376 -> 0 | BF45: =Indexatie!BF$376 -> 0 | BG45: =Indexatie!BG$376 -> 0 | BH45: =Indexatie!BH$376 -> 0 | BI45: =Indexatie!BI$376 -> 0 | BJ45: =Indexatie!BJ$376 -> 0 | BK45: =Indexatie!BK$376 -> 0 | BL45: =Indexatie!BL$376 -> 0 | BM45: =Indexatie!BM$376 -> 0 | BN45: =Indexatie!BN$376 -> 0 | BO45: =Indexatie!BO$376 -> 0 | BP45: =Indexatie!BP$376 -> 0 | BQ45: =Indexatie!BQ$376 -> 0 | BR45: =Indexatie!BR$376 -> 0 | BS45: =Indexatie!BS$376 -> 0 | BT45: =Indexatie!BT$376 -> 0 | BU45: =Indexatie!BU$376 -> 0 | BV45: =Indexatie!BV$376 -> 0 | BW45: =Indexatie!BW$376 -> 0 | BX45: =Indexatie!BX$376 -> 0 | BY45: =Indexatie!BY$376 -> 0 | BZ45: =Indexatie!BZ$376 -> 0 | CA45: =Indexatie!CA$376 -> 0 | CB45: =Indexatie!CB$376 -> 0 | CC45: =Indexatie!CC$376 -> 0 | CD45: =Indexatie!CD$376 -> 0 | CE45: =Indexatie!CE$376 -> 0 | CF45: =Indexatie!CF$376 -> 0 | CG45: =Indexatie!CG$376 -> 0 | CH45: =Indexatie!CH$376 -> 0 | CI45: =Indexatie!CI$376 -> 0 | CJ45: =Indexatie!CJ$376 -> 0 | CK45: =Indexatie!CK$376 -> 0 | CL45: =Indexatie!CL$376 -> 0
E46: =Indexatie!E$372 -> Boekwaarde Start-GAW | F46: =Indexatie!F$372 -> 0 | G46: =Indexatie!G$372 -> 0 | H46: =Indexatie!H$372 -> € | I46: =Indexatie!I$372 -> 3930864044 | J46: =Indexatie!J$372 -> 0 | K46: =Indexatie!K$372 -> 0 | L46: =Indexatie!L$372 -> 0 | M46: =Indexatie!M$372 -> 0 | N46: =Indexatie!N$372 -> 0 | O46: =Indexatie!O$372 -> 260952396.8 | P46: =Indexatie!P$372 -> 251287493.2 | Q46: =Indexatie!Q$372 -> 241622589.6 | R46: =Indexatie!R$372 -> 235437051.3 | S46: =Indexatie!S$372 -> 231493480.7 | T46: =Indexatie!T$372 -> 226521403.3 | U46: =Indexatie!U$372 -> 222279275.2 | V46: =Indexatie!V$372 -> 213811493.3 | W46: =Indexatie!W$372 -> 204745886 | X46: =Indexatie!X$372 -> 193969786.7 | Y46: =Indexatie!Y$372 -> 183193687.5 | Z46: =Indexatie!Z$372 -> 172417588.2 | AA46: =Indexatie!AA$372 -> 161641489 | AB46: =Indexatie!AB$372 -> 150865389.7 | AC46: =Indexatie!AC$372 -> 140089290.4 | AD46: =Indexatie!AD$372 -> 129313191.2 | AE46: =Indexatie!AE$372 -> 118537091.9 | AF46: =Indexatie!AF$372 -> 107760992.6 | AG46: =Indexatie!AG$372 -> 96984893.37 | AH46: =Indexatie!AH$372 -> 86208794.11 | AI46: =Indexatie!AI$372 -> 75432694.84 | AJ46: =Indexatie!AJ$372 -> 64656595.58 | AK46: =Indexatie!AK$372 -> 53880496.32 | AL46: =Indexatie!AL$372 -> 43104397.05 | AM46: =Indexatie!AM$372 -> 32328297.79 | AN46: =Indexatie!AN$372 -> 21552198.53 | AO46: =Indexatie!AO$372 -> 10776099.26 | AP46: =Indexatie!AP$372 -> 2.076797647e-07 | AQ46: =Indexatie!AQ$372 -> 2.076797647e-07 | AR46: =Indexatie!AR$372 -> 2.076797647e-07 | AS46: =Indexatie!AS$372 -> 2.076797647e-07 | AT46: =Indexatie!AT$372 -> 2.076797647e-07 | AU46: =Indexatie!AU$372 -> 2.076797647e-07 | AV46: =Indexatie!AV$372 -> 2.076797647e-07 | AW46: =Indexatie!AW$372 -> 2.076797647e-07 | AX46: =Indexatie!AX$372 -> 2.076797647e-07 | AY46: =Indexatie!AY$372 -> 2.076797647e-07 | AZ46: =Indexatie!AZ$372 -> 2.076797647e-07 | BA46: =Indexatie!BA$372 -> 2.076797647e-07 | BB46: =Indexatie!BB$372 -> 2.076797647e-07 | BC46: =Indexatie!BC$372 -> 2.076797647e-07 | BD46: =Indexatie!BD$372 -> 2.076797647e-07 | BE46: =Indexatie!BE$372 -> 2.076797647e-07 | BF46: =Indexatie!BF$372 -> 1.862645149e-07 | BG46: =Indexatie!BG$372 -> 1.862645149e-07 | BH46: =Indexatie!BH$372 -> 1.862645149e-07 | BI46: =Indexatie!BI$372 -> 1.862645149e-07 | BJ46: =Indexatie!BJ$372 -> 1.862645149e-07 | BK46: =Indexatie!BK$372 -> 1.862645149e-07 | BL46: =Indexatie!BL$372 -> 1.862645149e-07 | BM46: =Indexatie!BM$372 -> 1.862645149e-07 | BN46: =Indexatie!BN$372 -> 1.862645149e-07 | BO46: =Indexatie!BO$372 -> 1.862645149e-07 | BP46: =Indexatie!BP$372 -> 1.862645149e-07 | BQ46: =Indexatie!BQ$372 -> 1.862645149e-07 | BR46: =Indexatie!BR$372 -> 1.862645149e-07 | BS46: =Indexatie!BS$372 -> 1.862645149e-07 | BT46: =Indexatie!BT$372 -> 1.862645149e-07 | BU46: =Indexatie!BU$372 -> 1.862645149e-07 | BV46: =Indexatie!BV$372 -> 1.862645149e-07 | BW46: =Indexatie!BW$372 -> 1.862645149e-07 | BX46: =Indexatie!BX$372 -> 1.862645149e-07 | BY46: =Indexatie!BY$372 -> 1.862645149e-07 | BZ46: =Indexatie!BZ$372 -> 1.862645149e-07 | CA46: =Indexatie!CA$372 -> 1.862645149e-07 | CB46: =Indexatie!CB$372 -> 1.862645149e-07 | CC46: =Indexatie!CC$372 -> 1.862645149e-07 | CD46: =Indexatie!CD$372 -> 1.862645149e-07 | CE46: =Indexatie!CE$372 -> 1.862645149e-07 | CF46: =Indexatie!CF$372 -> 1.862645149e-07 | CG46: =Indexatie!CG$372 -> 1.862645149e-07 | CH46: =Indexatie!CH$372 -> 1.862645149e-07 | CI46: =Indexatie!CI$372 -> 1.862645149e-07 | CJ46: =Indexatie!CJ$372 -> 1.862645149e-07 | CK46: =Indexatie!CK$372 -> 1.862645149e-07 | CL46: =Indexatie!CL$372 -> 1.862645149e-07
E48: Nieuwe investeringen (excl. bijzonderheden)
E49: =Indexatie!E$519 -> Investeringsbedrag boekjaar | F49: =Indexatie!F$519 -> 0 | G49: =Indexatie!G$519 -> 0 | H49: =Indexatie!H$519 -> € | I49: =Indexatie!I$519 -> 281548614.9 | J49: =Indexatie!J$519 -> 0 | K49: =Indexatie!K$519 -> 0 | L49: =Indexatie!L$519 -> 0 | M49: =Indexatie!M$519 -> 0 | N49: =Indexatie!N$519 -> 0 | O49: =Indexatie!O$519 -> 0 | P49: =Indexatie!P$519 -> 20870693.03 | Q49: =Indexatie!Q$519 -> 40844839.75 | R49: =Indexatie!R$519 -> 47128442.11 | S49: =Indexatie!S$519 -> 49471670.14 | T49: =Indexatie!T$519 -> 53454536.37 | U49: =Indexatie!U$519 -> 46627639.94 | V49: =Indexatie!V$519 -> 23150793.6 | W49: =Indexatie!W$519 -> 0 | X49: =Indexatie!X$519 -> 0 | Y49: =Indexatie!Y$519 -> 0 | Z49: =Indexatie!Z$519 -> 0 | AA49: =Indexatie!AA$519 -> 0 | AB49: =Indexatie!AB$519 -> 0 | AC49: =Indexatie!AC$519 -> 0 | AD49: =Indexatie!AD$519 -> 0 | AE49: =Indexatie!AE$519 -> 0 | AF49: =Indexatie!AF$519 -> 0 | AG49: =Indexatie!AG$519 -> 0 | AH49: =Indexatie!AH$519 -> 0 | AI49: =Indexatie!AI$519 -> 0 | AJ49: =Indexatie!AJ$519 -> 0 | AK49: =Indexatie!AK$519 -> 0 | AL49: =Indexatie!AL$519 -> 0 | AM49: =Indexatie!AM$519 -> 0 | AN49: =Indexatie!AN$519 -> 0 | AO49: =Indexatie!AO$519 -> 0 | AP49: =Indexatie!AP$519 -> 0 | AQ49: =Indexatie!AQ$519 -> 0 | AR49: =Indexatie!AR$519 -> 0 | AS49: =Indexatie!AS$519 -> 0 | AT49: =Indexatie!AT$519 -> 0 | AU49: =Indexatie!AU$519 -> 0 | AV49: =Indexatie!AV$519 -> 0 | AW49: =Indexatie!AW$519 -> 0 | AX49: =Indexatie!AX$519 -> 0 | AY49: =Indexatie!AY$519 -> 0 | AZ49: =Indexatie!AZ$519 -> 0 | BA49: =Indexatie!BA$519 -> 0 | BB49: =Indexatie!BB$519 -> 0 | BC49: =Indexatie!BC$519 -> 0 | BD49: =Indexatie!BD$519 -> 0 | BE49: =Indexatie!BE$519 -> 0 | BF49: =Indexatie!BF$519 -> 0 | BG49: =Indexatie!BG$519 -> 0 | BH49: =Indexatie!BH$519 -> 0 | BI49: =Indexatie!BI$519 -> 0 | BJ49: =Indexatie!BJ$519 -> 0 | BK49: =Indexatie!BK$519 -> 0 | BL49: =Indexatie!BL$519 -> 0 | BM49: =Indexatie!BM$519 -> 0 | BN49: =Indexatie!BN$519 -> 0 | BO49: =Indexatie!BO$519 -> 0 | BP49: =Indexatie!BP$519 -> 0 | BQ49: =Indexatie!BQ$519 -> 0 | BR49: =Indexatie!BR$519 -> 0 | BS49: =Indexatie!BS$519 -> 0 | BT49: =Indexatie!BT$519 -> 0 | BU49: =Indexatie!BU$519 -> 0 | BV49: =Indexatie!BV$519 -> 0 | BW49: =Indexatie!BW$519 -> 0 | BX49: =Indexatie!BX$519 -> 0 | BY49: =Indexatie!BY$519 -> 0 | BZ49: =Indexatie!BZ$519 -> 0 | CA49: =Indexatie!CA$519 -> 0 | CB49: =Indexatie!CB$519 -> 0 | CC49: =Indexatie!CC$519 -> 0 | CD49: =Indexatie!CD$519 -> 0 | CE49: =Indexatie!CE$519 -> 0 | CF49: =Indexatie!CF$519 -> 0 | CG49: =Indexatie!CG$519 -> 0 | CH49: =Indexatie!CH$519 -> 0 | CI49: =Indexatie!CI$519 -> 0 | CJ49: =Indexatie!CJ$519 -> 0 | CK49: =Indexatie!CK$519 -> 0 | CL49: =Indexatie!CL$519 -> 0
E50: =Indexatie!E$505 -> Afschrijvingen | F50: =Indexatie!F$505 -> 0 | G50: =Indexatie!G$505 -> 0 | H50: =Indexatie!H$505 -> € | I50: =Indexatie!I$505 -> 299065757.1 | J50: =Indexatie!J$505 -> 0 | K50: =Indexatie!K$505 -> 0 | L50: =Indexatie!L$505 -> 0 | M50: =Indexatie!M$505 -> 0 | N50: =Indexatie!N$505 -> 0 | O50: =Indexatie!O$505 -> 0 | P50: =Indexatie!P$505 -> 267572.9875 | Q50: =Indexatie!Q$505 -> 1058797.767 | R50: =Indexatie!R$505 -> 2210397.098 | S50: =Indexatie!S$505 -> 3522039.881 | T50: =Indexatie!T$505 -> 4937201.348 | U50: =Indexatie!U$505 -> 6377736.619 | V50: =Indexatie!V$505 -> 7342087.189 | W50: =Indexatie!W$505 -> 7700003.373 | X50: =Indexatie!X$505 -> 7700003.373 | Y50: =Indexatie!Y$505 -> 7700003.373 | Z50: =Indexatie!Z$505 -> 7700003.373 | AA50: =Indexatie!AA$505 -> 7700003.373 | AB50: =Indexatie!AB$505 -> 7700003.373 | AC50: =Indexatie!AC$505 -> 7700003.373 | AD50: =Indexatie!AD$505 -> 7700003.373 | AE50: =Indexatie!AE$505 -> 7700003.373 | AF50: =Indexatie!AF$505 -> 7700003.373 | AG50: =Indexatie!AG$505 -> 7700003.373 | AH50: =Indexatie!AH$505 -> 7700003.373 | AI50: =Indexatie!AI$505 -> 7700003.373 | AJ50: =Indexatie!AJ$505 -> 7700003.373 | AK50: =Indexatie!AK$505 -> 7700003.373 | AL50: =Indexatie!AL$505 -> 7700003.373 | AM50: =Indexatie!AM$505 -> 7700003.373 | AN50: =Indexatie!AN$505 -> 7700003.373 | AO50: =Indexatie!AO$505 -> 7700003.373 | AP50: =Indexatie!AP$505 -> 7700003.373 | AQ50: =Indexatie!AQ$505 -> 7700003.373 | AR50: =Indexatie!AR$505 -> 7700003.373 | AS50: =Indexatie!AS$505 -> 7700003.373 | AT50: =Indexatie!AT$505 -> 7700003.373 | AU50: =Indexatie!AU$505 -> 7700003.373 | AV50: =Indexatie!AV$505 -> 7700003.373 | AW50: =Indexatie!AW$505 -> 7700003.373 | AX50: =Indexatie!AX$505 -> 7700003.373 | AY50: =Indexatie!AY$505 -> 7700003.373 | AZ50: =Indexatie!AZ$505 -> 7700003.373 | BA50: =Indexatie!BA$505 -> 7700003.373 | BB50: =Indexatie!BB$505 -> 7700003.373 | BC50: =Indexatie!BC$505 -> 7401666.918 | BD50: =Indexatie!BD$505 -> 6519473.248 | BE50: =Indexatie!BE$505 -> 5271893.601 | BF50: =Indexatie!BF$505 -> 3794071.923 | BG50: =Indexatie!BG$505 -> 2474505.173 | BH50: =Indexatie!BH$505 -> 1191400.348 | BI50: =Indexatie!BI$505 -> 296805.0462 | BJ50: =Indexatie!BJ$505 -> 0 | BK50: =Indexatie!BK$505 -> 0 | BL50: =Indexatie!BL$505 -> 0 | BM50: =Indexatie!BM$505 -> 0 | BN50: =Indexatie!BN$505 -> 0 | BO50: =Indexatie!BO$505 -> 0 | BP50: =Indexatie!BP$505 -> 0 | BQ50: =Indexatie!BQ$505 -> 0 | BR50: =Indexatie!BR$505 -> 0 | BS50: =Indexatie!BS$505 -> 0 | BT50: =Indexatie!BT$505 -> 0 | BU50: =Indexatie!BU$505 -> 0 | BV50: =Indexatie!BV$505 -> 0 | BW50: =Indexatie!BW$505 -> 0 | BX50: =Indexatie!BX$505 -> 0 | BY50: =Indexatie!BY$505 -> 0 | BZ50: =Indexatie!BZ$505 -> 0 | CA50: =Indexatie!CA$505 -> 0 | CB50: =Indexatie!CB$505 -> 0 | CC50: =Indexatie!CC$505 -> 0 | CD50: =Indexatie!CD$505 -> 0 | CE50: =Indexatie!CE$505 -> 0 | CF50: =Indexatie!CF$505 -> 0 | CG50: =Indexatie!CG$505 -> 0 | CH50: =Indexatie!CH$505 -> 0 | CI50: =Indexatie!CI$505 -> 0 | CJ50: =Indexatie!CJ$505 -> 0 | CK50: =Indexatie!CK$505 -> 0 | CL50: =Indexatie!CL$505 -> 0
E51: =Indexatie!E$482 -> Boekwaarde | F51: =Indexatie!F$482 -> 0 | G51: =Indexatie!G$482 -> 0 | H51: =Indexatie!H$482 -> € | I51: =Indexatie!I$482 -> 5808646290 | J51: =Indexatie!J$482 -> 0 | K51: =Indexatie!K$482 -> 0 | L51: =Indexatie!L$482 -> 0 | M51: =Indexatie!M$482 -> 0 | N51: =Indexatie!N$482 -> 0 | O51: =Indexatie!O$482 -> 0 | P51: =Indexatie!P$482 -> 20603120.04 | Q51: =Indexatie!Q$482 -> 60389162.02 | R51: =Indexatie!R$482 -> 106213044.5 | S51: =Indexatie!S$482 -> 154924213.9 | T51: =Indexatie!T$482 -> 207004805.8 | U51: =Indexatie!U$482 -> 253050843.7 | V51: =Indexatie!V$482 -> 271390058.6 | W51: =Indexatie!W$482 -> 265861175.6 | X51: =Indexatie!X$482 -> 258161172.3 | Y51: =Indexatie!Y$482 -> 250461168.9 | Z51: =Indexatie!Z$482 -> 242761165.5 | AA51: =Indexatie!AA$482 -> 235061162.2 | AB51: =Indexatie!AB$482 -> 227361158.8 | AC51: =Indexatie!AC$482 -> 219661155.4 | AD51: =Indexatie!AD$482 -> 211961152 | AE51: =Indexatie!AE$482 -> 204261148.7 | AF51: =Indexatie!AF$482 -> 196561145.3 | AG51: =Indexatie!AG$482 -> 188861141.9 | AH51: =Indexatie!AH$482 -> 181161138.5 | AI51: =Indexatie!AI$482 -> 173461135.2 | AJ51: =Indexatie!AJ$482 -> 165761131.8 | AK51: =Indexatie!AK$482 -> 158061128.4 | AL51: =Indexatie!AL$482 -> 150361125.1 | AM51: =Indexatie!AM$482 -> 142661121.7 | AN51: =Indexatie!AN$482 -> 134961118.3 | AO51: =Indexatie!AO$482 -> 127261114.9 | AP51: =Indexatie!AP$482 -> 119561111.6 | AQ51: =Indexatie!AQ$482 -> 111861108.2 | AR51: =Indexatie!AR$482 -> 104161104.8 | AS51: =Indexatie!AS$482 -> 96461101.44 | AT51: =Indexatie!AT$482 -> 88761098.07 | AU51: =Indexatie!AU$482 -> 81061094.69 | AV51: =Indexatie!AV$482 -> 73361091.32 | AW51: =Indexatie!AW$482 -> 65661087.95 | AX51: =Indexatie!AX$482 -> 57961084.57 | AY51: =Indexatie!AY$482 -> 50261081.2 | AZ51: =Indexatie!AZ$482 -> 42561077.83 | BA51: =Indexatie!BA$482 -> 34861074.45 | BB51: =Indexatie!BB$482 -> 27161071.08 | BC51: =Indexatie!BC$482 -> 19759404.16 | BD51: =Indexatie!BD$482 -> 13239930.91 | BE51: =Indexatie!BE$482 -> 7968037.313 | BF51: =Indexatie!BF$482 -> 3962710.567 | BG51: =Indexatie!BG$482 -> 1488205.394 | BH51: =Indexatie!BH$482 -> 296805.0462 | BI51: =Indexatie!BI$482 -> 0 | BJ51: =Indexatie!BJ$482 -> 0 | BK51: =Indexatie!BK$482 -> 0 | BL51: =Indexatie!BL$482 -> 0 | BM51: =Indexatie!BM$482 -> 0 | BN51: =Indexatie!BN$482 -> 0 | BO51: =Indexatie!BO$482 -> 0 | BP51: =Indexatie!BP$482 -> 0 | BQ51: =Indexatie!BQ$482 -> 0 | BR51: =Indexatie!BR$482 -> 0 | BS51: =Indexatie!BS$482 -> 0 | BT51: =Indexatie!BT$482 -> 0 | BU51: =Indexatie!BU$482 -> 0 | BV51: =Indexatie!BV$482 -> 0 | BW51: =Indexatie!BW$482 -> 0 | BX51: =Indexatie!BX$482 -> 0 | BY51: =Indexatie!BY$482 -> 0 | BZ51: =Indexatie!BZ$482 -> 0 | CA51: =Indexatie!CA$482 -> 0 | CB51: =Indexatie!CB$482 -> 0 | CC51: =Indexatie!CC$482 -> 0 | CD51: =Indexatie!CD$482 -> 0 | CE51: =Indexatie!CE$482 -> 0 | CF51: =Indexatie!CF$482 -> 0 | CG51: =Indexatie!CG$482 -> 0 | CH51: =Indexatie!CH$482 -> 0 | CI51: =Indexatie!CI$482 -> 0 | CJ51: =Indexatie!CJ$482 -> 0 | CK51: =Indexatie!CK$482 -> 0 | CL51: =Indexatie!CL$482 -> 0
E53: Bijzonderheid: overgenomen netten
E54: ='UI & Overgenomen Netten'!E$188 -> Investeringsbedrag overgenomen netten | F54: ='UI & Overgenomen Netten'!F$188 -> 0 | G54: ='UI & Overgenomen Netten'!G$188 -> 0 | H54: ='UI & Overgenomen Netten'!H$188 -> € | I54: ='UI & Overgenomen Netten'!I$188 -> 0 | J54: ='UI & Overgenomen Netten'!J$188 -> 0 | K54: ='UI & Overgenomen Netten'!K$188 -> 0 | L54: ='UI & Overgenomen Netten'!L$188 -> 0 | M54: ='UI & Overgenomen Netten'!M$188 -> 0 | N54: ='UI & Overgenomen Netten'!N$188 -> 0 | O54: ='UI & Overgenomen Netten'!O$188 -> 0 | P54: ='UI & Overgenomen Netten'!P$188 -> 0 | Q54: ='UI & Overgenomen Netten'!Q$188 -> 0 | R54: ='UI & Overgenomen Netten'!R$188 -> 0 | S54: ='UI & Overgenomen Netten'!S$188 -> 0 | T54: ='UI & Overgenomen Netten'!T$188 -> 0 | U54: ='UI & Overgenomen Netten'!U$188 -> 0 | V54: ='UI & Overgenomen Netten'!V$188 -> 0 | W54: ='UI & Overgenomen Netten'!W$188 -> 0 | X54: ='UI & Overgenomen Netten'!X$188 -> 0 | Y54: ='UI & Overgenomen Netten'!Y$188 -> 0 | Z54: ='UI & Overgenomen Netten'!Z$188 -> 0 | AA54: ='UI & Overgenomen Netten'!AA$188 -> 0 | AB54: ='UI & Overgenomen Netten'!AB$188 -> 0 | AC54: ='UI & Overgenomen Netten'!AC$188 -> 0 | AD54: ='UI & Overgenomen Netten'!AD$188 -> 0 | AE54: ='UI & Overgenomen Netten'!AE$188 -> 0 | AF54: ='UI & Overgenomen Netten'!AF$188 -> 0 | AG54: ='UI & Overgenomen Netten'!AG$188 -> 0 | AH54: ='UI & Overgenomen Netten'!AH$188 -> 0 | AI54: ='UI & Overgenomen Netten'!AI$188 -> 0 | AJ54: ='UI & Overgenomen Netten'!AJ$188 -> 0 | AK54: ='UI & Overgenomen Netten'!AK$188 -> 0 | AL54: ='UI & Overgenomen Netten'!AL$188 -> 0 | AM54: ='UI & Overgenomen Netten'!AM$188 -> 0 | AN54: ='UI & Overgenomen Netten'!AN$188 -> 0 | AO54: ='UI & Overgenomen Netten'!AO$188 -> 0 | AP54: ='UI & Overgenomen Netten'!AP$188 -> 0 | AQ54: ='UI & Overgenomen Netten'!AQ$188 -> 0 | AR54: ='UI & Overgenomen Netten'!AR$188 -> 0 | AS54: ='UI & Overgenomen Netten'!AS$188 -> 0 | AT54: ='UI & Overgenomen Netten'!AT$188 -> 0 | AU54: ='UI & Overgenomen Netten'!AU$188 -> 0 | AV54: ='UI & Overgenomen Netten'!AV$188 -> 0 | AW54: ='UI & Overgenomen Netten'!AW$188 -> 0 | AX54: ='UI & Overgenomen Netten'!AX$188 -> 0 | AY54: ='UI & Overgenomen Netten'!AY$188 -> 0 | AZ54: ='UI & Overgenomen Netten'!AZ$188 -> 0 | BA54: ='UI & Overgenomen Netten'!BA$188 -> 0 | BB54: ='UI & Overgenomen Netten'!BB$188 -> 0 | BC54: ='UI & Overgenomen Netten'!BC$188 -> 0 | BD54: ='UI & Overgenomen Netten'!BD$188 -> 0 | BE54: ='UI & Overgenomen Netten'!BE$188 -> 0 | BF54: ='UI & Overgenomen Netten'!BF$188 -> 0 | BG54: ='UI & Overgenomen Netten'!BG$188 -> 0 | BH54: ='UI & Overgenomen Netten'!BH$188 -> 0 | BI54: ='UI & Overgenomen Netten'!BI$188 -> 0 | BJ54: ='UI & Overgenomen Netten'!BJ$188 -> 0 | BK54: ='UI & Overgenomen Netten'!BK$188 -> 0 | BL54: ='UI & Overgenomen Netten'!BL$188 -> 0 | BM54: ='UI & Overgenomen Netten'!BM$188 -> 0 | BN54: ='UI & Overgenomen Netten'!BN$188 -> 0 | BO54: ='UI & Overgenomen Netten'!BO$188 -> 0 | BP54: ='UI & Overgenomen Netten'!BP$188 -> 0 | BQ54: ='UI & Overgenomen Netten'!BQ$188 -> 0 | BR54: ='UI & Overgenomen Netten'!BR$188 -> 0 | BS54: ='UI & Overgenomen Netten'!BS$188 -> 0 | BT54: ='UI & Overgenomen Netten'!BT$188 -> 0 | BU54: ='UI & Overgenomen Netten'!BU$188 -> 0 | BV54: ='UI & Overgenomen Netten'!BV$188 -> 0 | BW54: ='UI & Overgenomen Netten'!BW$188 -> 0 | BX54: ='UI & Overgenomen Netten'!BX$188 -> 0 | BY54: ='UI & Overgenomen Netten'!BY$188 -> 0 | BZ54: ='UI & Overgenomen Netten'!BZ$188 -> 0 | CA54: ='UI & Overgenomen Netten'!CA$188 -> 0 | CB54: ='UI & Overgenomen Netten'!CB$188 -> 0 | CC54: ='UI & Overgenomen Netten'!CC$188 -> 0 | CD54: ='UI & Overgenomen Netten'!CD$188 -> 0 | CE54: ='UI & Overgenomen Netten'!CE$188 -> 0 | CF54: ='UI & Overgenomen Netten'!CF$188 -> 0 | CG54: ='UI & Overgenomen Netten'!CG$188 -> 0 | CH54: ='UI & Overgenomen Netten'!CH$188 -> 0 | CI54: ='UI & Overgenomen Netten'!CI$188 -> 0 | CJ54: ='UI & Overgenomen Netten'!CJ$188 -> 0 | CK54: ='UI & Overgenomen Netten'!CK$188 -> 0 | CL54: ='UI & Overgenomen Netten'!CL$188 -> 0
E55: ='UI & Overgenomen Netten'!E$178 -> Afschrijvingen overgenomen netten | F55: ='UI & Overgenomen Netten'!F$178 -> 0 | G55: ='UI & Overgenomen Netten'!G$178 -> 0 | H55: ='UI & Overgenomen Netten'!H$178 -> € | I55: ='UI & Overgenomen Netten'!I$178 -> 0 | J55: ='UI & Overgenomen Netten'!J$178 -> 0 | K55: ='UI & Overgenomen Netten'!K$178 -> 0 | L55: ='UI & Overgenomen Netten'!L$178 -> 0 | M55: ='UI & Overgenomen Netten'!M$178 -> 0 | N55: ='UI & Overgenomen Netten'!N$178 -> 0 | O55: ='UI & Overgenomen Netten'!O$178 -> 0 | P55: ='UI & Overgenomen Netten'!P$178 -> 0 | Q55: ='UI & Overgenomen Netten'!Q$178 -> 0 | R55: ='UI & Overgenomen Netten'!R$178 -> 0 | S55: ='UI & Overgenomen Netten'!S$178 -> 0 | T55: ='UI & Overgenomen Netten'!T$178 -> 0 | U55: ='UI & Overgenomen Netten'!U$178 -> 0 | V55: ='UI & Overgenomen Netten'!V$178 -> 0 | W55: ='UI & Overgenomen Netten'!W$178 -> 0 | X55: ='UI & Overgenomen Netten'!X$178 -> 0 | Y55: ='UI & Overgenomen Netten'!Y$178 -> 0 | Z55: ='UI & Overgenomen Netten'!Z$178 -> 0 | AA55: ='UI & Overgenomen Netten'!AA$178 -> 0 | AB55: ='UI & Overgenomen Netten'!AB$178 -> 0 | AC55: ='UI & Overgenomen Netten'!AC$178 -> 0 | AD55: ='UI & Overgenomen Netten'!AD$178 -> 0 | AE55: ='UI & Overgenomen Netten'!AE$178 -> 0 | AF55: ='UI & Overgenomen Netten'!AF$178 -> 0 | AG55: ='UI & Overgenomen Netten'!AG$178 -> 0 | AH55: ='UI & Overgenomen Netten'!AH$178 -> 0 | AI55: ='UI & Overgenomen Netten'!AI$178 -> 0 | AJ55: ='UI & Overgenomen Netten'!AJ$178 -> 0 | AK55: ='UI & Overgenomen Netten'!AK$178 -> 0 | AL55: ='UI & Overgenomen Netten'!AL$178 -> 0 | AM55: ='UI & Overgenomen Netten'!AM$178 -> 0 | AN55: ='UI & Overgenomen Netten'!AN$178 -> 0 | AO55: ='UI & Overgenomen Netten'!AO$178 -> 0 | AP55: ='UI & Overgenomen Netten'!AP$178 -> 0 | AQ55: ='UI & Overgenomen Netten'!AQ$178 -> 0 | AR55: ='UI & Overgenomen Netten'!AR$178 -> 0 | AS55: ='UI & Overgenomen Netten'!AS$178 -> 0 | AT55: ='UI & Overgenomen Netten'!AT$178 -> 0 | AU55: ='UI & Overgenomen Netten'!AU$178 -> 0 | AV55: ='UI & Overgenomen Netten'!AV$178 -> 0 | AW55: ='UI & Overgenomen Netten'!AW$178 -> 0 | AX55: ='UI & Overgenomen Netten'!AX$178 -> 0 | AY55: ='UI & Overgenomen Netten'!AY$178 -> 0 | AZ55: ='UI & Overgenomen Netten'!AZ$178 -> 0 | BA55: ='UI & Overgenomen Netten'!BA$178 -> 0 | BB55: ='UI & Overgenomen Netten'!BB$178 -> 0 | BC55: ='UI & Overgenomen Netten'!BC$178 -> 0 | BD55: ='UI & Overgenomen Netten'!BD$178 -> 0 | BE55: ='UI & Overgenomen Netten'!BE$178 -> 0 | BF55: ='UI & Overgenomen Netten'!BF$178 -> 0 | BG55: ='UI & Overgenomen Netten'!BG$178 -> 0 | BH55: ='UI & Overgenomen Netten'!BH$178 -> 0 | BI55: ='UI & Overgenomen Netten'!BI$178 -> 0 | BJ55: ='UI & Overgenomen Netten'!BJ$178 -> 0 | BK55: ='UI & Overgenomen Netten'!BK$178 -> 0 | BL55: ='UI & Overgenomen Netten'!BL$178 -> 0 | BM55: ='UI & Overgenomen Netten'!BM$178 -> 0 | BN55: ='UI & Overgenomen Netten'!BN$178 -> 0 | BO55: ='UI & Overgenomen Netten'!BO$178 -> 0 | BP55: ='UI & Overgenomen Netten'!BP$178 -> 0 | BQ55: ='UI & Overgenomen Netten'!BQ$178 -> 0 | BR55: ='UI & Overgenomen Netten'!BR$178 -> 0 | BS55: ='UI & Overgenomen Netten'!BS$178 -> 0 | BT55: ='UI & Overgenomen Netten'!BT$178 -> 0 | BU55: ='UI & Overgenomen Netten'!BU$178 -> 0 | BV55: ='UI & Overgenomen Netten'!BV$178 -> 0 | BW55: ='UI & Overgenomen Netten'!BW$178 -> 0 | BX55: ='UI & Overgenomen Netten'!BX$178 -> 0 | BY55: ='UI & Overgenomen Netten'!BY$178 -> 0 | BZ55: ='UI & Overgenomen Netten'!BZ$178 -> 0 | CA55: ='UI & Overgenomen Netten'!CA$178 -> 0 | CB55: ='UI & Overgenomen Netten'!CB$178 -> 0 | CC55: ='UI & Overgenomen Netten'!CC$178 -> 0 | CD55: ='UI & Overgenomen Netten'!CD$178 -> 0 | CE55: ='UI & Overgenomen Netten'!CE$178 -> 0 | CF55: ='UI & Overgenomen Netten'!CF$178 -> 0 | CG55: ='UI & Overgenomen Netten'!CG$178 -> 0 | CH55: ='UI & Overgenomen Netten'!CH$178 -> 0 | CI55: ='UI & Overgenomen Netten'!CI$178 -> 0 | CJ55: ='UI & Overgenomen Netten'!CJ$178 -> 0 | CK55: ='UI & Overgenomen Netten'!CK$178 -> 0 | CL55: ='UI & Overgenomen Netten'!CL$178 -> 0
E56: ='UI & Overgenomen Netten'!E$168 -> Boekwaarde overgenomen netten | F56: ='UI & Overgenomen Netten'!F$168 -> 0 | G56: ='UI & Overgenomen Netten'!G$168 -> 0 | H56: ='UI & Overgenomen Netten'!H$168 -> € | I56: ='UI & Overgenomen Netten'!I$168 -> 0 | J56: ='UI & Overgenomen Netten'!J$168 -> 0 | K56: ='UI & Overgenomen Netten'!K$168 -> 0 | L56: ='UI & Overgenomen Netten'!L$168 -> 0 | M56: ='UI & Overgenomen Netten'!M$168 -> 0 | N56: ='UI & Overgenomen Netten'!N$168 -> 0 | O56: ='UI & Overgenomen Netten'!O$168 -> 0 | P56: ='UI & Overgenomen Netten'!P$168 -> 0 | Q56: ='UI & Overgenomen Netten'!Q$168 -> 0 | R56: ='UI & Overgenomen Netten'!R$168 -> 0 | S56: ='UI & Overgenomen Netten'!S$168 -> 0 | T56: ='UI & Overgenomen Netten'!T$168 -> 0 | U56: ='UI & Overgenomen Netten'!U$168 -> 0 | V56: ='UI & Overgenomen Netten'!V$168 -> 0 | W56: ='UI & Overgenomen Netten'!W$168 -> 0 | X56: ='UI & Overgenomen Netten'!X$168 -> 0 | Y56: ='UI & Overgenomen Netten'!Y$168 -> 0 | Z56: ='UI & Overgenomen Netten'!Z$168 -> 0 | AA56: ='UI & Overgenomen Netten'!AA$168 -> 0 | AB56: ='UI & Overgenomen Netten'!AB$168 -> 0 | AC56: ='UI & Overgenomen Netten'!AC$168 -> 0 | AD56: ='UI & Overgenomen Netten'!AD$168 -> 0 | AE56: ='UI & Overgenomen Netten'!AE$168 -> 0 | AF56: ='UI & Overgenomen Netten'!AF$168 -> 0 | AG56: ='UI & Overgenomen Netten'!AG$168 -> 0 | AH56: ='UI & Overgenomen Netten'!AH$168 -> 0 | AI56: ='UI & Overgenomen Netten'!AI$168 -> 0 | AJ56: ='UI & Overgenomen Netten'!AJ$168 -> 0 | AK56: ='UI & Overgenomen Netten'!AK$168 -> 0 | AL56: ='UI & Overgenomen Netten'!AL$168 -> 0 | AM56: ='UI & Overgenomen Netten'!AM$168 -> 0 | AN56: ='UI & Overgenomen Netten'!AN$168 -> 0 | AO56: ='UI & Overgenomen Netten'!AO$168 -> 0 | AP56: ='UI & Overgenomen Netten'!AP$168 -> 0 | AQ56: ='UI & Overgenomen Netten'!AQ$168 -> 0 | AR56: ='UI & Overgenomen Netten'!AR$168 -> 0 | AS56: ='UI & Overgenomen Netten'!AS$168 -> 0 | AT56: ='UI & Overgenomen Netten'!AT$168 -> 0 | AU56: ='UI & Overgenomen Netten'!AU$168 -> 0 | AV56: ='UI & Overgenomen Netten'!AV$168 -> 0 | AW56: ='UI & Overgenomen Netten'!AW$168 -> 0 | AX56: ='UI & Overgenomen Netten'!AX$168 -> 0 | AY56: ='UI & Overgenomen Netten'!AY$168 -> 0 | AZ56: ='UI & Overgenomen Netten'!AZ$168 -> 0 | BA56: ='UI & Overgenomen Netten'!BA$168 -> 0 | BB56: ='UI & Overgenomen Netten'!BB$168 -> 0 | BC56: ='UI & Overgenomen Netten'!BC$168 -> 0 | BD56: ='UI & Overgenomen Netten'!BD$168 -> 0 | BE56: ='UI & Overgenomen Netten'!BE$168 -> 0 | BF56: ='UI & Overgenomen Netten'!BF$168 -> 0 | BG56: ='UI & Overgenomen Netten'!BG$168 -> 0 | BH56: ='UI & Overgenomen Netten'!BH$168 -> 0 | BI56: ='UI & Overgenomen Netten'!BI$168 -> 0 | BJ56: ='UI & Overgenomen Netten'!BJ$168 -> 0 | BK56: ='UI & Overgenomen Netten'!BK$168 -> 0 | BL56: ='UI & Overgenomen Netten'!BL$168 -> 0 | BM56: ='UI & Overgenomen Netten'!BM$168 -> 0 | BN56: ='UI & Overgenomen Netten'!BN$168 -> 0 | BO56: ='UI & Overgenomen Netten'!BO$168 -> 0 | BP56: ='UI & Overgenomen Netten'!BP$168 -> 0 | BQ56: ='UI & Overgenomen Netten'!BQ$168 -> 0 | BR56: ='UI & Overgenomen Netten'!BR$168 -> 0 | BS56: ='UI & Overgenomen Netten'!BS$168 -> 0 | BT56: ='UI & Overgenomen Netten'!BT$168 -> 0 | BU56: ='UI & Overgenomen Netten'!BU$168 -> 0 | BV56: ='UI & Overgenomen Netten'!BV$168 -> 0 | BW56: ='UI & Overgenomen Netten'!BW$168 -> 0 | BX56: ='UI & Overgenomen Netten'!BX$168 -> 0 | BY56: ='UI & Overgenomen Netten'!BY$168 -> 0 | BZ56: ='UI & Overgenomen Netten'!BZ$168 -> 0 | CA56: ='UI & Overgenomen Netten'!CA$168 -> 0 | CB56: ='UI & Overgenomen Netten'!CB$168 -> 0 | CC56: ='UI & Overgenomen Netten'!CC$168 -> 0 | CD56: ='UI & Overgenomen Netten'!CD$168 -> 0 | CE56: ='UI & Overgenomen Netten'!CE$168 -> 0 | CF56: ='UI & Overgenomen Netten'!CF$168 -> 0 | CG56: ='UI & Overgenomen Netten'!CG$168 -> 0 | CH56: ='UI & Overgenomen Netten'!CH$168 -> 0 | CI56: ='UI & Overgenomen Netten'!CI$168 -> 0 | CJ56: ='UI & Overgenomen Netten'!CJ$168 -> 0 | CK56: ='UI & Overgenomen Netten'!CK$168 -> 0 | CL56: ='UI & Overgenomen Netten'!CL$168 -> 0
E58: Totalen
E59: Investeringsbedrag boekjaar | H59: € | K59: =SUM( K44, K49, K54 ) -> 0 | L59: =SUM( L44, L49, L54 ) -> 0 | M59: 0 | N59: 0 | O59: 260952396.8 | P59: 20870693.03 | Q59: 40844839.75 | R59: 47128442.11 | S59: 49471670.14 | T59: 53454536.37 | U59: 46627639.94 | V59: 23150793.6 | W59: 0 | X59: 0 | Y59: 0 | Z59: 0 | AA59: 0 | AB59: 0 | AC59: 0 | AD59: 0 | AE59: 0 | AF59: 0 | AG59: 0 | AH59: 0 | AI59: 0 | AJ59: 0 | AK59: 0 | AL59: 0 | AM59: 0 | AN59: 0 | AO59: 0 | AP59: 0 | AQ59: 0 | AR59: 0 | AS59: 0 | AT59: 0 | AU59: 0 | AV59: 0 | AW59: 0 | AX59: 0 | AY59: 0 | AZ59: 0 | BA59: 0 | BB59: 0 | BC59: 0 | BD59: 0 | BE59: 0 | BF59: 0 | BG59: 0 | BH59: 0 | BI59: 0 | BJ59: 0 | BK59: 0 | BL59: 0 | BM59: 0 | BN59: 0 | BO59: 0 | BP59: 0 | BQ59: 0 | BR59: 0 | BS59: 0 | BT59: 0 | BU59: 0 | BV59: 0 | BW59: 0 | BX59: =SUM( BX44, BX49, BX54 ) -> 0 | BY59: 0 | BZ59: 0 | CA59: 0 | CB59: 0 | CC59: 0 | CD59: 0 | CE59: 0 | CF59: 0 | CG59: 0 | CH59: 0 | CI59: 0 | CJ59: 0 | CK59: 0 | CL59: 0
E60: Afschrijvingen | H60: € | K60: =SUM( K45, K50, K55 ) -> 0 | L60: 0 | M60: 0 | N60: 0 | O60: 0 | P60: 9932476.572 | Q60: 10723701.35 | R60: 12020274.24 | S60: 13586973.82 | T60: 15233628.77 | U60: 16962464.01 | V60: 18032661.86 | W60: 18476102.64 | X60: 18476102.64 | Y60: 18476102.64 | Z60: 18476102.64 | AA60: 18476102.64 | AB60: 18476102.64 | AC60: 18476102.64 | AD60: 18476102.64 | AE60: 18476102.64 | AF60: 18476102.64 | AG60: 18476102.64 | AH60: 18476102.64 | AI60: 18476102.64 | AJ60: 18476102.64 | AK60: 18476102.64 | AL60: 18476102.64 | AM60: 18476102.64 | AN60: 18476102.64 | AO60: 18476102.64 | AP60: 18476102.64 | AQ60: 7700003.373 | AR60: 7700003.373 | AS60: 7700003.373 | AT60: 7700003.373 | AU60: 7700003.373 | AV60: 7700003.373 | AW60: 7700003.373 | AX60: 7700003.373 | AY60: 7700003.373 | AZ60: 7700003.373 | BA60: 7700003.373 | BB60: 7700003.373 | BC60: 7401666.918 | BD60: 6519473.248 | BE60: 5271893.601 | BF60: 3794071.923 | BG60: 2474505.173 | BH60: 1191400.348 | BI60: 296805.0462 | BJ60: 0 | BK60: 0 | BL60: 0 | BM60: 0 | BN60: 0 | BO60: 0 | BP60: 0 | BQ60: 0 | BR60: 0 | BS60: 0 | BT60: 0 | BU60: 0 | BV60: 0 | BW60: 0 | BX60: 0 | BY60: 0 | BZ60: 0 | CA60: 0 | CB60: 0 | CC60: 0 | CD60: 0 | CE60: 0 | CF60: 0 | CG60: 0 | CH60: 0 | CI60: 0 | CJ60: 0 | CK60: 0 | CL60: 0
E61: Boekwaarde | H61: € | K61: 0 | L61: =SUM( L46, L51, L56 ) -> 0 | M61: 0 | N61: 0 | O61: 260952396.8 | P61: 271890613.2 | Q61: 302011751.6 | R61: 341650095.8 | S61: 386417694.6 | T61: 433526209.2 | U61: 475330118.9 | V61: 485201551.9 | W61: 470607061.7 | X61: 452130959 | Y61: 433654856.4 | Z61: 415178753.7 | AA61: 396702651.1 | AB61: 378226548.5 | AC61: 359750445.8 | AD61: 341274343.2 | AE61: 322798240.6 | AF61: 304322137.9 | AG61: 285846035.3 | AH61: 267369932.7 | AI61: 248893830 | AJ61: 230417727.4 | AK61: 211941624.7 | AL61: 193465522.1 | AM61: 174989419.5 | AN61: 156513316.8 | AO61: 138037214.2 | AP61: 119561111.6 | AQ61: 111861108.2 | AR61: 104161104.8 | AS61: 96461101.44 | AT61: 88761098.07 | AU61: 81061094.69 | AV61: 73361091.32 | AW61: 65661087.95 | AX61: 57961084.57 | AY61: 50261081.2 | AZ61: 42561077.83 | BA61: 34861074.45 | BB61: 27161071.08 | BC61: 19759404.16 | BD61: 13239930.91 | BE61: 7968037.313 | BF61: 3962710.567 | BG61: 1488205.394 | BH61: 296805.0462 | BI61: 1.862645149e-07 | BJ61: 1.862645149e-07 | BK61: 1.862645149e-07 | BL61: 1.862645149e-07 | BM61: 1.862645149e-07 | BN61: 1.862645149e-07 | BO61: 1.862645149e-07 | BP61: 1.862645149e-07 | BQ61: 1.862645149e-07 | BR61: 1.862645149e-07 | BS61: 1.862645149e-07 | BT61: 1.862645149e-07 | BU61: 1.862645149e-07 | BV61: 1.862645149e-07 | BW61: 1.862645149e-07 | BX61: 1.862645149e-07 | BY61: 1.862645149e-07 | BZ61: 1.862645149e-07 | CA61: 1.862645149e-07 | CB61: 1.862645149e-07 | CC61: 1.862645149e-07 | CD61: 1.862645149e-07 | CE61: 1.862645149e-07 | CF61: 1.862645149e-07 | CG61: 1.862645149e-07 | CH61: 1.862645149e-07 | CI61: 1.862645149e-07 | CJ61: 1.862645149e-07 | CK61: 1.862645149e-07 | CL61: 1.862645149e-07
D85: * | E85: ="Waardes vanaf " & InpC!G76 & " zijn niet geïndexeerd" -> Waardes vanaf 2050 zijn niet geïndexeerd
E86: Alle bedragen in dit dashboard zijn in het prijspeil van het genoemde jaar en boekwaardes per ultimo boekjaar.
E87: ="Desinvesteringen en waardeverminderingen worden bovenstaand niet gerapporteerd, maar zijn wel meegenomen in berekeningen t/m " & InpC!G41 & "." -> Desinvesteringen en waardeverminderingen worden bovenstaand niet gerapporteerd, maar zijn wel meegenomen in berekeningen t/m 2009.

Sheet Dashboard Boekjaar
L2: Kapitaalkosten Regionale Netwerkbeheerders Gas
L5: Boekjaar: | N5: 2012
B9: Overzicht Geïndexeerde Activa Waarde Netbeheerders Voor Geselecteerd Boekjaar*
E11: TRANSPORTDIENST - Boekjaar: 2012 | K11: Sector Totaal | L11: Cogas | M11: Enduris | N11: Enexis excl. FNOP | O11: Liander | P11: Rendo | Q11: Stedin | R11: Westland | S11: Intergas | T11: Obragas | U11: Haarlemmer | V11: Endinet | W11: FNOP-gebied | X11: Enduris EHD | Y11: Enexis EHD | Z11: Zebra EHD | AA11: Enexis incl. FNOP
E12: Start-GAW (excl. bijzonderheden)
E13: =Indexatie!E$347 -> Investeringsbedrag boekjaar Start-GAW | J13: € | K13: =SUM( L13:BI13 ) -> 0 | L13: 0 | M13: 0 | N13: 0 | O13: 0 | P13: 0 | Q13: 0 | R13: 0 | S13: 0 | T13: 0 | U13: 0 | V13: 0 | W13: 0 | X13: 0 | Y13: 0 | Z13: 0 | AA13: 0
E14: =Indexatie!E$283 -> Afschrijvingen Start-GAW | J14: € | K14: =SUM( L14:BI14 ) -> 224328815.1 | L14: 3367575.594 | M14: 3602004.614 | N14: 29504580.03 | O14: 59830583.56 | P14: 5430145.342 | Q14: 54099910.96 | R14: 5645911.424 | S14: 6642453.818 | T14: 6120198.104 | U14: 1096998.205 | V14: 6443126.049 | W14: 5868660.673 | X14: 266776.3496 | Y14: 69832.01516 | Z14: 966817.6885 | AA14: 35373240.7
E15: =Indexatie!E$243 -> Boekwaarde Start-GAW | J15: € | K15: =SUM( L15:BI15 ) -> 5511980306 | L15: 74423420.63 | M15: 88969513.96 | N15: 734664042.6 | O15: 1543629056 | P15: 128151430.1 | Q15: 1229848960 | R15: 106143134.8 | S15: 190638424.6 | T15: 149944853.5 | U15: 25560058.17 | V15: 159789526 | W15: 146129650.8 | X15: 10751086.89 | Y15: 2807247.01 | Z15: 39736207 | AA15: 880793693.4
E17: Nieuwe investeringen (excl. bijzonderheden)
E18: =Indexatie!E$336 -> Investeringsbedrag boekjaar | J18: € | K18: =SUM( L18:BI18 ) -> 350559742.2 | L18: 3440115 | M18: 4727088 | N18: 83790874.41 | O18: 84360196.43 | P18: 3723813 | Q18: 61809884.57 | R18: 3672995.915 | S18: 0 | T18: 0 | U18: 0 | V18: 6234415.273 | W18: 7478012.589 | X18: 0 | Y18: 0 | Z18: 53460 | AA18: 91268887
E19: =Indexatie!E$299 -> Afschrijvingen | J19: € | K19: =SUM( L19:BI19 ) -> 57246062.31 | L19: 383916.6178 | M19: 1288005.985 | N19: 17111978.81 | O19: 6533264.695 | P19: 1553592.242 | Q19: 7895178.663 | R19: 758514.2761 | S19: 709591.9915 | T19: 652188.6328 | U19: 251853.3574 | V19: 884915.9416 | W19: 993282.773 | X19: 0 | Y19: 0 | Z19: 124516.7401 | AA19: 18105261.59
E20: =Indexatie!E$259 -> Boekwaarde | J20: € | K20: =SUM( L20:BI20 ) -> 1553685396 | L20: 16804580.69 | M20: 25000671.3 | N20: 343374526.1 | O20: 311957798.3 | P20: 25519429.87 | Q20: 347926716.8 | R20: 20384213.45 | S20: 9337913.34 | T20: 5956748.269 | U20: 2039542.384 | V20: 17858886.06 | W20: 41817990.97 | X20: 0 | Y20: 0 | Z20: 513861.6911 | AA20: 385192517.1
E22: Bijzonderheid: precario
E23: =GAW!E$95 -> Investeringsbedrag boekjaar precario | J23: € | K23: =SUM( L23:BI23 ) -> 0 | L23: 0 | M23: 0 | N23: 0 | O23: 0 | P23: 0 | Q23: 0 | R23: 0 | S23: 0 | T23: 0 | U23: 0 | V23: 0 | W23: 0 | X23: 0 | Y23: 0 | Z23: 0 | AA23: 0
E24: =Indexatie!E$27 -> Afschrijvingen precario | J24: € | K24: =SUM( L24:BI24 ) -> 2481350.997 | L24: 0 | M24: 0 | N24: 0 | O24: 0 | P24: 1649612.07 | Q24: 0 | R24: 0 | S24: 831738.9268 | T24: 0 | U24: 0 | V24: 0 | W24: 0 | X24: 0 | Y24: 0 | Z24: 0 | AA24: 0
E25: =Indexatie!E$23 -> Boekwaarde precario | J25: € | K25: =SUM( L25:BI25 ) -> 18215061.69 | L25: -5.344803974e-11 | M25: 0 | N25: 0 | O25: 0 | P25: 9897672.422 | Q25: 0 | R25: 0 | S25: 8317389.268 | T25: 0 | U25: 0 | V25: 0 | W25: 0 | X25: 0 | Y25: 0 | Z25: 0 | AA25: 0
E27: Bijzonderheid: UI's
E28: ='UI & Overgenomen Netten'!E$151 -> Investeringsbedrag UI's | J28: € | K28: =SUM( L28:BI28 ) -> 0 | L28: 0 | M28: 0 | N28: 0 | O28: 0 | P28: 0 | Q28: 0 | R28: 0 | S28: 0 | T28: 0 | U28: 0 | V28: 0 | W28: 0 | X28: 0 | Y28: 0 | Z28: 0 | AA28: 0
E29: ='UI & Overgenomen Netten'!E$141 -> Afschrijvingen UI's | J29: € | K29: =SUM( L29:BI29 ) -> 0 | L29: 0 | M29: 0 | N29: 0 | O29: 0 | P29: 0 | Q29: 0 | R29: 0 | S29: 0 | T29: 0 | U29: 0 | V29: 0 | W29: 0 | X29: 0 | Y29: 0 | Z29: 0 | AA29: 0
E30: ='UI & Overgenomen Netten'!E$131 -> Boekwaarde UI's | J30: € | K30: =SUM( L30:BI30 ) -> 0 | L30: 0 | M30: 0 | N30: 0 | O30: 0 | P30: 0 | Q30: 0 | R30: 0 | S30: 0 | T30: 0 | U30: 0 | V30: 0 | W30: 0 | X30: 0 | Y30: 0 | Z30: 0 | AA30: 0
E32: Bijzonderheid: overgenomen netten
E33: ='UI & Overgenomen Netten'!E$156 -> Investeringsbedrag overgenomen netten | J33: € | K33: =SUM( L33:BI33 ) -> 0 | L33: 0 | M33: 0 | N33: 0 | O33: 0 | P33: 0 | Q33: 0 | R33: 0 | S33: 0 | T33: 0 | U33: 0 | V33: 0 | W33: 0 | X33: 0 | Y33: 0 | Z33: 0 | AA33: 0
E34: ='UI & Overgenomen Netten'!E$146 -> Afschrijvingen overgenomen netten | J34: € | K34: =SUM( L34:BI34 ) -> 0 | L34: 0 | M34: 0 | N34: 0 | O34: 0 | P34: 0 | Q34: 0 | R34: 0 | S34: 0 | T34: 0 | U34: 0 | V34: 0 | W34: 0 | X34: 0 | Y34: 0 | Z34: 0 | AA34: 0
E35: ='UI & Overgenomen Netten'!E$136 -> Boekwaarde overgenomen netten | J35: € | K35: =SUM( L35:BI35 ) -> 0 | L35: 0 | M35: 0 | N35: 0 | O35: 0 | P35: 0 | Q35: 0 | R35: 0 | S35: 0 | T35: 0 | U35: 0 | V35: 0 | W35: 0 | X35: 0 | Y35: 0 | Z35: 0 | AA35: 0
E37: Totalen
E38: Investeringsbedrag boekjaar | J38: € | K38: =SUM( L38:BI38 ) -> 350559742.2 | L38: 3440115 | M38: 4727088 | N38: 83790874.41 | O38: 84360196.43 | P38: 3723813 | Q38: 61809884.57 | R38: 3672995.915 | S38: 0 | T38: 0 | U38: 0 | V38: 6234415.273 | W38: 7478012.589 | X38: 0 | Y38: 0 | Z38: 53460 | AA38: 91268887
E39: Afschrijvingen | J39: € | K39: =SUM( L39:BI39 ) -> 284056228.4 | L39: 3751492.212 | M39: 4890010.599 | N39: 46616558.84 | O39: 66363848.26 | P39: 8633349.655 | Q39: 61995089.63 | R39: 6404425.7 | S39: 8183784.736 | T39: 6772386.737 | U39: 1348851.562 | V39: 7328041.991 | W39: 6861943.446 | X39: 266776.3496 | Y39: 69832.01516 | Z39: 1091334.429 | AA39: 53478502.28
E40: Boekwaarde | J40: € | K40: =SUM( L40:BI40 ) -> 7083880764 | L40: 91228001.32 | M40: 113970185.3 | N40: 1078038569 | O40: 1855586854 | P40: 163568532.4 | Q40: 1577775677 | R40: 126527348.2 | S40: 208293727.2 | T40: 155901601.8 | U40: 27599600.55 | V40: 177648412.1 | W40: 187947641.7 | X40: 10751086.89 | Y40: 2807247.01 | Z40: 40250068.69 | AA40: 1265986210
E42: AANSLUITDIENST - Boekjaar: 2012 | K42: =K11 -> Sector Totaal | L42: Cogas | M42: Enduris | N42: Enexis excl. FNOP | O42: Liander | P42: Rendo | Q42: Stedin | R42: Westland | S42: Intergas | T42: Obragas | U42: Haarlemmer | V42: Endinet | W42: FNOP-gebied | X42: Enduris EHD | Y42: Enexis EHD | Z42: Zebra EHD | AA42: Enexis incl. FNOP
E43: Start-GAW (excl. bijzonderheden)
E44: =GAW!E$6132 -> Investeringsbedrag boekjaar Start-GAW | J44: € | K44: =SUM( L44:BI44 ) -> 0 | L44: 0 | M44: 0 | N44: 0 | O44: 0 | P44: 0 | Q44: 0 | R44: 0 | S44: 0 | T44: 0 | U44: 0 | V44: 0 | W44: 0 | X44: 0 | Y44: 0 | Z44: 0 | AA44: 0
E45: =Indexatie!E$376 -> Afschrijvingen Start-GAW | J45: € | K45: =SUM( L45:BI45 ) -> 28679672.43 | L45: 378113.6446 | M45: 633871.3652 | N45: 4285511.828 | O45: 3848278.257 | P45: 405267.0303 | Q45: 11987699.83 | R45: 95123.63434 | S45: 529210.0689 | T45: 403309.755 | U45: 137614.6805 | V45: 450580.0386 | W45: 619790.2373 | X45: 0 | Y45: 0 | Z45: 0 | AA45: 4905302.065
E46: =Indexatie!E$372 -> Boekwaarde Start-GAW | J46: € | K46: =SUM( L46:BI46 ) -> 618339688.9 | L46: 8318500.181 | M46: 12043555.94 | N46: 94281260.21 | O46: 65420730.37 | P46: 8105340.606 | Q46: 275717096 | R46: 1902472.687 | S46: 12701041.65 | T46: 7259575.591 | U46: 2477064.249 | V46: 8561020.733 | W46: 13635385.22 | X46: 0 | Y46: 0 | Z46: 0 | AA46: 107916645.4
E48: Nieuwe investeringen (excl. bijzonderheden)
E49: =Indexatie!E519 -> Investeringsbedrag boekjaar | J49: € | K49: =SUM( L49:BI49 ) -> 181821155.1 | L49: 2314237 | M49: 692301 | N49: 25440847 | O49: 66372065.72 | P49: 820448.76 | Q49: 49471670.14 | R49: -94836.05599 | S49: 0 | T49: 0 | U49: 0 | V49: 1119274.553 | W49: 5122150 | X49: 0 | Y49: 0 | Z49: 0 | AA49: 30562997
E50: =Indexatie!E505 -> Afschrijvingen | J50: € | K50: =SUM( L50:BI50 ) -> 12372198.78 | L50: 192480.1208 | M50: 138312.4027 | N50: 2255281.705 | O50: 3334754.102 | P50: 112518.5499 | Q50: 3522039.881 | R50: -8495.921323 | S50: 132908.6379 | T50: 3386.640694 | U50: 9194.802171 | V50: 46018.19023 | W50: 189258.9796 | X50: 0 | Y50: 0 | Z50: 0 | AA50: 2444540.685
E51: =Indexatie!E482 -> Boekwaarde | J51: € | K51: =SUM( L51:BI51 ) -> 548063722 | L51: 8217224.792 | M51: 5424734.011 | N51: 95786543.46 | O51: 156881080.1 | P51: 4514340.791 | Q51: 154924213.9 | R51: -374845.3091 | S51: 4862549.285 | T51: 124522.5893 | U51: 332516.1652 | V51: 2289746.944 | W51: 9647275.916 | X51: 0 | Y51: 0 | Z51: 0 | AA51: 105433819.4
E53: Bijzonderheid: overgenomen netten
E54: ='UI & Overgenomen Netten'!E$188 -> Investeringsbedrag overgenomen netten | J54: € | K54: =SUM( L54:BI54 ) -> 0 | L54: 0 | M54: 0 | N54: 0 | O54: 0 | P54: 0 | Q54: 0 | R54: 0 | S54: 0 | T54: 0 | U54: 0 | V54: 0 | W54: 0 | X54: 0 | Y54: 0 | Z54: 0 | AA54: 0
E55: ='UI & Overgenomen Netten'!E$178 -> Afschrijvingen overgenomen netten | J55: € | K55: =SUM( L55:BI55 ) -> 0 | L55: 0 | M55: 0 | N55: 0 | O55: 0 | P55: 0 | Q55: 0 | R55: 0 | S55: 0 | T55: 0 | U55: 0 | V55: 0 | W55: 0 | X55: 0 | Y55: 0 | Z55: 0 | AA55: 0
E56: ='UI & Overgenomen Netten'!E$168 -> Boekwaarde overgenomen netten | J56: € | K56: =SUM( L56:BI56 ) -> 0 | L56: 0 | M56: 0 | N56: 0 | O56: 0 | P56: 0 | Q56: 0 | R56: 0 | S56: 0 | T56: 0 | U56: 0 | V56: 0 | W56: 0 | X56: 0 | Y56: 0 | Z56: 0 | AA56: 0
E58: Totalen
E59: Investeringsbedrag boekjaar | J59: € | K59: =SUM( L59:BI59 ) -> 181821155.1 | L59: 2314237 | M59: 692301 | N59: 25440847 | O59: 66372065.72 | P59: 820448.76 | Q59: 49471670.14 | R59: -94836.05599 | S59: 0 | T59: 0 | U59: 0 | V59: 1119274.553 | W59: 5122150 | X59: 0 | Y59: 0 | Z59: 0 | AA59: 30562997
E60: Afschrijvingen | J60: € | K60: =SUM( L60:BI60 ) -> 41051871.21 | L60: 570593.7654 | M60: 772183.7679 | N60: 6540793.533 | O60: 7183032.36 | P60: 517785.5802 | Q60: 15509739.71 | R60: 86627.71302 | S60: 662118.7068 | T60: 406696.3957 | U60: 146809.4827 | V60: 496598.2288 | W60: 809049.217 | X60: 0 | Y60: 0 | Z60: 0 | AA60: 7349842.75
E61: Boekwaarde | J61: € | K61: =SUM( L61:BI61 ) -> 1166403411 | L61: 16535724.97 | M61: 17468289.95 | N61: 190067803.7 | O61: 222301810.5 | P61: 12619681.4 | Q61: 430641309.9 | R61: 1527627.378 | S61: 17563590.94 | T61: 7384098.18 | U61: 2809580.414 | V61: 10850767.68 | W61: 23282661.14 | X61: 0 | Y61: 0 | Z61: 0 | AA61: 213350464.8
D64: * | E64: ="Waardes vanaf " & InpC!G53 & " zijn niet geïndexeerd" -> Waardes vanaf zijn niet geïndexeerd
E65: Alle bedragen in dit dashboard zijn in het prijspeil van het genoemde jaar en boekwaardes per ultimo boekjaar.
E66: ="Desinvesteringen en waardeverminderingen worden bovenstaand niet gerapporteerd, maar zijn wel meegenomen in berekeningen t/m " & InpC!G20 & "." -> Desinvesteringen en waardeverminderingen worden bovenstaand niet gerapporteerd, maar zijn wel meegenomen in berekeningen t/m 2006.

Sheet InpC
A1: =RIGHT(CELL("filename", A1), LEN(CELL("filename", A1)) - SEARCH("]", CELL("filename", A1))) -> InpC
E2: =Tijd!E$2 -> Actieve netbeheerder | G2: =Tijd!G$2 -> Stedin
E3: =Tijd!E$3 -> Actieve inputsheet | G3: =Tijd!G$3 -> InpStedin
E4: =Tijd!E$4 -> Modelperiode | G4: =Check!G4 -> 0 | H4: =Check!H4 -> errors
E5: =Tijd!E$5 -> Looptijd vs Uitlooptijd | G5: =Check!G5 -> 0 | H5: =Check!H5 -> waarschuwingen
E6: =Tijd!E$10 -> Model kolom teller | F6: Bron | G6: Constante | H6: Eenheid | I6: Totaal
A8: ALGEMEEN
E9: Actieve netbeheerder | G9: ='Dashboard Netbeheerder'!N4 -> Stedin | H9: beheerder
E10: Indirect column key (language switch) | F10: macro | G10: K | H10: letter
A12: TIMING
E13: Start datum | G13: 2004 | H13: jaartal
E14: Jaren per periode | G14: 1 | H14: jaren
E15: Looptijd | G15: 50 | H15: jaar
E17: [Rij niet verwijderen]
E18: Beginjaar investeringen 2004 | G18: 2004 | H18: jaartal
E19: Beginjaar investeringen 2005 | G19: 2005 | H19: jaartal
E20: Beginjaar investeringen 2006 | G20: 2006 | H20: jaartal
E21: Beginjaar investeringen 2007 | G21: 2007 | H21: jaartal
E22: Beginjaar investeringen 2008 | G22: 2008 | H22: jaartal
E23: Beginjaar investeringen 2009 | G23: 2009 | H23: jaartal
E24: Beginjaar investeringen 2010 | G24: 2010 | H24: jaartal
E25: Beginjaar investeringen 2011 | G25: 2011 | H25: jaartal
E26: Beginjaar investeringen 2012 | G26: 2012 | H26: jaartal
E27: Beginjaar investeringen 2013 | G27: 2013 | H27: jaartal
E28: Beginjaar investeringen 2014 | G28: 2014 | H28: jaartal
E29: Beginjaar investeringen 2015 | G29: 2015 | H29: jaartal
E30: Beginjaar investeringen 2016 | G30: 2016 | H30: jaartal
E31: Beginjaar investeringen 2017 | G31: 2017 | H31: jaartal
E32: Beginjaar investeringen 2018 | G32: 2018 | H32: jaartal
E33: Beginjaar investeringen 2019 | G33: 2019 | H33: jaartal
E34: Beginjaar investeringen 2020 | G34: 2020 | H34: jaartal
E35: [Rij niet verwijderen]
A38: AFSCHRIJVINGSTERMIJNEN
C39: Algemeen
E40: Handmatig afschrijven t/m | G40: 2006 | H40: jaartal
E41: Bijz. waardeverminderingen en desinvesteringen t/m | G41: 2009 | H41: jaartal
C43: Investeringsjaren 2001-2050
E44: Afschrijvingsduur 55 jaar | G44: 55 | H44: jaar
E45: Afschrijvingsduur 45 jaar | G45: 45 | H45: jaar
E46: Afschrijvingsduur 39 jaar | G46: 39 | H46: jaar
E47: Afschrijvingsduur 30 jaar | G47: 30 | H47: jaar
E48: Afschrijvingsduur 25 jaar | G48: 25 | H48: jaar
E49: Afschrijvingsduur 20 jaar | G49: 20 | H49: jaar
E50: Afschrijvingsduur 10 jaar | G50: 10 | H50: jaar
E51: Afschrijvingsduur 5 jaar | G51: 5 | H51: jaar
E52: Afschrijvingsduur 3 jaar | G52: 3 | H52: jaar
A55: NETWERKBEHEERDERS
E56: [Rij niet verwijderen]
E57: Netbeheerder 1 | G57: Cogas | H57: beheerder
E58: Netbeheerder 2 | G58: Enduris | H58: beheerder
E59: Netbeheerder 3 | G59: Enexis excl. FNOP | H59: beheerder
E60: Netbeheerder 4 | G60: Liander | H60: beheerder
E61: Netbeheerder 5 | G61: Rendo | H61: beheerder
E62: Netbeheerder 6 | G62: Stedin | H62: beheerder
E63: Netbeheerder 7 | G63: Westland | H63: beheerder
E64: Netbeheerder 8 | G64: Intergas | H64: beheerder
E65: Netbeheerder 9 | G65: Obragas | H65: beheerder
E66: Netbeheerder 10 | G66: Haarlemmer | H66: beheerder
E67: Netbeheerder 11 | G67: Endinet | H67: beheerder
E68: Netbeheerder 12 | G68: FNOP-gebied | H68: beheerder
E69: Netbeheerder 13 | G69: Enduris EHD | H69: beheerder
E70: Netbeheerder 14 | G70: Enexis EHD | H70: beheerder
E71: Netbeheerder 15 | G71: Zebra EHD | H71: beheerder
E72: Netbeheerder 16 | G72: Enexis incl. FNOP | H72: beheerder
E73: [Rij niet verwijderen]
A75: CPI
E76: Indexeren t/m | G76: 2050 | H76: jaartal
E78: CPI 2001 | F78: CBS | G78: 0.025 | H78: %
E79: CPI 2002 | F79: CBS | G79: 0.047 | H79: %
E80: CPI 2003 | F80: CBS | G80: 0.033 | H80: %
E81: CPI 2004 | F81: CBS | G81: 0.021 | H81: %
E82: CPI 2005 | F82: CBS | G82: 0.011 | H82: %
E83: CPI 2006 | F83: CBS | G83: 0.018 | H83: %
E84: CPI 2007 | F84: CBS | G84: 0.014 | H84: %
E85: CPI 2008 | F85: CBS | G85: 0.011 | H85: %
E86: CPI 2009 | F86: CBS | G86: 0.032 | H86: %
E87: CPI 2010 | F87: CBS | G87: 0.003 | H87: %
E88: CPI 2011 | F88: CBS | G88: 0.015 | H88: %
E89: CPI 2012 | F89: CBS | G89: 0.026 | H89: %
E90: CPI 2013 | F90: CBS | G90: 0.023 | H90: %
E91: CPI 2014 | F91: CBS | G91: 0.028 | H91: %
E92: CPI 2015 | F92: CBS | G92: 0.01 | H92: %
E93: CPI 2016 | F93: CBS | G93: 0.008 | H93: %
E94: CPI 2017 | F94: CBS | H94: %
E95: CPI 2018 | F95: CBS | H95: %
E96: CPI 2019 | F96: CBS | H96: %
E97: CPI 2020 | F97: CBS | H97: %
A99: MODELMATIG
E100: Check Tolerance | G100: 0.0001 | H100: € | I100: Chk_Tol

Sheet InpCogas
A1: =RIGHT(CELL("filename", A1), LEN(CELL("filename", A1)) - SEARCH("]", CELL("filename", A1))) -> InpCogas
E2: =Tijd!E$2 -> Actieve netbeheerder | G2: =Tijd!G$2 -> Stedin
E3: =Tijd!E$3 -> Actieve inputsheet | G3: =Tijd!G$3 -> InpStedin
E4: =Tijd!E$4 -> Modelperiode | G4: =Check!G4 -> 0 | H4: =Check!H4 -> errors | K4: =Tijd!K$4 -> 2004 | L4: =Tijd!L$4 -> 2005 | M4: =Tijd!M$4 -> 2006 | N4: =Tijd!N$4 -> 2007 | O4: =Tijd!O$4 -> 2008 | P4: =Tijd!P$4 -> 2009 | Q4: =Tijd!Q$4 -> 2010 | R4: =Tijd!R$4 -> 2011 | S4: =Tijd!S$4 -> 2012 | T4: =Tijd!T$4 -> 2013 | U4: =Tijd!U$4 -> 2014 | V4: =Tijd!V$4 -> 2015 | W4: =Tijd!W$4 -> 2016 | X4: =Tijd!X$4 -> 2017 | Y4: =Tijd!Y$4 -> 2018 | Z4: =Tijd!Z$4 -> 2019 | AA4: =Tijd!AA$4 -> 2020 | AB4: =Tijd!AB$4 -> 2021 | AC4: =Tijd!AC$4 -> 2022 | AD4: =Tijd!AD$4 -> 2023 | AE4: =Tijd!AE$4 -> 2024 | AF4: =Tijd!AF$4 -> 2025 | AG4: =Tijd!AG$4 -> 2026 | AH4: =Tijd!AH$4 -> 2027 | AI4: =Tijd!AI$4 -> 2028 | AJ4: =Tijd!AJ$4 -> 2029 | AK4: =Tijd!AK$4 -> 2030 | AL4: =Tijd!AL$4 -> 2031 | AM4: =Tijd!AM$4 -> 2032 | AN4: =Tijd!AN$4 -> 2033 | AO4: =Tijd!AO$4 -> 2034 | AP4: =Tijd!AP$4 -> 2035 | AQ4: =Tijd!AQ$4 -> 2036 | AR4: =Tijd!AR$4 -> 2037 | AS4: =Tijd!AS$4 -> 2038 | AT4: =Tijd!AT$4 -> 2039 | AU4: =Tijd!AU$4 -> 2040 | AV4: =Tijd!AV$4 -> 2041 | AW4: =Tijd!AW$4 -> 2042 | AX4: =Tijd!AX$4 -> 2043 | AY4: =Tijd!AY$4 -> 2044 | AZ4: =Tijd!AZ$4 -> 2045 | BA4: =Tijd!BA$4 -> 2046 | BB4: =Tijd!BB$4 -> 2047 | BC4: =Tijd!BC$4 -> 2048 | BD4: =Tijd!BD$4 -> 2049 | BE4: =Tijd!BE$4 -> 2050 | BF4: =Tijd!BF$4 -> 2051 | BG4: =Tijd!BG$4 -> 2052 | BH4: =Tijd!BH$4 -> 2053 | BI4: =Tijd!BI$4 -> 2054 | BJ4: =Tijd!BJ$4 -> 2055 | BK4: =Tijd!BK$4 -> 2056 | BL4: =Tijd!BL$4 -> 2057 | BM4: =Tijd!BM$4 -> 2058 | BN4: =Tijd!BN$4 -> 2059 | BO4: =Tijd!BO$4 -> 2060 | BP4: =Tijd!BP$4 -> 2061 | BQ4: =Tijd!BQ$4 -> 2062 | BR4: =Tijd!BR$4 -> 2063 | BS4: =Tijd!BS$4 -> 2064 | BT4: =Tijd!BT$4 -> 2065 | BU4: =Tijd!BU$4 -> 2066 | BV4: =Tijd!BV$4 -> 2067 | BW4: =Tijd!BW$4 -> 2068 | BX4: =Tijd!BX$4 -> 2069 | BY4: =Tijd!BY$4 -> 2070 | BZ4: =Tijd!BZ$4 -> 2071 | CA4: =Tijd!CA$4 -> 2072 | CB4: =Tijd!CB$4 -> 2073 | CC4: =Tijd!CC$4 -> 2074 | CD4: =Tijd!CD$4 -> 2075 | CE4: =Tijd!CE$4 -> 2076 | CF4: =Tijd!CF$4 -> 2077 | CG4: =Tijd!CG$4 -> 2078 | CH4: =Tijd!CH$4 -> 2079 | CI4: =Tijd!CI$4 -> 2080 | CJ4: =Tijd!CJ$4 -> 2081 | CK4: =Tijd!CK$4 -> 2082 | CL4: =Tijd!CL$4 -> 2083 | CM4: =Tijd!CM$4 -> 2084 | CN4: =Tijd!CN$4 -> 2085 | CO4: =Tijd!CO$4 -> 2086 | CP4: =Tijd!CP$4 -> 2087 | CQ4: =Tijd!CQ$4 -> 2088 | CR4: =Tijd!CR$4 -> 2089 | CS4: =Tijd!CS$4 -> 2090 | CT4: =Tijd!CT$4 -> 2091 | CU4: =Tijd!CU$4 -> 2092 | CV4: =Tijd!CV$4 -> 2093 | CW4: =Tijd!CW$4 -> 2094 | CX4: =Tijd!CX$4 -> 2095 | CY4: =Tijd!CY$4 -> 2096 | CZ4: =Tijd!CZ$4 -> 2097 | DA4: =Tijd!DA$4 -> 2098 | DB4: =Tijd!DB$4 -> 2099 | DC4: =Tijd!DC$4 -> 2100 | DD4: =Tijd!DD$4 -> 2101 | DE4: =Tijd!DE$4 -> 2102 | DF4: =Tijd!DF$4 -> 2103
E5: =Tijd!E$5 -> Looptijd vs Uitlooptijd | G5: =Check!G5 -> 0 | H5: =Check!H5 -> waarschuwingen | K5: =Tijd!K$5 -> Looptijd | L5: =Tijd!L$5 -> Looptijd | M5: =Tijd!M$5 -> Looptijd | N5: =Tijd!N$5 -> Looptijd | O5: =Tijd!O$5 -> Looptijd | P5: =Tijd!P$5 -> Looptijd | Q5: =Tijd!Q$5 -> Looptijd | R5: =Tijd!R$5 -> Looptijd | S5: =Tijd!S$5 -> Looptijd | T5: =Tijd!T$5 -> Looptijd | U5: =Tijd!U$5 -> Looptijd | V5: =Tijd!V$5 -> Looptijd | W5: =Tijd!W$5 -> Looptijd | X5: =Tijd!X$5 -> Looptijd | Y5: =Tijd!Y$5 -> Looptijd | Z5: =Tijd!Z$5 -> Looptijd | AA5: =Tijd!AA$5 -> Looptijd | AB5: =Tijd!AB$5 -> Looptijd | AC5: =Tijd!AC$5 -> Looptijd | AD5: =Tijd!AD$5 -> Looptijd | AE5: =Tijd!AE$5 -> Looptijd | AF5: =Tijd!AF$5 -> Looptijd | AG5: =Tijd!AG$5 -> Looptijd | AH5: =Tijd!AH$5 -> Looptijd | AI5: =Tijd!AI$5 -> Looptijd | AJ5: =Tijd!AJ$5 -> Looptijd | AK5: =Tijd!AK$5 -> Looptijd | AL5: =Tijd!AL$5 -> Looptijd | AM5: =Tijd!AM$5 -> Looptijd | AN5: =Tijd!AN$5 -> Looptijd | AO5: =Tijd!AO$5 -> Looptijd | AP5: =Tijd!AP$5 -> Looptijd | AQ5: =Tijd!AQ$5 -> Looptijd | AR5: =Tijd!AR$5 -> Looptijd | AS5: =Tijd!AS$5 -> Looptijd | AT5: =Tijd!AT$5 -> Looptijd | AU5: =Tijd!AU$5 -> Looptijd | AV5: =Tijd!AV$5 -> Looptijd | AW5: =Tijd!AW$5 -> Looptijd | AX5: =Tijd!AX$5 -> Looptijd | AY5: =Tijd!AY$5 -> Looptijd | AZ5: =Tijd!AZ$5 -> Looptijd | BA5: =Tijd!BA$5 -> Looptijd | BB5: =Tijd!BB$5 -> Looptijd | BC5: =Tijd!BC$5 -> Looptijd | BD5: =Tijd!BD$5 -> Looptijd | BE5: =Tijd!BE$5 -> Looptijd | BF5: =Tijd!BF$5 -> Looptijd | BG5: =Tijd!BG$5 -> Looptijd | BH5: =Tijd!BH$5 -> Looptijd | BI5: =Tijd!BI$5 -> Looptijd | BJ5: =Tijd!BJ$5 -> Uitlooptijd | BK5: =Tijd!BK$5 -> Uitlooptijd | BL5: =Tijd!BL$5 -> Uitlooptijd | BM5: =Tijd!BM$5 -> Uitlooptijd | BN5: =Tijd!BN$5 -> Uitlooptijd | BO5: =Tijd!BO$5 -> Uitlooptijd | BP5: =Tijd!BP$5 -> Uitlooptijd | BQ5: =Tijd!BQ$5 -> Uitlooptijd | BR5: =Tijd!BR$5 -> Uitlooptijd | BS5: =Tijd!BS$5 -> Uitlooptijd | BT5: =Tijd!BT$5 -> Uitlooptijd | BU5: =Tijd!BU$5 -> Uitlooptijd | BV5: =Tijd!BV$5 -> Uitlooptijd | BW5: =Tijd!BW$5 -> Uitlooptijd | BX5: =Tijd!BX$5 -> Uitlooptijd | BY5: =Tijd!BY$5 -> Uitlooptijd | BZ5: =Tijd!BZ$5 -> Uitlooptijd | CA5: =Tijd!CA$5 -> Uitlooptijd | CB5: =Tijd!CB$5 -> Uitlooptijd | CC5: =Tijd!CC$5 -> Uitlooptijd | CD5: =Tijd!CD$5 -> Uitlooptijd | CE5: =Tijd!CE$5 -> Uitlooptijd | CF5: =Tijd!CF$5 -> Uitlooptijd | CG5: =Tijd!CG$5 -> Uitlooptijd | CH5: =Tijd!CH$5 -> Uitlooptijd | CI5: =Tijd!CI$5 -> Uitlooptijd | CJ5: =Tijd!CJ$5 -> Uitlooptijd | CK5: =Tijd!CK$5 -> Uitlooptijd | CL5: =Tijd!CL$5 -> Uitlooptijd | CM5: =Tijd!CM$5 -> Uitlooptijd | CN5: =Tijd!CN$5 -> Uitlooptijd | CO5: =Tijd!CO$5 -> Uitlooptijd | CP5: =Tijd!CP$5 -> Uitlooptijd | CQ5: =Tijd!CQ$5 -> Uitlooptijd | CR5: =Tijd!CR$5 -> Uitlooptijd | CS5: =Tijd!CS$5 -> Uitlooptijd | CT5: =Tijd!CT$5 -> Uitlooptijd | CU5: =Tijd!CU$5 -> Uitlooptijd | CV5: =Tijd!CV$5 -> Uitlooptijd | CW5: =Tijd!CW$5 -> Uitlooptijd | CX5: =Tijd!CX$5 -> Uitlooptijd | CY5: =Tijd!CY$5 -> Uitlooptijd | CZ5: =Tijd!CZ$5 -> Uitlooptijd | DA5: =Tijd!DA$5 -> Uitlooptijd | DB5: =Tijd!DB$5 -> Uitlooptijd | DC5: =Tijd!DC$5 -> Uitlooptijd | DD5: =Tijd!DD$5 -> Uitlooptijd | DE5: =Tijd!DE$5 -> Uitlooptijd | DF5: =Tijd!DF$5 -> Uitlooptijd
E6: =Tijd!E$10 -> Model kolom teller | F6: Bron | G6: Constante | H6: Eenheid | I6: Totaal | K6: =Tijd!K$10 -> 1 | L6: =Tijd!L$10 -> 2 | M6: =Tijd!M$10 -> 3 | N6: =Tijd!N$10 -> 4 | O6: =Tijd!O$10 -> 5 | P6: =Tijd!P$10 -> 6 | Q6: =Tijd!Q$10 -> 7 | R6: =Tijd!R$10 -> 8 | S6: =Tijd!S$10 -> 9 | T6: =Tijd!T$10 -> 10 | U6: =Tijd!U$10 -> 11 | V6: =Tijd!V$10 -> 12 | W6: =Tijd!W$10 -> 13 | X6: =Tijd!X$10 -> 14 | Y6: =Tijd!Y$10 -> 15 | Z6: =Tijd!Z$10 -> 16 | AA6: =Tijd!AA$10 -> 17 | AB6: =Tijd!AB$10 -> 18 | AC6: =Tijd!AC$10 -> 19 | AD6: =Tijd!AD$10 -> 20 | AE6: =Tijd!AE$10 -> 21 | AF6: =Tijd!AF$10 -> 22 | AG6: =Tijd!AG$10 -> 23 | AH6: =Tijd!AH$10 -> 24 | AI6: =Tijd!AI$10 -> 25 | AJ6: =Tijd!AJ$10 -> 26 | AK6: =Tijd!AK$10 -> 27 | AL6: =Tijd!AL$10 -> 28 | AM6: =Tijd!AM$10 -> 29 | AN6: =Tijd!AN$10 -> 30 | AO6: =Tijd!AO$10 -> 31 | AP6: =Tijd!AP$10 -> 32 | AQ6: =Tijd!AQ$10 -> 33 | AR6: =Tijd!AR$10 -> 34 | AS6: =Tijd!AS$10 -> 35 | AT6: =Tijd!AT$10 -> 36 | AU6: =Tijd!AU$10 -> 37 | AV6: =Tijd!AV$10 -> 38 | AW6: =Tijd!AW$10 -> 39 | AX6: =Tijd!AX$10 -> 40 | AY6: =Tijd!AY$10 -> 41 | AZ6: =Tijd!AZ$10 -> 42 | BA6: =Tijd!BA$10 -> 43 | BB6: =Tijd!BB$10 -> 44 | BC6: =Tijd!BC$10 -> 45 | BD6: =Tijd!BD$10 -> 46 | BE6: =Tijd!BE$10 -> 47 | BF6: =Tijd!BF$10 -> 48 | BG6: =Tijd!BG$10 -> 49 | BH6: =Tijd!BH$10 -> 50 | BI6: =Tijd!BI$10 -> 51 | BJ6: =Tijd!BJ$10 -> 52 | BK6: =Tijd!BK$10 -> 53 | BL6: =Tijd!BL$10 -> 54 | BM6: =Tijd!BM$10 -> 55 | BN6: =Tijd!BN$10 -> 56 | BO6: =Tijd!BO$10 -> 57 | BP6: =Tijd!BP$10 -> 58 | BQ6: =Tijd!BQ$10 -> 59 | BR6: =Tijd!BR$10 -> 60 | BS6: =Tijd!BS$10 -> 61 | BT6: =Tijd!BT$10 -> 62 | BU6: =Tijd!BU$10 -> 63 | BV6: =Tijd!BV$10 -> 64 | BW6: =Tijd!BW$10 -> 65 | BX6: =Tijd!BX$10 -> 66 | BY6: =Tijd!BY$10 -> 67 | BZ6: =Tijd!BZ$10 -> 68 | CA6: =Tijd!CA$10 -> 69 | CB6: =Tijd!CB$10 -> 70 | CC6: =Tijd!CC$10 -> 71 | CD6: =Tijd!CD$10 -> 72 | CE6: =Tijd!CE$10 -> 73 | CF6: =Tijd!CF$10 -> 74 | CG6: =Tijd!CG$10 -> 75 | CH6: =Tijd!CH$10 -> 76 | CI6: =Tijd!CI$10 -> 77 | CJ6: =Tijd!CJ$10 -> 78 | CK6: =Tijd!CK$10 -> 79 | CL6: =Tijd!CL$10 -> 80 | CM6: =Tijd!CM$10 -> 81 | CN6: =Tijd!CN$10 -> 82 | CO6: =Tijd!CO$10 -> 83 | CP6: =Tijd!CP$10 -> 84 | CQ6: =Tijd!CQ$10 -> 85 | CR6: =Tijd!CR$10 -> 86 | CS6: =Tijd!CS$10 -> 87 | CT6: =Tijd!CT$10 -> 88 | CU6: =Tijd!CU$10 -> 89 | CV6: =Tijd!CV$10 -> 90 | CW6: =Tijd!CW$10 -> 91 | CX6: =Tijd!CX$10 -> 92 | CY6: =Tijd!CY$10 -> 93 | CZ6: =Tijd!CZ$10 -> 94 | DA6: =Tijd!DA$10 -> 95 | DB6: =Tijd!DB$10 -> 96 | DC6: =Tijd!DC$10 -> 97 | DD6: =Tijd!DD$10 -> 98 | DE6: =Tijd!DE$10 -> 99 | DF6: =Tijd!DF$10 -> 100
A9: NETTEN
A11: INVESTERINGSJAAR 2004 - START GAW
E12: Startwaarde GAW incl. afgekochte precario (01-01-2004) | G12: 97044336 | H12: €
E13: Afschrijvingen Start GAW | G13: 3120396.656 | H13: €
E14: Afgekochte precario in Start GAW (01-01-2004) | G14: 4957900 | H14: €
E15: Afschrijvingsbedrag afgekochte precario | G15: 708271.4286 | H15: €
A17: INVESTERINGSJAAR 2004
B19: Investeringen 2004
E20: Aanschafwaarde investeringen 2004 met afschrijvingstermijn 55 | G20: 237680.81 | H20: € | I20: =SUM(K20:DF20) -> 0
E21: Aanschafwaarde investeringen 2004 met afschrijvingstermijn 45 | G21: 707528.16 | H21: € | I21: 0
E22: Aanschafwaarde investeringen 2004 met afschrijvingstermijn 30 | G22: 439387.51 | H22: € | I22: 0
E23: Aanschafwaarde investeringen 2004 met afschrijvingstermijn 25 | H23: € | I23: 0
E24: Aanschafwaarde investeringen 2004 met afschrijvingstermijn 10 | H24: € | I24: 0
E25: Aanschafwaarde investeringen 2004 met afschrijvingstermijn 5 | H25: € | I25: 0
E26: Aanschafwaarde investeringen 2004 zonder afschrijvingstermijn | H26: € | I26: 0
B28: Desinvesteringen 2004
E29: Desinvesteringen 2004 met afschrijvingstermijn 55 | H29: € | I29: =SUM(K29:DF29) -> 0
E30: Desinvesteringen 2004 met afschrijvingstermijn 45 | H30: € | I30: 0
E31: Desinvesteringen 2004 met afschrijvingstermijn 30 | H31: € | I31: 0
E32: Desinvesteringen 2004 met afschrijvingstermijn 25 | H32: € | I32: 0
E33: Desinvesteringen 2004 met afschrijvingstermijn 10 | H33: € | I33: 0
E34: Desinvesteringen 2004 met afschrijvingstermijn 5 | H34: € | I34: 0
E35: Desinvesteringen 2004 zonder afschrijvingstermijn | H35: € | I35: 0
B37: Opgegeven Afschrijvingen 2004
E38: Opgegeven afschrijvingen 2004 met afschrijvingstermijn 55 | H38: € | I38: =SUM(K38:DF38) -> 10157.39 | K38: 2157.39 | L38: 4000 | M38: 4000
E39: Opgegeven afschrijvingen 2004 met afschrijvingstermijn 45 | H39: € | I39: 39861.43 | K39: 7861.43 | L39: 16000 | M39: 16000
E40: Opgegeven afschrijvingen 2004 met afschrijvingstermijn 30 | H40: € | I40: 36367.41 | K40: 6367.41 | L40: 15000 | M40: 15000
E41: Opgegeven afschrijvingen 2004 met afschrijvingstermijn 25 | H41: € | I41: 0
E42: Opgegeven afschrijvingen 2004 met afschrijvingstermijn 10 | H42: € | I42: 0
E43: Opgegeven afschrijvingen 2004 met afschrijvingstermijn 5 | H43: € | I43: 0
B45: Opgegeven Cumulatieve Afschrijvingen Bij Desinvesteringen 2004
E46: Opgegeven c.a.d. 2004 met afschrijvingstermijn 55 | H46: € | I46: =SUM(K46:DF46) -> 0
E47: Opgegeven c.a.d. 2004 met afschrijvingstermijn 45 | H47: € | I47: 0
E48: Opgegeven c.a.d. 2004 met afschrijvingstermijn 30 | H48: € | I48: 0
E49: Opgegeven c.a.d. 2004 met afschrijvingstermijn 25 | H49: € | I49: 0
E50: Opgegeven c.a.d. 2004 met afschrijvingstermijn 10 | H50: € | I50: 0
E51: Opgegeven c.a.d. 2004 met afschrijvingstermijn 5 | H51: € | I51: 0
B53: Bijzondere Waardeverminderingen Op Activa 2004
E54: Bijzondere waardeverminderingen op activa 2004 met afschrijvingstermijn 55 | H54: € | I54: =SUM(K54:DF54) -> 0
E55: Bijzondere waardeverminderingen op activa 2004 met afschrijvingstermijn 45 | H55: € | I55: 0
E56: Bijzondere waardeverminderingen op activa 2004 met afschrijvingstermijn 30 | H56: € | I56: 0
E57: Bijzondere waardeverminderingen op activa 2004 met afschrijvingstermijn 25 | H57: € | I57: 0
E58: Bijzondere waardeverminderingen op activa 2004 met afschrijvingstermijn 10 | H58: € | I58: 0
E59: Bijzondere waardeverminderingen op activa 2004 met afschrijvingstermijn 5 | H59: € | I59: 0
B61: Input Alert
E62: Dummy Beginjaar investeringen
E63: Dummy Modelperiode
E64: Dummy Aantal cellen met onterechte input 2004
E65: Dummy Waarschuwing onterecht ingevulde cellen 2004
A67: INVESTERINGSJAAR 2005
B69: Investeringen 2005
E70: Aanschafwaarde investeringen 2005 met afschrijvingstermijn 55 | G70: -17000 | H70: € | I70: =SUM(K70:DF70) -> 0
E71: Aanschafwaarde investeringen 2005 met afschrijvingstermijn 45 | G71: 381000 | H71: € | I71: 0
E72: Aanschafwaarde investeringen 2005 met afschrijvingstermijn 30 | G72: 111000 | H72: € | I72: 0
E73: Aanschafwaarde investeringen 2005 met afschrijvingstermijn 25 | H73: € | I73: 0
E74: Aanschafwaarde investeringen 2005 met afschrijvingstermijn 10 | H74: € | I74: 0
E75: Aanschafwaarde investeringen 2005 met afschrijvingstermijn 5 | H75: € | I75: 0
E76: Aanschafwaarde investeringen 2005 zonder afschrijvingstermijn | H76: € | I76: 0
B78: Desinvesteringen 2005
E79: Desinvesteringen 2005 met afschrijvingstermijn 55 | H79: € | I79: =SUM(K79:DF79) -> 0
E80: Desinvesteringen 2005 met afschrijvingstermijn 45 | H80: € | I80: 0
E81: Desinvesteringen 2005 met afschrijvingstermijn 30 | H81: € | I81: 0
E82: Desinvesteringen 2005 met afschrijvingstermijn 25 | H82: € | I82: 0
E83: Desinvesteringen 2005 met afschrijvingstermijn 10 | H83: € | I83: 0
E84: Desinvesteringen 2005 met afschrijvingstermijn 5 | H84: € | I84: 0
E85: Desinvesteringen 2005 zonder afschrijvingstermijn | H85: € | I85: 0
B87: Opgegeven Afschrijvingen 2005
E88: Opgegeven afschrijvingen 2005 met afschrijvingstermijn 55 | H88: € | I88: =SUM(L88:DF88) -> 0
E89: Opgegeven afschrijvingen 2005 met afschrijvingstermijn 45 | H89: € | I89: 12000 | L89: 4000 | M89: 8000
E90: Opgegeven afschrijvingen 2005 met afschrijvingstermijn 30 | H90: € | I90: 6000 | L90: 2000 | M90: 4000
E91: Opgegeven afschrijvingen 2005 met afschrijvingstermijn 25 | H91: € | I91: 0
E92: Opgegeven afschrijvingen 2005 met afschrijvingstermijn 10 | H92: € | I92: 0
E93: Opgegeven afschrijvingen 2005 met afschrijvingstermijn 5 | H93: € | I93: 0
B95: Opgegeven Cumulatieve Afschrijvingen Bij Desinvesteringen 2005
E96: Opgegeven c.a.d. 2005 met afschrijvingstermijn 55 | H96: € | I96: =SUM(K96:DF96) -> 0
E97: Opgegeven c.a.d. 2005 met afschrijvingstermijn 45 | H97: € | I97: 0
E98: Opgegeven c.a.d. 2005 met afschrijvingstermijn 30 | H98: € | I98: 0
E99: Opgegeven c.a.d. 2005 met afschrijvingstermijn 25 | H99: € | I99: 0
E100: Opgegeven c.a.d. 2005 met afschrijvingstermijn 10 | H100: € | I100: 0
E101: Opgegeven c.a.d. 2005 met afschrijvingstermijn 5 | H101: € | I101: 0
B103: Bijzondere Waardeverminderingen Op Activa 2005
E104: Bijzondere waardeverminderingen op activa 2005 met afschrijvingstermijn 55 | H104: € | I104: =SUM(K104:DF104) -> 0
E105: Bijzondere waardeverminderingen op activa 2005 met afschrijvingstermijn 45 | H105: € | I105: 0
E106: Bijzondere waardeverminderingen op activa 2005 met afschrijvingstermijn 30 | H106: € | I106: 0
E107: Bijzondere waardeverminderingen op activa 2005 met afschrijvingstermijn 25 | H107: € | I107: 0
E108: Bijzondere waardeverminderingen op activa 2005 met afschrijvingstermijn 10 | H108: € | I108: 0
E109: Bijzondere waardeverminderingen op activa 2005 met afschrijvingstermijn 5 | H109: € | I109: 0
B111: Input Alert
E112: Dummy Beginjaar investeringen
E113: Dummy Modelperiode
E114: Dummy Aantal cellen met onterechte input 2005
E115: Dummy Waarschuwing onterecht ingevulde cellen 2005
A117: INVESTERINGSJAAR 2006 - START GAW voor EHD
E118: Startwaarde GAW voor EHD (01-01-2006) | H118: €
E119: Afschrijvingen Start GAW voor EHD | H119: €
A121: INVESTERINGSJAAR 2006
B123: Investeringen 2006
E124: Aanschafwaarde investeringen 2006 met afschrijvingstermijn 55 | G124: -118000 | H124: € | I124: =SUM(K124:DF124) -> 0
E125: Aanschafwaarde investeringen 2006 met afschrijvingstermijn 45 | G125: 383000 | H125: € | I125: 0
E126: Aanschafwaarde investeringen 2006 met afschrijvingstermijn 30 | G126: 123000 | H126: € | I126: 0
E127: Aanschafwaarde investeringen 2006 met afschrijvingstermijn 25 | H127: € | I127: 0
E128: Aanschafwaarde investeringen 2006 met afschrijvingstermijn 10 | H128: € | I128: 0
E129: Aanschafwaarde investeringen 2006 met afschrijvingstermijn 5 | H129: € | I129: 0
E130: Aanschafwaarde investeringen 2006 zonder afschrijvingstermijn | H130: € | I130: 0
B132: Desinvesteringen 2006
E133: Desinvesteringen 2006 met afschrijvingstermijn 55 | H133: € | I133: =SUM(K133:DF133) -> 0
E134: Desinvesteringen 2006 met afschrijvingstermijn 45 | H134: € | I134: 0
E135: Desinvesteringen 2006 met afschrijvingstermijn 30 | H135: € | I135: 0
E136: Desinvesteringen 2006 met afschrijvingstermijn 25 | H136: € | I136: 0
E137: Desinvesteringen 2006 met afschrijvingstermijn 10 | H137: € | I137: 0
E138: Desinvesteringen 2006 met afschrijvingstermijn 5 | H138: € | I138: 0
E139: Desinvesteringen 2006 zonder afschrijvingstermijn | H139: € | I139: 0
B141: Opgegeven Afschrijvingen 2006
E142: Opgegeven afschrijvingen 2006 met afschrijvingstermijn 55 | H142: € | I142: =SUM(K142:DF142) -> -1000 | M142: -1000
E143: Opgegeven afschrijvingen 2006 met afschrijvingstermijn 45 | H143: € | I143: 4000 | M143: 4000
E144: Opgegeven afschrijvingen 2006 met afschrijvingstermijn 30 | H144: € | I144: 2000 | M144: 2000
E145: Opgegeven afschrijvingen 2006 met afschrijvingstermijn 25 | H145: € | I145: 0
E146: Opgegeven afschrijvingen 2006 met afschrijvingstermijn 10 | H146: € | I146: 0
E147: Opgegeven afschrijvingen 2006 met afschrijvingstermijn 5 | H147: € | I147: 0
B149: Opgegeven Cumulatieve Afschrijvingen Bij Desinvesteringen 2006
E150: Opgegeven c.a.d. 2006 met afschrijvingstermijn 55 | H150: € | I150: =SUM(K150:DF150) -> 0
E151: Opgegeven c.a.d. 2006 met afschrijvingstermijn 45 | H151: € | I151: 0
E152: Opgegeven c.a.d. 2006 met afschrijvingstermijn 30 | H152: € | I152: 0
E153: Opgegeven c.a.d. 2006 met afschrijvingstermijn 25 | H153: € | I153: 0
E154: Opgegeven c.a.d. 2006 met afschrijvingstermijn 10 | H154: € | I154: 0
E155: Opgegeven c.a.d. 2006 met afschrijvingstermijn 5 | H155: € | I155: 0
B157: Bijzondere Waardeverminderingen Op Activa 2006
E158: Bijzondere waardeverminderingen op activa 2006 met afschrijvingstermijn 55 | H158: € | I158: =SUM(K158:DF158) -> 0
E159: Bijzondere waardeverminderingen op activa 2006 met afschrijvingstermijn 45 | H159: € | I159: 0
E160: Bijzondere waardeverminderingen op activa 2006 met afschrijvingstermijn 30 | H160: € | I160: 0
E161: Bijzondere waardeverminderingen op activa 2006 met afschrijvingstermijn 25 | H161: € | I161: 0
E162: Bijzondere waardeverminderingen op activa 2006 met afschrijvingstermijn 10 | H162: € | I162: 0
E163: Bijzondere waardeverminderingen op activa 2006 met afschrijvingstermijn 5 | H163: € | I163: 0
B165: Input Alert
E166: Dummy Beginjaar investeringen
E167: Dummy Modelperiode
E168: Dummy Aantal cellen met onterechte input 2006
E169: Dummy Waarschuwing onterecht ingevulde cellen 2006
A171: INVESTERINGSJAAR 2007
B173: Investeringen 2007
E174: Aanschafwaarde investeringen 2007 met afschrijvingstermijn 55 | G174: 661000 | H174: € | I174: =SUM(K174:DF174) -> 0
E175: Aanschafwaarde investeringen 2007 met afschrijvingstermijn 45 | G175: 529000 | H175: € | I175: 0
E176: Aanschafwaarde investeringen 2007 met afschrijvingstermijn 30 | G176: 148000 | H176: € | I176: 0
E177: Aanschafwaarde investeringen 2007 met afschrijvingstermijn 25 | H177: € | I177: 0
E178: Aanschafwaarde investeringen 2007 met afschrijvingstermijn 10 | H178: € | I178: 0
E179: Aanschafwaarde investeringen 2007 met afschrijvingstermijn 5 | H179: € | I179: 0
E180: Aanschafwaarde investeringen 2007 zonder afschrijvingstermijn | H180: € | I180: 0
B182: Desinvesteringen 2007
E183: Desinvesteringen 2007 met afschrijvingstermijn 55 | H183: € | I183: =SUM(K183:DF183) -> 0
E184: Desinvesteringen 2007 met afschrijvingstermijn 45 | H184: € | I184: 0
E185: Desinvesteringen 2007 met afschrijvingstermijn 30 | H185: € | I185: 0
E186: Desinvesteringen 2007 met afschrijvingstermijn 25 | H186: € | I186: 0
E187: Desinvesteringen 2007 met afschrijvingstermijn 10 | H187: € | I187: 0
E188: Desinvesteringen 2007 met afschrijvingstermijn 5 | H188: € | I188: 0
E189: Desinvesteringen 2007 zonder afschrijvingstermijn | H189: € | I189: 0
B191: Opgegeven Afschrijvingen 2007
E192: Opgegeven afschrijvingen 2007 met afschrijvingstermijn 55 | H192: € | I192: =SUM(K192:DF192) -> 0
E193: Opgegeven afschrijvingen 2007 met afschrijvingstermijn 45 | H193: € | I193: 0
E194: Opgegeven afschrijvingen 2007 met afschrijvingstermijn 30 | H194: € | I194: 0
E195: Opgegeven afschrijvingen 2007 met afschrijvingstermijn 25 | H195: € | I195: 0
E196: Opgegeven afschrijvingen 2007 met afschrijvingstermijn 10 | H196: € | I196: 0
E197: Opgegeven afschrijvingen 2007 met afschrijvingstermijn 5 | H197: € | I197: 0
B199: Opgegeven Cumulatieve Afschrijvingen Bij Desinvesteringen 2007
E200: Opgegeven c.a.d. 2007 met afschrijvingstermijn 55 | H200: € | I200: =SUM(K200:DF200) -> 0
E201: Opgegeven c.a.d. 2007 met afschrijvingstermijn 45 | H201: € | I201: 0
E202: Opgegeven c.a.d. 2007 met afschrijvingstermijn 30 | H202: € | I202: 0
E203: Opgegeven c.a.d. 2007 met afschrijvingstermijn 25 | H203: € | I203: 0
E204: Opgegeven c.a.d. 2007 met afschrijvingstermijn 10 | H204: € | I204: 0
E205: Opgegeven c.a.d. 2007 met afschrijvingstermijn 5 | H205: € | I205: 0
B207: Bijzondere Waardeverminderingen Op Activa 2007
E208: Bijzondere waardeverminderingen op activa 2007 met afschrijvingstermijn 55 | H208: € | I208: =SUM(K208:DF208) -> 0
E209: Bijzondere waardeverminderingen op activa 2007 met afschrijvingstermijn 45 | H209: € | I209: 0
E210: Bijzondere waardeverminderingen op activa 2007 met afschrijvingstermijn 30 | H210: € | I210: 0
E211: Bijzondere waardeverminderingen op activa 2007 met afschrijvingstermijn 25 | H211: € | I211: 0
E212: Bijzondere waardeverminderingen op activa 2007 met afschrijvingstermijn 10 | H212: € | I212: 0
E213: Bijzondere waardeverminderingen op activa 2007 met afschrijvingstermijn 5 | H213: € | I213: 0
B215: Input Alert
E216: Dummy Beginjaar investeringen
E217: Dummy Modelperiode
E218: Dummy Aantal cellen met onterechte input 2007
E219: Dummy Waarschuwing onterecht ingevulde cellen 2007
A221: INVESTERINGSJAAR 2008
B223: Investeringen 2008
E224: Aanschafwaarde investeringen 2008 met afschrijvingstermijn 55 | G224: 614000 | H224: € | I224: =SUM(K224:DF224) -> 0
E225: Aanschafwaarde investeringen 2008 met afschrijvingstermijn 45 | G225: 1118000 | H225: € | I225: 0
E226: Aanschafwaarde investeringen 2008 met afschrijvingstermijn 30 | G226: 458000 | H226: € | I226: 0
E227: Aanschafwaarde investeringen 2008 met afschrijvingstermijn 25 | H227: € | I227: 0
E228: Aanschafwaarde investeringen 2008 met afschrijvingstermijn 10 | H228: € | I228: 0
E229: Aanschafwaarde investeringen 2008 met afschrijvingstermijn 5 | H229: € | I229: 0
E230: Aanschafwaarde investeringen 2008 zonder afschrijvingstermijn | H230: € | I230: 0
B232: Desinvesteringen 2008
E233: Desinvesteringen 2008 met afschrijvingstermijn 55 | H233: € | I233: =SUM(K233:DF233) -> 0
E234: Desinvesteringen 2008 met afschrijvingstermijn 45 | H234: € | I234: 0
E235: Desinvesteringen 2008 met afschrijvingstermijn 30 | H235: € | I235: 0
... 468 more rows

Sheet InpEnduris
A1: =RIGHT(CELL("filename", A1), LEN(CELL("filename", A1)) - SEARCH("]", CELL("filename", A1))) -> InpEnduris
E2: =Tijd!E$2 -> Actieve netbeheerder | G2: =Tijd!G$2 -> Stedin
E3: =Tijd!E$3 -> Actieve inputsheet | G3: =Tijd!G$3 -> InpStedin
E4: =Tijd!E$4 -> Modelperiode | G4: =Check!G4 -> 0 | H4: =Check!H4 -> errors | K4: =Tijd!K$4 -> 2004 | L4: =Tijd!L$4 -> 2005 | M4: =Tijd!M$4 -> 2006 | N4: =Tijd!N$4 -> 2007 | O4: =Tijd!O$4 -> 2008 | P4: =Tijd!P$4 -> 2009 | Q4: =Tijd!Q$4 -> 2010 | R4: =Tijd!R$4 -> 2011 | S4: =Tijd!S$4 -> 2012 | T4: =Tijd!T$4 -> 2013 | U4: =Tijd!U$4 -> 2014 | V4: =Tijd!V$4 -> 2015 | W4: =Tijd!W$4 -> 2016 | X4: =Tijd!X$4 -> 2017 | Y4: =Tijd!Y$4 -> 2018 | Z4: =Tijd!Z$4 -> 2019 | AA4: =Tijd!AA$4 -> 2020 | AB4: =Tijd!AB$4 -> 2021 | AC4: =Tijd!AC$4 -> 2022 | AD4: =Tijd!AD$4 -> 2023 | AE4: =Tijd!AE$4 -> 2024 | AF4: =Tijd!AF$4 -> 2025 | AG4: =Tijd!AG$4 -> 2026 | AH4: =Tijd!AH$4 -> 2027 | AI4: =Tijd!AI$4 -> 2028 | AJ4: =Tijd!AJ$4 -> 2029 | AK4: =Tijd!AK$4 -> 2030 | AL4: =Tijd!AL$4 -> 2031 | AM4: =Tijd!AM$4 -> 2032 | AN4: =Tijd!AN$4 -> 2033 | AO4: =Tijd!AO$4 -> 2034 | AP4: =Tijd!AP$4 -> 2035 | AQ4: =Tijd!AQ$4 -> 2036 | AR4: =Tijd!AR$4 -> 2037 | AS4: =Tijd!AS$4 -> 2038 | AT4: =Tijd!AT$4 -> 2039 | AU4: =Tijd!AU$4 -> 2040 | AV4: =Tijd!AV$4 -> 2041 | AW4: =Tijd!AW$4 -> 2042 | AX4: =Tijd!AX$4 -> 2043 | AY4: =Tijd!AY$4 -> 2044 | AZ4: =Tijd!AZ$4 -> 2045 | BA4: =Tijd!BA$4 -> 2046 | BB4: =Tijd!BB$4 -> 2047 | BC4: =Tijd!BC$4 -> 2048 | BD4: =Tijd!BD$4 -> 2049 | BE4: =Tijd!BE$4 -> 2050 | BF4: =Tijd!BF$4 -> 2051 | BG4: =Tijd!BG$4 -> 2052 | BH4: =Tijd!BH$4 -> 2053 | BI4: =Tijd!BI$4 -> 2054 | BJ4: =Tijd!BJ$4 -> 2055 | BK4: =Tijd!BK$4 -> 2056 | BL4: =Tijd!BL$4 -> 2057 | BM4: =Tijd!BM$4 -> 2058 | BN4: =Tijd!BN$4 -> 2059 | BO4: =Tijd!BO$4 -> 2060 | BP4: =Tijd!BP$4 -> 2061 | BQ4: =Tijd!BQ$4 -> 2062 | BR4: =Tijd!BR$4 -> 2063 | BS4: =Tijd!BS$4 -> 2064 | BT4: =Tijd!BT$4 -> 2065 | BU4: =Tijd!BU$4 -> 2066 | BV4: =Tijd!BV$4 -> 2067 | BW4: =Tijd!BW$4 -> 2068 | BX4: =Tijd!BX$4 -> 2069 | BY4: =Tijd!BY$4 -> 2070 | BZ4: =Tijd!BZ$4 -> 2071 | CA4: =Tijd!CA$4 -> 2072 | CB4: =Tijd!CB$4 -> 2073 | CC4: =Tijd!CC$4 -> 2074 | CD4: =Tijd!CD$4 -> 2075 | CE4: =Tijd!CE$4 -> 2076 | CF4: =Tijd!CF$4 -> 2077 | CG4: =Tijd!CG$4 -> 2078 | CH4: =Tijd!CH$4 -> 2079 | CI4: =Tijd!CI$4 -> 2080 | CJ4: =Tijd!CJ$4 -> 2081 | CK4: =Tijd!CK$4 -> 2082 | CL4: =Tijd!CL$4 -> 2083 | CM4: =Tijd!CM$4 -> 2084 | CN4: =Tijd!CN$4 -> 2085 | CO4: =Tijd!CO$4 -> 2086 | CP4: =Tijd!CP$4 -> 2087 | CQ4: =Tijd!CQ$4 -> 2088 | CR4: =Tijd!CR$4 -> 2089 | CS4: =Tijd!CS$4 -> 2090 | CT4: =Tijd!CT$4 -> 2091 | CU4: =Tijd!CU$4 -> 2092 | CV4: =Tijd!CV$4 -> 2093 | CW4: =Tijd!CW$4 -> 2094 | CX4: =Tijd!CX$4 -> 2095 | CY4: =Tijd!CY$4 -> 2096 | CZ4: =Tijd!CZ$4 -> 2097 | DA4: =Tijd!DA$4 -> 2098 | DB4: =Tijd!DB$4 -> 2099 | DC4: =Tijd!DC$4 -> 2100 | DD4: =Tijd!DD$4 -> 2101 | DE4: =Tijd!DE$4 -> 2102 | DF4: =Tijd!DF$4 -> 2103
E5: =Tijd!E$5 -> Looptijd vs Uitlooptijd | G5: =Check!G5 -> 0 | H5: =Check!H5 -> waarschuwingen | K5: =Tijd!K$5 -> Looptijd | L5: =Tijd!L$5 -> Looptijd | M5: =Tijd!M$5 -> Looptijd | N5: =Tijd!N$5 -> Looptijd | O5: =Tijd!O$5 -> Looptijd | P5: =Tijd!P$5 -> Looptijd | Q5: =Tijd!Q$5 -> Looptijd | R5: =Tijd!R$5 -> Looptijd | S5: =Tijd!S$5 -> Looptijd | T5: =Tijd!T$5 -> Looptijd | U5: =Tijd!U$5 -> Looptijd | V5: =Tijd!V$5 -> Looptijd | W5: =Tijd!W$5 -> Looptijd | X5: =Tijd!X$5 -> Looptijd | Y5: =Tijd!Y$5 -> Looptijd | Z5: =Tijd!Z$5 -> Looptijd | AA5: =Tijd!AA$5 -> Looptijd | AB5: =Tijd!AB$5 -> Looptijd | AC5: =Tijd!AC$5 -> Looptijd | AD5: =Tijd!AD$5 -> Looptijd | AE5: =Tijd!AE$5 -> Looptijd | AF5: =Tijd!AF$5 -> Looptijd | AG5: =Tijd!AG$5 -> Looptijd | AH5: =Tijd!AH$5 -> Looptijd | AI5: =Tijd!AI$5 -> Looptijd | AJ5: =Tijd!AJ$5 -> Looptijd | AK5: =Tijd!AK$5 -> Looptijd | AL5: =Tijd!AL$5 -> Looptijd | AM5: =Tijd!AM$5 -> Looptijd | AN5: =Tijd!AN$5 -> Looptijd | AO5: =Tijd!AO$5 -> Looptijd | AP5: =Tijd!AP$5 -> Looptijd | AQ5: =Tijd!AQ$5 -> Looptijd | AR5: =Tijd!AR$5 -> Looptijd | AS5: =Tijd!AS$5 -> Looptijd | AT5: =Tijd!AT$5 -> Looptijd | AU5: =Tijd!AU$5 -> Looptijd | AV5: =Tijd!AV$5 -> Looptijd | AW5: =Tijd!AW$5 -> Looptijd | AX5: =Tijd!AX$5 -> Looptijd | AY5: =Tijd!AY$5 -> Looptijd | AZ5: =Tijd!AZ$5 -> Looptijd | BA5: =Tijd!BA$5 -> Looptijd | BB5: =Tijd!BB$5 -> Looptijd | BC5: =Tijd!BC$5 -> Looptijd | BD5: =Tijd!BD$5 -> Looptijd | BE5: =Tijd!BE$5 -> Looptijd | BF5: =Tijd!BF$5 -> Looptijd | BG5: =Tijd!BG$5 -> Looptijd | BH5: =Tijd!BH$5 -> Looptijd | BI5: =Tijd!BI$5 -> Looptijd | BJ5: =Tijd!BJ$5 -> Uitlooptijd | BK5: =Tijd!BK$5 -> Uitlooptijd | BL5: =Tijd!BL$5 -> Uitlooptijd | BM5: =Tijd!BM$5 -> Uitlooptijd | BN5: =Tijd!BN$5 -> Uitlooptijd | BO5: =Tijd!BO$5 -> Uitlooptijd | BP5: =Tijd!BP$5 -> Uitlooptijd | BQ5: =Tijd!BQ$5 -> Uitlooptijd | BR5: =Tijd!BR$5 -> Uitlooptijd | BS5: =Tijd!BS$5 -> Uitlooptijd | BT5: =Tijd!BT$5 -> Uitlooptijd | BU5: =Tijd!BU$5 -> Uitlooptijd | BV5: =Tijd!BV$5 -> Uitlooptijd | BW5: =Tijd!BW$5 -> Uitlooptijd | BX5: =Tijd!BX$5 -> Uitlooptijd | BY5: =Tijd!BY$5 -> Uitlooptijd | BZ5: =Tijd!BZ$5 -> Uitlooptijd | CA5: =Tijd!CA$5 -> Uitlooptijd | CB5: =Tijd!CB$5 -> Uitlooptijd | CC5: =Tijd!CC$5 -> Uitlooptijd | CD5: =Tijd!CD$5 -> Uitlooptijd | CE5: =Tijd!CE$5 -> Uitlooptijd | CF5: =Tijd!CF$5 -> Uitlooptijd | CG5: =Tijd!CG$5 -> Uitlooptijd | CH5: =Tijd!CH$5 -> Uitlooptijd | CI5: =Tijd!CI$5 -> Uitlooptijd | CJ5: =Tijd!CJ$5 -> Uitlooptijd | CK5: =Tijd!CK$5 -> Uitlooptijd | CL5: =Tijd!CL$5 -> Uitlooptijd | CM5: =Tijd!CM$5 -> Uitlooptijd | CN5: =Tijd!CN$5 -> Uitlooptijd | CO5: =Tijd!CO$5 -> Uitlooptijd | CP5: =Tijd!CP$5 -> Uitlooptijd | CQ5: =Tijd!CQ$5 -> Uitlooptijd | CR5: =Tijd!CR$5 -> Uitlooptijd | CS5: =Tijd!CS$5 -> Uitlooptijd | CT5: =Tijd!CT$5 -> Uitlooptijd | CU5: =Tijd!CU$5 -> Uitlooptijd | CV5: =Tijd!CV$5 -> Uitlooptijd | CW5: =Tijd!CW$5 -> Uitlooptijd | CX5: =Tijd!CX$5 -> Uitlooptijd | CY5: =Tijd!CY$5 -> Uitlooptijd | CZ5: =Tijd!CZ$5 -> Uitlooptijd | DA5: =Tijd!DA$5 -> Uitlooptijd | DB5: =Tijd!DB$5 -> Uitlooptijd | DC5: =Tijd!DC$5 -> Uitlooptijd | DD5: =Tijd!DD$5 -> Uitlooptijd | DE5: =Tijd!DE$5 -> Uitlooptijd | DF5: =Tijd!DF$5 -> Uitlooptijd
E6: =Tijd!E$10 -> Model kolom teller | F6: Bron | G6: Constante | H6: Eenheid | I6: Totaal | K6: =Tijd!K$10 -> 1 | L6: =Tijd!L$10 -> 2 | M6: =Tijd!M$10 -> 3 | N6: =Tijd!N$10 -> 4 | O6: =Tijd!O$10 -> 5 | P6: =Tijd!P$10 -> 6 | Q6: =Tijd!Q$10 -> 7 | R6: =Tijd!R$10 -> 8 | S6: =Tijd!S$10 -> 9 | T6: =Tijd!T$10 -> 10 | U6: =Tijd!U$10 -> 11 | V6: =Tijd!V$10 -> 12 | W6: =Tijd!W$10 -> 13 | X6: =Tijd!X$10 -> 14 | Y6: =Tijd!Y$10 -> 15 | Z6: =Tijd!Z$10 -> 16 | AA6: =Tijd!AA$10 -> 17 | AB6: =Tijd!AB$10 -> 18 | AC6: =Tijd!AC$10 -> 19 | AD6: =Tijd!AD$10 -> 20 | AE6: =Tijd!AE$10 -> 21 | AF6: =Tijd!AF$10 -> 22 | AG6: =Tijd!AG$10 -> 23 | AH6: =Tijd!AH$10 -> 24 | AI6: =Tijd!AI$10 -> 25 | AJ6: =Tijd!AJ$10 -> 26 | AK6: =Tijd!AK$10 -> 27 | AL6: =Tijd!AL$10 -> 28 | AM6: =Tijd!AM$10 -> 29 | AN6: =Tijd!AN$10 -> 30 | AO6: =Tijd!AO$10 -> 31 | AP6: =Tijd!AP$10 -> 32 | AQ6: =Tijd!AQ$10 -> 33 | AR6: =Tijd!AR$10 -> 34 | AS6: =Tijd!AS$10 -> 35 | AT6: =Tijd!AT$10 -> 36 | AU6: =Tijd!AU$10 -> 37 | AV6: =Tijd!AV$10 -> 38 | AW6: =Tijd!AW$10 -> 39 | AX6: =Tijd!AX$10 -> 40 | AY6: =Tijd!AY$10 -> 41 | AZ6: =Tijd!AZ$10 -> 42 | BA6: =Tijd!BA$10 -> 43 | BB6: =Tijd!BB$10 -> 44 | BC6: =Tijd!BC$10 -> 45 | BD6: =Tijd!BD$10 -> 46 | BE6: =Tijd!BE$10 -> 47 | BF6: =Tijd!BF$10 -> 48 | BG6: =Tijd!BG$10 -> 49 | BH6: =Tijd!BH$10 -> 50 | BI6: =Tijd!BI$10 -> 51 | BJ6: =Tijd!BJ$10 -> 52 | BK6: =Tijd!BK$10 -> 53 | BL6: =Tijd!BL$10 -> 54 | BM6: =Tijd!BM$10 -> 55 | BN6: =Tijd!BN$10 -> 56 | BO6: =Tijd!BO$10 -> 57 | BP6: =Tijd!BP$10 -> 58 | BQ6: =Tijd!BQ$10 -> 59 | BR6: =Tijd!BR$10 -> 60 | BS6: =Tijd!BS$10 -> 61 | BT6: =Tijd!BT$10 -> 62 | BU6: =Tijd!BU$10 -> 63 | BV6: =Tijd!BV$10 -> 64 | BW6: =Tijd!BW$10 -> 65 | BX6: =Tijd!BX$10 -> 66 | BY6: =Tijd!BY$10 -> 67 | BZ6: =Tijd!BZ$10 -> 68 | CA6: =Tijd!CA$10 -> 69 | CB6: =Tijd!CB$10 -> 70 | CC6: =Tijd!CC$10 -> 71 | CD6: =Tijd!CD$10 -> 72 | CE6: =Tijd!CE$10 -> 73 | CF6: =Tijd!CF$10 -> 74 | CG6: =Tijd!CG$10 -> 75 | CH6: =Tijd!CH$10 -> 76 | CI6: =Tijd!CI$10 -> 77 | CJ6: =Tijd!CJ$10 -> 78 | CK6: =Tijd!CK$10 -> 79 | CL6: =Tijd!CL$10 -> 80 | CM6: =Tijd!CM$10 -> 81 | CN6: =Tijd!CN$10 -> 82 | CO6: =Tijd!CO$10 -> 83 | CP6: =Tijd!CP$10 -> 84 | CQ6: =Tijd!CQ$10 -> 85 | CR6: =Tijd!CR$10 -> 86 | CS6: =Tijd!CS$10 -> 87 | CT6: =Tijd!CT$10 -> 88 | CU6: =Tijd!CU$10 -> 89 | CV6: =Tijd!CV$10 -> 90 | CW6: =Tijd!CW$10 -> 91 | CX6: =Tijd!CX$10 -> 92 | CY6: =Tijd!CY$10 -> 93 | CZ6: =Tijd!CZ$10 -> 94 | DA6: =Tijd!DA$10 -> 95 | DB6: =Tijd!DB$10 -> 96 | DC6: =Tijd!DC$10 -> 97 | DD6: =Tijd!DD$10 -> 98 | DE6: =Tijd!DE$10 -> 99 | DF6: =Tijd!DF$10 -> 100
A9: NETTEN
A11: INVESTERINGSJAAR 2004 - START GAW
E12: Startwaarde GAW incl. afgekochte precario (01-01-2004) | G12: 106731371 | H12: €
E13: Afschrijvingen Start GAW | G13: 3167102.997 | H13: €
E14: Afgekochte precario in Start GAW (01-01-2004) | H14: €
E15: Afschrijvingsbedrag afgekochte precario | H15: €
A17: INVESTERINGSJAAR 2004
B19: Investeringen 2004
E20: Aanschafwaarde investeringen 2004 met afschrijvingstermijn 55 | G20: 389000 | H20: € | I20: =SUM(K20:DF20) -> 0
E21: Aanschafwaarde investeringen 2004 met afschrijvingstermijn 45 | G21: 2159000 | H21: € | I21: 0
E22: Aanschafwaarde investeringen 2004 met afschrijvingstermijn 30 | G22: 1088000 | H22: € | I22: 0
E23: Aanschafwaarde investeringen 2004 met afschrijvingstermijn 25 | H23: € | I23: 0
E24: Aanschafwaarde investeringen 2004 met afschrijvingstermijn 10 | H24: € | I24: 0
E25: Aanschafwaarde investeringen 2004 met afschrijvingstermijn 5 | H25: € | I25: 0
E26: Aanschafwaarde investeringen 2004 zonder afschrijvingstermijn | H26: € | I26: 0
B28: Desinvesteringen 2004
E29: Desinvesteringen 2004 met afschrijvingstermijn 55 | H29: € | I29: =SUM(K29:DF29) -> 0
E30: Desinvesteringen 2004 met afschrijvingstermijn 45 | H30: € | I30: 0
E31: Desinvesteringen 2004 met afschrijvingstermijn 30 | H31: € | I31: 0
E32: Desinvesteringen 2004 met afschrijvingstermijn 25 | H32: € | I32: 0
E33: Desinvesteringen 2004 met afschrijvingstermijn 10 | H33: € | I33: 0
E34: Desinvesteringen 2004 met afschrijvingstermijn 5 | H34: € | I34: 0
E35: Desinvesteringen 2004 zonder afschrijvingstermijn | H35: € | I35: 0
B37: Opgegeven Afschrijvingen 2004
E38: Opgegeven afschrijvingen 2004 met afschrijvingstermijn 55 | H38: € | I38: =SUM(K38:DF38) -> 18000 | K38: 4000 | L38: 7000 | M38: 7000
E39: Opgegeven afschrijvingen 2004 met afschrijvingstermijn 45 | H39: € | I39: 120000 | K39: 24000 | L39: 48000 | M39: 48000
E40: Opgegeven afschrijvingen 2004 met afschrijvingstermijn 30 | H40: € | I40: 90000 | K40: 18000 | L40: 36000 | M40: 36000
E41: Opgegeven afschrijvingen 2004 met afschrijvingstermijn 25 | H41: € | I41: 0
E42: Opgegeven afschrijvingen 2004 met afschrijvingstermijn 10 | H42: € | I42: 0
E43: Opgegeven afschrijvingen 2004 met afschrijvingstermijn 5 | H43: € | I43: 0
B45: Opgegeven Cumulatieve Afschrijvingen Bij Desinvesteringen 2004
E46: Opgegeven c.a.d. 2004 met afschrijvingstermijn 55 | H46: € | I46: =SUM(K46:DF46) -> 0
E47: Opgegeven c.a.d. 2004 met afschrijvingstermijn 45 | H47: € | I47: 0
E48: Opgegeven c.a.d. 2004 met afschrijvingstermijn 30 | H48: € | I48: 0
E49: Opgegeven c.a.d. 2004 met afschrijvingstermijn 25 | H49: € | I49: 0
E50: Opgegeven c.a.d. 2004 met afschrijvingstermijn 10 | H50: € | I50: 0
E51: Opgegeven c.a.d. 2004 met afschrijvingstermijn 5 | H51: € | I51: 0
B53: Bijzondere Waardeverminderingen Op Activa 2004
E54: Bijzondere waardeverminderingen op activa 2004 met afschrijvingstermijn 55 | H54: € | I54: =SUM(K54:DF54) -> 0
E55: Bijzondere waardeverminderingen op activa 2004 met afschrijvingstermijn 45 | H55: € | I55: 0
E56: Bijzondere waardeverminderingen op activa 2004 met afschrijvingstermijn 30 | H56: € | I56: 0
E57: Bijzondere waardeverminderingen op activa 2004 met afschrijvingstermijn 25 | H57: € | I57: 0
E58: Bijzondere waardeverminderingen op activa 2004 met afschrijvingstermijn 10 | H58: € | I58: 0
E59: Bijzondere waardeverminderingen op activa 2004 met afschrijvingstermijn 5 | H59: € | I59: 0
B61: Input Alert
E62: Dummy Beginjaar investeringen
E63: Dummy Modelperiode
E64: Dummy Aantal cellen met onterechte input 2004
E65: Dummy Waarschuwing onterecht ingevulde cellen 2004
A67: INVESTERINGSJAAR 2005
B69: Investeringen 2005
E70: Aanschafwaarde investeringen 2005 met afschrijvingstermijn 55 | G70: 373000 | H70: € | I70: =SUM(K70:DF70) -> 0
E71: Aanschafwaarde investeringen 2005 met afschrijvingstermijn 45 | G71: 1782000 | H71: € | I71: 0
E72: Aanschafwaarde investeringen 2005 met afschrijvingstermijn 30 | G72: 265000 | H72: € | I72: 0
E73: Aanschafwaarde investeringen 2005 met afschrijvingstermijn 25 | H73: € | I73: 0
E74: Aanschafwaarde investeringen 2005 met afschrijvingstermijn 10 | H74: € | I74: 0
E75: Aanschafwaarde investeringen 2005 met afschrijvingstermijn 5 | H75: € | I75: 0
E76: Aanschafwaarde investeringen 2005 zonder afschrijvingstermijn | H76: € | I76: 0
B78: Desinvesteringen 2005
E79: Desinvesteringen 2005 met afschrijvingstermijn 55 | H79: € | I79: =SUM(K79:DF79) -> 0
E80: Desinvesteringen 2005 met afschrijvingstermijn 45 | H80: € | I80: 0
E81: Desinvesteringen 2005 met afschrijvingstermijn 30 | H81: € | I81: 0
E82: Desinvesteringen 2005 met afschrijvingstermijn 25 | H82: € | I82: 0
E83: Desinvesteringen 2005 met afschrijvingstermijn 10 | H83: € | I83: 0
E84: Desinvesteringen 2005 met afschrijvingstermijn 5 | H84: € | I84: 0
E85: Desinvesteringen 2005 zonder afschrijvingstermijn | H85: € | I85: 0
B87: Opgegeven Afschrijvingen 2005
E88: Opgegeven afschrijvingen 2005 met afschrijvingstermijn 55 | H88: € | I88: =SUM(L88:DF88) -> 10000 | L88: 3000 | M88: 7000
E89: Opgegeven afschrijvingen 2005 met afschrijvingstermijn 45 | H89: € | I89: 59000 | L89: 20000 | M89: 39000
E90: Opgegeven afschrijvingen 2005 met afschrijvingstermijn 30 | H90: € | I90: 12000 | L90: 4000 | M90: 8000
E91: Opgegeven afschrijvingen 2005 met afschrijvingstermijn 25 | H91: € | I91: 0
E92: Opgegeven afschrijvingen 2005 met afschrijvingstermijn 10 | H92: € | I92: 0
E93: Opgegeven afschrijvingen 2005 met afschrijvingstermijn 5 | H93: € | I93: 0
B95: Opgegeven Cumulatieve Afschrijvingen Bij Desinvesteringen 2005
E96: Opgegeven c.a.d. 2005 met afschrijvingstermijn 55 | H96: € | I96: =SUM(K96:DF96) -> 0
E97: Opgegeven c.a.d. 2005 met afschrijvingstermijn 45 | H97: € | I97: 0
E98: Opgegeven c.a.d. 2005 met afschrijvingstermijn 30 | H98: € | I98: 0
E99: Opgegeven c.a.d. 2005 met afschrijvingstermijn 25 | H99: € | I99: 0
E100: Opgegeven c.a.d. 2005 met afschrijvingstermijn 10 | H100: € | I100: 0
E101: Opgegeven c.a.d. 2005 met afschrijvingstermijn 5 | H101: € | I101: 0
B103: Bijzondere Waardeverminderingen Op Activa 2005
E104: Bijzondere waardeverminderingen op activa 2005 met afschrijvingstermijn 55 | H104: € | I104: =SUM(K104:DF104) -> 0
E105: Bijzondere waardeverminderingen op activa 2005 met afschrijvingstermijn 45 | H105: € | I105: 0
E106: Bijzondere waardeverminderingen op activa 2005 met afschrijvingstermijn 30 | H106: € | I106: 0
E107: Bijzondere waardeverminderingen op activa 2005 met afschrijvingstermijn 25 | H107: € | I107: 0
E108: Bijzondere waardeverminderingen op activa 2005 met afschrijvingstermijn 10 | H108: € | I108: 0
E109: Bijzondere waardeverminderingen op activa 2005 met afschrijvingstermijn 5 | H109: € | I109: 0
B111: Input Alert
E112: Dummy Beginjaar investeringen
E113: Dummy Modelperiode
E114: Dummy Aantal cellen met onterechte input 2005
E115: Dummy Waarschuwing onterecht ingevulde cellen 2005
A117: INVESTERINGSJAAR 2006 - START GAW voor EHD
E118: Startwaarde GAW voor EHD (01-01-2006) | H118: €
E119: Afschrijvingen Start GAW voor EHD | H119: €
A121: INVESTERINGSJAAR 2006
B123: Investeringen 2006
E124: Aanschafwaarde investeringen 2006 met afschrijvingstermijn 55 | G124: 45000 | H124: € | I124: =SUM(K124:DF124) -> 0
E125: Aanschafwaarde investeringen 2006 met afschrijvingstermijn 45 | G125: 396000 | H125: € | I125: 0
E126: Aanschafwaarde investeringen 2006 met afschrijvingstermijn 30 | G126: 78000 | H126: € | I126: 0
E127: Aanschafwaarde investeringen 2006 met afschrijvingstermijn 25 | H127: € | I127: 0
E128: Aanschafwaarde investeringen 2006 met afschrijvingstermijn 10 | H128: € | I128: 0
E129: Aanschafwaarde investeringen 2006 met afschrijvingstermijn 5 | H129: € | I129: 0
E130: Aanschafwaarde investeringen 2006 zonder afschrijvingstermijn | H130: € | I130: 0
B132: Desinvesteringen 2006
E133: Desinvesteringen 2006 met afschrijvingstermijn 55 | H133: € | I133: =SUM(K133:DF133) -> 0
E134: Desinvesteringen 2006 met afschrijvingstermijn 45 | H134: € | I134: 0
E135: Desinvesteringen 2006 met afschrijvingstermijn 30 | H135: € | I135: 0
E136: Desinvesteringen 2006 met afschrijvingstermijn 25 | H136: € | I136: 0
E137: Desinvesteringen 2006 met afschrijvingstermijn 10 | H137: € | I137: 0
E138: Desinvesteringen 2006 met afschrijvingstermijn 5 | H138: € | I138: 0
E139: Desinvesteringen 2006 zonder afschrijvingstermijn | H139: € | I139: 0
B141: Opgegeven Afschrijvingen 2006
E142: Opgegeven afschrijvingen 2006 met afschrijvingstermijn 55 | H142: € | I142: =SUM(K142:DF142) -> 0
E143: Opgegeven afschrijvingen 2006 met afschrijvingstermijn 45 | H143: € | I143: 4000 | M143: 4000
E144: Opgegeven afschrijvingen 2006 met afschrijvingstermijn 30 | H144: € | I144: 1000 | M144: 1000
E145: Opgegeven afschrijvingen 2006 met afschrijvingstermijn 25 | H145: € | I145: 0
E146: Opgegeven afschrijvingen 2006 met afschrijvingstermijn 10 | H146: € | I146: 0
E147: Opgegeven afschrijvingen 2006 met afschrijvingstermijn 5 | H147: € | I147: 0
B149: Opgegeven Cumulatieve Afschrijvingen Bij Desinvesteringen 2006
E150: Opgegeven c.a.d. 2006 met afschrijvingstermijn 55 | H150: € | I150: =SUM(K150:DF150) -> 0
E151: Opgegeven c.a.d. 2006 met afschrijvingstermijn 45 | H151: € | I151: 0
E152: Opgegeven c.a.d. 2006 met afschrijvingstermijn 30 | H152: € | I152: 0
E153: Opgegeven c.a.d. 2006 met afschrijvingstermijn 25 | H153: € | I153: 0
E154: Opgegeven c.a.d. 2006 met afschrijvingstermijn 10 | H154: € | I154: 0
E155: Opgegeven c.a.d. 2006 met afschrijvingstermijn 5 | H155: € | I155: 0
B157: Bijzondere Waardeverminderingen Op Activa 2006
E158: Bijzondere waardeverminderingen op activa 2006 met afschrijvingstermijn 55 | H158: € | I158: =SUM(K158:DF158) -> 0
E159: Bijzondere waardeverminderingen op activa 2006 met afschrijvingstermijn 45 | H159: € | I159: 0
E160: Bijzondere waardeverminderingen op activa 2006 met afschrijvingstermijn 30 | H160: € | I160: 0
E161: Bijzondere waardeverminderingen op activa 2006 met afschrijvingstermijn 25 | H161: € | I161: 0
E162: Bijzondere waardeverminderingen op activa 2006 met afschrijvingstermijn 10 | H162: € | I162: 0
E163: Bijzondere waardeverminderingen op activa 2006 met afschrijvingstermijn 5 | H163: € | I163: 0
B165: Input Alert
E166: Dummy Beginjaar investeringen
E167: Dummy Modelperiode
E168: Dummy Aantal cellen met onterechte input 2006
E169: Dummy Waarschuwing onterecht ingevulde cellen 2006
A171: INVESTERINGSJAAR 2007
B173: Investeringen 2007
E174: Aanschafwaarde investeringen 2007 met afschrijvingstermijn 55 | G174: 753000 | H174: € | I174: =SUM(K174:DF174) -> 0
E175: Aanschafwaarde investeringen 2007 met afschrijvingstermijn 45 | G175: 926000 | H175: € | I175: 0
E176: Aanschafwaarde investeringen 2007 met afschrijvingstermijn 30 | G176: 141000 | H176: € | I176: 0
E177: Aanschafwaarde investeringen 2007 met afschrijvingstermijn 25 | H177: € | I177: 0
E178: Aanschafwaarde investeringen 2007 met afschrijvingstermijn 10 | H178: € | I178: 0
E179: Aanschafwaarde investeringen 2007 met afschrijvingstermijn 5 | H179: € | I179: 0
E180: Aanschafwaarde investeringen 2007 zonder afschrijvingstermijn | H180: € | I180: 0
B182: Desinvesteringen 2007
E183: Desinvesteringen 2007 met afschrijvingstermijn 55 | H183: € | I183: =SUM(K183:DF183) -> 0
E184: Desinvesteringen 2007 met afschrijvingstermijn 45 | H184: € | I184: 0
E185: Desinvesteringen 2007 met afschrijvingstermijn 30 | H185: € | I185: 0
E186: Desinvesteringen 2007 met afschrijvingstermijn 25 | H186: € | I186: 0
E187: Desinvesteringen 2007 met afschrijvingstermijn 10 | H187: € | I187: 0
E188: Desinvesteringen 2007 met afschrijvingstermijn 5 | H188: € | I188: 0
E189: Desinvesteringen 2007 zonder afschrijvingstermijn | H189: € | I189: 0
B191: Opgegeven Afschrijvingen 2007
E192: Opgegeven afschrijvingen 2007 met afschrijvingstermijn 55 | H192: € | I192: =SUM(K192:DF192) -> 0
E193: Opgegeven afschrijvingen 2007 met afschrijvingstermijn 45 | H193: € | I193: 0
E194: Opgegeven afschrijvingen 2007 met afschrijvingstermijn 30 | H194: € | I194: 0
E195: Opgegeven afschrijvingen 2007 met afschrijvingstermijn 25 | H195: € | I195: 0
E196: Opgegeven afschrijvingen 2007 met afschrijvingstermijn 10 | H196: € | I196: 0
E197: Opgegeven afschrijvingen 2007 met afschrijvingstermijn 5 | H197: € | I197: 0
B199: Opgegeven Cumulatieve Afschrijvingen Bij Desinvesteringen 2007
E200: Opgegeven c.a.d. 2007 met afschrijvingstermijn 55 | H200: € | I200: =SUM(K200:DF200) -> 0
E201: Opgegeven c.a.d. 2007 met afschrijvingstermijn 45 | H201: € | I201: 0
E202: Opgegeven c.a.d. 2007 met afschrijvingstermijn 30 | H202: € | I202: 0
E203: Opgegeven c.a.d. 2007 met afschrijvingstermijn 25 | H203: € | I203: 0
E204: Opgegeven c.a.d. 2007 met afschrijvingstermijn 10 | H204: € | I204: 0
E205: Opgegeven c.a.d. 2007 met afschrijvingstermijn 5 | H205: € | I205: 0
B207: Bijzondere Waardeverminderingen Op Activa 2007
E208: Bijzondere waardeverminderingen op activa 2007 met afschrijvingstermijn 55 | H208: € | I208: =SUM(K208:DF208) -> 0
E209: Bijzondere waardeverminderingen op activa 2007 met afschrijvingstermijn 45 | H209: € | I209: 0
E210: Bijzondere waardeverminderingen op activa 2007 met afschrijvingstermijn 30 | H210: € | I210: 0
E211: Bijzondere waardeverminderingen op activa 2007 met afschrijvingstermijn 25 | H211: € | I211: 0
E212: Bijzondere waardeverminderingen op activa 2007 met afschrijvingstermijn 10 | H212: € | I212: 0
E213: Bijzondere waardeverminderingen op activa 2007 met afschrijvingstermijn 5 | H213: € | I213: 0
B215: Input Alert
E216: Dummy Beginjaar investeringen
E217: Dummy Modelperiode
E218: Dummy Aantal cellen met onterechte input 2007
E219: Dummy Waarschuwing onterecht ingevulde cellen 2007
A221: INVESTERINGSJAAR 2008
B223: Investeringen 2008
E224: Aanschafwaarde investeringen 2008 met afschrijvingstermijn 55 | G224: 65000 | H224: € | I224: =SUM(K224:DF224) -> 0
E225: Aanschafwaarde investeringen 2008 met afschrijvingstermijn 45 | G225: 651000 | H225: € | I225: 0
E226: Aanschafwaarde investeringen 2008 met afschrijvingstermijn 30 | G226: 126000 | H226: € | I226: 0
E227: Aanschafwaarde investeringen 2008 met afschrijvingstermijn 25 | H227: € | I227: 0
E228: Aanschafwaarde investeringen 2008 met afschrijvingstermijn 10 | H228: € | I228: 0
E229: Aanschafwaarde investeringen 2008 met afschrijvingstermijn 5 | H229: € | I229: 0
E230: Aanschafwaarde investeringen 2008 zonder afschrijvingstermijn | H230: € | I230: 0
B232: Desinvesteringen 2008
E233: Desinvesteringen 2008 met afschrijvingstermijn 55 | H233: € | I233: =SUM(K233:DF233) -> 0
E234: Desinvesteringen 2008 met afschrijvingstermijn 45 | H234: € | I234: 0
E235: Desinvesteringen 2008 met afschrijvingstermijn 30 | H235: € | I235: 0
... 468 more rows

Sheet InpEnduris EHD
A1: =RIGHT(CELL("filename", A1), LEN(CELL("filename", A1)) - SEARCH("]", CELL("filename", A1))) -> InpEnduris EHD
E2: =Tijd!E$2 -> Actieve netbeheerder | G2: =Tijd!G$2 -> Stedin
E3: =Tijd!E$3 -> Actieve inputsheet | G3: =Tijd!G$3 -> InpStedin
E4: =Tijd!E$4 -> Modelperiode | G4: =Check!G4 -> 0 | H4: =Check!H4 -> errors | K4: =Tijd!K$4 -> 2004 | L4: =Tijd!L$4 -> 2005 | M4: =Tijd!M$4 -> 2006 | N4: =Tijd!N$4 -> 2007 | O4: =Tijd!O$4 -> 2008 | P4: =Tijd!P$4 -> 2009 | Q4: =Tijd!Q$4 -> 2010 | R4: =Tijd!R$4 -> 2011 | S4: =Tijd!S$4 -> 2012 | T4: =Tijd!T$4 -> 2013 | U4: =Tijd!U$4 -> 2014 | V4: =Tijd!V$4 -> 2015 | W4: =Tijd!W$4 -> 2016 | X4: =Tijd!X$4 -> 2017 | Y4: =Tijd!Y$4 -> 2018 | Z4: =Tijd!Z$4 -> 2019 | AA4: =Tijd!AA$4 -> 2020 | AB4: =Tijd!AB$4 -> 2021 | AC4: =Tijd!AC$4 -> 2022 | AD4: =Tijd!AD$4 -> 2023 | AE4: =Tijd!AE$4 -> 2024 | AF4: =Tijd!AF$4 -> 2025 | AG4: =Tijd!AG$4 -> 2026 | AH4: =Tijd!AH$4 -> 2027 | AI4: =Tijd!AI$4 -> 2028 | AJ4: =Tijd!AJ$4 -> 2029 | AK4: =Tijd!AK$4 -> 2030 | AL4: =Tijd!AL$4 -> 2031 | AM4: =Tijd!AM$4 -> 2032 | AN4: =Tijd!AN$4 -> 2033 | AO4: =Tijd!AO$4 -> 2034 | AP4: =Tijd!AP$4 -> 2035 | AQ4: =Tijd!AQ$4 -> 2036 | AR4: =Tijd!AR$4 -> 2037 | AS4: =Tijd!AS$4 -> 2038 | AT4: =Tijd!AT$4 -> 2039 | AU4: =Tijd!AU$4 -> 2040 | AV4: =Tijd!AV$4 -> 2041 | AW4: =Tijd!AW$4 -> 2042 | AX4: =Tijd!AX$4 -> 2043 | AY4: =Tijd!AY$4 -> 2044 | AZ4: =Tijd!AZ$4 -> 2045 | BA4: =Tijd!BA$4 -> 2046 | BB4: =Tijd!BB$4 -> 2047 | BC4: =Tijd!BC$4 -> 2048 | BD4: =Tijd!BD$4 -> 2049 | BE4: =Tijd!BE$4 -> 2050 | BF4: =Tijd!BF$4 -> 2051 | BG4: =Tijd!BG$4 -> 2052 | BH4: =Tijd!BH$4 -> 2053 | BI4: =Tijd!BI$4 -> 2054 | BJ4: =Tijd!BJ$4 -> 2055 | BK4: =Tijd!BK$4 -> 2056 | BL4: =Tijd!BL$4 -> 2057 | BM4: =Tijd!BM$4 -> 2058 | BN4: =Tijd!BN$4 -> 2059 | BO4: =Tijd!BO$4 -> 2060 | BP4: =Tijd!BP$4 -> 2061 | BQ4: =Tijd!BQ$4 -> 2062 | BR4: =Tijd!BR$4 -> 2063 | BS4: =Tijd!BS$4 -> 2064 | BT4: =Tijd!BT$4 -> 2065 | BU4: =Tijd!BU$4 -> 2066 | BV4: =Tijd!BV$4 -> 2067 | BW4: =Tijd!BW$4 -> 2068 | BX4: =Tijd!BX$4 -> 2069 | BY4: =Tijd!BY$4 -> 2070 | BZ4: =Tijd!BZ$4 -> 2071 | CA4: =Tijd!CA$4 -> 2072 | CB4: =Tijd!CB$4 -> 2073 | CC4: =Tijd!CC$4 -> 2074 | CD4: =Tijd!CD$4 -> 2075 | CE4: =Tijd!CE$4 -> 2076 | CF4: =Tijd!CF$4 -> 2077 | CG4: =Tijd!CG$4 -> 2078 | CH4: =Tijd!CH$4 -> 2079 | CI4: =Tijd!CI$4 -> 2080 | CJ4: =Tijd!CJ$4 -> 2081 | CK4: =Tijd!CK$4 -> 2082 | CL4: =Tijd!CL$4 -> 2083 | CM4: =Tijd!CM$4 -> 2084 | CN4: =Tijd!CN$4 -> 2085 | CO4: =Tijd!CO$4 -> 2086 | CP4: =Tijd!CP$4 -> 2087 | CQ4: =Tijd!CQ$4 -> 2088 | CR4: =Tijd!CR$4 -> 2089 | CS4: =Tijd!CS$4 -> 2090 | CT4: =Tijd!CT$4 -> 2091 | CU4: =Tijd!CU$4 -> 2092 | CV4: =Tijd!CV$4 -> 2093 | CW4: =Tijd!CW$4 -> 2094 | CX4: =Tijd!CX$4 -> 2095 | CY4: =Tijd!CY$4 -> 2096 | CZ4: =Tijd!CZ$4 -> 2097 | DA4: =Tijd!DA$4 -> 2098 | DB4: =Tijd!DB$4 -> 2099 | DC4: =Tijd!DC$4 -> 2100 | DD4: =Tijd!DD$4 -> 2101 | DE4: =Tijd!DE$4 -> 2102 | DF4: =Tijd!DF$4 -> 2103
E5: =Tijd!E$5 -> Looptijd vs Uitlooptijd | G5: =Check!G5 -> 0 | H5: =Check!H5 -> waarschuwingen | K5: =Tijd!K$5 -> Looptijd | L5: =Tijd!L$5 -> Looptijd | M5: =Tijd!M$5 -> Looptijd | N5: =Tijd!N$5 -> Looptijd | O5: =Tijd!O$5 -> Looptijd | P5: =Tijd!P$5 -> Looptijd | Q5: =Tijd!Q$5 -> Looptijd | R5: =Tijd!R$5 -> Looptijd | S5: =Tijd!S$5 -> Looptijd | T5: =Tijd!T$5 -> Looptijd | U5: =Tijd!U$5 -> Looptijd | V5: =Tijd!V$5 -> Looptijd | W5: =Tijd!W$5 -> Looptijd | X5: =Tijd!X$5 -> Looptijd | Y5: =Tijd!Y$5 -> Looptijd | Z5: =Tijd!Z$5 -> Looptijd | AA5: =Tijd!AA$5 -> Looptijd | AB5: =Tijd!AB$5 -> Looptijd | AC5: =Tijd!AC$5 -> Looptijd | AD5: =Tijd!AD$5 -> Looptijd | AE5: =Tijd!AE$5 -> Looptijd | AF5: =Tijd!AF$5 -> Looptijd | AG5: =Tijd!AG$5 -> Looptijd | AH5: =Tijd!AH$5 -> Looptijd | AI5: =Tijd!AI$5 -> Looptijd | AJ5: =Tijd!AJ$5 -> Looptijd | AK5: =Tijd!AK$5 -> Looptijd | AL5: =Tijd!AL$5 -> Looptijd | AM5: =Tijd!AM$5 -> Looptijd | AN5: =Tijd!AN$5 -> Looptijd | AO5: =Tijd!AO$5 -> Looptijd | AP5: =Tijd!AP$5 -> Looptijd | AQ5: =Tijd!AQ$5 -> Looptijd | AR5: =Tijd!AR$5 -> Looptijd | AS5: =Tijd!AS$5 -> Looptijd | AT5: =Tijd!AT$5 -> Looptijd | AU5: =Tijd!AU$5 -> Looptijd | AV5: =Tijd!AV$5 -> Looptijd | AW5: =Tijd!AW$5 -> Looptijd | AX5: =Tijd!AX$5 -> Looptijd | AY5: =Tijd!AY$5 -> Looptijd | AZ5: =Tijd!AZ$5 -> Looptijd | BA5: =Tijd!BA$5 -> Looptijd | BB5: =Tijd!BB$5 -> Looptijd | BC5: =Tijd!BC$5 -> Looptijd | BD5: =Tijd!BD$5 -> Looptijd | BE5: =Tijd!BE$5 -> Looptijd | BF5: =Tijd!BF$5 -> Looptijd | BG5: =Tijd!BG$5 -> Looptijd | BH5: =Tijd!BH$5 -> Looptijd | BI5: =Tijd!BI$5 -> Looptijd | BJ5: =Tijd!BJ$5 -> Uitlooptijd | BK5: =Tijd!BK$5 -> Uitlooptijd | BL5: =Tijd!BL$5 -> Uitlooptijd | BM5: =Tijd!BM$5 -> Uitlooptijd | BN5: =Tijd!BN$5 -> Uitlooptijd | BO5: =Tijd!BO$5 -> Uitlooptijd | BP5: =Tijd!BP$5 -> Uitlooptijd | BQ5: =Tijd!BQ$5 -> Uitlooptijd | BR5: =Tijd!BR$5 -> Uitlooptijd | BS5: =Tijd!BS$5 -> Uitlooptijd | BT5: =Tijd!BT$5 -> Uitlooptijd | BU5: =Tijd!BU$5 -> Uitlooptijd | BV5: =Tijd!BV$5 -> Uitlooptijd | BW5: =Tijd!BW$5 -> Uitlooptijd | BX5: =Tijd!BX$5 -> Uitlooptijd | BY5: =Tijd!BY$5 -> Uitlooptijd | BZ5: =Tijd!BZ$5 -> Uitlooptijd | CA5: =Tijd!CA$5 -> Uitlooptijd | CB5: =Tijd!CB$5 -> Uitlooptijd | CC5: =Tijd!CC$5 -> Uitlooptijd | CD5: =Tijd!CD$5 -> Uitlooptijd | CE5: =Tijd!CE$5 -> Uitlooptijd | CF5: =Tijd!CF$5 -> Uitlooptijd | CG5: =Tijd!CG$5 -> Uitlooptijd | CH5: =Tijd!CH$5 -> Uitlooptijd | CI5: =Tijd!CI$5 -> Uitlooptijd | CJ5: =Tijd!CJ$5 -> Uitlooptijd | CK5: =Tijd!CK$5 -> Uitlooptijd | CL5: =Tijd!CL$5 -> Uitlooptijd | CM5: =Tijd!CM$5 -> Uitlooptijd | CN5: =Tijd!CN$5 -> Uitlooptijd | CO5: =Tijd!CO$5 -> Uitlooptijd | CP5: =Tijd!CP$5 -> Uitlooptijd | CQ5: =Tijd!CQ$5 -> Uitlooptijd | CR5: =Tijd!CR$5 -> Uitlooptijd | CS5: =Tijd!CS$5 -> Uitlooptijd | CT5: =Tijd!CT$5 -> Uitlooptijd | CU5: =Tijd!CU$5 -> Uitlooptijd | CV5: =Tijd!CV$5 -> Uitlooptijd | CW5: =Tijd!CW$5 -> Uitlooptijd | CX5: =Tijd!CX$5 -> Uitlooptijd | CY5: =Tijd!CY$5 -> Uitlooptijd | CZ5: =Tijd!CZ$5 -> Uitlooptijd | DA5: =Tijd!DA$5 -> Uitlooptijd | DB5: =Tijd!DB$5 -> Uitlooptijd | DC5: =Tijd!DC$5 -> Uitlooptijd | DD5: =Tijd!DD$5 -> Uitlooptijd | DE5: =Tijd!DE$5 -> Uitlooptijd | DF5: =Tijd!DF$5 -> Uitlooptijd
E6: =Tijd!E$10 -> Model kolom teller | F6: Bron | G6: Constante | H6: Eenheid | I6: Totaal | K6: =Tijd!K$10 -> 1 | L6: =Tijd!L$10 -> 2 | M6: =Tijd!M$10 -> 3 | N6: =Tijd!N$10 -> 4 | O6: =Tijd!O$10 -> 5 | P6: =Tijd!P$10 -> 6 | Q6: =Tijd!Q$10 -> 7 | R6: =Tijd!R$10 -> 8 | S6: =Tijd!S$10 -> 9 | T6: =Tijd!T$10 -> 10 | U6: =Tijd!U$10 -> 11 | V6: =Tijd!V$10 -> 12 | W6: =Tijd!W$10 -> 13 | X6: =Tijd!X$10 -> 14 | Y6: =Tijd!Y$10 -> 15 | Z6: =Tijd!Z$10 -> 16 | AA6: =Tijd!AA$10 -> 17 | AB6: =Tijd!AB$10 -> 18 | AC6: =Tijd!AC$10 -> 19 | AD6: =Tijd!AD$10 -> 20 | AE6: =Tijd!AE$10 -> 21 | AF6: =Tijd!AF$10 -> 22 | AG6: =Tijd!AG$10 -> 23 | AH6: =Tijd!AH$10 -> 24 | AI6: =Tijd!AI$10 -> 25 | AJ6: =Tijd!AJ$10 -> 26 | AK6: =Tijd!AK$10 -> 27 | AL6: =Tijd!AL$10 -> 28 | AM6: =Tijd!AM$10 -> 29 | AN6: =Tijd!AN$10 -> 30 | AO6: =Tijd!AO$10 -> 31 | AP6: =Tijd!AP$10 -> 32 | AQ6: =Tijd!AQ$10 -> 33 | AR6: =Tijd!AR$10 -> 34 | AS6: =Tijd!AS$10 -> 35 | AT6: =Tijd!AT$10 -> 36 | AU6: =Tijd!AU$10 -> 37 | AV6: =Tijd!AV$10 -> 38 | AW6: =Tijd!AW$10 -> 39 | AX6: =Tijd!AX$10 -> 40 | AY6: =Tijd!AY$10 -> 41 | AZ6: =Tijd!AZ$10 -> 42 | BA6: =Tijd!BA$10 -> 43 | BB6: =Tijd!BB$10 -> 44 | BC6: =Tijd!BC$10 -> 45 | BD6: =Tijd!BD$10 -> 46 | BE6: =Tijd!BE$10 -> 47 | BF6: =Tijd!BF$10 -> 48 | BG6: =Tijd!BG$10 -> 49 | BH6: =Tijd!BH$10 -> 50 | BI6: =Tijd!BI$10 -> 51 | BJ6: =Tijd!BJ$10 -> 52 | BK6: =Tijd!BK$10 -> 53 | BL6: =Tijd!BL$10 -> 54 | BM6: =Tijd!BM$10 -> 55 | BN6: =Tijd!BN$10 -> 56 | BO6: =Tijd!BO$10 -> 57 | BP6: =Tijd!BP$10 -> 58 | BQ6: =Tijd!BQ$10 -> 59 | BR6: =Tijd!BR$10 -> 60 | BS6: =Tijd!BS$10 -> 61 | BT6: =Tijd!BT$10 -> 62 | BU6: =Tijd!BU$10 -> 63 | BV6: =Tijd!BV$10 -> 64 | BW6: =Tijd!BW$10 -> 65 | BX6: =Tijd!BX$10 -> 66 | BY6: =Tijd!BY$10 -> 67 | BZ6: =Tijd!BZ$10 -> 68 | CA6: =Tijd!CA$10 -> 69 | CB6: =Tijd!CB$10 -> 70 | CC6: =Tijd!CC$10 -> 71 | CD6: =Tijd!CD$10 -> 72 | CE6: =Tijd!CE$10 -> 73 | CF6: =Tijd!CF$10 -> 74 | CG6: =Tijd!CG$10 -> 75 | CH6: =Tijd!CH$10 -> 76 | CI6: =Tijd!CI$10 -> 77 | CJ6: =Tijd!CJ$10 -> 78 | CK6: =Tijd!CK$10 -> 79 | CL6: =Tijd!CL$10 -> 80 | CM6: =Tijd!CM$10 -> 81 | CN6: =Tijd!CN$10 -> 82 | CO6: =Tijd!CO$10 -> 83 | CP6: =Tijd!CP$10 -> 84 | CQ6: =Tijd!CQ$10 -> 85 | CR6: =Tijd!CR$10 -> 86 | CS6: =Tijd!CS$10 -> 87 | CT6: =Tijd!CT$10 -> 88 | CU6: =Tijd!CU$10 -> 89 | CV6: =Tijd!CV$10 -> 90 | CW6: =Tijd!CW$10 -> 91 | CX6: =Tijd!CX$10 -> 92 | CY6: =Tijd!CY$10 -> 93 | CZ6: =Tijd!CZ$10 -> 94 | DA6: =Tijd!DA$10 -> 95 | DB6: =Tijd!DB$10 -> 96 | DC6: =Tijd!DC$10 -> 97 | DD6: =Tijd!DD$10 -> 98 | DE6: =Tijd!DE$10 -> 99 | DF6: =Tijd!DF$10 -> 100
A9: NETTEN
A11: INVESTERINGSJAAR 2004 - START GAW
E12: Startwaarde GAW incl. afgekochte precario (01-01-2004) | H12: €
E13: Afschrijvingen Start GAW | H13: €
E14: Afgekochte precario in Start GAW (01-01-2004) | H14: €
E15: Afschrijvingsbedrag afgekochte precario | H15: €
A17: INVESTERINGSJAAR 2004
B19: Investeringen 2004
E20: Aanschafwaarde investeringen 2004 met afschrijvingstermijn 55 | H20: € | I20: =SUM(K20:DF20) -> 0
E21: Aanschafwaarde investeringen 2004 met afschrijvingstermijn 45 | H21: € | I21: 0
E22: Aanschafwaarde investeringen 2004 met afschrijvingstermijn 30 | H22: € | I22: 0
E23: Aanschafwaarde investeringen 2004 met afschrijvingstermijn 25 | H23: € | I23: 0
E24: Aanschafwaarde investeringen 2004 met afschrijvingstermijn 10 | H24: € | I24: 0
E25: Aanschafwaarde investeringen 2004 met afschrijvingstermijn 5 | H25: € | I25: 0
E26: Aanschafwaarde investeringen 2004 zonder afschrijvingstermijn | H26: € | I26: 0
B28: Desinvesteringen 2004
E29: Desinvesteringen 2004 met afschrijvingstermijn 55 | H29: € | I29: =SUM(K29:DF29) -> 0
E30: Desinvesteringen 2004 met afschrijvingstermijn 45 | H30: € | I30: 0
E31: Desinvesteringen 2004 met afschrijvingstermijn 30 | H31: € | I31: 0
E32: Desinvesteringen 2004 met afschrijvingstermijn 25 | H32: € | I32: 0
E33: Desinvesteringen 2004 met afschrijvingstermijn 10 | H33: € | I33: 0
E34: Desinvesteringen 2004 met afschrijvingstermijn 5 | H34: € | I34: 0
E35: Desinvesteringen 2004 zonder afschrijvingstermijn | H35: € | I35: 0
B37: Opgegeven Afschrijvingen 2004
E38: Opgegeven afschrijvingen 2004 met afschrijvingstermijn 55 | H38: € | I38: =SUM(K38:DF38) -> 0
E39: Opgegeven afschrijvingen 2004 met afschrijvingstermijn 45 | H39: € | I39: 0
E40: Opgegeven afschrijvingen 2004 met afschrijvingstermijn 30 | H40: € | I40: 0
E41: Opgegeven afschrijvingen 2004 met afschrijvingstermijn 25 | H41: € | I41: 0
E42: Opgegeven afschrijvingen 2004 met afschrijvingstermijn 10 | H42: € | I42: 0
E43: Opgegeven afschrijvingen 2004 met afschrijvingstermijn 5 | H43: € | I43: 0
B45: Opgegeven Cumulatieve Afschrijvingen Bij Desinvesteringen 2004
E46: Opgegeven c.a.d. 2004 met afschrijvingstermijn 55 | H46: € | I46: =SUM(K46:DF46) -> 0
E47: Opgegeven c.a.d. 2004 met afschrijvingstermijn 45 | H47: € | I47: 0
E48: Opgegeven c.a.d. 2004 met afschrijvingstermijn 30 | H48: € | I48: 0
E49: Opgegeven c.a.d. 2004 met afschrijvingstermijn 25 | H49: € | I49: 0
E50: Opgegeven c.a.d. 2004 met afschrijvingstermijn 10 | H50: € | I50: 0
E51: Opgegeven c.a.d. 2004 met afschrijvingstermijn 5 | H51: € | I51: 0
B53: Bijzondere Waardeverminderingen Op Activa 2004
E54: Bijzondere waardeverminderingen op activa 2004 met afschrijvingstermijn 55 | H54: € | I54: =SUM(K54:DF54) -> 0
E55: Bijzondere waardeverminderingen op activa 2004 met afschrijvingstermijn 45 | H55: € | I55: 0
E56: Bijzondere waardeverminderingen op activa 2004 met afschrijvingstermijn 30 | H56: € | I56: 0
E57: Bijzondere waardeverminderingen op activa 2004 met afschrijvingstermijn 25 | H57: € | I57: 0
E58: Bijzondere waardeverminderingen op activa 2004 met afschrijvingstermijn 10 | H58: € | I58: 0
E59: Bijzondere waardeverminderingen op activa 2004 met afschrijvingstermijn 5 | H59: € | I59: 0
B61: Input Alert
E62: Dummy Beginjaar investeringen
E63: Dummy Modelperiode
E64: Dummy Aantal cellen met onterechte input 2004
E65: Dummy Waarschuwing onterecht ingevulde cellen 2004
A67: INVESTERINGSJAAR 2005
B69: Investeringen 2005
E70: Aanschafwaarde investeringen 2005 met afschrijvingstermijn 55 | H70: € | I70: =SUM(K70:DF70) -> 0
E71: Aanschafwaarde investeringen 2005 met afschrijvingstermijn 45 | H71: € | I71: 0
E72: Aanschafwaarde investeringen 2005 met afschrijvingstermijn 30 | H72: € | I72: 0
E73: Aanschafwaarde investeringen 2005 met afschrijvingstermijn 25 | H73: € | I73: 0
E74: Aanschafwaarde investeringen 2005 met afschrijvingstermijn 10 | H74: € | I74: 0
E75: Aanschafwaarde investeringen 2005 met afschrijvingstermijn 5 | H75: € | I75: 0
E76: Aanschafwaarde investeringen 2005 zonder afschrijvingstermijn | H76: € | I76: 0
B78: Desinvesteringen 2005
E79: Desinvesteringen 2005 met afschrijvingstermijn 55 | H79: € | I79: =SUM(K79:DF79) -> 0
E80: Desinvesteringen 2005 met afschrijvingstermijn 45 | H80: € | I80: 0
E81: Desinvesteringen 2005 met afschrijvingstermijn 30 | H81: € | I81: 0
E82: Desinvesteringen 2005 met afschrijvingstermijn 25 | H82: € | I82: 0
E83: Desinvesteringen 2005 met afschrijvingstermijn 10 | H83: € | I83: 0
E84: Desinvesteringen 2005 met afschrijvingstermijn 5 | H84: € | I84: 0
E85: Desinvesteringen 2005 zonder afschrijvingstermijn | H85: € | I85: 0
B87: Opgegeven Afschrijvingen 2005
E88: Opgegeven afschrijvingen 2005 met afschrijvingstermijn 55 | H88: € | I88: =SUM(L88:DF88) -> 0
E89: Opgegeven afschrijvingen 2005 met afschrijvingstermijn 45 | H89: € | I89: 0
E90: Opgegeven afschrijvingen 2005 met afschrijvingstermijn 30 | H90: € | I90: 0
E91: Opgegeven afschrijvingen 2005 met afschrijvingstermijn 25 | H91: € | I91: 0
E92: Opgegeven afschrijvingen 2005 met afschrijvingstermijn 10 | H92: € | I92: 0
E93: Opgegeven afschrijvingen 2005 met afschrijvingstermijn 5 | H93: € | I93: 0
B95: Opgegeven Cumulatieve Afschrijvingen Bij Desinvesteringen 2005
E96: Opgegeven c.a.d. 2005 met afschrijvingstermijn 55 | H96: € | I96: =SUM(K96:DF96) -> 0
E97: Opgegeven c.a.d. 2005 met afschrijvingstermijn 45 | H97: € | I97: 0
E98: Opgegeven c.a.d. 2005 met afschrijvingstermijn 30 | H98: € | I98: 0
E99: Opgegeven c.a.d. 2005 met afschrijvingstermijn 25 | H99: € | I99: 0
E100: Opgegeven c.a.d. 2005 met afschrijvingstermijn 10 | H100: € | I100: 0
E101: Opgegeven c.a.d. 2005 met afschrijvingstermijn 5 | H101: € | I101: 0
B103: Bijzondere Waardeverminderingen Op Activa 2005
E104: Bijzondere waardeverminderingen op activa 2005 met afschrijvingstermijn 55 | H104: € | I104: =SUM(K104:DF104) -> 0
E105: Bijzondere waardeverminderingen op activa 2005 met afschrijvingstermijn 45 | H105: € | I105: 0
E106: Bijzondere waardeverminderingen op activa 2005 met afschrijvingstermijn 30 | H106: € | I106: 0
E107: Bijzondere waardeverminderingen op activa 2005 met afschrijvingstermijn 25 | H107: € | I107: 0
E108: Bijzondere waardeverminderingen op activa 2005 met afschrijvingstermijn 10 | H108: € | I108: 0
E109: Bijzondere waardeverminderingen op activa 2005 met afschrijvingstermijn 5 | H109: € | I109: 0
B111: Input Alert
E112: Dummy Beginjaar investeringen
E113: Dummy Modelperiode
E114: Dummy Aantal cellen met onterechte input 2005
E115: Dummy Waarschuwing onterecht ingevulde cellen 2005
A117: INVESTERINGSJAAR 2006 - START GAW voor EHD
E118: Startwaarde GAW voor EHD (01-01-2006) | G118: 11418927.68 | H118: €
E119: Afschrijvingen Start GAW voor EHD | G119: 241414.9615 | H119: €
A121: INVESTERINGSJAAR 2006
B123: Investeringen 2006
E124: Aanschafwaarde investeringen 2006 met afschrijvingstermijn 55 | G124: 0 | H124: € | I124: =SUM(K124:DF124) -> 0
E125: Aanschafwaarde investeringen 2006 met afschrijvingstermijn 45 | G125: 0 | H125: € | I125: 0
E126: Aanschafwaarde investeringen 2006 met afschrijvingstermijn 30 | G126: 0 | H126: € | I126: 0
E127: Aanschafwaarde investeringen 2006 met afschrijvingstermijn 25 | G127: 0 | H127: € | I127: 0
E128: Aanschafwaarde investeringen 2006 met afschrijvingstermijn 10 | G128: 0 | H128: € | I128: 0
E129: Aanschafwaarde investeringen 2006 met afschrijvingstermijn 5 | G129: 0 | H129: € | I129: 0
E130: Aanschafwaarde investeringen 2006 zonder afschrijvingstermijn | G130: 0 | H130: € | I130: 0
B132: Desinvesteringen 2006
E133: Desinvesteringen 2006 met afschrijvingstermijn 55 | H133: € | I133: =SUM(K133:DF133) -> 0
E134: Desinvesteringen 2006 met afschrijvingstermijn 45 | H134: € | I134: 0
E135: Desinvesteringen 2006 met afschrijvingstermijn 30 | H135: € | I135: 0
E136: Desinvesteringen 2006 met afschrijvingstermijn 25 | H136: € | I136: 0
E137: Desinvesteringen 2006 met afschrijvingstermijn 10 | H137: € | I137: 0
E138: Desinvesteringen 2006 met afschrijvingstermijn 5 | H138: € | I138: 0
E139: Desinvesteringen 2006 zonder afschrijvingstermijn | H139: € | I139: 0
B141: Opgegeven Afschrijvingen 2006
E142: Opgegeven afschrijvingen 2006 met afschrijvingstermijn 55 | H142: € | I142: =SUM(K142:DF142) -> 0
E143: Opgegeven afschrijvingen 2006 met afschrijvingstermijn 45 | H143: € | I143: 0
E144: Opgegeven afschrijvingen 2006 met afschrijvingstermijn 30 | H144: € | I144: 0
E145: Opgegeven afschrijvingen 2006 met afschrijvingstermijn 25 | H145: € | I145: 0
E146: Opgegeven afschrijvingen 2006 met afschrijvingstermijn 10 | H146: € | I146: 0
E147: Opgegeven afschrijvingen 2006 met afschrijvingstermijn 5 | H147: € | I147: 0
B149: Opgegeven Cumulatieve Afschrijvingen Bij Desinvesteringen 2006
E150: Opgegeven c.a.d. 2006 met afschrijvingstermijn 55 | H150: € | I150: =SUM(K150:DF150) -> 0
E151: Opgegeven c.a.d. 2006 met afschrijvingstermijn 45 | H151: € | I151: 0
E152: Opgegeven c.a.d. 2006 met afschrijvingstermijn 30 | H152: € | I152: 0
E153: Opgegeven c.a.d. 2006 met afschrijvingstermijn 25 | H153: € | I153: 0
E154: Opgegeven c.a.d. 2006 met afschrijvingstermijn 10 | H154: € | I154: 0
E155: Opgegeven c.a.d. 2006 met afschrijvingstermijn 5 | H155: € | I155: 0
B157: Bijzondere Waardeverminderingen Op Activa 2006
E158: Bijzondere waardeverminderingen op activa 2006 met afschrijvingstermijn 55 | H158: € | I158: =SUM(K158:DF158) -> 0
E159: Bijzondere waardeverminderingen op activa 2006 met afschrijvingstermijn 45 | H159: € | I159: 0
E160: Bijzondere waardeverminderingen op activa 2006 met afschrijvingstermijn 30 | H160: € | I160: 0
E161: Bijzondere waardeverminderingen op activa 2006 met afschrijvingstermijn 25 | H161: € | I161: 0
E162: Bijzondere waardeverminderingen op activa 2006 met afschrijvingstermijn 10 | H162: € | I162: 0
E163: Bijzondere waardeverminderingen op activa 2006 met afschrijvingstermijn 5 | H163: € | I163: 0
B165: Input Alert
E166: Dummy Beginjaar investeringen
E167: Dummy Modelperiode
E168: Dummy Aantal cellen met onterechte input 2006
E169: Dummy Waarschuwing onterecht ingevulde cellen 2006
A171: INVESTERINGSJAAR 2007
B173: Investeringen 2007
E174: Aanschafwaarde investeringen 2007 met afschrijvingstermijn 55 | G174: 0 | H174: € | I174: =SUM(K174:DF174) -> 0
E175: Aanschafwaarde investeringen 2007 met afschrijvingstermijn 45 | G175: 0 | H175: € | I175: 0
E176: Aanschafwaarde investeringen 2007 met afschrijvingstermijn 30 | G176: 0 | H176: € | I176: 0
E177: Aanschafwaarde investeringen 2007 met afschrijvingstermijn 25 | G177: 0 | H177: € | I177: 0
E178: Aanschafwaarde investeringen 2007 met afschrijvingstermijn 10 | G178: 0 | H178: € | I178: 0
E179: Aanschafwaarde investeringen 2007 met afschrijvingstermijn 5 | G179: 0 | H179: € | I179: 0
E180: Aanschafwaarde investeringen 2007 zonder afschrijvingstermijn | G180: 0 | H180: € | I180: 0
B182: Desinvesteringen 2007
E183: Desinvesteringen 2007 met afschrijvingstermijn 55 | H183: € | I183: =SUM(K183:DF183) -> 0
E184: Desinvesteringen 2007 met afschrijvingstermijn 45 | H184: € | I184: 0
E185: Desinvesteringen 2007 met afschrijvingstermijn 30 | H185: € | I185: 0
E186: Desinvesteringen 2007 met afschrijvingstermijn 25 | H186: € | I186: 0
E187: Desinvesteringen 2007 met afschrijvingstermijn 10 | H187: € | I187: 0
E188: Desinvesteringen 2007 met afschrijvingstermijn 5 | H188: € | I188: 0
E189: Desinvesteringen 2007 zonder afschrijvingstermijn | H189: € | I189: 0
B191: Opgegeven Afschrijvingen 2007
E192: Opgegeven afschrijvingen 2007 met afschrijvingstermijn 55 | H192: € | I192: =SUM(K192:DF192) -> 0
E193: Opgegeven afschrijvingen 2007 met afschrijvingstermijn 45 | H193: € | I193: 0
E194: Opgegeven afschrijvingen 2007 met afschrijvingstermijn 30 | H194: € | I194: 0
E195: Opgegeven afschrijvingen 2007 met afschrijvingstermijn 25 | H195: € | I195: 0
E196: Opgegeven afschrijvingen 2007 met afschrijvingstermijn 10 | H196: € | I196: 0
E197: Opgegeven afschrijvingen 2007 met afschrijvingstermijn 5 | H197: € | I197: 0
B199: Opgegeven Cumulatieve Afschrijvingen Bij Desinvesteringen 2007
E200: Opgegeven c.a.d. 2007 met afschrijvingstermijn 55 | H200: € | I200: =SUM(K200:DF200) -> 0
E201: Opgegeven c.a.d. 2007 met afschrijvingstermijn 45 | H201: € | I201: 0
E202: Opgegeven c.a.d. 2007 met afschrijvingstermijn 30 | H202: € | I202: 0
E203: Opgegeven c.a.d. 2007 met afschrijvingstermijn 25 | H203: € | I203: 0
E204: Opgegeven c.a.d. 2007 met afschrijvingstermijn 10 | H204: € | I204: 0
E205: Opgegeven c.a.d. 2007 met afschrijvingstermijn 5 | H205: € | I205: 0
B207: Bijzondere Waardeverminderingen Op Activa 2007
E208: Bijzondere waardeverminderingen op activa 2007 met afschrijvingstermijn 55 | H208: € | I208: =SUM(K208:DF208) -> 0
E209: Bijzondere waardeverminderingen op activa 2007 met afschrijvingstermijn 45 | H209: € | I209: 0
E210: Bijzondere waardeverminderingen op activa 2007 met afschrijvingstermijn 30 | H210: € | I210: 0
E211: Bijzondere waardeverminderingen op activa 2007 met afschrijvingstermijn 25 | H211: € | I211: 0
E212: Bijzondere waardeverminderingen op activa 2007 met afschrijvingstermijn 10 | H212: € | I212: 0
E213: Bijzondere waardeverminderingen op activa 2007 met afschrijvingstermijn 5 | H213: € | I213: 0
B215: Input Alert
E216: Dummy Beginjaar investeringen
E217: Dummy Modelperiode
E218: Dummy Aantal cellen met onterechte input 2007
E219: Dummy Waarschuwing onterecht ingevulde cellen 2007
A221: INVESTERINGSJAAR 2008
B223: Investeringen 2008
E224: Aanschafwaarde investeringen 2008 met afschrijvingstermijn 55 | G224: 0 | H224: € | I224: =SUM(K224:DF224) -> 0
E225: Aanschafwaarde investeringen 2008 met afschrijvingstermijn 45 | G225: 0 | H225: € | I225: 0
E226: Aanschafwaarde investeringen 2008 met afschrijvingstermijn 30 | G226: 0 | H226: € | I226: 0
E227: Aanschafwaarde investeringen 2008 met afschrijvingstermijn 25 | G227: 0 | H227: € | I227: 0
E228: Aanschafwaarde investeringen 2008 met afschrijvingstermijn 10 | G228: 0 | H228: € | I228: 0
E229: Aanschafwaarde investeringen 2008 met afschrijvingstermijn 5 | G229: 0 | H229: € | I229: 0
E230: Aanschafwaarde investeringen 2008 zonder afschrijvingstermijn | G230: 0 | H230: € | I230: 0
B232: Desinvesteringen 2008
E233: Desinvesteringen 2008 met afschrijvingstermijn 55 | H233: € | I233: =SUM(K233:DF233) -> 0
E234: Desinvesteringen 2008 met afschrijvingstermijn 45 | H234: € | I234: 0
E235: Desinvesteringen 2008 met afschrijvingstermijn 30 | H235: € | I235: 0
... 468 more rows

Sheet InpEndinet
A1: =RIGHT(CELL("filename", A1), LEN(CELL("filename", A1)) - SEARCH("]", CELL("filename", A1))) -> InpEndinet
E2: =Tijd!E$2 -> Actieve netbeheerder | G2: =Tijd!G$2 -> Stedin
E3: =Tijd!E$3 -> Actieve inputsheet | G3: =Tijd!G$3 -> InpStedin
E4: =Tijd!E$4 -> Modelperiode | G4: =Check!G4 -> 0 | H4: =Check!H4 -> errors | K4: =Tijd!K$4 -> 2004 | L4: =Tijd!L$4 -> 2005 | M4: =Tijd!M$4 -> 2006 | N4: =Tijd!N$4 -> 2007 | O4: =Tijd!O$4 -> 2008 | P4: =Tijd!P$4 -> 2009 | Q4: =Tijd!Q$4 -> 2010 | R4: =Tijd!R$4 -> 2011 | S4: =Tijd!S$4 -> 2012 | T4: =Tijd!T$4 -> 2013 | U4: =Tijd!U$4 -> 2014 | V4: =Tijd!V$4 -> 2015 | W4: =Tijd!W$4 -> 2016 | X4: =Tijd!X$4 -> 2017 | Y4: =Tijd!Y$4 -> 2018 | Z4: =Tijd!Z$4 -> 2019 | AA4: =Tijd!AA$4 -> 2020 | AB4: =Tijd!AB$4 -> 2021 | AC4: =Tijd!AC$4 -> 2022 | AD4: =Tijd!AD$4 -> 2023 | AE4: =Tijd!AE$4 -> 2024 | AF4: =Tijd!AF$4 -> 2025 | AG4: =Tijd!AG$4 -> 2026 | AH4: =Tijd!AH$4 -> 2027 | AI4: =Tijd!AI$4 -> 2028 | AJ4: =Tijd!AJ$4 -> 2029 | AK4: =Tijd!AK$4 -> 2030 | AL4: =Tijd!AL$4 -> 2031 | AM4: =Tijd!AM$4 -> 2032 | AN4: =Tijd!AN$4 -> 2033 | AO4: =Tijd!AO$4 -> 2034 | AP4: =Tijd!AP$4 -> 2035 | AQ4: =Tijd!AQ$4 -> 2036 | AR4: =Tijd!AR$4 -> 2037 | AS4: =Tijd!AS$4 -> 2038 | AT4: =Tijd!AT$4 -> 2039 | AU4: =Tijd!AU$4 -> 2040 | AV4: =Tijd!AV$4 -> 2041 | AW4: =Tijd!AW$4 -> 2042 | AX4: =Tijd!AX$4 -> 2043 | AY4: =Tijd!AY$4 -> 2044 | AZ4: =Tijd!AZ$4 -> 2045 | BA4: =Tijd!BA$4 -> 2046 | BB4: =Tijd!BB$4 -> 2047 | BC4: =Tijd!BC$4 -> 2048 | BD4: =Tijd!BD$4 -> 2049 | BE4: =Tijd!BE$4 -> 2050 | BF4: =Tijd!BF$4 -> 2051 | BG4: =Tijd!BG$4 -> 2052 | BH4: =Tijd!BH$4 -> 2053 | BI4: =Tijd!BI$4 -> 2054 | BJ4: =Tijd!BJ$4 -> 2055 | BK4: =Tijd!BK$4 -> 2056 | BL4: =Tijd!BL$4 -> 2057 | BM4: =Tijd!BM$4 -> 2058 | BN4: =Tijd!BN$4 -> 2059 | BO4: =Tijd!BO$4 -> 2060 | BP4: =Tijd!BP$4 -> 2061 | BQ4: =Tijd!BQ$4 -> 2062 | BR4: =Tijd!BR$4 -> 2063 | BS4: =Tijd!BS$4 -> 2064 | BT4: =Tijd!BT$4 -> 2065 | BU4: =Tijd!BU$4 -> 2066 | BV4: =Tijd!BV$4 -> 2067 | BW4: =Tijd!BW$4 -> 2068 | BX4: =Tijd!BX$4 -> 2069 | BY4: =Tijd!BY$4 -> 2070 | BZ4: =Tijd!BZ$4 -> 2071 | CA4: =Tijd!CA$4 -> 2072 | CB4: =Tijd!CB$4 -> 2073 | CC4: =Tijd!CC$4 -> 2074 | CD4: =Tijd!CD$4 -> 2075 | CE4: =Tijd!CE$4 -> 2076 | CF4: =Tijd!CF$4 -> 2077 | CG4: =Tijd!CG$4 -> 2078 | CH4: =Tijd!CH$4 -> 2079 | CI4: =Tijd!CI$4 -> 2080 | CJ4: =Tijd!CJ$4 -> 2081 | CK4: =Tijd!CK$4 -> 2082 | CL4: =Tijd!CL$4 -> 2083 | CM4: =Tijd!CM$4 -> 2084 | CN4: =Tijd!CN$4 -> 2085 | CO4: =Tijd!CO$4 -> 2086 | CP4: =Tijd!CP$4 -> 2087 | CQ4: =Tijd!CQ$4 -> 2088 | CR4: =Tijd!CR$4 -> 2089 | CS4: =Tijd!CS$4 -> 2090 | CT4: =Tijd!CT$4 -> 2091 | CU4: =Tijd!CU$4 -> 2092 | CV4: =Tijd!CV$4 -> 2093 | CW4: =Tijd!CW$4 -> 2094 | CX4: =Tijd!CX$4 -> 2095 | CY4: =Tijd!CY$4 -> 2096 | CZ4: =Tijd!CZ$4 -> 2097 | DA4: =Tijd!DA$4 -> 2098 | DB4: =Tijd!DB$4 -> 2099 | DC4: =Tijd!DC$4 -> 2100 | DD4: =Tijd!DD$4 -> 2101 | DE4: =Tijd!DE$4 -> 2102 | DF4: =Tijd!DF$4 -> 2103
E5: =Tijd!E$5 -> Looptijd vs Uitlooptijd | G5: =Check!G5 -> 0 | H5: =Check!H5 -> waarschuwingen | K5: =Tijd!K$5 -> Looptijd | L5: =Tijd!L$5 -> Looptijd | M5: =Tijd!M$5 -> Looptijd | N5: =Tijd!N$5 -> Looptijd | O5: =Tijd!O$5 -> Looptijd | P5: =Tijd!P$5 -> Looptijd | Q5: =Tijd!Q$5 -> Looptijd | R5: =Tijd!R$5 -> Looptijd | S5: =Tijd!S$5 -> Looptijd | T5: =Tijd!T$5 -> Looptijd | U5: =Tijd!U$5 -> Looptijd | V5: =Tijd!V$5 -> Looptijd | W5: =Tijd!W$5 -> Looptijd | X5: =Tijd!X$5 -> Looptijd | Y5: =Tijd!Y$5 -> Looptijd | Z5: =Tijd!Z$5 -> Looptijd | AA5: =Tijd!AA$5 -> Looptijd | AB5: =Tijd!AB$5 -> Looptijd | AC5: =Tijd!AC$5 -> Looptijd | AD5: =Tijd!AD$5 -> Looptijd | AE5: =Tijd!AE$5 -> Looptijd | AF5: =Tijd!AF$5 -> Looptijd | AG5: =Tijd!AG$5 -> Looptijd | AH5: =Tijd!AH$5 -> Looptijd | AI5: =Tijd!AI$5 -> Looptijd | AJ5: =Tijd!AJ$5 -> Looptijd | AK5: =Tijd!AK$5 -> Looptijd | AL5: =Tijd!AL$5 -> Looptijd | AM5: =Tijd!AM$5 -> Looptijd | AN5: =Tijd!AN$5 -> Looptijd | AO5: =Tijd!AO$5 -> Looptijd | AP5: =Tijd!AP$5 -> Looptijd | AQ5: =Tijd!AQ$5 -> Looptijd | AR5: =Tijd!AR$5 -> Looptijd | AS5: =Tijd!AS$5 -> Looptijd | AT5: =Tijd!AT$5 -> Looptijd | AU5: =Tijd!AU$5 -> Looptijd | AV5: =Tijd!AV$5 -> Looptijd | AW5: =Tijd!AW$5 -> Looptijd | AX5: =Tijd!AX$5 -> Looptijd | AY5: =Tijd!AY$5 -> Looptijd | AZ5: =Tijd!AZ$5 -> Looptijd | BA5: =Tijd!BA$5 -> Looptijd | BB5: =Tijd!BB$5 -> Looptijd | BC5: =Tijd!BC$5 -> Looptijd | BD5: =Tijd!BD$5 -> Looptijd | BE5: =Tijd!BE$5 -> Looptijd | BF5: =Tijd!BF$5 -> Looptijd | BG5: =Tijd!BG$5 -> Looptijd | BH5: =Tijd!BH$5 -> Looptijd | BI5: =Tijd!BI$5 -> Looptijd | BJ5: =Tijd!BJ$5 -> Uitlooptijd | BK5: =Tijd!BK$5 -> Uitlooptijd | BL5: =Tijd!BL$5 -> Uitlooptijd | BM5: =Tijd!BM$5 -> Uitlooptijd | BN5: =Tijd!BN$5 -> Uitlooptijd | BO5: =Tijd!BO$5 -> Uitlooptijd | BP5: =Tijd!BP$5 -> Uitlooptijd | BQ5: =Tijd!BQ$5 -> Uitlooptijd | BR5: =Tijd!BR$5 -> Uitlooptijd | BS5: =Tijd!BS$5 -> Uitlooptijd | BT5: =Tijd!BT$5 -> Uitlooptijd | BU5: =Tijd!BU$5 -> Uitlooptijd | BV5: =Tijd!BV$5 -> Uitlooptijd | BW5: =Tijd!BW$5 -> Uitlooptijd | BX5: =Tijd!BX$5 -> Uitlooptijd | BY5: =Tijd!BY$5 -> Uitlooptijd | BZ5: =Tijd!BZ$5 -> Uitlooptijd | CA5: =Tijd!CA$5 -> Uitlooptijd | CB5: =Tijd!CB$5 -> Uitlooptijd | CC5: =Tijd!CC$5 -> Uitlooptijd | CD5: =Tijd!CD$5 -> Uitlooptijd | CE5: =Tijd!CE$5 -> Uitlooptijd | CF5: =Tijd!CF$5 -> Uitlooptijd | CG5: =Tijd!CG$5 -> Uitlooptijd | CH5: =Tijd!CH$5 -> Uitlooptijd | CI5: =Tijd!CI$5 -> Uitlooptijd | CJ5: =Tijd!CJ$5 -> Uitlooptijd | CK5: =Tijd!CK$5 -> Uitlooptijd | CL5: =Tijd!CL$5 -> Uitlooptijd | CM5: =Tijd!CM$5 -> Uitlooptijd | CN5: =Tijd!CN$5 -> Uitlooptijd | CO5: =Tijd!CO$5 -> Uitlooptijd | CP5: =Tijd!CP$5 -> Uitlooptijd | CQ5: =Tijd!CQ$5 -> Uitlooptijd | CR5: =Tijd!CR$5 -> Uitlooptijd | CS5: =Tijd!CS$5 -> Uitlooptijd | CT5: =Tijd!CT$5 -> Uitlooptijd | CU5: =Tijd!CU$5 -> Uitlooptijd | CV5: =Tijd!CV$5 -> Uitlooptijd | CW5: =Tijd!CW$5 -> Uitlooptijd | CX5: =Tijd!CX$5 -> Uitlooptijd | CY5: =Tijd!CY$5 -> Uitlooptijd | CZ5: =Tijd!CZ$5 -> Uitlooptijd | DA5: =Tijd!DA$5 -> Uitlooptijd | DB5: =Tijd!DB$5 -> Uitlooptijd | DC5: =Tijd!DC$5 -> Uitlooptijd | DD5: =Tijd!DD$5 -> Uitlooptijd | DE5: =Tijd!DE$5 -> Uitlooptijd | DF5: =Tijd!DF$5 -> Uitlooptijd
E6: =Tijd!E$10 -> Model kolom teller | F6: Bron | G6: Constante | H6: Eenheid | I6: Totaal | K6: =Tijd!K$10 -> 1 | L6: =Tijd!L$10 -> 2 | M6: =Tijd!M$10 -> 3 | N6: =Tijd!N$10 -> 4 | O6: =Tijd!O$10 -> 5 | P6: =Tijd!P$10 -> 6 | Q6: =Tijd!Q$10 -> 7 | R6: =Tijd!R$10 -> 8 | S6: =Tijd!S$10 -> 9 | T6: =Tijd!T$10 -> 10 | U6: =Tijd!U$10 -> 11 | V6: =Tijd!V$10 -> 12 | W6: =Tijd!W$10 -> 13 | X6: =Tijd!X$10 -> 14 | Y6: =Tijd!Y$10 -> 15 | Z6: =Tijd!Z$10 -> 16 | AA6: =Tijd!AA$10 -> 17 | AB6: =Tijd!AB$10 -> 18 | AC6: =Tijd!AC$10 -> 19 | AD6: =Tijd!AD$10 -> 20 | AE6: =Tijd!AE$10 -> 21 | AF6: =Tijd!AF$10 -> 22 | AG6: =Tijd!AG$10 -> 23 | AH6: =Tijd!AH$10 -> 24 | AI6: =Tijd!AI$10 -> 25 | AJ6: =Tijd!AJ$10 -> 26 | AK6: =Tijd!AK$10 -> 27 | AL6: =Tijd!AL$10 -> 28 | AM6: =Tijd!AM$10 -> 29 | AN6: =Tijd!AN$10 -> 30 | AO6: =Tijd!AO$10 -> 31 | AP6: =Tijd!AP$10 -> 32 | AQ6: =Tijd!AQ$10 -> 33 | AR6: =Tijd!AR$10 -> 34 | AS6: =Tijd!AS$10 -> 35 | AT6: =Tijd!AT$10 -> 36 | AU6: =Tijd!AU$10 -> 37 | AV6: =Tijd!AV$10 -> 38 | AW6: =Tijd!AW$10 -> 39 | AX6: =Tijd!AX$10 -> 40 | AY6: =Tijd!AY$10 -> 41 | AZ6: =Tijd!AZ$10 -> 42 | BA6: =Tijd!BA$10 -> 43 | BB6: =Tijd!BB$10 -> 44 | BC6: =Tijd!BC$10 -> 45 | BD6: =Tijd!BD$10 -> 46 | BE6: =Tijd!BE$10 -> 47 | BF6: =Tijd!BF$10 -> 48 | BG6: =Tijd!BG$10 -> 49 | BH6: =Tijd!BH$10 -> 50 | BI6: =Tijd!BI$10 -> 51 | BJ6: =Tijd!BJ$10 -> 52 | BK6: =Tijd!BK$10 -> 53 | BL6: =Tijd!BL$10 -> 54 | BM6: =Tijd!BM$10 -> 55 | BN6: =Tijd!BN$10 -> 56 | BO6: =Tijd!BO$10 -> 57 | BP6: =Tijd!BP$10 -> 58 | BQ6: =Tijd!BQ$10 -> 59 | BR6: =Tijd!BR$10 -> 60 | BS6: =Tijd!BS$10 -> 61 | BT6: =Tijd!BT$10 -> 62 | BU6: =Tijd!BU$10 -> 63 | BV6: =Tijd!BV$10 -> 64 | BW6: =Tijd!BW$10 -> 65 | BX6: =Tijd!BX$10 -> 66 | BY6: =Tijd!BY$10 -> 67 | BZ6: =Tijd!BZ$10 -> 68 | CA6: =Tijd!CA$10 -> 69 | CB6: =Tijd!CB$10 -> 70 | CC6: =Tijd!CC$10 -> 71 | CD6: =Tijd!CD$10 -> 72 | CE6: =Tijd!CE$10 -> 73 | CF6: =Tijd!CF$10 -> 74 | CG6: =Tijd!CG$10 -> 75 | CH6: =Tijd!CH$10 -> 76 | CI6: =Tijd!CI$10 -> 77 | CJ6: =Tijd!CJ$10 -> 78 | CK6: =Tijd!CK$10 -> 79 | CL6: =Tijd!CL$10 -> 80 | CM6: =Tijd!CM$10 -> 81 | CN6: =Tijd!CN$10 -> 82 | CO6: =Tijd!CO$10 -> 83 | CP6: =Tijd!CP$10 -> 84 | CQ6: =Tijd!CQ$10 -> 85 | CR6: =Tijd!CR$10 -> 86 | CS6: =Tijd!CS$10 -> 87 | CT6: =Tijd!CT$10 -> 88 | CU6: =Tijd!CU$10 -> 89 | CV6: =Tijd!CV$10 -> 90 | CW6: =Tijd!CW$10 -> 91 | CX6: =Tijd!CX$10 -> 92 | CY6: =Tijd!CY$10 -> 93 | CZ6: =Tijd!CZ$10 -> 94 | DA6: =Tijd!DA$10 -> 95 | DB6: =Tijd!DB$10 -> 96 | DC6: =Tijd!DC$10 -> 97 | DD6: =Tijd!DD$10 -> 98 | DE6: =Tijd!DE$10 -> 99 | DF6: =Tijd!DF$10 -> 100
A9: NETTEN
A11: INVESTERINGSJAAR 2004 - START GAW
E12: Startwaarde GAW incl. afgekochte precario (01-01-2004) | G12: 191483453 | H12: €
E13: Afschrijvingen Start GAW | G13: 5665190.917 | H13: €
E14: Afgekochte precario in Start GAW (01-01-2004) | H14: €
E15: Afschrijvingsbedrag afgekochte precario | H15: €
A17: INVESTERINGSJAAR 2004
B19: Investeringen 2004
E20: Aanschafwaarde investeringen 2004 met afschrijvingstermijn 55 | G20: 558920.6 | H20: € | I20: =SUM(K20:DF20) -> 0
E21: Aanschafwaarde investeringen 2004 met afschrijvingstermijn 45 | G21: 636599.75 | H21: € | I21: 0
E22: Aanschafwaarde investeringen 2004 met afschrijvingstermijn 30 | G22: 127872.17 | H22: € | I22: 0
E23: Aanschafwaarde investeringen 2004 met afschrijvingstermijn 25 | G23: 4443.73 | H23: € | I23: 0
E24: Aanschafwaarde investeringen 2004 met afschrijvingstermijn 10 | H24: € | I24: 0
E25: Aanschafwaarde investeringen 2004 met afschrijvingstermijn 5 | H25: € | I25: 0
E26: Aanschafwaarde investeringen 2004 zonder afschrijvingstermijn | H26: € | I26: 0
B28: Desinvesteringen 2004
E29: Desinvesteringen 2004 met afschrijvingstermijn 55 | H29: € | I29: =SUM(K29:DF29) -> 0
E30: Desinvesteringen 2004 met afschrijvingstermijn 45 | H30: € | I30: 2490.778995 | R30: 2490.778995
E31: Desinvesteringen 2004 met afschrijvingstermijn 30 | H31: € | I31: 0
E32: Desinvesteringen 2004 met afschrijvingstermijn 25 | H32: € | I32: 0
E33: Desinvesteringen 2004 met afschrijvingstermijn 10 | H33: € | I33: 0
E34: Desinvesteringen 2004 met afschrijvingstermijn 5 | H34: € | I34: 0
E35: Desinvesteringen 2004 zonder afschrijvingstermijn | H35: € | I35: 0
B37: Opgegeven Afschrijvingen 2004
E38: Opgegeven afschrijvingen 2004 met afschrijvingstermijn 55 | H38: € | I38: =SUM(K38:DF38) -> 25405.48182 | K38: 5081.096364 | L38: 10162.19273 | M38: 10162.19273
E39: Opgegeven afschrijvingen 2004 met afschrijvingstermijn 45 | H39: € | I39: 35366.65278 | K39: 7073.330556 | L39: 14146.66111 | M39: 14146.66111
E40: Opgegeven afschrijvingen 2004 met afschrijvingstermijn 30 | H40: € | I40: 10361.8475 | K40: 2131.202833 | L40: 4262.405667 | M40: 3968.239
E41: Opgegeven afschrijvingen 2004 met afschrijvingstermijn 25 | H41: € | I41: 560.7904667 | K41: 88.8746 | L41: 177.7492 | M41: 294.1666667
E42: Opgegeven afschrijvingen 2004 met afschrijvingstermijn 10 | H42: € | I42: 0
E43: Opgegeven afschrijvingen 2004 met afschrijvingstermijn 5 | H43: € | I43: 177.7492 | M43: 177.7492
B45: Opgegeven Cumulatieve Afschrijvingen Bij Desinvesteringen 2004
E46: Opgegeven c.a.d. 2004 met afschrijvingstermijn 55 | H46: € | I46: =SUM(K46:DF46) -> 0
E47: Opgegeven c.a.d. 2004 met afschrijvingstermijn 45 | H47: € | I47: 0
E48: Opgegeven c.a.d. 2004 met afschrijvingstermijn 30 | H48: € | I48: 0
E49: Opgegeven c.a.d. 2004 met afschrijvingstermijn 25 | H49: € | I49: 0
E50: Opgegeven c.a.d. 2004 met afschrijvingstermijn 10 | H50: € | I50: 0
E51: Opgegeven c.a.d. 2004 met afschrijvingstermijn 5 | H51: € | I51: 0
B53: Bijzondere Waardeverminderingen Op Activa 2004
E54: Bijzondere waardeverminderingen op activa 2004 met afschrijvingstermijn 55 | H54: € | I54: =SUM(K54:DF54) -> 0
E55: Bijzondere waardeverminderingen op activa 2004 met afschrijvingstermijn 45 | H55: € | I55: 0
E56: Bijzondere waardeverminderingen op activa 2004 met afschrijvingstermijn 30 | H56: € | I56: 0
E57: Bijzondere waardeverminderingen op activa 2004 met afschrijvingstermijn 25 | H57: € | I57: 0
E58: Bijzondere waardeverminderingen op activa 2004 met afschrijvingstermijn 10 | H58: € | I58: 0
E59: Bijzondere waardeverminderingen op activa 2004 met afschrijvingstermijn 5 | H59: € | I59: 0
B61: Input Alert
E62: Dummy Beginjaar investeringen
E63: Dummy Modelperiode
E64: Dummy Aantal cellen met onterechte input 2004
E65: Dummy Waarschuwing onterecht ingevulde cellen 2004
A67: INVESTERINGSJAAR 2005
B69: Investeringen 2005
E70: Aanschafwaarde investeringen 2005 met afschrijvingstermijn 55 | G70: 784813.71 | H70: € | I70: =SUM(K70:DF70) -> 0
E71: Aanschafwaarde investeringen 2005 met afschrijvingstermijn 45 | G71: 733452.4 | H71: € | I71: 0
E72: Aanschafwaarde investeringen 2005 met afschrijvingstermijn 30 | G72: 105252.09 | H72: € | I72: 0
E73: Aanschafwaarde investeringen 2005 met afschrijvingstermijn 25 | G73: 57913.245 | H73: € | I73: 0
E74: Aanschafwaarde investeringen 2005 met afschrijvingstermijn 10 | G74: 36526.425 | H74: € | I74: 0
E75: Aanschafwaarde investeringen 2005 met afschrijvingstermijn 5 | G75: 23034 | H75: € | I75: 0
E76: Aanschafwaarde investeringen 2005 zonder afschrijvingstermijn | H76: € | I76: 0
B78: Desinvesteringen 2005
E79: Desinvesteringen 2005 met afschrijvingstermijn 55 | H79: € | I79: =SUM(K79:DF79) -> 0
E80: Desinvesteringen 2005 met afschrijvingstermijn 45 | H80: € | I80: 612.0198829 | R80: 612.0198829
E81: Desinvesteringen 2005 met afschrijvingstermijn 30 | H81: € | I81: 0
E82: Desinvesteringen 2005 met afschrijvingstermijn 25 | H82: € | I82: 0
E83: Desinvesteringen 2005 met afschrijvingstermijn 10 | H83: € | I83: 0
E84: Desinvesteringen 2005 met afschrijvingstermijn 5 | H84: € | I84: 0
E85: Desinvesteringen 2005 zonder afschrijvingstermijn | H85: € | I85: 0
B87: Opgegeven Afschrijvingen 2005
E88: Opgegeven afschrijvingen 2005 met afschrijvingstermijn 55 | H88: € | I88: =SUM(L88:DF88) -> 21404.01027 | L88: 7134.670091 | M88: 14269.34018
E89: Opgegeven afschrijvingen 2005 met afschrijvingstermijn 45 | H89: € | I89: 24448.41333 | L89: 8149.471111 | M89: 16298.94222
E90: Opgegeven afschrijvingen 2005 met afschrijvingstermijn 30 | H90: € | I90: 5262.6045 | L90: 1754.2015 | M90: 3508.403
E91: Opgegeven afschrijvingen 2005 met afschrijvingstermijn 25 | H91: € | I91: 3474.7947 | L91: 1158.2649 | M91: 2316.5298
E92: Opgegeven afschrijvingen 2005 met afschrijvingstermijn 10 | H92: € | I92: 5478.96375 | L92: 1826.32125 | M92: 3652.6425
E93: Opgegeven afschrijvingen 2005 met afschrijvingstermijn 5 | H93: € | I93: 6910.2 | L93: 2303.4 | M93: 4606.8
B95: Opgegeven Cumulatieve Afschrijvingen Bij Desinvesteringen 2005
E96: Opgegeven c.a.d. 2005 met afschrijvingstermijn 55 | H96: € | I96: =SUM(K96:DF96) -> 0
E97: Opgegeven c.a.d. 2005 met afschrijvingstermijn 45 | H97: € | I97: 0
E98: Opgegeven c.a.d. 2005 met afschrijvingstermijn 30 | H98: € | I98: 0
E99: Opgegeven c.a.d. 2005 met afschrijvingstermijn 25 | H99: € | I99: 0
E100: Opgegeven c.a.d. 2005 met afschrijvingstermijn 10 | H100: € | I100: 0
E101: Opgegeven c.a.d. 2005 met afschrijvingstermijn 5 | H101: € | I101: 0
B103: Bijzondere Waardeverminderingen Op Activa 2005
E104: Bijzondere waardeverminderingen op activa 2005 met afschrijvingstermijn 55 | H104: € | I104: =SUM(K104:DF104) -> 0
E105: Bijzondere waardeverminderingen op activa 2005 met afschrijvingstermijn 45 | H105: € | I105: 0
E106: Bijzondere waardeverminderingen op activa 2005 met afschrijvingstermijn 30 | H106: € | I106: 0
E107: Bijzondere waardeverminderingen op activa 2005 met afschrijvingstermijn 25 | H107: € | I107: 0
E108: Bijzondere waardeverminderingen op activa 2005 met afschrijvingstermijn 10 | H108: € | I108: 0
E109: Bijzondere waardeverminderingen op activa 2005 met afschrijvingstermijn 5 | H109: € | I109: 0
B111: Input Alert
E112: Dummy Beginjaar investeringen
E113: Dummy Modelperiode
E114: Dummy Aantal cellen met onterechte input 2005
E115: Dummy Waarschuwing onterecht ingevulde cellen 2005
A117: INVESTERINGSJAAR 2006 - START GAW voor EHD
E118: Startwaarde GAW voor EHD (01-01-2006) | H118: €
E119: Afschrijvingen Start GAW voor EHD | H119: €
A121: INVESTERINGSJAAR 2006
B123: Investeringen 2006
E124: Aanschafwaarde investeringen 2006 met afschrijvingstermijn 55 | G124: 609103.62 | H124: € | I124: =SUM(K124:DF124) -> 0
E125: Aanschafwaarde investeringen 2006 met afschrijvingstermijn 45 | G125: 662536.71 | H125: € | I125: 0
E126: Aanschafwaarde investeringen 2006 met afschrijvingstermijn 30 | G126: 97646.15 | H126: € | I126: 0
E127: Aanschafwaarde investeringen 2006 met afschrijvingstermijn 25 | G127: 78359.71 | H127: € | I127: 0
E128: Aanschafwaarde investeringen 2006 met afschrijvingstermijn 10 | G128: 0 | H128: € | I128: 0
E129: Aanschafwaarde investeringen 2006 met afschrijvingstermijn 5 | G129: 25497.5 | H129: € | I129: 0
E130: Aanschafwaarde investeringen 2006 zonder afschrijvingstermijn | H130: € | I130: 0
B132: Desinvesteringen 2006
E133: Desinvesteringen 2006 met afschrijvingstermijn 55 | H133: € | I133: =SUM(K133:DF133) -> 0
E134: Desinvesteringen 2006 met afschrijvingstermijn 45 | H134: € | I134: 1768.012098 | R134: 1768.012098
E135: Desinvesteringen 2006 met afschrijvingstermijn 30 | H135: € | I135: 0
E136: Desinvesteringen 2006 met afschrijvingstermijn 25 | H136: € | I136: 0
E137: Desinvesteringen 2006 met afschrijvingstermijn 10 | H137: € | I137: 0
E138: Desinvesteringen 2006 met afschrijvingstermijn 5 | H138: € | I138: 24197.5 | Q138: 24197.5
E139: Desinvesteringen 2006 zonder afschrijvingstermijn | H139: € | I139: 0
B141: Opgegeven Afschrijvingen 2006
E142: Opgegeven afschrijvingen 2006 met afschrijvingstermijn 55 | H142: € | I142: =SUM(K142:DF142) -> 5537.305636 | M142: 5537.305636
E143: Opgegeven afschrijvingen 2006 met afschrijvingstermijn 45 | H143: € | I143: 7361.519 | M143: 7361.519
E144: Opgegeven afschrijvingen 2006 met afschrijvingstermijn 30 | H144: € | I144: 1627.435833 | M144: 1627.435833
E145: Opgegeven afschrijvingen 2006 met afschrijvingstermijn 25 | H145: € | I145: 1567.1942 | M145: 1567.1942
E146: Opgegeven afschrijvingen 2006 met afschrijvingstermijn 10 | H146: € | I146: 0 | M146: 0
E147: Opgegeven afschrijvingen 2006 met afschrijvingstermijn 5 | H147: € | I147: 2549.75 | M147: 2549.75
B149: Opgegeven Cumulatieve Afschrijvingen Bij Desinvesteringen 2006
E150: Opgegeven c.a.d. 2006 met afschrijvingstermijn 55 | H150: € | I150: =SUM(K150:DF150) -> 0
E151: Opgegeven c.a.d. 2006 met afschrijvingstermijn 45 | H151: € | I151: 0
E152: Opgegeven c.a.d. 2006 met afschrijvingstermijn 30 | H152: € | I152: 0
E153: Opgegeven c.a.d. 2006 met afschrijvingstermijn 25 | H153: € | I153: 0
E154: Opgegeven c.a.d. 2006 met afschrijvingstermijn 10 | H154: € | I154: 0
E155: Opgegeven c.a.d. 2006 met afschrijvingstermijn 5 | H155: € | I155: 0
B157: Bijzondere Waardeverminderingen Op Activa 2006
E158: Bijzondere waardeverminderingen op activa 2006 met afschrijvingstermijn 55 | H158: € | I158: =SUM(K158:DF158) -> 0
E159: Bijzondere waardeverminderingen op activa 2006 met afschrijvingstermijn 45 | H159: € | I159: 0
E160: Bijzondere waardeverminderingen op activa 2006 met afschrijvingstermijn 30 | H160: € | I160: 0
E161: Bijzondere waardeverminderingen op activa 2006 met afschrijvingstermijn 25 | H161: € | I161: 0
E162: Bijzondere waardeverminderingen op activa 2006 met afschrijvingstermijn 10 | H162: € | I162: 0
E163: Bijzondere waardeverminderingen op activa 2006 met afschrijvingstermijn 5 | H163: € | I163: 4839.5 | Q163: 4839.5
B165: Input Alert
E166: Dummy Beginjaar investeringen
E167: Dummy Modelperiode
E168: Dummy Aantal cellen met onterechte input 2006
E169: Dummy Waarschuwing onterecht ingevulde cellen 2006
A171: INVESTERINGSJAAR 2007
B173: Investeringen 2007
E174: Aanschafwaarde investeringen 2007 met afschrijvingstermijn 55 | G174: 374729.91 | H174: € | I174: =SUM(K174:DF174) -> 0
E175: Aanschafwaarde investeringen 2007 met afschrijvingstermijn 45 | G175: 1283395.68 | H175: € | I175: 0
E176: Aanschafwaarde investeringen 2007 met afschrijvingstermijn 30 | G176: 169278.42 | H176: € | I176: 0
E177: Aanschafwaarde investeringen 2007 met afschrijvingstermijn 25 | G177: 76626.24 | H177: € | I177: 0
E178: Aanschafwaarde investeringen 2007 met afschrijvingstermijn 10 | G178: 0 | H178: € | I178: 0
E179: Aanschafwaarde investeringen 2007 met afschrijvingstermijn 5 | G179: 56158.25 | H179: € | I179: 0
E180: Aanschafwaarde investeringen 2007 zonder afschrijvingstermijn | H180: € | I180: 0
B182: Desinvesteringen 2007
E183: Desinvesteringen 2007 met afschrijvingstermijn 55 | H183: € | I183: =SUM(K183:DF183) -> 0
E184: Desinvesteringen 2007 met afschrijvingstermijn 45 | H184: € | I184: 911.6544746 | R184: 911.6544746
E185: Desinvesteringen 2007 met afschrijvingstermijn 30 | H185: € | I185: 0
E186: Desinvesteringen 2007 met afschrijvingstermijn 25 | H186: € | I186: 0
E187: Desinvesteringen 2007 met afschrijvingstermijn 10 | H187: € | I187: 0
E188: Desinvesteringen 2007 met afschrijvingstermijn 5 | H188: € | I188: 0
E189: Desinvesteringen 2007 zonder afschrijvingstermijn | H189: € | I189: 0
B191: Opgegeven Afschrijvingen 2007
E192: Opgegeven afschrijvingen 2007 met afschrijvingstermijn 55 | H192: € | I192: =SUM(K192:DF192) -> 0
E193: Opgegeven afschrijvingen 2007 met afschrijvingstermijn 45 | H193: € | I193: 0
E194: Opgegeven afschrijvingen 2007 met afschrijvingstermijn 30 | H194: € | I194: 0
E195: Opgegeven afschrijvingen 2007 met afschrijvingstermijn 25 | H195: € | I195: 0
E196: Opgegeven afschrijvingen 2007 met afschrijvingstermijn 10 | H196: € | I196: 0
E197: Opgegeven afschrijvingen 2007 met afschrijvingstermijn 5 | H197: € | I197: 0
B199: Opgegeven Cumulatieve Afschrijvingen Bij Desinvesteringen 2007
E200: Opgegeven c.a.d. 2007 met afschrijvingstermijn 55 | H200: € | I200: =SUM(K200:DF200) -> 0
E201: Opgegeven c.a.d. 2007 met afschrijvingstermijn 45 | H201: € | I201: 0
E202: Opgegeven c.a.d. 2007 met afschrijvingstermijn 30 | H202: € | I202: 0
E203: Opgegeven c.a.d. 2007 met afschrijvingstermijn 25 | H203: € | I203: 0
E204: Opgegeven c.a.d. 2007 met afschrijvingstermijn 10 | H204: € | I204: 0
E205: Opgegeven c.a.d. 2007 met afschrijvingstermijn 5 | H205: € | I205: 0
B207: Bijzondere Waardeverminderingen Op Activa 2007
E208: Bijzondere waardeverminderingen op activa 2007 met afschrijvingstermijn 55 | H208: € | I208: =SUM(K208:DF208) -> 0
E209: Bijzondere waardeverminderingen op activa 2007 met afschrijvingstermijn 45 | H209: € | I209: 0
E210: Bijzondere waardeverminderingen op activa 2007 met afschrijvingstermijn 30 | H210: € | I210: 0
E211: Bijzondere waardeverminderingen op activa 2007 met afschrijvingstermijn 25 | H211: € | I211: 0
E212: Bijzondere waardeverminderingen op activa 2007 met afschrijvingstermijn 10 | H212: € | I212: 0
E213: Bijzondere waardeverminderingen op activa 2007 met afschrijvingstermijn 5 | H213: € | I213: 0
B215: Input Alert
E216: Dummy Beginjaar investeringen
E217: Dummy Modelperiode
E218: Dummy Aantal cellen met onterechte input 2007
E219: Dummy Waarschuwing onterecht ingevulde cellen 2007
A221: INVESTERINGSJAAR 2008
B223: Investeringen 2008
E224: Aanschafwaarde investeringen 2008 met afschrijvingstermijn 55 | G224: 536514.32 | H224: € | I224: =SUM(K224:DF224) -> 0
E225: Aanschafwaarde investeringen 2008 met afschrijvingstermijn 45 | G225: 1253477.76 | H225: € | I225: 0
E226: Aanschafwaarde investeringen 2008 met afschrijvingstermijn 30 | G226: 97612.35 | H226: € | I226: 0
E227: Aanschafwaarde investeringen 2008 met afschrijvingstermijn 25 | G227: 170546.2 | H227: € | I227: 0
E228: Aanschafwaarde investeringen 2008 met afschrijvingstermijn 10 | G228: 0 | H228: € | I228: 0
E229: Aanschafwaarde investeringen 2008 met afschrijvingstermijn 5 | G229: 348024.265 | H229: € | I229: 0
E230: Aanschafwaarde investeringen 2008 zonder afschrijvingstermijn | H230: € | I230: 0
B232: Desinvesteringen 2008
E233: Desinvesteringen 2008 met afschrijvingstermijn 55 | H233: € | I233: =SUM(K233:DF233) -> 0
E234: Desinvesteringen 2008 met afschrijvingstermijn 45 | H234: € | I234: 5504.060822 | R234: 5504.060822
E235: Desinvesteringen 2008 met afschrijvingstermijn 30 | H235: € | I235: 0
... 468 more rows

Sheet InpObragas
A1: =RIGHT(CELL("filename", A1), LEN(CELL("filename", A1)) - SEARCH("]", CELL("filename", A1))) -> InpObragas
E2: =Tijd!E$2 -> Actieve netbeheerder | G2: =Tijd!G$2 -> Stedin
E3: =Tijd!E$3 -> Actieve inputsheet | G3: =Tijd!G$3 -> InpStedin
E4: =Tijd!E$4 -> Modelperiode | G4: =Check!G4 -> 0 | H4: =Check!H4 -> errors | K4: =Tijd!K$4 -> 2004 | L4: =Tijd!L$4 -> 2005 | M4: =Tijd!M$4 -> 2006 | N4: =Tijd!N$4 -> 2007 | O4: =Tijd!O$4 -> 2008 | P4: =Tijd!P$4 -> 2009 | Q4: =Tijd!Q$4 -> 2010 | R4: =Tijd!R$4 -> 2011 | S4: =Tijd!S$4 -> 2012 | T4: =Tijd!T$4 -> 2013 | U4: =Tijd!U$4 -> 2014 | V4: =Tijd!V$4 -> 2015 | W4: =Tijd!W$4 -> 2016 | X4: =Tijd!X$4 -> 2017 | Y4: =Tijd!Y$4 -> 2018 | Z4: =Tijd!Z$4 -> 2019 | AA4: =Tijd!AA$4 -> 2020 | AB4: =Tijd!AB$4 -> 2021 | AC4: =Tijd!AC$4 -> 2022 | AD4: =Tijd!AD$4 -> 2023 | AE4: =Tijd!AE$4 -> 2024 | AF4: =Tijd!AF$4 -> 2025 | AG4: =Tijd!AG$4 -> 2026 | AH4: =Tijd!AH$4 -> 2027 | AI4: =Tijd!AI$4 -> 2028 | AJ4: =Tijd!AJ$4 -> 2029 | AK4: =Tijd!AK$4 -> 2030 | AL4: =Tijd!AL$4 -> 2031 | AM4: =Tijd!AM$4 -> 2032 | AN4: =Tijd!AN$4 -> 2033 | AO4: =Tijd!AO$4 -> 2034 | AP4: =Tijd!AP$4 -> 2035 | AQ4: =Tijd!AQ$4 -> 2036 | AR4: =Tijd!AR$4 -> 2037 | AS4: =Tijd!AS$4 -> 2038 | AT4: =Tijd!AT$4 -> 2039 | AU4: =Tijd!AU$4 -> 2040 | AV4: =Tijd!AV$4 -> 2041 | AW4: =Tijd!AW$4 -> 2042 | AX4: =Tijd!AX$4 -> 2043 | AY4: =Tijd!AY$4 -> 2044 | AZ4: =Tijd!AZ$4 -> 2045 | BA4: =Tijd!BA$4 -> 2046 | BB4: =Tijd!BB$4 -> 2047 | BC4: =Tijd!BC$4 -> 2048 | BD4: =Tijd!BD$4 -> 2049 | BE4: =Tijd!BE$4 -> 2050 | BF4: =Tijd!BF$4 -> 2051 | BG4: =Tijd!BG$4 -> 2052 | BH4: =Tijd!BH$4 -> 2053 | BI4: =Tijd!BI$4 -> 2054 | BJ4: =Tijd!BJ$4 -> 2055 | BK4: =Tijd!BK$4 -> 2056 | BL4: =Tijd!BL$4 -> 2057 | BM4: =Tijd!BM$4 -> 2058 | BN4: =Tijd!BN$4 -> 2059 | BO4: =Tijd!BO$4 -> 2060 | BP4: =Tijd!BP$4 -> 2061 | BQ4: =Tijd!BQ$4 -> 2062 | BR4: =Tijd!BR$4 -> 2063 | BS4: =Tijd!BS$4 -> 2064 | BT4: =Tijd!BT$4 -> 2065 | BU4: =Tijd!BU$4 -> 2066 | BV4: =Tijd!BV$4 -> 2067 | BW4: =Tijd!BW$4 -> 2068 | BX4: =Tijd!BX$4 -> 2069 | BY4: =Tijd!BY$4 -> 2070 | BZ4: =Tijd!BZ$4 -> 2071 | CA4: =Tijd!CA$4 -> 2072 | CB4: =Tijd!CB$4 -> 2073 | CC4: =Tijd!CC$4 -> 2074 | CD4: =Tijd!CD$4 -> 2075 | CE4: =Tijd!CE$4 -> 2076 | CF4: =Tijd!CF$4 -> 2077 | CG4: =Tijd!CG$4 -> 2078 | CH4: =Tijd!CH$4 -> 2079 | CI4: =Tijd!CI$4 -> 2080 | CJ4: =Tijd!CJ$4 -> 2081 | CK4: =Tijd!CK$4 -> 2082 | CL4: =Tijd!CL$4 -> 2083 | CM4: =Tijd!CM$4 -> 2084 | CN4: =Tijd!CN$4 -> 2085 | CO4: =Tijd!CO$4 -> 2086 | CP4: =Tijd!CP$4 -> 2087 | CQ4: =Tijd!CQ$4 -> 2088 | CR4: =Tijd!CR$4 -> 2089 | CS4: =Tijd!CS$4 -> 2090 | CT4: =Tijd!CT$4 -> 2091 | CU4: =Tijd!CU$4 -> 2092 | CV4: =Tijd!CV$4 -> 2093 | CW4: =Tijd!CW$4 -> 2094 | CX4: =Tijd!CX$4 -> 2095 | CY4: =Tijd!CY$4 -> 2096 | CZ4: =Tijd!CZ$4 -> 2097 | DA4: =Tijd!DA$4 -> 2098 | DB4: =Tijd!DB$4 -> 2099 | DC4: =Tijd!DC$4 -> 2100 | DD4: =Tijd!DD$4 -> 2101 | DE4: =Tijd!DE$4 -> 2102 | DF4: =Tijd!DF$4 -> 2103
E5: =Tijd!E$5 -> Looptijd vs Uitlooptijd | G5: =Check!G5 -> 0 | H5: =Check!H5 -> waarschuwingen | K5: =Tijd!K$5 -> Looptijd | L5: =Tijd!L$5 -> Looptijd | M5: =Tijd!M$5 -> Looptijd | N5: =Tijd!N$5 -> Looptijd | O5: =Tijd!O$5 -> Looptijd | P5: =Tijd!P$5 -> Looptijd | Q5: =Tijd!Q$5 -> Looptijd | R5: =Tijd!R$5 -> Looptijd | S5: =Tijd!S$5 -> Looptijd | T5: =Tijd!T$5 -> Looptijd | U5: =Tijd!U$5 -> Looptijd | V5: =Tijd!V$5 -> Looptijd | W5: =Tijd!W$5 -> Looptijd | X5: =Tijd!X$5 -> Looptijd | Y5: =Tijd!Y$5 -> Looptijd | Z5: =Tijd!Z$5 -> Looptijd | AA5: =Tijd!AA$5 -> Looptijd | AB5: =Tijd!AB$5 -> Looptijd | AC5: =Tijd!AC$5 -> Looptijd | AD5: =Tijd!AD$5 -> Looptijd | AE5: =Tijd!AE$5 -> Looptijd | AF5: =Tijd!AF$5 -> Looptijd | AG5: =Tijd!AG$5 -> Looptijd | AH5: =Tijd!AH$5 -> Looptijd | AI5: =Tijd!AI$5 -> Looptijd | AJ5: =Tijd!AJ$5 -> Looptijd | AK5: =Tijd!AK$5 -> Looptijd | AL5: =Tijd!AL$5 -> Looptijd | AM5: =Tijd!AM$5 -> Looptijd | AN5: =Tijd!AN$5 -> Looptijd | AO5: =Tijd!AO$5 -> Looptijd | AP5: =Tijd!AP$5 -> Looptijd | AQ5: =Tijd!AQ$5 -> Looptijd | AR5: =Tijd!AR$5 -> Looptijd | AS5: =Tijd!AS$5 -> Looptijd | AT5: =Tijd!AT$5 -> Looptijd | AU5: =Tijd!AU$5 -> Looptijd | AV5: =Tijd!AV$5 -> Looptijd | AW5: =Tijd!AW$5 -> Looptijd | AX5: =Tijd!AX$5 -> Looptijd | AY5: =Tijd!AY$5 -> Looptijd | AZ5: =Tijd!AZ$5 -> Looptijd | BA5: =Tijd!BA$5 -> Looptijd | BB5: =Tijd!BB$5 -> Looptijd | BC5: =Tijd!BC$5 -> Looptijd | BD5: =Tijd!BD$5 -> Looptijd | BE5: =Tijd!BE$5 -> Looptijd | BF5: =Tijd!BF$5 -> Looptijd | BG5: =Tijd!BG$5 -> Looptijd | BH5: =Tijd!BH$5 -> Looptijd | BI5: =Tijd!BI$5 -> Looptijd | BJ5: =Tijd!BJ$5 -> Uitlooptijd | BK5: =Tijd!BK$5 -> Uitlooptijd | BL5: =Tijd!BL$5 -> Uitlooptijd | BM5: =Tijd!BM$5 -> Uitlooptijd | BN5: =Tijd!BN$5 -> Uitlooptijd | BO5: =Tijd!BO$5 -> Uitlooptijd | BP5: =Tijd!BP$5 -> Uitlooptijd | BQ5: =Tijd!BQ$5 -> Uitlooptijd | BR5: =Tijd!BR$5 -> Uitlooptijd | BS5: =Tijd!BS$5 -> Uitlooptijd | BT5: =Tijd!BT$5 -> Uitlooptijd | BU5: =Tijd!BU$5 -> Uitlooptijd | BV5: =Tijd!BV$5 -> Uitlooptijd | BW5: =Tijd!BW$5 -> Uitlooptijd | BX5: =Tijd!BX$5 -> Uitlooptijd | BY5: =Tijd!BY$5 -> Uitlooptijd | BZ5: =Tijd!BZ$5 -> Uitlooptijd | CA5: =Tijd!CA$5 -> Uitlooptijd | CB5: =Tijd!CB$5 -> Uitlooptijd | CC5: =Tijd!CC$5 -> Uitlooptijd | CD5: =Tijd!CD$5 -> Uitlooptijd | CE5: =Tijd!CE$5 -> Uitlooptijd | CF5: =Tijd!CF$5 -> Uitlooptijd | CG5: =Tijd!CG$5 -> Uitlooptijd | CH5: =Tijd!CH$5 -> Uitlooptijd | CI5: =Tijd!CI$5 -> Uitlooptijd | CJ5: =Tijd!CJ$5 -> Uitlooptijd | CK5: =Tijd!CK$5 -> Uitlooptijd | CL5: =Tijd!CL$5 -> Uitlooptijd | CM5: =Tijd!CM$5 -> Uitlooptijd | CN5: =Tijd!CN$5 -> Uitlooptijd | CO5: =Tijd!CO$5 -> Uitlooptijd | CP5: =Tijd!CP$5 -> Uitlooptijd | CQ5: =Tijd!CQ$5 -> Uitlooptijd | CR5: =Tijd!CR$5 -> Uitlooptijd | CS5: =Tijd!CS$5 -> Uitlooptijd | CT5: =Tijd!CT$5 -> Uitlooptijd | CU5: =Tijd!CU$5 -> Uitlooptijd | CV5: =Tijd!CV$5 -> Uitlooptijd | CW5: =Tijd!CW$5 -> Uitlooptijd | CX5: =Tijd!CX$5 -> Uitlooptijd | CY5: =Tijd!CY$5 -> Uitlooptijd | CZ5: =Tijd!CZ$5 -> Uitlooptijd | DA5: =Tijd!DA$5 -> Uitlooptijd | DB5: =Tijd!DB$5 -> Uitlooptijd | DC5: =Tijd!DC$5 -> Uitlooptijd | DD5: =Tijd!DD$5 -> Uitlooptijd | DE5: =Tijd!DE$5 -> Uitlooptijd | DF5: =Tijd!DF$5 -> Uitlooptijd
E6: =Tijd!E$10 -> Model kolom teller | F6: Bron | G6: Constante | H6: Eenheid | I6: Totaal | K6: =Tijd!K$10 -> 1 | L6: =Tijd!L$10 -> 2 | M6: =Tijd!M$10 -> 3 | N6: =Tijd!N$10 -> 4 | O6: =Tijd!O$10 -> 5 | P6: =Tijd!P$10 -> 6 | Q6: =Tijd!Q$10 -> 7 | R6: =Tijd!R$10 -> 8 | S6: =Tijd!S$10 -> 9 | T6: =Tijd!T$10 -> 10 | U6: =Tijd!U$10 -> 11 | V6: =Tijd!V$10 -> 12 | W6: =Tijd!W$10 -> 13 | X6: =Tijd!X$10 -> 14 | Y6: =Tijd!Y$10 -> 15 | Z6: =Tijd!Z$10 -> 16 | AA6: =Tijd!AA$10 -> 17 | AB6: =Tijd!AB$10 -> 18 | AC6: =Tijd!AC$10 -> 19 | AD6: =Tijd!AD$10 -> 20 | AE6: =Tijd!AE$10 -> 21 | AF6: =Tijd!AF$10 -> 22 | AG6: =Tijd!AG$10 -> 23 | AH6: =Tijd!AH$10 -> 24 | AI6: =Tijd!AI$10 -> 25 | AJ6: =Tijd!AJ$10 -> 26 | AK6: =Tijd!AK$10 -> 27 | AL6: =Tijd!AL$10 -> 28 | AM6: =Tijd!AM$10 -> 29 | AN6: =Tijd!AN$10 -> 30 | AO6: =Tijd!AO$10 -> 31 | AP6: =Tijd!AP$10 -> 32 | AQ6: =Tijd!AQ$10 -> 33 | AR6: =Tijd!AR$10 -> 34 | AS6: =Tijd!AS$10 -> 35 | AT6: =Tijd!AT$10 -> 36 | AU6: =Tijd!AU$10 -> 37 | AV6: =Tijd!AV$10 -> 38 | AW6: =Tijd!AW$10 -> 39 | AX6: =Tijd!AX$10 -> 40 | AY6: =Tijd!AY$10 -> 41 | AZ6: =Tijd!AZ$10 -> 42 | BA6: =Tijd!BA$10 -> 43 | BB6: =Tijd!BB$10 -> 44 | BC6: =Tijd!BC$10 -> 45 | BD6: =Tijd!BD$10 -> 46 | BE6: =Tijd!BE$10 -> 47 | BF6: =Tijd!BF$10 -> 48 | BG6: =Tijd!BG$10 -> 49 | BH6: =Tijd!BH$10 -> 50 | BI6: =Tijd!BI$10 -> 51 | BJ6: =Tijd!BJ$10 -> 52 | BK6: =Tijd!BK$10 -> 53 | BL6: =Tijd!BL$10 -> 54 | BM6: =Tijd!BM$10 -> 55 | BN6: =Tijd!BN$10 -> 56 | BO6: =Tijd!BO$10 -> 57 | BP6: =Tijd!BP$10 -> 58 | BQ6: =Tijd!BQ$10 -> 59 | BR6: =Tijd!BR$10 -> 60 | BS6: =Tijd!BS$10 -> 61 | BT6: =Tijd!BT$10 -> 62 | BU6: =Tijd!BU$10 -> 63 | BV6: =Tijd!BV$10 -> 64 | BW6: =Tijd!BW$10 -> 65 | BX6: =Tijd!BX$10 -> 66 | BY6: =Tijd!BY$10 -> 67 | BZ6: =Tijd!BZ$10 -> 68 | CA6: =Tijd!CA$10 -> 69 | CB6: =Tijd!CB$10 -> 70 | CC6: =Tijd!CC$10 -> 71 | CD6: =Tijd!CD$10 -> 72 | CE6: =Tijd!CE$10 -> 73 | CF6: =Tijd!CF$10 -> 74 | CG6: =Tijd!CG$10 -> 75 | CH6: =Tijd!CH$10 -> 76 | CI6: =Tijd!CI$10 -> 77 | CJ6: =Tijd!CJ$10 -> 78 | CK6: =Tijd!CK$10 -> 79 | CL6: =Tijd!CL$10 -> 80 | CM6: =Tijd!CM$10 -> 81 | CN6: =Tijd!CN$10 -> 82 | CO6: =Tijd!CO$10 -> 83 | CP6: =Tijd!CP$10 -> 84 | CQ6: =Tijd!CQ$10 -> 85 | CR6: =Tijd!CR$10 -> 86 | CS6: =Tijd!CS$10 -> 87 | CT6: =Tijd!CT$10 -> 88 | CU6: =Tijd!CU$10 -> 89 | CV6: =Tijd!CV$10 -> 90 | CW6: =Tijd!CW$10 -> 91 | CX6: =Tijd!CX$10 -> 92 | CY6: =Tijd!CY$10 -> 93 | CZ6: =Tijd!CZ$10 -> 94 | DA6: =Tijd!DA$10 -> 95 | DB6: =Tijd!DB$10 -> 96 | DC6: =Tijd!DC$10 -> 97 | DD6: =Tijd!DD$10 -> 98 | DE6: =Tijd!DE$10 -> 99 | DF6: =Tijd!DF$10 -> 100
A9: NETTEN
A11: INVESTERINGSJAAR 2004 - START GAW
E12: Startwaarde GAW incl. afgekochte precario (01-01-2004) | G12: 180271972 | H12: €
E13: Afschrijvingen Start GAW | G13: 5381252.896 | H13: €
E14: Afgekochte precario in Start GAW (01-01-2004) | H14: €
E15: Afschrijvingsbedrag afgekochte precario | H15: €
A17: INVESTERINGSJAAR 2004
B19: Investeringen 2004
E20: Aanschafwaarde investeringen 2004 met afschrijvingstermijn 55 | G20: 77117.1 | H20: € | I20: =SUM(K20:DF20) -> 0
E21: Aanschafwaarde investeringen 2004 met afschrijvingstermijn 45 | G21: 273126.68 | H21: € | I21: 0
E22: Aanschafwaarde investeringen 2004 met afschrijvingstermijn 30 | G22: 270191.38 | H22: € | I22: 0
E23: Aanschafwaarde investeringen 2004 met afschrijvingstermijn 25 | H23: € | I23: 0
E24: Aanschafwaarde investeringen 2004 met afschrijvingstermijn 10 | H24: € | I24: 0
E25: Aanschafwaarde investeringen 2004 met afschrijvingstermijn 5 | H25: € | I25: 0
E26: Aanschafwaarde investeringen 2004 zonder afschrijvingstermijn | H26: € | I26: 0
B28: Desinvesteringen 2004
E29: Desinvesteringen 2004 met afschrijvingstermijn 55 | H29: € | I29: =SUM(K29:DF29) -> 0
E30: Desinvesteringen 2004 met afschrijvingstermijn 45 | H30: € | I30: 0
E31: Desinvesteringen 2004 met afschrijvingstermijn 30 | H31: € | I31: 0
E32: Desinvesteringen 2004 met afschrijvingstermijn 25 | H32: € | I32: 0
E33: Desinvesteringen 2004 met afschrijvingstermijn 10 | H33: € | I33: 0
E34: Desinvesteringen 2004 met afschrijvingstermijn 5 | H34: € | I34: 0
E35: Desinvesteringen 2004 zonder afschrijvingstermijn | H35: € | I35: 0
B37: Opgegeven Afschrijvingen 2004
E38: Opgegeven afschrijvingen 2004 met afschrijvingstermijn 55 | H38: € | I38: =SUM(K38:DF38) -> 3505.322727 | K38: 701.0645455 | L38: 1402.129091 | M38: 1402.129091
E39: Opgegeven afschrijvingen 2004 met afschrijvingstermijn 45 | H39: € | I39: 15173.70444 | K39: 3034.740889 | L39: 6069.481778 | M39: 6069.481778
E40: Opgegeven afschrijvingen 2004 met afschrijvingstermijn 30 | H40: € | I40: 22515.94833 | K40: 4503.189667 | L40: 9006.379333 | M40: 9006.379333
E41: Opgegeven afschrijvingen 2004 met afschrijvingstermijn 25 | H41: € | I41: 0
E42: Opgegeven afschrijvingen 2004 met afschrijvingstermijn 10 | H42: € | I42: 0
E43: Opgegeven afschrijvingen 2004 met afschrijvingstermijn 5 | H43: € | I43: 0
B45: Opgegeven Cumulatieve Afschrijvingen Bij Desinvesteringen 2004
E46: Opgegeven c.a.d. 2004 met afschrijvingstermijn 55 | H46: € | I46: =SUM(K46:DF46) -> 0
E47: Opgegeven c.a.d. 2004 met afschrijvingstermijn 45 | H47: € | I47: 0
E48: Opgegeven c.a.d. 2004 met afschrijvingstermijn 30 | H48: € | I48: 0
E49: Opgegeven c.a.d. 2004 met afschrijvingstermijn 25 | H49: € | I49: 0
E50: Opgegeven c.a.d. 2004 met afschrijvingstermijn 10 | H50: € | I50: 0
E51: Opgegeven c.a.d. 2004 met afschrijvingstermijn 5 | H51: € | I51: 0
B53: Bijzondere Waardeverminderingen Op Activa 2004
E54: Bijzondere waardeverminderingen op activa 2004 met afschrijvingstermijn 55 | H54: € | I54: =SUM(K54:DF54) -> 0
E55: Bijzondere waardeverminderingen op activa 2004 met afschrijvingstermijn 45 | H55: € | I55: 0
E56: Bijzondere waardeverminderingen op activa 2004 met afschrijvingstermijn 30 | H56: € | I56: 0
E57: Bijzondere waardeverminderingen op activa 2004 met afschrijvingstermijn 25 | H57: € | I57: 0
E58: Bijzondere waardeverminderingen op activa 2004 met afschrijvingstermijn 10 | H58: € | I58: 0
E59: Bijzondere waardeverminderingen op activa 2004 met afschrijvingstermijn 5 | H59: € | I59: 0
B61: Input Alert
E62: Dummy Beginjaar investeringen
E63: Dummy Modelperiode
E64: Dummy Aantal cellen met onterechte input 2004
E65: Dummy Waarschuwing onterecht ingevulde cellen 2004
A67: INVESTERINGSJAAR 2005
B69: Investeringen 2005
E70: Aanschafwaarde investeringen 2005 met afschrijvingstermijn 55 | H70: € | I70: =SUM(K70:DF70) -> 0
E71: Aanschafwaarde investeringen 2005 met afschrijvingstermijn 45 | G71: 724809.13 | H71: € | I71: 0
E72: Aanschafwaarde investeringen 2005 met afschrijvingstermijn 30 | G72: 70401.74 | H72: € | I72: 0
E73: Aanschafwaarde investeringen 2005 met afschrijvingstermijn 25 | H73: € | I73: 0
E74: Aanschafwaarde investeringen 2005 met afschrijvingstermijn 10 | H74: € | I74: 0
E75: Aanschafwaarde investeringen 2005 met afschrijvingstermijn 5 | H75: € | I75: 0
E76: Aanschafwaarde investeringen 2005 zonder afschrijvingstermijn | H76: € | I76: 0
B78: Desinvesteringen 2005
E79: Desinvesteringen 2005 met afschrijvingstermijn 55 | H79: € | I79: =SUM(K79:DF79) -> 0
E80: Desinvesteringen 2005 met afschrijvingstermijn 45 | H80: € | I80: 0
E81: Desinvesteringen 2005 met afschrijvingstermijn 30 | H81: € | I81: 0
E82: Desinvesteringen 2005 met afschrijvingstermijn 25 | H82: € | I82: 0
E83: Desinvesteringen 2005 met afschrijvingstermijn 10 | H83: € | I83: 0
E84: Desinvesteringen 2005 met afschrijvingstermijn 5 | H84: € | I84: 0
E85: Desinvesteringen 2005 zonder afschrijvingstermijn | H85: € | I85: 0
B87: Opgegeven Afschrijvingen 2005
E88: Opgegeven afschrijvingen 2005 met afschrijvingstermijn 55 | H88: € | I88: =SUM(L88:DF88) -> 0 | L88: 0
E89: Opgegeven afschrijvingen 2005 met afschrijvingstermijn 45 | H89: € | I89: 24160.30433 | L89: 8053.434778 | M89: 16106.86956
E90: Opgegeven afschrijvingen 2005 met afschrijvingstermijn 30 | H90: € | I90: 3520.087 | L90: 1173.362333 | M90: 2346.724667
E91: Opgegeven afschrijvingen 2005 met afschrijvingstermijn 25 | H91: € | I91: 0
E92: Opgegeven afschrijvingen 2005 met afschrijvingstermijn 10 | H92: € | I92: 0
E93: Opgegeven afschrijvingen 2005 met afschrijvingstermijn 5 | H93: € | I93: 0
B95: Opgegeven Cumulatieve Afschrijvingen Bij Desinvesteringen 2005
E96: Opgegeven c.a.d. 2005 met afschrijvingstermijn 55 | H96: € | I96: =SUM(K96:DF96) -> 0
E97: Opgegeven c.a.d. 2005 met afschrijvingstermijn 45 | H97: € | I97: 0
E98: Opgegeven c.a.d. 2005 met afschrijvingstermijn 30 | H98: € | I98: 0
E99: Opgegeven c.a.d. 2005 met afschrijvingstermijn 25 | H99: € | I99: 0
E100: Opgegeven c.a.d. 2005 met afschrijvingstermijn 10 | H100: € | I100: 0
E101: Opgegeven c.a.d. 2005 met afschrijvingstermijn 5 | H101: € | I101: 0
B103: Bijzondere Waardeverminderingen Op Activa 2005
E104: Bijzondere waardeverminderingen op activa 2005 met afschrijvingstermijn 55 | H104: € | I104: =SUM(K104:DF104) -> 0
E105: Bijzondere waardeverminderingen op activa 2005 met afschrijvingstermijn 45 | H105: € | I105: 0
E106: Bijzondere waardeverminderingen op activa 2005 met afschrijvingstermijn 30 | H106: € | I106: 0
E107: Bijzondere waardeverminderingen op activa 2005 met afschrijvingstermijn 25 | H107: € | I107: 0
E108: Bijzondere waardeverminderingen op activa 2005 met afschrijvingstermijn 10 | H108: € | I108: 0
E109: Bijzondere waardeverminderingen op activa 2005 met afschrijvingstermijn 5 | H109: € | I109: 0
B111: Input Alert
E112: Dummy Beginjaar investeringen
E113: Dummy Modelperiode
E114: Dummy Aantal cellen met onterechte input 2005
E115: Dummy Waarschuwing onterecht ingevulde cellen 2005
A117: INVESTERINGSJAAR 2006 - START GAW voor EHD
E118: Startwaarde GAW voor EHD (01-01-2006) | H118: €
E119: Afschrijvingen Start GAW voor EHD | H119: €
A121: INVESTERINGSJAAR 2006
B123: Investeringen 2006
E124: Aanschafwaarde investeringen 2006 met afschrijvingstermijn 55 | H124: € | I124: =SUM(K124:DF124) -> 0
E125: Aanschafwaarde investeringen 2006 met afschrijvingstermijn 45 | G125: 862339.85 | H125: € | I125: 0
E126: Aanschafwaarde investeringen 2006 met afschrijvingstermijn 30 | G126: 79237 | H126: € | I126: 0
E127: Aanschafwaarde investeringen 2006 met afschrijvingstermijn 25 | H127: € | I127: 0
E128: Aanschafwaarde investeringen 2006 met afschrijvingstermijn 10 | H128: € | I128: 0
E129: Aanschafwaarde investeringen 2006 met afschrijvingstermijn 5 | H129: € | I129: 0
E130: Aanschafwaarde investeringen 2006 zonder afschrijvingstermijn | H130: € | I130: 0
B132: Desinvesteringen 2006
E133: Desinvesteringen 2006 met afschrijvingstermijn 55 | H133: € | I133: =SUM(K133:DF133) -> 0
E134: Desinvesteringen 2006 met afschrijvingstermijn 45 | H134: € | I134: 0
E135: Desinvesteringen 2006 met afschrijvingstermijn 30 | H135: € | I135: 0
E136: Desinvesteringen 2006 met afschrijvingstermijn 25 | H136: € | I136: 0
E137: Desinvesteringen 2006 met afschrijvingstermijn 10 | H137: € | I137: 0
E138: Desinvesteringen 2006 met afschrijvingstermijn 5 | H138: € | I138: 0
E139: Desinvesteringen 2006 zonder afschrijvingstermijn | H139: € | I139: 0
B141: Opgegeven Afschrijvingen 2006
E142: Opgegeven afschrijvingen 2006 met afschrijvingstermijn 55 | H142: € | I142: =SUM(K142:DF142) -> 0
E143: Opgegeven afschrijvingen 2006 met afschrijvingstermijn 45 | H143: € | I143: 9581.553889 | M143: 9581.553889
E144: Opgegeven afschrijvingen 2006 met afschrijvingstermijn 30 | H144: € | I144: 1320.616667 | M144: 1320.616667
E145: Opgegeven afschrijvingen 2006 met afschrijvingstermijn 25 | H145: € | I145: 0
E146: Opgegeven afschrijvingen 2006 met afschrijvingstermijn 10 | H146: € | I146: 0
E147: Opgegeven afschrijvingen 2006 met afschrijvingstermijn 5 | H147: € | I147: 0
B149: Opgegeven Cumulatieve Afschrijvingen Bij Desinvesteringen 2006
E150: Opgegeven c.a.d. 2006 met afschrijvingstermijn 55 | H150: € | I150: =SUM(K150:DF150) -> 0
E151: Opgegeven c.a.d. 2006 met afschrijvingstermijn 45 | H151: € | I151: 0
E152: Opgegeven c.a.d. 2006 met afschrijvingstermijn 30 | H152: € | I152: 0
E153: Opgegeven c.a.d. 2006 met afschrijvingstermijn 25 | H153: € | I153: 0
E154: Opgegeven c.a.d. 2006 met afschrijvingstermijn 10 | H154: € | I154: 0
E155: Opgegeven c.a.d. 2006 met afschrijvingstermijn 5 | H155: € | I155: 0
B157: Bijzondere Waardeverminderingen Op Activa 2006
E158: Bijzondere waardeverminderingen op activa 2006 met afschrijvingstermijn 55 | H158: € | I158: =SUM(K158:DF158) -> 0
E159: Bijzondere waardeverminderingen op activa 2006 met afschrijvingstermijn 45 | H159: € | I159: 0
E160: Bijzondere waardeverminderingen op activa 2006 met afschrijvingstermijn 30 | H160: € | I160: 0
E161: Bijzondere waardeverminderingen op activa 2006 met afschrijvingstermijn 25 | H161: € | I161: 0
E162: Bijzondere waardeverminderingen op activa 2006 met afschrijvingstermijn 10 | H162: € | I162: 0
E163: Bijzondere waardeverminderingen op activa 2006 met afschrijvingstermijn 5 | H163: € | I163: 0
B165: Input Alert
E166: Dummy Beginjaar investeringen
E167: Dummy Modelperiode
E168: Dummy Aantal cellen met onterechte input 2006
E169: Dummy Waarschuwing onterecht ingevulde cellen 2006
A171: INVESTERINGSJAAR 2007
B173: Investeringen 2007
E174: Aanschafwaarde investeringen 2007 met afschrijvingstermijn 55 | G174: 182936.63 | H174: € | I174: =SUM(K174:DF174) -> 0
E175: Aanschafwaarde investeringen 2007 met afschrijvingstermijn 45 | G175: 505646.1 | H175: € | I175: 0
E176: Aanschafwaarde investeringen 2007 met afschrijvingstermijn 30 | G176: 119991.84 | H176: € | I176: 0
E177: Aanschafwaarde investeringen 2007 met afschrijvingstermijn 25 | G177: 0 | H177: € | I177: 0
E178: Aanschafwaarde investeringen 2007 met afschrijvingstermijn 10 | G178: 0 | H178: € | I178: 0
E179: Aanschafwaarde investeringen 2007 met afschrijvingstermijn 5 | G179: 2229466.7 | H179: € | I179: 0
E180: Aanschafwaarde investeringen 2007 zonder afschrijvingstermijn | H180: € | I180: 0
B182: Desinvesteringen 2007
E183: Desinvesteringen 2007 met afschrijvingstermijn 55 | H183: € | I183: =SUM(K183:DF183) -> 0
E184: Desinvesteringen 2007 met afschrijvingstermijn 45 | H184: € | I184: 0
E185: Desinvesteringen 2007 met afschrijvingstermijn 30 | H185: € | I185: 0
E186: Desinvesteringen 2007 met afschrijvingstermijn 25 | H186: € | I186: 0
E187: Desinvesteringen 2007 met afschrijvingstermijn 10 | H187: € | I187: 0
E188: Desinvesteringen 2007 met afschrijvingstermijn 5 | H188: € | I188: 0
E189: Desinvesteringen 2007 zonder afschrijvingstermijn | H189: € | I189: 0
B191: Opgegeven Afschrijvingen 2007
E192: Opgegeven afschrijvingen 2007 met afschrijvingstermijn 55 | H192: € | I192: =SUM(K192:DF192) -> 0
E193: Opgegeven afschrijvingen 2007 met afschrijvingstermijn 45 | H193: € | I193: 0
E194: Opgegeven afschrijvingen 2007 met afschrijvingstermijn 30 | H194: € | I194: 0
E195: Opgegeven afschrijvingen 2007 met afschrijvingstermijn 25 | H195: € | I195: 0
E196: Opgegeven afschrijvingen 2007 met afschrijvingstermijn 10 | H196: € | I196: 0
E197: Opgegeven afschrijvingen 2007 met afschrijvingstermijn 5 | H197: € | I197: 0
B199: Opgegeven Cumulatieve Afschrijvingen Bij Desinvesteringen 2007
E200: Opgegeven c.a.d. 2007 met afschrijvingstermijn 55 | H200: € | I200: =SUM(K200:DF200) -> 0
E201: Opgegeven c.a.d. 2007 met afschrijvingstermijn 45 | H201: € | I201: 0
E202: Opgegeven c.a.d. 2007 met afschrijvingstermijn 30 | H202: € | I202: 0
E203: Opgegeven c.a.d. 2007 met afschrijvingstermijn 25 | H203: € | I203: 0
E204: Opgegeven c.a.d. 2007 met afschrijvingstermijn 10 | H204: € | I204: 0
E205: Opgegeven c.a.d. 2007 met afschrijvingstermijn 5 | H205: € | I205: 0
B207: Bijzondere Waardeverminderingen Op Activa 2007
E208: Bijzondere waardeverminderingen op activa 2007 met afschrijvingstermijn 55 | H208: € | I208: =SUM(K208:DF208) -> 0
E209: Bijzondere waardeverminderingen op activa 2007 met afschrijvingstermijn 45 | H209: € | I209: 0
E210: Bijzondere waardeverminderingen op activa 2007 met afschrijvingstermijn 30 | H210: € | I210: 0
E211: Bijzondere waardeverminderingen op activa 2007 met afschrijvingstermijn 25 | H211: € | I211: 0
E212: Bijzondere waardeverminderingen op activa 2007 met afschrijvingstermijn 10 | H212: € | I212: 0
E213: Bijzondere waardeverminderingen op activa 2007 met afschrijvingstermijn 5 | H213: € | I213: 0
B215: Input Alert
E216: Dummy Beginjaar investeringen
E217: Dummy Modelperiode
E218: Dummy Aantal cellen met onterechte input 2007
E219: Dummy Waarschuwing onterecht ingevulde cellen 2007
A221: INVESTERINGSJAAR 2008
B223: Investeringen 2008
E224: Aanschafwaarde investeringen 2008 met afschrijvingstermijn 55 | G224: 51975.91 | H224: € | I224: =SUM(K224:DF224) -> 0
E225: Aanschafwaarde investeringen 2008 met afschrijvingstermijn 45 | G225: 850678.1 | H225: € | I225: 0
E226: Aanschafwaarde investeringen 2008 met afschrijvingstermijn 30 | G226: 21979.07 | H226: € | I226: 0
E227: Aanschafwaarde investeringen 2008 met afschrijvingstermijn 25 | G227: 0 | H227: € | I227: 0
E228: Aanschafwaarde investeringen 2008 met afschrijvingstermijn 10 | G228: 0 | H228: € | I228: 0
E229: Aanschafwaarde investeringen 2008 met afschrijvingstermijn 5 | G229: 1108712.12 | H229: € | I229: 0
E230: Aanschafwaarde investeringen 2008 zonder afschrijvingstermijn | H230: € | I230: 0
B232: Desinvesteringen 2008
E233: Desinvesteringen 2008 met afschrijvingstermijn 55 | H233: € | I233: =SUM(K233:DF233) -> 0
E234: Desinvesteringen 2008 met afschrijvingstermijn 45 | H234: € | I234: 0
E235: Desinvesteringen 2008 met afschrijvingstermijn 30 | H235: € | I235: 0
... 468 more rows

Sheet InpIntergas
A1: =RIGHT(CELL("filename", A1), LEN(CELL("filename", A1)) - SEARCH("]", CELL("filename", A1))) -> InpIntergas
E2: =Tijd!E$2 -> Actieve netbeheerder | G2: =Tijd!G$2 -> Stedin
E3: =Tijd!E$3 -> Actieve inputsheet | G3: =Tijd!G$3 -> InpStedin
E4: =Tijd!E$4 -> Modelperiode | G4: =Check!G4 -> 0 | H4: =Check!H4 -> errors | K4: =Tijd!K$4 -> 2004 | L4: =Tijd!L$4 -> 2005 | M4: =Tijd!M$4 -> 2006 | N4: =Tijd!N$4 -> 2007 | O4: =Tijd!O$4 -> 2008 | P4: =Tijd!P$4 -> 2009 | Q4: =Tijd!Q$4 -> 2010 | R4: =Tijd!R$4 -> 2011 | S4: =Tijd!S$4 -> 2012 | T4: =Tijd!T$4 -> 2013 | U4: =Tijd!U$4 -> 2014 | V4: =Tijd!V$4 -> 2015 | W4: =Tijd!W$4 -> 2016 | X4: =Tijd!X$4 -> 2017 | Y4: =Tijd!Y$4 -> 2018 | Z4: =Tijd!Z$4 -> 2019 | AA4: =Tijd!AA$4 -> 2020 | AB4: =Tijd!AB$4 -> 2021 | AC4: =Tijd!AC$4 -> 2022 | AD4: =Tijd!AD$4 -> 2023 | AE4: =Tijd!AE$4 -> 2024 | AF4: =Tijd!AF$4 -> 2025 | AG4: =Tijd!AG$4 -> 2026 | AH4: =Tijd!AH$4 -> 2027 | AI4: =Tijd!AI$4 -> 2028 | AJ4: =Tijd!AJ$4 -> 2029 | AK4: =Tijd!AK$4 -> 2030 | AL4: =Tijd!AL$4 -> 2031 | AM4: =Tijd!AM$4 -> 2032 | AN4: =Tijd!AN$4 -> 2033 | AO4: =Tijd!AO$4 -> 2034 | AP4: =Tijd!AP$4 -> 2035 | AQ4: =Tijd!AQ$4 -> 2036 | AR4: =Tijd!AR$4 -> 2037 | AS4: =Tijd!AS$4 -> 2038 | AT4: =Tijd!AT$4 -> 2039 | AU4: =Tijd!AU$4 -> 2040 | AV4: =Tijd!AV$4 -> 2041 | AW4: =Tijd!AW$4 -> 2042 | AX4: =Tijd!AX$4 -> 2043 | AY4: =Tijd!AY$4 -> 2044 | AZ4: =Tijd!AZ$4 -> 2045 | BA4: =Tijd!BA$4 -> 2046 | BB4: =Tijd!BB$4 -> 2047 | BC4: =Tijd!BC$4 -> 2048 | BD4: =Tijd!BD$4 -> 2049 | BE4: =Tijd!BE$4 -> 2050 | BF4: =Tijd!BF$4 -> 2051 | BG4: =Tijd!BG$4 -> 2052 | BH4: =Tijd!BH$4 -> 2053 | BI4: =Tijd!BI$4 -> 2054 | BJ4: =Tijd!BJ$4 -> 2055 | BK4: =Tijd!BK$4 -> 2056 | BL4: =Tijd!BL$4 -> 2057 | BM4: =Tijd!BM$4 -> 2058 | BN4: =Tijd!BN$4 -> 2059 | BO4: =Tijd!BO$4 -> 2060 | BP4: =Tijd!BP$4 -> 2061 | BQ4: =Tijd!BQ$4 -> 2062 | BR4: =Tijd!BR$4 -> 2063 | BS4: =Tijd!BS$4 -> 2064 | BT4: =Tijd!BT$4 -> 2065 | BU4: =Tijd!BU$4 -> 2066 | BV4: =Tijd!BV$4 -> 2067 | BW4: =Tijd!BW$4 -> 2068 | BX4: =Tijd!BX$4 -> 2069 | BY4: =Tijd!BY$4 -> 2070 | BZ4: =Tijd!BZ$4 -> 2071 | CA4: =Tijd!CA$4 -> 2072 | CB4: =Tijd!CB$4 -> 2073 | CC4: =Tijd!CC$4 -> 2074 | CD4: =Tijd!CD$4 -> 2075 | CE4: =Tijd!CE$4 -> 2076 | CF4: =Tijd!CF$4 -> 2077 | CG4: =Tijd!CG$4 -> 2078 | CH4: =Tijd!CH$4 -> 2079 | CI4: =Tijd!CI$4 -> 2080 | CJ4: =Tijd!CJ$4 -> 2081 | CK4: =Tijd!CK$4 -> 2082 | CL4: =Tijd!CL$4 -> 2083 | CM4: =Tijd!CM$4 -> 2084 | CN4: =Tijd!CN$4 -> 2085 | CO4: =Tijd!CO$4 -> 2086 | CP4: =Tijd!CP$4 -> 2087 | CQ4: =Tijd!CQ$4 -> 2088 | CR4: =Tijd!CR$4 -> 2089 | CS4: =Tijd!CS$4 -> 2090 | CT4: =Tijd!CT$4 -> 2091 | CU4: =Tijd!CU$4 -> 2092 | CV4: =Tijd!CV$4 -> 2093 | CW4: =Tijd!CW$4 -> 2094 | CX4: =Tijd!CX$4 -> 2095 | CY4: =Tijd!CY$4 -> 2096 | CZ4: =Tijd!CZ$4 -> 2097 | DA4: =Tijd!DA$4 -> 2098 | DB4: =Tijd!DB$4 -> 2099 | DC4: =Tijd!DC$4 -> 2100 | DD4: =Tijd!DD$4 -> 2101 | DE4: =Tijd!DE$4 -> 2102 | DF4: =Tijd!DF$4 -> 2103
E5: =Tijd!E$5 -> Looptijd vs Uitlooptijd | G5: =Check!G5 -> 0 | H5: =Check!H5 -> waarschuwingen | K5: =Tijd!K$5 -> Looptijd | L5: =Tijd!L$5 -> Looptijd | M5: =Tijd!M$5 -> Looptijd | N5: =Tijd!N$5 -> Looptijd | O5: =Tijd!O$5 -> Looptijd | P5: =Tijd!P$5 -> Looptijd | Q5: =Tijd!Q$5 -> Looptijd | R5: =Tijd!R$5 -> Looptijd | S5: =Tijd!S$5 -> Looptijd | T5: =Tijd!T$5 -> Looptijd | U5: =Tijd!U$5 -> Looptijd | V5: =Tijd!V$5 -> Looptijd | W5: =Tijd!W$5 -> Looptijd | X5: =Tijd!X$5 -> Looptijd | Y5: =Tijd!Y$5 -> Looptijd | Z5: =Tijd!Z$5 -> Looptijd | AA5: =Tijd!AA$5 -> Looptijd | AB5: =Tijd!AB$5 -> Looptijd | AC5: =Tijd!AC$5 -> Looptijd | AD5: =Tijd!AD$5 -> Looptijd | AE5: =Tijd!AE$5 -> Looptijd | AF5: =Tijd!AF$5 -> Looptijd | AG5: =Tijd!AG$5 -> Looptijd | AH5: =Tijd!AH$5 -> Looptijd | AI5: =Tijd!AI$5 -> Looptijd | AJ5: =Tijd!AJ$5 -> Looptijd | AK5: =Tijd!AK$5 -> Looptijd | AL5: =Tijd!AL$5 -> Looptijd | AM5: =Tijd!AM$5 -> Looptijd | AN5: =Tijd!AN$5 -> Looptijd | AO5: =Tijd!AO$5 -> Looptijd | AP5: =Tijd!AP$5 -> Looptijd | AQ5: =Tijd!AQ$5 -> Looptijd | AR5: =Tijd!AR$5 -> Looptijd | AS5: =Tijd!AS$5 -> Looptijd | AT5: =Tijd!AT$5 -> Looptijd | AU5: =Tijd!AU$5 -> Looptijd | AV5: =Tijd!AV$5 -> Looptijd | AW5: =Tijd!AW$5 -> Looptijd | AX5: =Tijd!AX$5 -> Looptijd | AY5: =Tijd!AY$5 -> Looptijd | AZ5: =Tijd!AZ$5 -> Looptijd | BA5: =Tijd!BA$5 -> Looptijd | BB5: =Tijd!BB$5 -> Looptijd | BC5: =Tijd!BC$5 -> Looptijd | BD5: =Tijd!BD$5 -> Looptijd | BE5: =Tijd!BE$5 -> Looptijd | BF5: =Tijd!BF$5 -> Looptijd | BG5: =Tijd!BG$5 -> Looptijd | BH5: =Tijd!BH$5 -> Looptijd | BI5: =Tijd!BI$5 -> Looptijd | BJ5: =Tijd!BJ$5 -> Uitlooptijd | BK5: =Tijd!BK$5 -> Uitlooptijd | BL5: =Tijd!BL$5 -> Uitlooptijd | BM5: =Tijd!BM$5 -> Uitlooptijd | BN5: =Tijd!BN$5 -> Uitlooptijd | BO5: =Tijd!BO$5 -> Uitlooptijd | BP5: =Tijd!BP$5 -> Uitlooptijd | BQ5: =Tijd!BQ$5 -> Uitlooptijd | BR5: =Tijd!BR$5 -> Uitlooptijd | BS5: =Tijd!BS$5 -> Uitlooptijd | BT5: =Tijd!BT$5 -> Uitlooptijd | BU5: =Tijd!BU$5 -> Uitlooptijd | BV5: =Tijd!BV$5 -> Uitlooptijd | BW5: =Tijd!BW$5 -> Uitlooptijd | BX5: =Tijd!BX$5 -> Uitlooptijd | BY5: =Tijd!BY$5 -> Uitlooptijd | BZ5: =Tijd!BZ$5 -> Uitlooptijd | CA5: =Tijd!CA$5 -> Uitlooptijd | CB5: =Tijd!CB$5 -> Uitlooptijd | CC5: =Tijd!CC$5 -> Uitlooptijd | CD5: =Tijd!CD$5 -> Uitlooptijd | CE5: =Tijd!CE$5 -> Uitlooptijd | CF5: =Tijd!CF$5 -> Uitlooptijd | CG5: =Tijd!CG$5 -> Uitlooptijd | CH5: =Tijd!CH$5 -> Uitlooptijd | CI5: =Tijd!CI$5 -> Uitlooptijd | CJ5: =Tijd!CJ$5 -> Uitlooptijd | CK5: =Tijd!CK$5 -> Uitlooptijd | CL5: =Tijd!CL$5 -> Uitlooptijd | CM5: =Tijd!CM$5 -> Uitlooptijd | CN5: =Tijd!CN$5 -> Uitlooptijd | CO5: =Tijd!CO$5 -> Uitlooptijd | CP5: =Tijd!CP$5 -> Uitlooptijd | CQ5: =Tijd!CQ$5 -> Uitlooptijd | CR5: =Tijd!CR$5 -> Uitlooptijd | CS5: =Tijd!CS$5 -> Uitlooptijd | CT5: =Tijd!CT$5 -> Uitlooptijd | CU5: =Tijd!CU$5 -> Uitlooptijd | CV5: =Tijd!CV$5 -> Uitlooptijd | CW5: =Tijd!CW$5 -> Uitlooptijd | CX5: =Tijd!CX$5 -> Uitlooptijd | CY5: =Tijd!CY$5 -> Uitlooptijd | CZ5: =Tijd!CZ$5 -> Uitlooptijd | DA5: =Tijd!DA$5 -> Uitlooptijd | DB5: =Tijd!DB$5 -> Uitlooptijd | DC5: =Tijd!DC$5 -> Uitlooptijd | DD5: =Tijd!DD$5 -> Uitlooptijd | DE5: =Tijd!DE$5 -> Uitlooptijd | DF5: =Tijd!DF$5 -> Uitlooptijd
E6: =Tijd!E$10 -> Model kolom teller | F6: Bron | G6: Constante | H6: Eenheid | I6: Totaal | K6: =Tijd!K$10 -> 1 | L6: =Tijd!L$10 -> 2 | M6: =Tijd!M$10 -> 3 | N6: =Tijd!N$10 -> 4 | O6: =Tijd!O$10 -> 5 | P6: =Tijd!P$10 -> 6 | Q6: =Tijd!Q$10 -> 7 | R6: =Tijd!R$10 -> 8 | S6: =Tijd!S$10 -> 9 | T6: =Tijd!T$10 -> 10 | U6: =Tijd!U$10 -> 11 | V6: =Tijd!V$10 -> 12 | W6: =Tijd!W$10 -> 13 | X6: =Tijd!X$10 -> 14 | Y6: =Tijd!Y$10 -> 15 | Z6: =Tijd!Z$10 -> 16 | AA6: =Tijd!AA$10 -> 17 | AB6: =Tijd!AB$10 -> 18 | AC6: =Tijd!AC$10 -> 19 | AD6: =Tijd!AD$10 -> 20 | AE6: =Tijd!AE$10 -> 21 | AF6: =Tijd!AF$10 -> 22 | AG6: =Tijd!AG$10 -> 23 | AH6: =Tijd!AH$10 -> 24 | AI6: =Tijd!AI$10 -> 25 | AJ6: =Tijd!AJ$10 -> 26 | AK6: =Tijd!AK$10 -> 27 | AL6: =Tijd!AL$10 -> 28 | AM6: =Tijd!AM$10 -> 29 | AN6: =Tijd!AN$10 -> 30 | AO6: =Tijd!AO$10 -> 31 | AP6: =Tijd!AP$10 -> 32 | AQ6: =Tijd!AQ$10 -> 33 | AR6: =Tijd!AR$10 -> 34 | AS6: =Tijd!AS$10 -> 35 | AT6: =Tijd!AT$10 -> 36 | AU6: =Tijd!AU$10 -> 37 | AV6: =Tijd!AV$10 -> 38 | AW6: =Tijd!AW$10 -> 39 | AX6: =Tijd!AX$10 -> 40 | AY6: =Tijd!AY$10 -> 41 | AZ6: =Tijd!AZ$10 -> 42 | BA6: =Tijd!BA$10 -> 43 | BB6: =Tijd!BB$10 -> 44 | BC6: =Tijd!BC$10 -> 45 | BD6: =Tijd!BD$10 -> 46 | BE6: =Tijd!BE$10 -> 47 | BF6: =Tijd!BF$10 -> 48 | BG6: =Tijd!BG$10 -> 49 | BH6: =Tijd!BH$10 -> 50 | BI6: =Tijd!BI$10 -> 51 | BJ6: =Tijd!BJ$10 -> 52 | BK6: =Tijd!BK$10 -> 53 | BL6: =Tijd!BL$10 -> 54 | BM6: =Tijd!BM$10 -> 55 | BN6: =Tijd!BN$10 -> 56 | BO6: =Tijd!BO$10 -> 57 | BP6: =Tijd!BP$10 -> 58 | BQ6: =Tijd!BQ$10 -> 59 | BR6: =Tijd!BR$10 -> 60 | BS6: =Tijd!BS$10 -> 61 | BT6: =Tijd!BT$10 -> 62 | BU6: =Tijd!BU$10 -> 63 | BV6: =Tijd!BV$10 -> 64 | BW6: =Tijd!BW$10 -> 65 | BX6: =Tijd!BX$10 -> 66 | BY6: =Tijd!BY$10 -> 67 | BZ6: =Tijd!BZ$10 -> 68 | CA6: =Tijd!CA$10 -> 69 | CB6: =Tijd!CB$10 -> 70 | CC6: =Tijd!CC$10 -> 71 | CD6: =Tijd!CD$10 -> 72 | CE6: =Tijd!CE$10 -> 73 | CF6: =Tijd!CF$10 -> 74 | CG6: =Tijd!CG$10 -> 75 | CH6: =Tijd!CH$10 -> 76 | CI6: =Tijd!CI$10 -> 77 | CJ6: =Tijd!CJ$10 -> 78 | CK6: =Tijd!CK$10 -> 79 | CL6: =Tijd!CL$10 -> 80 | CM6: =Tijd!CM$10 -> 81 | CN6: =Tijd!CN$10 -> 82 | CO6: =Tijd!CO$10 -> 83 | CP6: =Tijd!CP$10 -> 84 | CQ6: =Tijd!CQ$10 -> 85 | CR6: =Tijd!CR$10 -> 86 | CS6: =Tijd!CS$10 -> 87 | CT6: =Tijd!CT$10 -> 88 | CU6: =Tijd!CU$10 -> 89 | CV6: =Tijd!CV$10 -> 90 | CW6: =Tijd!CW$10 -> 91 | CX6: =Tijd!CX$10 -> 92 | CY6: =Tijd!CY$10 -> 93 | CZ6: =Tijd!CZ$10 -> 94 | DA6: =Tijd!DA$10 -> 95 | DB6: =Tijd!DB$10 -> 96 | DC6: =Tijd!DC$10 -> 97 | DD6: =Tijd!DD$10 -> 98 | DE6: =Tijd!DE$10 -> 99 | DF6: =Tijd!DF$10 -> 100
A9: NETTEN
A11: INVESTERINGSJAAR 2004 - START GAW
E12: Startwaarde GAW incl. afgekochte precario (01-01-2004) | G12: 234080044 | H12: €
E13: Afschrijvingen Start GAW | G13: 6209019.735 | H13: €
E14: Afgekochte precario in Start GAW (01-01-2004) | G14: 13895000 | H14: €
E15: Afschrijvingsbedrag afgekochte precario | G15: 731315.7895 | H15: €
A17: INVESTERINGSJAAR 2004
B19: Investeringen 2004
E20: Aanschafwaarde investeringen 2004 met afschrijvingstermijn 55 | G20: 248418.46 | H20: € | I20: =SUM(K20:DF20) -> 0
E21: Aanschafwaarde investeringen 2004 met afschrijvingstermijn 45 | G21: 498261.59 | H21: € | I21: 0
E22: Aanschafwaarde investeringen 2004 met afschrijvingstermijn 30 | G22: 109529.89 | H22: € | I22: 0
E23: Aanschafwaarde investeringen 2004 met afschrijvingstermijn 25 | H23: € | I23: 0
E24: Aanschafwaarde investeringen 2004 met afschrijvingstermijn 10 | H24: € | I24: 0
E25: Aanschafwaarde investeringen 2004 met afschrijvingstermijn 5 | H25: € | I25: 0
E26: Aanschafwaarde investeringen 2004 zonder afschrijvingstermijn | H26: € | I26: 0
B28: Desinvesteringen 2004
E29: Desinvesteringen 2004 met afschrijvingstermijn 55 | H29: € | I29: =SUM(K29:DF29) -> 0
E30: Desinvesteringen 2004 met afschrijvingstermijn 45 | H30: € | I30: 0
E31: Desinvesteringen 2004 met afschrijvingstermijn 30 | H31: € | I31: 0
E32: Desinvesteringen 2004 met afschrijvingstermijn 25 | H32: € | I32: 0
E33: Desinvesteringen 2004 met afschrijvingstermijn 10 | H33: € | I33: 0
E34: Desinvesteringen 2004 met afschrijvingstermijn 5 | H34: € | I34: 0
E35: Desinvesteringen 2004 zonder afschrijvingstermijn | H35: € | I35: 0
B37: Opgegeven Afschrijvingen 2004
E38: Opgegeven afschrijvingen 2004 met afschrijvingstermijn 55 | H38: € | I38: =SUM(K38:DF38) -> 11291.74818 | K38: 2258.349636 | L38: 4516.699273 | M38: 4516.699273
E39: Opgegeven afschrijvingen 2004 met afschrijvingstermijn 45 | H39: € | I39: 27681.19944 | K39: 5536.239889 | L39: 11072.47978 | M39: 11072.47978
E40: Opgegeven afschrijvingen 2004 met afschrijvingstermijn 30 | H40: € | I40: 9127.490833 | K40: 1825.498167 | L40: 3650.996333 | M40: 3650.996333
E41: Opgegeven afschrijvingen 2004 met afschrijvingstermijn 25 | H41: € | I41: 0
E42: Opgegeven afschrijvingen 2004 met afschrijvingstermijn 10 | H42: € | I42: 0
E43: Opgegeven afschrijvingen 2004 met afschrijvingstermijn 5 | H43: € | I43: 0
B45: Opgegeven Cumulatieve Afschrijvingen Bij Desinvesteringen 2004
E46: Opgegeven c.a.d. 2004 met afschrijvingstermijn 55 | H46: € | I46: =SUM(K46:DF46) -> 0
E47: Opgegeven c.a.d. 2004 met afschrijvingstermijn 45 | H47: € | I47: 0
E48: Opgegeven c.a.d. 2004 met afschrijvingstermijn 30 | H48: € | I48: 0
E49: Opgegeven c.a.d. 2004 met afschrijvingstermijn 25 | H49: € | I49: 0
E50: Opgegeven c.a.d. 2004 met afschrijvingstermijn 10 | H50: € | I50: 0
E51: Opgegeven c.a.d. 2004 met afschrijvingstermijn 5 | H51: € | I51: 0
B53: Bijzondere Waardeverminderingen Op Activa 2004
E54: Bijzondere waardeverminderingen op activa 2004 met afschrijvingstermijn 55 | H54: € | I54: =SUM(K54:DF54) -> 0
E55: Bijzondere waardeverminderingen op activa 2004 met afschrijvingstermijn 45 | H55: € | I55: 0
E56: Bijzondere waardeverminderingen op activa 2004 met afschrijvingstermijn 30 | H56: € | I56: 0
E57: Bijzondere waardeverminderingen op activa 2004 met afschrijvingstermijn 25 | H57: € | I57: 0
E58: Bijzondere waardeverminderingen op activa 2004 met afschrijvingstermijn 10 | H58: € | I58: 0
E59: Bijzondere waardeverminderingen op activa 2004 met afschrijvingstermijn 5 | H59: € | I59: 0
B61: Input Alert
E62: Dummy Beginjaar investeringen
E63: Dummy Modelperiode
E64: Dummy Aantal cellen met onterechte input 2004
E65: Dummy Waarschuwing onterecht ingevulde cellen 2004
A67: INVESTERINGSJAAR 2005
B69: Investeringen 2005
E70: Aanschafwaarde investeringen 2005 met afschrijvingstermijn 55 | G70: 24198.22 | H70: € | I70: =SUM(K70:DF70) -> 0
E71: Aanschafwaarde investeringen 2005 met afschrijvingstermijn 45 | G71: 335893.3944 | H71: € | I71: 0
E72: Aanschafwaarde investeringen 2005 met afschrijvingstermijn 30 | G72: 70370.27 | H72: € | I72: 0
E73: Aanschafwaarde investeringen 2005 met afschrijvingstermijn 25 | G73: 0 | H73: € | I73: 0
E74: Aanschafwaarde investeringen 2005 met afschrijvingstermijn 10 | G74: 0 | H74: € | I74: 0
E75: Aanschafwaarde investeringen 2005 met afschrijvingstermijn 5 | G75: 1446081.31 | H75: € | I75: 0
E76: Aanschafwaarde investeringen 2005 zonder afschrijvingstermijn | H76: € | I76: 0
B78: Desinvesteringen 2005
E79: Desinvesteringen 2005 met afschrijvingstermijn 55 | H79: € | I79: =SUM(K79:DF79) -> 0
E80: Desinvesteringen 2005 met afschrijvingstermijn 45 | H80: € | I80: 0
E81: Desinvesteringen 2005 met afschrijvingstermijn 30 | H81: € | I81: 0
E82: Desinvesteringen 2005 met afschrijvingstermijn 25 | H82: € | I82: 0
E83: Desinvesteringen 2005 met afschrijvingstermijn 10 | H83: € | I83: 0
E84: Desinvesteringen 2005 met afschrijvingstermijn 5 | H84: € | I84: 1446000 | R84: 1446000
E85: Desinvesteringen 2005 zonder afschrijvingstermijn | H85: € | I85: 0
B87: Opgegeven Afschrijvingen 2005
E88: Opgegeven afschrijvingen 2005 met afschrijvingstermijn 55 | H88: € | I88: =SUM(L88:DF88) -> 659.9514545 | L88: 219.9838182 | M88: 439.9676364
E89: Opgegeven afschrijvingen 2005 met afschrijvingstermijn 45 | H89: € | I89: 11196.44648 | L89: 3732.148827 | M89: 7464.297653
E90: Opgegeven afschrijvingen 2005 met afschrijvingstermijn 30 | H90: € | I90: 3518.5135 | L90: 1172.837833 | M90: 2345.675667
E91: Opgegeven afschrijvingen 2005 met afschrijvingstermijn 25 | H91: € | I91: 0 | L91: 0 | M91: 0
E92: Opgegeven afschrijvingen 2005 met afschrijvingstermijn 10 | H92: € | I92: 0 | L92: 0 | M92: 0
E93: Opgegeven afschrijvingen 2005 met afschrijvingstermijn 5 | H93: € | I93: 433824.393 | L93: 144608.131 | M93: 289216.262
B95: Opgegeven Cumulatieve Afschrijvingen Bij Desinvesteringen 2005
E96: Opgegeven c.a.d. 2005 met afschrijvingstermijn 55 | H96: € | I96: =SUM(K96:DF96) -> 0
E97: Opgegeven c.a.d. 2005 met afschrijvingstermijn 45 | H97: € | I97: 0
E98: Opgegeven c.a.d. 2005 met afschrijvingstermijn 30 | H98: € | I98: 0
E99: Opgegeven c.a.d. 2005 met afschrijvingstermijn 25 | H99: € | I99: 0
E100: Opgegeven c.a.d. 2005 met afschrijvingstermijn 10 | H100: € | I100: 0
E101: Opgegeven c.a.d. 2005 met afschrijvingstermijn 5 | H101: € | I101: 0
B103: Bijzondere Waardeverminderingen Op Activa 2005
E104: Bijzondere waardeverminderingen op activa 2005 met afschrijvingstermijn 55 | H104: € | I104: =SUM(K104:DF104) -> 0
E105: Bijzondere waardeverminderingen op activa 2005 met afschrijvingstermijn 45 | H105: € | I105: 0
E106: Bijzondere waardeverminderingen op activa 2005 met afschrijvingstermijn 30 | H106: € | I106: 0
E107: Bijzondere waardeverminderingen op activa 2005 met afschrijvingstermijn 25 | H107: € | I107: 0
E108: Bijzondere waardeverminderingen op activa 2005 met afschrijvingstermijn 10 | H108: € | I108: 0
E109: Bijzondere waardeverminderingen op activa 2005 met afschrijvingstermijn 5 | H109: € | I109: 0
B111: Input Alert
E112: Dummy Beginjaar investeringen
E113: Dummy Modelperiode
E114: Dummy Aantal cellen met onterechte input 2005
E115: Dummy Waarschuwing onterecht ingevulde cellen 2005
A117: INVESTERINGSJAAR 2006 - START GAW voor EHD
E118: Startwaarde GAW voor EHD (01-01-2006) | H118: €
E119: Afschrijvingen Start GAW voor EHD | H119: €
A121: INVESTERINGSJAAR 2006
B123: Investeringen 2006
E124: Aanschafwaarde investeringen 2006 met afschrijvingstermijn 55 | G124: -1930.34 | H124: € | I124: =SUM(K124:DF124) -> 0
E125: Aanschafwaarde investeringen 2006 met afschrijvingstermijn 45 | G125: 39896.44 | H125: € | I125: 0
E126: Aanschafwaarde investeringen 2006 met afschrijvingstermijn 30 | G126: 105673.81 | H126: € | I126: 0
E127: Aanschafwaarde investeringen 2006 met afschrijvingstermijn 25 | G127: 0 | H127: € | I127: 0
E128: Aanschafwaarde investeringen 2006 met afschrijvingstermijn 10 | G128: 570 | H128: € | I128: 0
E129: Aanschafwaarde investeringen 2006 met afschrijvingstermijn 5 | G129: 1270602.37 | H129: € | I129: 0
E130: Aanschafwaarde investeringen 2006 zonder afschrijvingstermijn | H130: € | I130: 0
B132: Desinvesteringen 2006
E133: Desinvesteringen 2006 met afschrijvingstermijn 55 | H133: € | I133: =SUM(K133:DF133) -> 0
E134: Desinvesteringen 2006 met afschrijvingstermijn 45 | H134: € | I134: 0
E135: Desinvesteringen 2006 met afschrijvingstermijn 30 | H135: € | I135: 0
E136: Desinvesteringen 2006 met afschrijvingstermijn 25 | H136: € | I136: 0
E137: Desinvesteringen 2006 met afschrijvingstermijn 10 | H137: € | I137: 1000 | R137: 1000
E138: Desinvesteringen 2006 met afschrijvingstermijn 5 | H138: € | I138: 1271000 | R138: 1271000
E139: Desinvesteringen 2006 zonder afschrijvingstermijn | H139: € | I139: 0
B141: Opgegeven Afschrijvingen 2006
E142: Opgegeven afschrijvingen 2006 met afschrijvingstermijn 55 | H142: € | I142: =SUM(K142:DF142) -> -17.54854545 | M142: -17.54854545
E143: Opgegeven afschrijvingen 2006 met afschrijvingstermijn 45 | H143: € | I143: 443.2937778 | M143: 443.2937778
E144: Opgegeven afschrijvingen 2006 met afschrijvingstermijn 30 | H144: € | I144: 1761.230167 | M144: 1761.230167
E145: Opgegeven afschrijvingen 2006 met afschrijvingstermijn 25 | H145: € | I145: 0 | M145: 0
E146: Opgegeven afschrijvingen 2006 met afschrijvingstermijn 10 | H146: € | I146: 28.5 | M146: 28.5
E147: Opgegeven afschrijvingen 2006 met afschrijvingstermijn 5 | H147: € | I147: 127060.237 | M147: 127060.237
B149: Opgegeven Cumulatieve Afschrijvingen Bij Desinvesteringen 2006
E150: Opgegeven c.a.d. 2006 met afschrijvingstermijn 55 | H150: € | I150: =SUM(K150:DF150) -> 0
E151: Opgegeven c.a.d. 2006 met afschrijvingstermijn 45 | H151: € | I151: 0
E152: Opgegeven c.a.d. 2006 met afschrijvingstermijn 30 | H152: € | I152: 0
E153: Opgegeven c.a.d. 2006 met afschrijvingstermijn 25 | H153: € | I153: 0
E154: Opgegeven c.a.d. 2006 met afschrijvingstermijn 10 | H154: € | I154: 0
E155: Opgegeven c.a.d. 2006 met afschrijvingstermijn 5 | H155: € | I155: 0
B157: Bijzondere Waardeverminderingen Op Activa 2006
E158: Bijzondere waardeverminderingen op activa 2006 met afschrijvingstermijn 55 | H158: € | I158: =SUM(K158:DF158) -> 0
E159: Bijzondere waardeverminderingen op activa 2006 met afschrijvingstermijn 45 | H159: € | I159: 0
E160: Bijzondere waardeverminderingen op activa 2006 met afschrijvingstermijn 30 | H160: € | I160: 0
E161: Bijzondere waardeverminderingen op activa 2006 met afschrijvingstermijn 25 | H161: € | I161: 0
E162: Bijzondere waardeverminderingen op activa 2006 met afschrijvingstermijn 10 | H162: € | I162: 0
E163: Bijzondere waardeverminderingen op activa 2006 met afschrijvingstermijn 5 | H163: € | I163: 0
B165: Input Alert
E166: Dummy Beginjaar investeringen
E167: Dummy Modelperiode
E168: Dummy Aantal cellen met onterechte input 2006
E169: Dummy Waarschuwing onterecht ingevulde cellen 2006
A171: INVESTERINGSJAAR 2007
B173: Investeringen 2007
E174: Aanschafwaarde investeringen 2007 met afschrijvingstermijn 55 | G174: 132879 | H174: € | I174: =SUM(K174:DF174) -> 0
E175: Aanschafwaarde investeringen 2007 met afschrijvingstermijn 45 | G175: 440564 | H175: € | I175: 0
E176: Aanschafwaarde investeringen 2007 met afschrijvingstermijn 30 | G176: 95668 | H176: € | I176: 0
E177: Aanschafwaarde investeringen 2007 met afschrijvingstermijn 25 | G177: 0 | H177: € | I177: 0
E178: Aanschafwaarde investeringen 2007 met afschrijvingstermijn 10 | G178: 0 | H178: € | I178: 0
E179: Aanschafwaarde investeringen 2007 met afschrijvingstermijn 5 | G179: 103111 | H179: € | I179: 0
E180: Aanschafwaarde investeringen 2007 zonder afschrijvingstermijn | H180: € | I180: 0
B182: Desinvesteringen 2007
E183: Desinvesteringen 2007 met afschrijvingstermijn 55 | H183: € | I183: =SUM(K183:DF183) -> 0
E184: Desinvesteringen 2007 met afschrijvingstermijn 45 | H184: € | I184: 0
E185: Desinvesteringen 2007 met afschrijvingstermijn 30 | H185: € | I185: 0
E186: Desinvesteringen 2007 met afschrijvingstermijn 25 | H186: € | I186: 0
E187: Desinvesteringen 2007 met afschrijvingstermijn 10 | H187: € | I187: 0
E188: Desinvesteringen 2007 met afschrijvingstermijn 5 | H188: € | I188: 103000 | R188: 103000
E189: Desinvesteringen 2007 zonder afschrijvingstermijn | H189: € | I189: 0
B191: Opgegeven Afschrijvingen 2007
E192: Opgegeven afschrijvingen 2007 met afschrijvingstermijn 55 | H192: € | I192: =SUM(K192:DF192) -> 0
E193: Opgegeven afschrijvingen 2007 met afschrijvingstermijn 45 | H193: € | I193: 0
E194: Opgegeven afschrijvingen 2007 met afschrijvingstermijn 30 | H194: € | I194: 0
E195: Opgegeven afschrijvingen 2007 met afschrijvingstermijn 25 | H195: € | I195: 0
E196: Opgegeven afschrijvingen 2007 met afschrijvingstermijn 10 | H196: € | I196: 0
E197: Opgegeven afschrijvingen 2007 met afschrijvingstermijn 5 | H197: € | I197: 0
B199: Opgegeven Cumulatieve Afschrijvingen Bij Desinvesteringen 2007
E200: Opgegeven c.a.d. 2007 met afschrijvingstermijn 55 | H200: € | I200: =SUM(K200:DF200) -> 0
E201: Opgegeven c.a.d. 2007 met afschrijvingstermijn 45 | H201: € | I201: 0
E202: Opgegeven c.a.d. 2007 met afschrijvingstermijn 30 | H202: € | I202: 0
E203: Opgegeven c.a.d. 2007 met afschrijvingstermijn 25 | H203: € | I203: 0
E204: Opgegeven c.a.d. 2007 met afschrijvingstermijn 10 | H204: € | I204: 0
E205: Opgegeven c.a.d. 2007 met afschrijvingstermijn 5 | H205: € | I205: 0
B207: Bijzondere Waardeverminderingen Op Activa 2007
E208: Bijzondere waardeverminderingen op activa 2007 met afschrijvingstermijn 55 | H208: € | I208: =SUM(K208:DF208) -> 0
E209: Bijzondere waardeverminderingen op activa 2007 met afschrijvingstermijn 45 | H209: € | I209: 0
E210: Bijzondere waardeverminderingen op activa 2007 met afschrijvingstermijn 30 | H210: € | I210: 0
E211: Bijzondere waardeverminderingen op activa 2007 met afschrijvingstermijn 25 | H211: € | I211: 0
E212: Bijzondere waardeverminderingen op activa 2007 met afschrijvingstermijn 10 | H212: € | I212: 0
E213: Bijzondere waardeverminderingen op activa 2007 met afschrijvingstermijn 5 | H213: € | I213: 0
B215: Input Alert
E216: Dummy Beginjaar investeringen
E217: Dummy Modelperiode
E218: Dummy Aantal cellen met onterechte input 2007
E219: Dummy Waarschuwing onterecht ingevulde cellen 2007
A221: INVESTERINGSJAAR 2008
B223: Investeringen 2008
E224: Aanschafwaarde investeringen 2008 met afschrijvingstermijn 55 | G224: -13000 | H224: € | I224: =SUM(K224:DF224) -> 0
E225: Aanschafwaarde investeringen 2008 met afschrijvingstermijn 45 | G225: 286000 | H225: € | I225: 0
E226: Aanschafwaarde investeringen 2008 met afschrijvingstermijn 30 | G226: 29000 | H226: € | I226: 0
E227: Aanschafwaarde investeringen 2008 met afschrijvingstermijn 25 | G227: 0 | H227: € | I227: 0
E228: Aanschafwaarde investeringen 2008 met afschrijvingstermijn 10 | G228: 12000 | H228: € | I228: 0
E229: Aanschafwaarde investeringen 2008 met afschrijvingstermijn 5 | G229: 114000 | H229: € | I229: 0
E230: Aanschafwaarde investeringen 2008 zonder afschrijvingstermijn | H230: € | I230: 0
B232: Desinvesteringen 2008
E233: Desinvesteringen 2008 met afschrijvingstermijn 55 | H233: € | I233: =SUM(K233:DF233) -> 0
E234: Desinvesteringen 2008 met afschrijvingstermijn 45 | H234: € | I234: 0
E235: Desinvesteringen 2008 met afschrijvingstermijn 30 | H235: € | I235: 0
... 468 more rows

Sheet InpEnexis excl. FNOP
A1: =RIGHT(CELL("filename", A1), LEN(CELL("filename", A1)) - SEARCH("]", CELL("filename", A1))) -> InpEnexis excl. FNOP
E2: =Tijd!E$2 -> Actieve netbeheerder | G2: =Tijd!G$2 -> Stedin
E3: =Tijd!E$3 -> Actieve inputsheet | G3: =Tijd!G$3 -> InpStedin
E4: =Tijd!E$4 -> Modelperiode | G4: =Check!G4 -> 0 | H4: =Check!H4 -> errors | K4: =Tijd!K$4 -> 2004 | L4: =Tijd!L$4 -> 2005 | M4: =Tijd!M$4 -> 2006 | N4: =Tijd!N$4 -> 2007 | O4: =Tijd!O$4 -> 2008 | P4: =Tijd!P$4 -> 2009 | Q4: =Tijd!Q$4 -> 2010 | R4: =Tijd!R$4 -> 2011 | S4: =Tijd!S$4 -> 2012 | T4: =Tijd!T$4 -> 2013 | U4: =Tijd!U$4 -> 2014 | V4: =Tijd!V$4 -> 2015 | W4: =Tijd!W$4 -> 2016 | X4: =Tijd!X$4 -> 2017 | Y4: =Tijd!Y$4 -> 2018 | Z4: =Tijd!Z$4 -> 2019 | AA4: =Tijd!AA$4 -> 2020 | AB4: =Tijd!AB$4 -> 2021 | AC4: =Tijd!AC$4 -> 2022 | AD4: =Tijd!AD$4 -> 2023 | AE4: =Tijd!AE$4 -> 2024 | AF4: =Tijd!AF$4 -> 2025 | AG4: =Tijd!AG$4 -> 2026 | AH4: =Tijd!AH$4 -> 2027 | AI4: =Tijd!AI$4 -> 2028 | AJ4: =Tijd!AJ$4 -> 2029 | AK4: =Tijd!AK$4 -> 2030 | AL4: =Tijd!AL$4 -> 2031 | AM4: =Tijd!AM$4 -> 2032 | AN4: =Tijd!AN$4 -> 2033 | AO4: =Tijd!AO$4 -> 2034 | AP4: =Tijd!AP$4 -> 2035 | AQ4: =Tijd!AQ$4 -> 2036 | AR4: =Tijd!AR$4 -> 2037 | AS4: =Tijd!AS$4 -> 2038 | AT4: =Tijd!AT$4 -> 2039 | AU4: =Tijd!AU$4 -> 2040 | AV4: =Tijd!AV$4 -> 2041 | AW4: =Tijd!AW$4 -> 2042 | AX4: =Tijd!AX$4 -> 2043 | AY4: =Tijd!AY$4 -> 2044 | AZ4: =Tijd!AZ$4 -> 2045 | BA4: =Tijd!BA$4 -> 2046 | BB4: =Tijd!BB$4 -> 2047 | BC4: =Tijd!BC$4 -> 2048 | BD4: =Tijd!BD$4 -> 2049 | BE4: =Tijd!BE$4 -> 2050 | BF4: =Tijd!BF$4 -> 2051 | BG4: =Tijd!BG$4 -> 2052 | BH4: =Tijd!BH$4 -> 2053 | BI4: =Tijd!BI$4 -> 2054 | BJ4: =Tijd!BJ$4 -> 2055 | BK4: =Tijd!BK$4 -> 2056 | BL4: =Tijd!BL$4 -> 2057 | BM4: =Tijd!BM$4 -> 2058 | BN4: =Tijd!BN$4 -> 2059 | BO4: =Tijd!BO$4 -> 2060 | BP4: =Tijd!BP$4 -> 2061 | BQ4: =Tijd!BQ$4 -> 2062 | BR4: =Tijd!BR$4 -> 2063 | BS4: =Tijd!BS$4 -> 2064 | BT4: =Tijd!BT$4 -> 2065 | BU4: =Tijd!BU$4 -> 2066 | BV4: =Tijd!BV$4 -> 2067 | BW4: =Tijd!BW$4 -> 2068 | BX4: =Tijd!BX$4 -> 2069 | BY4: =Tijd!BY$4 -> 2070 | BZ4: =Tijd!BZ$4 -> 2071 | CA4: =Tijd!CA$4 -> 2072 | CB4: =Tijd!CB$4 -> 2073 | CC4: =Tijd!CC$4 -> 2074 | CD4: =Tijd!CD$4 -> 2075 | CE4: =Tijd!CE$4 -> 2076 | CF4: =Tijd!CF$4 -> 2077 | CG4: =Tijd!CG$4 -> 2078 | CH4: =Tijd!CH$4 -> 2079 | CI4: =Tijd!CI$4 -> 2080 | CJ4: =Tijd!CJ$4 -> 2081 | CK4: =Tijd!CK$4 -> 2082 | CL4: =Tijd!CL$4 -> 2083 | CM4: =Tijd!CM$4 -> 2084 | CN4: =Tijd!CN$4 -> 2085 | CO4: =Tijd!CO$4 -> 2086 | CP4: =Tijd!CP$4 -> 2087 | CQ4: =Tijd!CQ$4 -> 2088 | CR4: =Tijd!CR$4 -> 2089 | CS4: =Tijd!CS$4 -> 2090 | CT4: =Tijd!CT$4 -> 2091 | CU4: =Tijd!CU$4 -> 2092 | CV4: =Tijd!CV$4 -> 2093 | CW4: =Tijd!CW$4 -> 2094 | CX4: =Tijd!CX$4 -> 2095 | CY4: =Tijd!CY$4 -> 2096 | CZ4: =Tijd!CZ$4 -> 2097 | DA4: =Tijd!DA$4 -> 2098 | DB4: =Tijd!DB$4 -> 2099 | DC4: =Tijd!DC$4 -> 2100 | DD4: =Tijd!DD$4 -> 2101 | DE4: =Tijd!DE$4 -> 2102 | DF4: =Tijd!DF$4 -> 2103
E5: =Tijd!E$5 -> Looptijd vs Uitlooptijd | G5: =Check!G5 -> 0 | H5: =Check!H5 -> waarschuwingen | K5: =Tijd!K$5 -> Looptijd | L5: =Tijd!L$5 -> Looptijd | M5: =Tijd!M$5 -> Looptijd | N5: =Tijd!N$5 -> Looptijd | O5: =Tijd!O$5 -> Looptijd | P5: =Tijd!P$5 -> Looptijd | Q5: =Tijd!Q$5 -> Looptijd | R5: =Tijd!R$5 -> Looptijd | S5: =Tijd!S$5 -> Looptijd | T5: =Tijd!T$5 -> Looptijd | U5: =Tijd!U$5 -> Looptijd | V5: =Tijd!V$5 -> Looptijd | W5: =Tijd!W$5 -> Looptijd | X5: =Tijd!X$5 -> Looptijd | Y5: =Tijd!Y$5 -> Looptijd | Z5: =Tijd!Z$5 -> Looptijd | AA5: =Tijd!AA$5 -> Looptijd | AB5: =Tijd!AB$5 -> Looptijd | AC5: =Tijd!AC$5 -> Looptijd | AD5: =Tijd!AD$5 -> Looptijd | AE5: =Tijd!AE$5 -> Looptijd | AF5: =Tijd!AF$5 -> Looptijd | AG5: =Tijd!AG$5 -> Looptijd | AH5: =Tijd!AH$5 -> Looptijd | AI5: =Tijd!AI$5 -> Looptijd | AJ5: =Tijd!AJ$5 -> Looptijd | AK5: =Tijd!AK$5 -> Looptijd | AL5: =Tijd!AL$5 -> Looptijd | AM5: =Tijd!AM$5 -> Looptijd | AN5: =Tijd!AN$5 -> Looptijd | AO5: =Tijd!AO$5 -> Looptijd | AP5: =Tijd!AP$5 -> Looptijd | AQ5: =Tijd!AQ$5 -> Looptijd | AR5: =Tijd!AR$5 -> Looptijd | AS5: =Tijd!AS$5 -> Looptijd | AT5: =Tijd!AT$5 -> Looptijd | AU5: =Tijd!AU$5 -> Looptijd | AV5: =Tijd!AV$5 -> Looptijd | AW5: =Tijd!AW$5 -> Looptijd | AX5: =Tijd!AX$5 -> Looptijd | AY5: =Tijd!AY$5 -> Looptijd | AZ5: =Tijd!AZ$5 -> Looptijd | BA5: =Tijd!BA$5 -> Looptijd | BB5: =Tijd!BB$5 -> Looptijd | BC5: =Tijd!BC$5 -> Looptijd | BD5: =Tijd!BD$5 -> Looptijd | BE5: =Tijd!BE$5 -> Looptijd | BF5: =Tijd!BF$5 -> Looptijd | BG5: =Tijd!BG$5 -> Looptijd | BH5: =Tijd!BH$5 -> Looptijd | BI5: =Tijd!BI$5 -> Looptijd | BJ5: =Tijd!BJ$5 -> Uitlooptijd | BK5: =Tijd!BK$5 -> Uitlooptijd | BL5: =Tijd!BL$5 -> Uitlooptijd | BM5: =Tijd!BM$5 -> Uitlooptijd | BN5: =Tijd!BN$5 -> Uitlooptijd | BO5: =Tijd!BO$5 -> Uitlooptijd | BP5: =Tijd!BP$5 -> Uitlooptijd | BQ5: =Tijd!BQ$5 -> Uitlooptijd | BR5: =Tijd!BR$5 -> Uitlooptijd | BS5: =Tijd!BS$5 -> Uitlooptijd | BT5: =Tijd!BT$5 -> Uitlooptijd | BU5: =Tijd!BU$5 -> Uitlooptijd | BV5: =Tijd!BV$5 -> Uitlooptijd | BW5: =Tijd!BW$5 -> Uitlooptijd | BX5: =Tijd!BX$5 -> Uitlooptijd | BY5: =Tijd!BY$5 -> Uitlooptijd | BZ5: =Tijd!BZ$5 -> Uitlooptijd | CA5: =Tijd!CA$5 -> Uitlooptijd | CB5: =Tijd!CB$5 -> Uitlooptijd | CC5: =Tijd!CC$5 -> Uitlooptijd | CD5: =Tijd!CD$5 -> Uitlooptijd | CE5: =Tijd!CE$5 -> Uitlooptijd | CF5: =Tijd!CF$5 -> Uitlooptijd | CG5: =Tijd!CG$5 -> Uitlooptijd | CH5: =Tijd!CH$5 -> Uitlooptijd | CI5: =Tijd!CI$5 -> Uitlooptijd | CJ5: =Tijd!CJ$5 -> Uitlooptijd | CK5: =Tijd!CK$5 -> Uitlooptijd | CL5: =Tijd!CL$5 -> Uitlooptijd | CM5: =Tijd!CM$5 -> Uitlooptijd | CN5: =Tijd!CN$5 -> Uitlooptijd | CO5: =Tijd!CO$5 -> Uitlooptijd | CP5: =Tijd!CP$5 -> Uitlooptijd | CQ5: =Tijd!CQ$5 -> Uitlooptijd | CR5: =Tijd!CR$5 -> Uitlooptijd | CS5: =Tijd!CS$5 -> Uitlooptijd | CT5: =Tijd!CT$5 -> Uitlooptijd | CU5: =Tijd!CU$5 -> Uitlooptijd | CV5: =Tijd!CV$5 -> Uitlooptijd | CW5: =Tijd!CW$5 -> Uitlooptijd | CX5: =Tijd!CX$5 -> Uitlooptijd | CY5: =Tijd!CY$5 -> Uitlooptijd | CZ5: =Tijd!CZ$5 -> Uitlooptijd | DA5: =Tijd!DA$5 -> Uitlooptijd | DB5: =Tijd!DB$5 -> Uitlooptijd | DC5: =Tijd!DC$5 -> Uitlooptijd | DD5: =Tijd!DD$5 -> Uitlooptijd | DE5: =Tijd!DE$5 -> Uitlooptijd | DF5: =Tijd!DF$5 -> Uitlooptijd
E6: =Tijd!E$10 -> Model kolom teller | F6: Bron | G6: Constante | H6: Eenheid | I6: Totaal | K6: =Tijd!K$10 -> 1 | L6: =Tijd!L$10 -> 2 | M6: =Tijd!M$10 -> 3 | N6: =Tijd!N$10 -> 4 | O6: =Tijd!O$10 -> 5 | P6: =Tijd!P$10 -> 6 | Q6: =Tijd!Q$10 -> 7 | R6: =Tijd!R$10 -> 8 | S6: =Tijd!S$10 -> 9 | T6: =Tijd!T$10 -> 10 | U6: =Tijd!U$10 -> 11 | V6: =Tijd!V$10 -> 12 | W6: =Tijd!W$10 -> 13 | X6: =Tijd!X$10 -> 14 | Y6: =Tijd!Y$10 -> 15 | Z6: =Tijd!Z$10 -> 16 | AA6: =Tijd!AA$10 -> 17 | AB6: =Tijd!AB$10 -> 18 | AC6: =Tijd!AC$10 -> 19 | AD6: =Tijd!AD$10 -> 20 | AE6: =Tijd!AE$10 -> 21 | AF6: =Tijd!AF$10 -> 22 | AG6: =Tijd!AG$10 -> 23 | AH6: =Tijd!AH$10 -> 24 | AI6: =Tijd!AI$10 -> 25 | AJ6: =Tijd!AJ$10 -> 26 | AK6: =Tijd!AK$10 -> 27 | AL6: =Tijd!AL$10 -> 28 | AM6: =Tijd!AM$10 -> 29 | AN6: =Tijd!AN$10 -> 30 | AO6: =Tijd!AO$10 -> 31 | AP6: =Tijd!AP$10 -> 32 | AQ6: =Tijd!AQ$10 -> 33 | AR6: =Tijd!AR$10 -> 34 | AS6: =Tijd!AS$10 -> 35 | AT6: =Tijd!AT$10 -> 36 | AU6: =Tijd!AU$10 -> 37 | AV6: =Tijd!AV$10 -> 38 | AW6: =Tijd!AW$10 -> 39 | AX6: =Tijd!AX$10 -> 40 | AY6: =Tijd!AY$10 -> 41 | AZ6: =Tijd!AZ$10 -> 42 | BA6: =Tijd!BA$10 -> 43 | BB6: =Tijd!BB$10 -> 44 | BC6: =Tijd!BC$10 -> 45 | BD6: =Tijd!BD$10 -> 46 | BE6: =Tijd!BE$10 -> 47 | BF6: =Tijd!BF$10 -> 48 | BG6: =Tijd!BG$10 -> 49 | BH6: =Tijd!BH$10 -> 50 | BI6: =Tijd!BI$10 -> 51 | BJ6: =Tijd!BJ$10 -> 52 | BK6: =Tijd!BK$10 -> 53 | BL6: =Tijd!BL$10 -> 54 | BM6: =Tijd!BM$10 -> 55 | BN6: =Tijd!BN$10 -> 56 | BO6: =Tijd!BO$10 -> 57 | BP6: =Tijd!BP$10 -> 58 | BQ6: =Tijd!BQ$10 -> 59 | BR6: =Tijd!BR$10 -> 60 | BS6: =Tijd!BS$10 -> 61 | BT6: =Tijd!BT$10 -> 62 | BU6: =Tijd!BU$10 -> 63 | BV6: =Tijd!BV$10 -> 64 | BW6: =Tijd!BW$10 -> 65 | BX6: =Tijd!BX$10 -> 66 | BY6: =Tijd!BY$10 -> 67 | BZ6: =Tijd!BZ$10 -> 68 | CA6: =Tijd!CA$10 -> 69 | CB6: =Tijd!CB$10 -> 70 | CC6: =Tijd!CC$10 -> 71 | CD6: =Tijd!CD$10 -> 72 | CE6: =Tijd!CE$10 -> 73 | CF6: =Tijd!CF$10 -> 74 | CG6: =Tijd!CG$10 -> 75 | CH6: =Tijd!CH$10 -> 76 | CI6: =Tijd!CI$10 -> 77 | CJ6: =Tijd!CJ$10 -> 78 | CK6: =Tijd!CK$10 -> 79 | CL6: =Tijd!CL$10 -> 80 | CM6: =Tijd!CM$10 -> 81 | CN6: =Tijd!CN$10 -> 82 | CO6: =Tijd!CO$10 -> 83 | CP6: =Tijd!CP$10 -> 84 | CQ6: =Tijd!CQ$10 -> 85 | CR6: =Tijd!CR$10 -> 86 | CS6: =Tijd!CS$10 -> 87 | CT6: =Tijd!CT$10 -> 88 | CU6: =Tijd!CU$10 -> 89 | CV6: =Tijd!CV$10 -> 90 | CW6: =Tijd!CW$10 -> 91 | CX6: =Tijd!CX$10 -> 92 | CY6: =Tijd!CY$10 -> 93 | CZ6: =Tijd!CZ$10 -> 94 | DA6: =Tijd!DA$10 -> 95 | DB6: =Tijd!DB$10 -> 96 | DC6: =Tijd!DC$10 -> 97 | DD6: =Tijd!DD$10 -> 98 | DE6: =Tijd!DE$10 -> 99 | DF6: =Tijd!DF$10 -> 100
A9: NETTEN
A11: INVESTERINGSJAAR 2004 - START GAW
E12: Startwaarde GAW incl. afgekochte precario (01-01-2004) | G12: 879441706.9 | H12: €
E13: Afschrijvingen Start GAW | G13: 25942233.24 | H13: €
E14: Afgekochte precario in Start GAW (01-01-2004) | G14: 0 | H14: €
E15: Afschrijvingsbedrag afgekochte precario | G15: 0 | H15: €
A17: INVESTERINGSJAAR 2004
B19: Investeringen 2004
E20: Aanschafwaarde investeringen 2004 met afschrijvingstermijn 55 | G20: 5162326.815 | H20: € | I20: 0
E21: Aanschafwaarde investeringen 2004 met afschrijvingstermijn 45 | G21: 5850473.643 | H21: € | I21: 0
E22: Aanschafwaarde investeringen 2004 met afschrijvingstermijn 30 | G22: 2744690.311 | H22: € | I22: 0
E23: Aanschafwaarde investeringen 2004 met afschrijvingstermijn 25 | G23: -4331.981 | H23: € | I23: 0
E24: Aanschafwaarde investeringen 2004 met afschrijvingstermijn 10 | G24: 501304.14 | H24: € | I24: 0
E25: Aanschafwaarde investeringen 2004 met afschrijvingstermijn 5 | G25: 7385982 | H25: € | I25: 0
E26: Aanschafwaarde investeringen 2004 zonder afschrijvingstermijn | G26: 58651 | H26: € | I26: 0
B28: Desinvesteringen 2004
E29: Desinvesteringen 2004 met afschrijvingstermijn 55 | H29: € | I29: 13685.96171 | K29: 0 | L29: 0 | M29: 0 | N29: 0 | O29: 0 | P29: 2514.934194 | Q29: 9221.425379 | R29: 1949.602137
E30: Desinvesteringen 2004 met afschrijvingstermijn 45 | H30: € | I30: 95089.02476 | K30: 0 | L30: 0 | M30: 0 | N30: 0 | O30: 0 | P30: 3353.245592 | Q30: 54490.24087 | R30: 37245.5383
E31: Desinvesteringen 2004 met afschrijvingstermijn 30 | H31: € | I31: 0 | K31: 0 | L31: 0 | M31: 0 | N31: 0 | O31: 0 | P31: 0 | Q31: 0 | R31: 0
E32: Desinvesteringen 2004 met afschrijvingstermijn 25 | H32: € | I32: 0 | K32: 0 | L32: 0 | M32: 0 | N32: 0 | O32: 0 | P32: 0 | Q32: 0 | R32: 0
E33: Desinvesteringen 2004 met afschrijvingstermijn 10 | H33: € | I33: 180478.8132 | K33: 0 | L33: 54202.5 | M33: 0 | N33: 0 | O33: 0 | P33: 56173.5 | Q33: 11826 | R33: 58276.81323
E34: Desinvesteringen 2004 met afschrijvingstermijn 5 | H34: € | I34: 241000 | K34: 0 | L34: 234000 | M34: 0 | N34: 7000 | O34: 0 | P34: 0 | Q34: 0 | R34: 0
E35: Desinvesteringen 2004 zonder afschrijvingstermijn | H35: € | I35: 0 | K35: 0 | L35: 0 | M35: 0 | N35: 0 | O35: 0 | P35: 0 | Q35: 0 | R35: 0
B37: Opgegeven Afschrijvingen 2004
E38: Opgegeven afschrijvingen 2004 met afschrijvingstermijn 55 | H38: € | I38: 236088.7185 | K38: 47416.28468 | L38: 95317.2169 | M38: 93355.2169
E39: Opgegeven afschrijvingen 2004 met afschrijvingstermijn 45 | H39: € | I39: 325573.645 | K39: 65029.1337 | L39: 129781.7556 | M39: 130762.7556
E40: Opgegeven afschrijvingen 2004 met afschrijvingstermijn 30 | H40: € | I40: 228713.7862 | K40: 45316.63202 | L40: 91698.57707 | M40: 91698.57707
E41: Opgegeven afschrijvingen 2004 met afschrijvingstermijn 25 | H41: € | I41: -668.55962 | K41: -86.63962 | L41: -290.96 | M41: -290.96
E42: Opgegeven afschrijvingen 2004 met afschrijvingstermijn 10 | H42: € | I42: 116141.175 | K42: 25475.175 | L42: 51246 | M42: 39420
E43: Opgegeven afschrijvingen 2004 met afschrijvingstermijn 5 | H43: € | I43: 3599066.2 | K43: 739066.2 | L43: 1477000 | M43: 1383000
B45: Opgegeven Cumulatieve Afschrijvingen Bij Desinvesteringen 2004
E46: Opgegeven c.a.d. 2004 met afschrijvingstermijn 55 | H46: € | I46: 0 | K46: 0 | L46: 0 | M46: 0 | N46: 0 | O46: 0 | P46: 0 | Q46: 0 | R46: 0
E47: Opgegeven c.a.d. 2004 met afschrijvingstermijn 45 | H47: € | I47: 0 | K47: 0 | L47: 0 | M47: 0 | N47: 0 | O47: 0 | P47: 0 | Q47: 0 | R47: 0
E48: Opgegeven c.a.d. 2004 met afschrijvingstermijn 30 | H48: € | I48: 0 | K48: 0 | L48: 0 | M48: 0 | N48: 0 | O48: 0 | P48: 0 | Q48: 0 | R48: 0
E49: Opgegeven c.a.d. 2004 met afschrijvingstermijn 25 | H49: € | I49: 0 | K49: 0 | L49: 0 | M49: 0 | N49: 0 | O49: 0 | P49: 0 | Q49: 0 | R49: 0
E50: Opgegeven c.a.d. 2004 met afschrijvingstermijn 10 | H50: € | I50: 7144.8 | K50: 0 | L50: 7144.8 | M50: 0 | N50: 0 | O50: 0 | P50: 0 | Q50: 0 | R50: 0
E51: Opgegeven c.a.d. 2004 met afschrijvingstermijn 5 | H51: € | I51: 70000 | K51: 0 | L51: 70000 | M51: 0 | N51: 0 | O51: 0 | P51: 0 | Q51: 0 | R51: 0
B53: Bijzondere Waardeverminderingen Op Activa 2004
E54: Bijzondere waardeverminderingen op activa 2004 met afschrijvingstermijn 55 | H54: € | I54: 0
E55: Bijzondere waardeverminderingen op activa 2004 met afschrijvingstermijn 45 | H55: € | I55: 0
E56: Bijzondere waardeverminderingen op activa 2004 met afschrijvingstermijn 30 | H56: € | I56: 0
E57: Bijzondere waardeverminderingen op activa 2004 met afschrijvingstermijn 25 | H57: € | I57: 0
E58: Bijzondere waardeverminderingen op activa 2004 met afschrijvingstermijn 10 | H58: € | I58: 0
E59: Bijzondere waardeverminderingen op activa 2004 met afschrijvingstermijn 5 | H59: € | I59: 0
B61: Input Alert
E62: Dummy Beginjaar investeringen
E63: Dummy Modelperiode
E64: Dummy Aantal cellen met onterechte input 2004
E65: Dummy Waarschuwing onterecht ingevulde cellen 2004
A67: INVESTERINGSJAAR 2005
B69: Investeringen 2005
E70: Aanschafwaarde investeringen 2005 met afschrijvingstermijn 55 | G70: 1799801.864 | H70: € | I70: 0
E71: Aanschafwaarde investeringen 2005 met afschrijvingstermijn 45 | G71: 5136411.506 | H71: € | I71: 0
E72: Aanschafwaarde investeringen 2005 met afschrijvingstermijn 30 | G72: 1157437.465 | H72: € | I72: 0
E73: Aanschafwaarde investeringen 2005 met afschrijvingstermijn 25 | G73: 0 | H73: € | I73: 0
E74: Aanschafwaarde investeringen 2005 met afschrijvingstermijn 10 | G74: 435591 | H74: € | I74: 0
E75: Aanschafwaarde investeringen 2005 met afschrijvingstermijn 5 | G75: 2202000 | H75: € | I75: 0
E76: Aanschafwaarde investeringen 2005 zonder afschrijvingstermijn | G76: 9810 | H76: € | I76: 0
B78: Desinvesteringen 2005
E79: Desinvesteringen 2005 met afschrijvingstermijn 55 | H79: € | I79: 35194.53402 | K79: 0 | L79: 0 | M79: 0 | N79: 0 | O79: 0 | P79: 0 | Q79: 15089.60516 | R79: 20104.92885
E80: Desinvesteringen 2005 met afschrijvingstermijn 45 | H80: € | I80: 109815.6746 | K80: 0 | L80: 0 | M80: 0 | N80: 0 | O80: 0 | P80: 5029.868388 | Q80: 41915.5699 | R80: 62870.23634
E81: Desinvesteringen 2005 met afschrijvingstermijn 30 | H81: € | I81: 0 | K81: 0 | L81: 0 | M81: 0 | N81: 0 | O81: 0 | P81: 0 | Q81: 0 | R81: 0
E82: Desinvesteringen 2005 met afschrijvingstermijn 25 | H82: € | I82: 0 | K82: 0 | L82: 0 | M82: 0 | N82: 0 | O82: 0 | P82: 0 | Q82: 0 | R82: 0
E83: Desinvesteringen 2005 met afschrijvingstermijn 10 | H83: € | I83: 123408.5082 | K83: 0 | L83: 0 | M83: 0 | N83: 0 | O83: 0 | P83: 113332.5 | Q83: 0 | R83: 10076.00823
E84: Desinvesteringen 2005 met afschrijvingstermijn 5 | H84: € | I84: 9000 | K84: 0 | L84: 0 | M84: 0 | N84: 9000 | O84: 0 | P84: 0 | Q84: 0 | R84: 0
E85: Desinvesteringen 2005 zonder afschrijvingstermijn | H85: € | I85: 0 | K85: 0 | L85: 0 | M85: 0 | N85: 0 | O85: 0 | P85: 0 | Q85: 0 | R85: 0
B87: Opgegeven Afschrijvingen 2005
E88: Opgegeven afschrijvingen 2005 met afschrijvingstermijn 55 | H88: € | I88: 48782.2872 | K88: 0 | L88: 15933.7624 | M88: 32848.5248
E89: Opgegeven afschrijvingen 2005 met afschrijvingstermijn 45 | H89: € | I89: 170625.1169 | K89: 0 | L89: 56875.03895 | M89: 113750.0779
E90: Opgegeven afschrijvingen 2005 met afschrijvingstermijn 30 | H90: € | I90: 58754.77324 | K90: 0 | L90: 20238.92441 | M90: 38515.84883
E91: Opgegeven afschrijvingen 2005 met afschrijvingstermijn 25 | H91: € | I91: 0 | K91: 0 | L91: 0 | M91: 0
E92: Opgegeven afschrijvingen 2005 met afschrijvingstermijn 10 | H92: € | I92: 65043 | K92: 0 | L92: 21681 | M92: 43362
E93: Opgegeven afschrijvingen 2005 met afschrijvingstermijn 5 | H93: € | I93: 661000 | K93: 0 | L93: 220000 | M93: 441000
B95: Opgegeven Cumulatieve Afschrijvingen Bij Desinvesteringen 2005
E96: Opgegeven c.a.d. 2005 met afschrijvingstermijn 55 | H96: € | I96: 0 | K96: 0 | L96: 0 | M96: 0 | N96: 0 | O96: 0 | P96: 0 | Q96: 0 | R96: 0
E97: Opgegeven c.a.d. 2005 met afschrijvingstermijn 45 | H97: € | I97: 0 | K97: 0 | L97: 0 | M97: 0 | N97: 0 | O97: 0 | P97: 0 | Q97: 0 | R97: 0
E98: Opgegeven c.a.d. 2005 met afschrijvingstermijn 30 | H98: € | I98: 0 | K98: 0 | L98: 0 | M98: 0 | N98: 0 | O98: 0 | P98: 0 | Q98: 0 | R98: 0
E99: Opgegeven c.a.d. 2005 met afschrijvingstermijn 25 | H99: € | I99: 0 | K99: 0 | L99: 0 | M99: 0 | N99: 0 | O99: 0 | P99: 0 | Q99: 0 | R99: 0
E100: Opgegeven c.a.d. 2005 met afschrijvingstermijn 10 | H100: € | I100: 0 | K100: 0 | L100: 0 | M100: 0 | N100: 0 | O100: 0 | P100: 0 | Q100: 0 | R100: 0
E101: Opgegeven c.a.d. 2005 met afschrijvingstermijn 5 | H101: € | I101: 0 | K101: 0 | L101: 0 | M101: 0 | N101: 0 | O101: 0 | P101: 0 | Q101: 0 | R101: 0
B103: Bijzondere Waardeverminderingen Op Activa 2005
E104: Bijzondere waardeverminderingen op activa 2005 met afschrijvingstermijn 55 | H104: € | I104: 0
E105: Bijzondere waardeverminderingen op activa 2005 met afschrijvingstermijn 45 | H105: € | I105: 0
E106: Bijzondere waardeverminderingen op activa 2005 met afschrijvingstermijn 30 | H106: € | I106: 0
E107: Bijzondere waardeverminderingen op activa 2005 met afschrijvingstermijn 25 | H107: € | I107: 0
E108: Bijzondere waardeverminderingen op activa 2005 met afschrijvingstermijn 10 | H108: € | I108: 0
E109: Bijzondere waardeverminderingen op activa 2005 met afschrijvingstermijn 5 | H109: € | I109: 0
B111: Input Alert
E112: Dummy Beginjaar investeringen
E113: Dummy Modelperiode
E114: Dummy Aantal cellen met onterechte input 2005
E115: Dummy Waarschuwing onterecht ingevulde cellen 2005
A117: INVESTERINGSJAAR 2006 - START GAW voor EHD
E118: Startwaarde GAW voor EHD (01-01-2006) | H118: €
E119: Afschrijvingen Start GAW voor EHD | H119: €
A121: INVESTERINGSJAAR 2006
B123: Investeringen 2006
E124: Aanschafwaarde investeringen 2006 met afschrijvingstermijn 55 | G124: 3057033.506 | H124: € | I124: 0
E125: Aanschafwaarde investeringen 2006 met afschrijvingstermijn 45 | G125: 13991392.86 | H125: € | I125: 0
E126: Aanschafwaarde investeringen 2006 met afschrijvingstermijn 30 | G126: 3164858.548 | H126: € | I126: 0
E127: Aanschafwaarde investeringen 2006 met afschrijvingstermijn 25 | G127: 0 | H127: € | I127: 0
E128: Aanschafwaarde investeringen 2006 met afschrijvingstermijn 10 | G128: 1715189.442 | H128: € | I128: 0
E129: Aanschafwaarde investeringen 2006 met afschrijvingstermijn 5 | G129: 3109000 | H129: € | I129: 0
E130: Aanschafwaarde investeringen 2006 zonder afschrijvingstermijn | G130: 1218.44 | H130: € | I130: 0
B132: Desinvesteringen 2006
E133: Desinvesteringen 2006 met afschrijvingstermijn 55 | H133: € | I133: 67335.32595 | K133: 0 | L133: 0 | M133: 0 | N133: 0 | O133: 0 | P133: 0 | Q133: 31017.52173 | R133: 36317.80422
E134: Desinvesteringen 2006 met afschrijvingstermijn 45 | H134: € | I134: 127790.7225 | K134: 0 | L134: 0 | M134: 0 | N134: 0 | O134: 0 | P134: 5868.179786 | Q134: 79639.58281 | R134: 42282.95987
E135: Desinvesteringen 2006 met afschrijvingstermijn 30 | H135: € | I135: 0 | K135: 0 | L135: 0 | M135: 0 | N135: 0 | O135: 0 | P135: 0 | Q135: 0 | R135: 0
E136: Desinvesteringen 2006 met afschrijvingstermijn 25 | H136: € | I136: 0 | K136: 0 | L136: 0 | M136: 0 | N136: 0 | O136: 0 | P136: 0 | Q136: 0 | R136: 0
E137: Desinvesteringen 2006 met afschrijvingstermijn 10 | H137: € | I137: 23735.92188 | K137: 0 | L137: 0 | M137: 0 | N137: 0 | O137: 0 | P137: 985.5 | Q137: 985.5 | R137: 21764.92188
E138: Desinvesteringen 2006 met afschrijvingstermijn 5 | H138: € | I138: 0 | K138: 0 | L138: 0 | M138: 0 | N138: 0 | O138: 0 | P138: 0 | Q138: 0 | R138: 0
E139: Desinvesteringen 2006 zonder afschrijvingstermijn | H139: € | I139: 0 | K139: 0 | L139: 0 | M139: 0 | N139: 0 | O139: 0 | P139: 0 | Q139: 0 | R139: 0
B141: Opgegeven Afschrijvingen 2006
E142: Opgegeven afschrijvingen 2006 met afschrijvingstermijn 55 | H142: € | I142: 27907.15006 | K142: 0 | L142: 0 | M142: 27907.15006
E143: Opgegeven afschrijvingen 2006 met afschrijvingstermijn 45 | H143: € | I143: 155590.7206 | K143: 0 | L143: 0 | M143: 155590.7206
E144: Opgegeven afschrijvingen 2006 met afschrijvingstermijn 30 | H144: € | I144: 52976.54246 | K144: 0 | L144: 0 | M144: 52976.54246
E145: Opgegeven afschrijvingen 2006 met afschrijvingstermijn 25 | H145: € | I145: 0 | K145: 0 | L145: 0 | M145: 0
E146: Opgegeven afschrijvingen 2006 met afschrijvingstermijn 10 | H146: € | I146: 23651.58675 | K146: 0 | L146: 0 | M146: 23651.58675
E147: Opgegeven afschrijvingen 2006 met afschrijvingstermijn 5 | H147: € | I147: 311000 | K147: 0 | L147: 0 | M147: 311000
B149: Opgegeven Cumulatieve Afschrijvingen Bij Desinvesteringen 2006
E150: Opgegeven c.a.d. 2006 met afschrijvingstermijn 55 | H150: € | I150: 0 | K150: 0 | L150: 0 | M150: 0 | N150: 0 | O150: 0 | P150: 0 | Q150: 0 | R150: 0
E151: Opgegeven c.a.d. 2006 met afschrijvingstermijn 45 | H151: € | I151: 0 | K151: 0 | L151: 0 | M151: 0 | N151: 0 | O151: 0 | P151: 0 | Q151: 0 | R151: 0
E152: Opgegeven c.a.d. 2006 met afschrijvingstermijn 30 | H152: € | I152: 0 | K152: 0 | L152: 0 | M152: 0 | N152: 0 | O152: 0 | P152: 0 | Q152: 0 | R152: 0
E153: Opgegeven c.a.d. 2006 met afschrijvingstermijn 25 | H153: € | I153: 0 | K153: 0 | L153: 0 | M153: 0 | N153: 0 | O153: 0 | P153: 0 | Q153: 0 | R153: 0
E154: Opgegeven c.a.d. 2006 met afschrijvingstermijn 10 | H154: € | I154: 0 | K154: 0 | L154: 0 | M154: 0 | N154: 0 | O154: 0 | P154: 0 | Q154: 0 | R154: 0
E155: Opgegeven c.a.d. 2006 met afschrijvingstermijn 5 | H155: € | I155: 0 | K155: 0 | L155: 0 | M155: 0 | N155: 0 | O155: 0 | P155: 0 | Q155: 0 | R155: 0
B157: Bijzondere Waardeverminderingen Op Activa 2006
E158: Bijzondere waardeverminderingen op activa 2006 met afschrijvingstermijn 55 | H158: € | I158: 0
E159: Bijzondere waardeverminderingen op activa 2006 met afschrijvingstermijn 45 | H159: € | I159: 0
E160: Bijzondere waardeverminderingen op activa 2006 met afschrijvingstermijn 30 | H160: € | I160: 0
E161: Bijzondere waardeverminderingen op activa 2006 met afschrijvingstermijn 25 | H161: € | I161: 0
E162: Bijzondere waardeverminderingen op activa 2006 met afschrijvingstermijn 10 | H162: € | I162: 0
E163: Bijzondere waardeverminderingen op activa 2006 met afschrijvingstermijn 5 | H163: € | I163: 0
B165: Input Alert
E166: Dummy Beginjaar investeringen
E167: Dummy Modelperiode
E168: Dummy Aantal cellen met onterechte input 2006
E169: Dummy Waarschuwing onterecht ingevulde cellen 2006
A171: INVESTERINGSJAAR 2007
B173: Investeringen 2007
E174: Aanschafwaarde investeringen 2007 met afschrijvingstermijn 55 | G174: 5002365.489 | H174: € | I174: 0
E175: Aanschafwaarde investeringen 2007 met afschrijvingstermijn 45 | G175: 17322194.98 | H175: € | I175: 0
E176: Aanschafwaarde investeringen 2007 met afschrijvingstermijn 30 | G176: 4641567.838 | H176: € | I176: 0
E177: Aanschafwaarde investeringen 2007 met afschrijvingstermijn 25 | G177: 0 | H177: € | I177: 0
E178: Aanschafwaarde investeringen 2007 met afschrijvingstermijn 10 | G178: 2362836.771 | H178: € | I178: 0
E179: Aanschafwaarde investeringen 2007 met afschrijvingstermijn 5 | G179: 5320992.64 | H179: € | I179: 0
E180: Aanschafwaarde investeringen 2007 zonder afschrijvingstermijn | G180: 3924 | H180: € | I180: 0
B182: Desinvesteringen 2007
E183: Desinvesteringen 2007 met afschrijvingstermijn 55 | H183: € | I183: 140614.0198 | K183: 0 | L183: 0 | M183: 0 | N183: 0 | O183: 0 | P183: 838.311398 | Q183: 112333.7273 | R183: 27441.9811
E184: Desinvesteringen 2007 met afschrijvingstermijn 45 | H184: € | I184: 140925.4022 | K184: 0 | L184: 0 | M184: 0 | N184: 0 | O184: 0 | P184: 11736.35957 | Q184: 110657.1045 | R184: 18531.93811
E185: Desinvesteringen 2007 met afschrijvingstermijn 30 | H185: € | I185: 0 | K185: 0 | L185: 0 | M185: 0 | N185: 0 | O185: 0 | P185: 0 | Q185: 0 | R185: 0
E186: Desinvesteringen 2007 met afschrijvingstermijn 25 | H186: € | I186: 0 | K186: 0 | L186: 0 | M186: 0 | N186: 0 | O186: 0 | P186: 0 | Q186: 0 | R186: 0
E187: Desinvesteringen 2007 met afschrijvingstermijn 10 | H187: € | I187: 364942.8702 | K187: 0 | L187: 0 | M187: 0 | N187: 0 | O187: 0 | P187: 355765.5 | Q187: 0 | R187: 9177.3702
E188: Desinvesteringen 2007 met afschrijvingstermijn 5 | H188: € | I188: 1317982 | K188: 0 | L188: 0 | M188: 0 | N188: 0 | O188: 0 | P188: 0 | Q188: 0 | R188: 1317982
E189: Desinvesteringen 2007 zonder afschrijvingstermijn | H189: € | I189: 0 | K189: 0 | L189: 0 | M189: 0 | N189: 0 | O189: 0 | P189: 0 | Q189: 0 | R189: 0
B191: Opgegeven Afschrijvingen 2007
E192: Opgegeven afschrijvingen 2007 met afschrijvingstermijn 55 | H192: € | I192: 0
E193: Opgegeven afschrijvingen 2007 met afschrijvingstermijn 45 | H193: € | I193: 0
E194: Opgegeven afschrijvingen 2007 met afschrijvingstermijn 30 | H194: € | I194: 0
E195: Opgegeven afschrijvingen 2007 met afschrijvingstermijn 25 | H195: € | I195: 0
E196: Opgegeven afschrijvingen 2007 met afschrijvingstermijn 10 | H196: € | I196: 0
E197: Opgegeven afschrijvingen 2007 met afschrijvingstermijn 5 | H197: € | I197: 0
B199: Opgegeven Cumulatieve Afschrijvingen Bij Desinvesteringen 2007
E200: Opgegeven c.a.d. 2007 met afschrijvingstermijn 55 | H200: € | I200: 0 | K200: 0 | L200: 0 | M200: 0 | N200: 0 | O200: 0 | P200: 0 | Q200: 0 | R200: 0
E201: Opgegeven c.a.d. 2007 met afschrijvingstermijn 45 | H201: € | I201: 0 | K201: 0 | L201: 0 | M201: 0 | N201: 0 | O201: 0 | P201: 0 | Q201: 0 | R201: 0
E202: Opgegeven c.a.d. 2007 met afschrijvingstermijn 30 | H202: € | I202: 0 | K202: 0 | L202: 0 | M202: 0 | N202: 0 | O202: 0 | P202: 0 | Q202: 0 | R202: 0
E203: Opgegeven c.a.d. 2007 met afschrijvingstermijn 25 | H203: € | I203: 0 | K203: 0 | L203: 0 | M203: 0 | N203: 0 | O203: 0 | P203: 0 | Q203: 0 | R203: 0
E204: Opgegeven c.a.d. 2007 met afschrijvingstermijn 10 | H204: € | I204: 0 | K204: 0 | L204: 0 | M204: 0 | N204: 0 | O204: 0 | P204: 0 | Q204: 0 | R204: 0
E205: Opgegeven c.a.d. 2007 met afschrijvingstermijn 5 | H205: € | I205: 0 | K205: 0 | L205: 0 | M205: 0 | N205: 0 | O205: 0 | P205: 0 | Q205: 0 | R205: 0
B207: Bijzondere Waardeverminderingen Op Activa 2007
E208: Bijzondere waardeverminderingen op activa 2007 met afschrijvingstermijn 55 | H208: € | I208: 0
E209: Bijzondere waardeverminderingen op activa 2007 met afschrijvingstermijn 45 | H209: € | I209: 0
E210: Bijzondere waardeverminderingen op activa 2007 met afschrijvingstermijn 30 | H210: € | I210: 0
E211: Bijzondere waardeverminderingen op activa 2007 met afschrijvingstermijn 25 | H211: € | I211: 0
E212: Bijzondere waardeverminderingen op activa 2007 met afschrijvingstermijn 10 | H212: € | I212: 0
E213: Bijzondere waardeverminderingen op activa 2007 met afschrijvingstermijn 5 | H213: € | I213: 0
B215: Input Alert
E216: Dummy Beginjaar investeringen
E217: Dummy Modelperiode
E218: Dummy Aantal cellen met onterechte input 2007
E219: Dummy Waarschuwing onterecht ingevulde cellen 2007
A221: INVESTERINGSJAAR 2008
B223: Investeringen 2008
E224: Aanschafwaarde investeringen 2008 met afschrijvingstermijn 55 | G224: -498766.23 | H224: € | I224: 0
E225: Aanschafwaarde investeringen 2008 met afschrijvingstermijn 45 | G225: 37510015.41 | H225: € | I225: 0
E226: Aanschafwaarde investeringen 2008 met afschrijvingstermijn 30 | G226: 3802743.82 | H226: € | I226: 0
E227: Aanschafwaarde investeringen 2008 met afschrijvingstermijn 25 | G227: 0 | H227: € | I227: 0
E228: Aanschafwaarde investeringen 2008 met afschrijvingstermijn 10 | G228: 2471685.68 | H228: € | I228: 0
E229: Aanschafwaarde investeringen 2008 met afschrijvingstermijn 5 | G229: 2365922.29 | H229: € | I229: 0
E230: Aanschafwaarde investeringen 2008 zonder afschrijvingstermijn | G230: 6045.3 | H230: € | I230: 0
B232: Desinvesteringen 2008
E233: Desinvesteringen 2008 met afschrijvingstermijn 55 | H233: € | I233: 15453.28142 | K233: 0 | L233: 0 | M233: 0 | N233: 0 | O233: 0 | P233: 838.311398 | Q233: 11736.35957 | R233: 2878.610445
E234: Desinvesteringen 2008 met afschrijvingstermijn 45 | H234: € | I234: 51938.33715 | K234: 0 | L234: 0 | M234: 0 | N234: 0 | O234: 0 | P234: 838.311398 | Q234: 20957.78495 | R234: 30142.2408
E235: Desinvesteringen 2008 met afschrijvingstermijn 30 | H235: € | I235: 0 | K235: 0 | L235: 0 | M235: 0 | N235: 0 | O235: 0 | P235: 0 | Q235: 0 | R235: 0
... 468 more rows

Sheet InpEnexis EHD
A1: =RIGHT(CELL("filename", A1), LEN(CELL("filename", A1)) - SEARCH("]", CELL("filename", A1))) -> InpEnexis EHD
E2: =Tijd!E$2 -> Actieve netbeheerder | G2: =Tijd!G$2 -> Stedin
E3: =Tijd!E$3 -> Actieve inputsheet | G3: =Tijd!G$3 -> InpStedin
E4: =Tijd!E$4 -> Modelperiode | G4: =Check!G4 -> 0 | H4: =Check!H4 -> errors | K4: =Tijd!K$4 -> 2004 | L4: =Tijd!L$4 -> 2005 | M4: =Tijd!M$4 -> 2006 | N4: =Tijd!N$4 -> 2007 | O4: =Tijd!O$4 -> 2008 | P4: =Tijd!P$4 -> 2009 | Q4: =Tijd!Q$4 -> 2010 | R4: =Tijd!R$4 -> 2011 | S4: =Tijd!S$4 -> 2012 | T4: =Tijd!T$4 -> 2013 | U4: =Tijd!U$4 -> 2014 | V4: =Tijd!V$4 -> 2015 | W4: =Tijd!W$4 -> 2016 | X4: =Tijd!X$4 -> 2017 | Y4: =Tijd!Y$4 -> 2018 | Z4: =Tijd!Z$4 -> 2019 | AA4: =Tijd!AA$4 -> 2020 | AB4: =Tijd!AB$4 -> 2021 | AC4: =Tijd!AC$4 -> 2022 | AD4: =Tijd!AD$4 -> 2023 | AE4: =Tijd!AE$4 -> 2024 | AF4: =Tijd!AF$4 -> 2025 | AG4: =Tijd!AG$4 -> 2026 | AH4: =Tijd!AH$4 -> 2027 | AI4: =Tijd!AI$4 -> 2028 | AJ4: =Tijd!AJ$4 -> 2029 | AK4: =Tijd!AK$4 -> 2030 | AL4: =Tijd!AL$4 -> 2031 | AM4: =Tijd!AM$4 -> 2032 | AN4: =Tijd!AN$4 -> 2033 | AO4: =Tijd!AO$4 -> 2034 | AP4: =Tijd!AP$4 -> 2035 | AQ4: =Tijd!AQ$4 -> 2036 | AR4: =Tijd!AR$4 -> 2037 | AS4: =Tijd!AS$4 -> 2038 | AT4: =Tijd!AT$4 -> 2039 | AU4: =Tijd!AU$4 -> 2040 | AV4: =Tijd!AV$4 -> 2041 | AW4: =Tijd!AW$4 -> 2042 | AX4: =Tijd!AX$4 -> 2043 | AY4: =Tijd!AY$4 -> 2044 | AZ4: =Tijd!AZ$4 -> 2045 | BA4: =Tijd!BA$4 -> 2046 | BB4: =Tijd!BB$4 -> 2047 | BC4: =Tijd!BC$4 -> 2048 | BD4: =Tijd!BD$4 -> 2049 | BE4: =Tijd!BE$4 -> 2050 | BF4: =Tijd!BF$4 -> 2051 | BG4: =Tijd!BG$4 -> 2052 | BH4: =Tijd!BH$4 -> 2053 | BI4: =Tijd!BI$4 -> 2054 | BJ4: =Tijd!BJ$4 -> 2055 | BK4: =Tijd!BK$4 -> 2056 | BL4: =Tijd!BL$4 -> 2057 | BM4: =Tijd!BM$4 -> 2058 | BN4: =Tijd!BN$4 -> 2059 | BO4: =Tijd!BO$4 -> 2060 | BP4: =Tijd!BP$4 -> 2061 | BQ4: =Tijd!BQ$4 -> 2062 | BR4: =Tijd!BR$4 -> 2063 | BS4: =Tijd!BS$4 -> 2064 | BT4: =Tijd!BT$4 -> 2065 | BU4: =Tijd!BU$4 -> 2066 | BV4: =Tijd!BV$4 -> 2067 | BW4: =Tijd!BW$4 -> 2068 | BX4: =Tijd!BX$4 -> 2069 | BY4: =Tijd!BY$4 -> 2070 | BZ4: =Tijd!BZ$4 -> 2071 | CA4: =Tijd!CA$4 -> 2072 | CB4: =Tijd!CB$4 -> 2073 | CC4: =Tijd!CC$4 -> 2074 | CD4: =Tijd!CD$4 -> 2075 | CE4: =Tijd!CE$4 -> 2076 | CF4: =Tijd!CF$4 -> 2077 | CG4: =Tijd!CG$4 -> 2078 | CH4: =Tijd!CH$4 -> 2079 | CI4: =Tijd!CI$4 -> 2080 | CJ4: =Tijd!CJ$4 -> 2081 | CK4: =Tijd!CK$4 -> 2082 | CL4: =Tijd!CL$4 -> 2083 | CM4: =Tijd!CM$4 -> 2084 | CN4: =Tijd!CN$4 -> 2085 | CO4: =Tijd!CO$4 -> 2086 | CP4: =Tijd!CP$4 -> 2087 | CQ4: =Tijd!CQ$4 -> 2088 | CR4: =Tijd!CR$4 -> 2089 | CS4: =Tijd!CS$4 -> 2090 | CT4: =Tijd!CT$4 -> 2091 | CU4: =Tijd!CU$4 -> 2092 | CV4: =Tijd!CV$4 -> 2093 | CW4: =Tijd!CW$4 -> 2094 | CX4: =Tijd!CX$4 -> 2095 | CY4: =Tijd!CY$4 -> 2096 | CZ4: =Tijd!CZ$4 -> 2097 | DA4: =Tijd!DA$4 -> 2098 | DB4: =Tijd!DB$4 -> 2099 | DC4: =Tijd!DC$4 -> 2100 | DD4: =Tijd!DD$4 -> 2101 | DE4: =Tijd!DE$4 -> 2102 | DF4: =Tijd!DF$4 -> 2103
E5: =Tijd!E$5 -> Looptijd vs Uitlooptijd | G5: =Check!G5 -> 0 | H5: =Check!H5 -> waarschuwingen | K5: =Tijd!K$5 -> Looptijd | L5: =Tijd!L$5 -> Looptijd | M5: =Tijd!M$5 -> Looptijd | N5: =Tijd!N$5 -> Looptijd | O5: =Tijd!O$5 -> Looptijd | P5: =Tijd!P$5 -> Looptijd | Q5: =Tijd!Q$5 -> Looptijd | R5: =Tijd!R$5 -> Looptijd | S5: =Tijd!S$5 -> Looptijd | T5: =Tijd!T$5 -> Looptijd | U5: =Tijd!U$5 -> Looptijd | V5: =Tijd!V$5 -> Looptijd | W5: =Tijd!W$5 -> Looptijd | X5: =Tijd!X$5 -> Looptijd | Y5: =Tijd!Y$5 -> Looptijd | Z5: =Tijd!Z$5 -> Looptijd | AA5: =Tijd!AA$5 -> Looptijd | AB5: =Tijd!AB$5 -> Looptijd | AC5: =Tijd!AC$5 -> Looptijd | AD5: =Tijd!AD$5 -> Looptijd | AE5: =Tijd!AE$5 -> Looptijd | AF5: =Tijd!AF$5 -> Looptijd | AG5: =Tijd!AG$5 -> Looptijd | AH5: =Tijd!AH$5 -> Looptijd | AI5: =Tijd!AI$5 -> Looptijd | AJ5: =Tijd!AJ$5 -> Looptijd | AK5: =Tijd!AK$5 -> Looptijd | AL5: =Tijd!AL$5 -> Looptijd | AM5: =Tijd!AM$5 -> Looptijd | AN5: =Tijd!AN$5 -> Looptijd | AO5: =Tijd!AO$5 -> Looptijd | AP5: =Tijd!AP$5 -> Looptijd | AQ5: =Tijd!AQ$5 -> Looptijd | AR5: =Tijd!AR$5 -> Looptijd | AS5: =Tijd!AS$5 -> Looptijd | AT5: =Tijd!AT$5 -> Looptijd | AU5: =Tijd!AU$5 -> Looptijd | AV5: =Tijd!AV$5 -> Looptijd | AW5: =Tijd!AW$5 -> Looptijd | AX5: =Tijd!AX$5 -> Looptijd | AY5: =Tijd!AY$5 -> Looptijd | AZ5: =Tijd!AZ$5 -> Looptijd | BA5: =Tijd!BA$5 -> Looptijd | BB5: =Tijd!BB$5 -> Looptijd | BC5: =Tijd!BC$5 -> Looptijd | BD5: =Tijd!BD$5 -> Looptijd | BE5: =Tijd!BE$5 -> Looptijd | BF5: =Tijd!BF$5 -> Looptijd | BG5: =Tijd!BG$5 -> Looptijd | BH5: =Tijd!BH$5 -> Looptijd | BI5: =Tijd!BI$5 -> Looptijd | BJ5: =Tijd!BJ$5 -> Uitlooptijd | BK5: =Tijd!BK$5 -> Uitlooptijd | BL5: =Tijd!BL$5 -> Uitlooptijd | BM5: =Tijd!BM$5 -> Uitlooptijd | BN5: =Tijd!BN$5 -> Uitlooptijd | BO5: =Tijd!BO$5 -> Uitlooptijd | BP5: =Tijd!BP$5 -> Uitlooptijd | BQ5: =Tijd!BQ$5 -> Uitlooptijd | BR5: =Tijd!BR$5 -> Uitlooptijd | BS5: =Tijd!BS$5 -> Uitlooptijd | BT5: =Tijd!BT$5 -> Uitlooptijd | BU5: =Tijd!BU$5 -> Uitlooptijd | BV5: =Tijd!BV$5 -> Uitlooptijd | BW5: =Tijd!BW$5 -> Uitlooptijd | BX5: =Tijd!BX$5 -> Uitlooptijd | BY5: =Tijd!BY$5 -> Uitlooptijd | BZ5: =Tijd!BZ$5 -> Uitlooptijd | CA5: =Tijd!CA$5 -> Uitlooptijd | CB5: =Tijd!CB$5 -> Uitlooptijd | CC5: =Tijd!CC$5 -> Uitlooptijd | CD5: =Tijd!CD$5 -> Uitlooptijd | CE5: =Tijd!CE$5 -> Uitlooptijd | CF5: =Tijd!CF$5 -> Uitlooptijd | CG5: =Tijd!CG$5 -> Uitlooptijd | CH5: =Tijd!CH$5 -> Uitlooptijd | CI5: =Tijd!CI$5 -> Uitlooptijd | CJ5: =Tijd!CJ$5 -> Uitlooptijd | CK5: =Tijd!CK$5 -> Uitlooptijd | CL5: =Tijd!CL$5 -> Uitlooptijd | CM5: =Tijd!CM$5 -> Uitlooptijd | CN5: =Tijd!CN$5 -> Uitlooptijd | CO5: =Tijd!CO$5 -> Uitlooptijd | CP5: =Tijd!CP$5 -> Uitlooptijd | CQ5: =Tijd!CQ$5 -> Uitlooptijd | CR5: =Tijd!CR$5 -> Uitlooptijd | CS5: =Tijd!CS$5 -> Uitlooptijd | CT5: =Tijd!CT$5 -> Uitlooptijd | CU5: =Tijd!CU$5 -> Uitlooptijd | CV5: =Tijd!CV$5 -> Uitlooptijd | CW5: =Tijd!CW$5 -> Uitlooptijd | CX5: =Tijd!CX$5 -> Uitlooptijd | CY5: =Tijd!CY$5 -> Uitlooptijd | CZ5: =Tijd!CZ$5 -> Uitlooptijd | DA5: =Tijd!DA$5 -> Uitlooptijd | DB5: =Tijd!DB$5 -> Uitlooptijd | DC5: =Tijd!DC$5 -> Uitlooptijd | DD5: =Tijd!DD$5 -> Uitlooptijd | DE5: =Tijd!DE$5 -> Uitlooptijd | DF5: =Tijd!DF$5 -> Uitlooptijd
E6: =Tijd!E$10 -> Model kolom teller | F6: Bron | G6: Constante | H6: Eenheid | I6: Totaal | K6: =Tijd!K$10 -> 1 | L6: =Tijd!L$10 -> 2 | M6: =Tijd!M$10 -> 3 | N6: =Tijd!N$10 -> 4 | O6: =Tijd!O$10 -> 5 | P6: =Tijd!P$10 -> 6 | Q6: =Tijd!Q$10 -> 7 | R6: =Tijd!R$10 -> 8 | S6: =Tijd!S$10 -> 9 | T6: =Tijd!T$10 -> 10 | U6: =Tijd!U$10 -> 11 | V6: =Tijd!V$10 -> 12 | W6: =Tijd!W$10 -> 13 | X6: =Tijd!X$10 -> 14 | Y6: =Tijd!Y$10 -> 15 | Z6: =Tijd!Z$10 -> 16 | AA6: =Tijd!AA$10 -> 17 | AB6: =Tijd!AB$10 -> 18 | AC6: =Tijd!AC$10 -> 19 | AD6: =Tijd!AD$10 -> 20 | AE6: =Tijd!AE$10 -> 21 | AF6: =Tijd!AF$10 -> 22 | AG6: =Tijd!AG$10 -> 23 | AH6: =Tijd!AH$10 -> 24 | AI6: =Tijd!AI$10 -> 25 | AJ6: =Tijd!AJ$10 -> 26 | AK6: =Tijd!AK$10 -> 27 | AL6: =Tijd!AL$10 -> 28 | AM6: =Tijd!AM$10 -> 29 | AN6: =Tijd!AN$10 -> 30 | AO6: =Tijd!AO$10 -> 31 | AP6: =Tijd!AP$10 -> 32 | AQ6: =Tijd!AQ$10 -> 33 | AR6: =Tijd!AR$10 -> 34 | AS6: =Tijd!AS$10 -> 35 | AT6: =Tijd!AT$10 -> 36 | AU6: =Tijd!AU$10 -> 37 | AV6: =Tijd!AV$10 -> 38 | AW6: =Tijd!AW$10 -> 39 | AX6: =Tijd!AX$10 -> 40 | AY6: =Tijd!AY$10 -> 41 | AZ6: =Tijd!AZ$10 -> 42 | BA6: =Tijd!BA$10 -> 43 | BB6: =Tijd!BB$10 -> 44 | BC6: =Tijd!BC$10 -> 45 | BD6: =Tijd!BD$10 -> 46 | BE6: =Tijd!BE$10 -> 47 | BF6: =Tijd!BF$10 -> 48 | BG6: =Tijd!BG$10 -> 49 | BH6: =Tijd!BH$10 -> 50 | BI6: =Tijd!BI$10 -> 51 | BJ6: =Tijd!BJ$10 -> 52 | BK6: =Tijd!BK$10 -> 53 | BL6: =Tijd!BL$10 -> 54 | BM6: =Tijd!BM$10 -> 55 | BN6: =Tijd!BN$10 -> 56 | BO6: =Tijd!BO$10 -> 57 | BP6: =Tijd!BP$10 -> 58 | BQ6: =Tijd!BQ$10 -> 59 | BR6: =Tijd!BR$10 -> 60 | BS6: =Tijd!BS$10 -> 61 | BT6: =Tijd!BT$10 -> 62 | BU6: =Tijd!BU$10 -> 63 | BV6: =Tijd!BV$10 -> 64 | BW6: =Tijd!BW$10 -> 65 | BX6: =Tijd!BX$10 -> 66 | BY6: =Tijd!BY$10 -> 67 | BZ6: =Tijd!BZ$10 -> 68 | CA6: =Tijd!CA$10 -> 69 | CB6: =Tijd!CB$10 -> 70 | CC6: =Tijd!CC$10 -> 71 | CD6: =Tijd!CD$10 -> 72 | CE6: =Tijd!CE$10 -> 73 | CF6: =Tijd!CF$10 -> 74 | CG6: =Tijd!CG$10 -> 75 | CH6: =Tijd!CH$10 -> 76 | CI6: =Tijd!CI$10 -> 77 | CJ6: =Tijd!CJ$10 -> 78 | CK6: =Tijd!CK$10 -> 79 | CL6: =Tijd!CL$10 -> 80 | CM6: =Tijd!CM$10 -> 81 | CN6: =Tijd!CN$10 -> 82 | CO6: =Tijd!CO$10 -> 83 | CP6: =Tijd!CP$10 -> 84 | CQ6: =Tijd!CQ$10 -> 85 | CR6: =Tijd!CR$10 -> 86 | CS6: =Tijd!CS$10 -> 87 | CT6: =Tijd!CT$10 -> 88 | CU6: =Tijd!CU$10 -> 89 | CV6: =Tijd!CV$10 -> 90 | CW6: =Tijd!CW$10 -> 91 | CX6: =Tijd!CX$10 -> 92 | CY6: =Tijd!CY$10 -> 93 | CZ6: =Tijd!CZ$10 -> 94 | DA6: =Tijd!DA$10 -> 95 | DB6: =Tijd!DB$10 -> 96 | DC6: =Tijd!DC$10 -> 97 | DD6: =Tijd!DD$10 -> 98 | DE6: =Tijd!DE$10 -> 99 | DF6: =Tijd!DF$10 -> 100
A9: NETTEN
A11: INVESTERINGSJAAR 2004 - START GAW
E12: Startwaarde GAW incl. afgekochte precario (01-01-2004) | H12: €
E13: Afschrijvingen Start GAW | H13: €
E14: Afgekochte precario in Start GAW (01-01-2004) | H14: €
E15: Afschrijvingsbedrag afgekochte precario | H15: €
A17: INVESTERINGSJAAR 2004
B19: Investeringen 2004
E20: Aanschafwaarde investeringen 2004 met afschrijvingstermijn 55 | H20: € | I20: =SUM(K20:DF20) -> 0
E21: Aanschafwaarde investeringen 2004 met afschrijvingstermijn 45 | H21: € | I21: 0
E22: Aanschafwaarde investeringen 2004 met afschrijvingstermijn 30 | H22: € | I22: 0
E23: Aanschafwaarde investeringen 2004 met afschrijvingstermijn 25 | H23: € | I23: 0
E24: Aanschafwaarde investeringen 2004 met afschrijvingstermijn 10 | H24: € | I24: 0
E25: Aanschafwaarde investeringen 2004 met afschrijvingstermijn 5 | H25: € | I25: 0
E26: Aanschafwaarde investeringen 2004 zonder afschrijvingstermijn | H26: € | I26: 0
B28: Desinvesteringen 2004
E29: Desinvesteringen 2004 met afschrijvingstermijn 55 | H29: € | I29: =SUM(K29:DF29) -> 0
E30: Desinvesteringen 2004 met afschrijvingstermijn 45 | H30: € | I30: 0
E31: Desinvesteringen 2004 met afschrijvingstermijn 30 | H31: € | I31: 0
E32: Desinvesteringen 2004 met afschrijvingstermijn 25 | H32: € | I32: 0
E33: Desinvesteringen 2004 met afschrijvingstermijn 10 | H33: € | I33: 0
E34: Desinvesteringen 2004 met afschrijvingstermijn 5 | H34: € | I34: 0
E35: Desinvesteringen 2004 zonder afschrijvingstermijn | H35: € | I35: 0
B37: Opgegeven Afschrijvingen 2004
E38: Opgegeven afschrijvingen 2004 met afschrijvingstermijn 55 | H38: € | I38: =SUM(K38:DF38) -> 0
E39: Opgegeven afschrijvingen 2004 met afschrijvingstermijn 45 | H39: € | I39: 0
E40: Opgegeven afschrijvingen 2004 met afschrijvingstermijn 30 | H40: € | I40: 0
E41: Opgegeven afschrijvingen 2004 met afschrijvingstermijn 25 | H41: € | I41: 0
E42: Opgegeven afschrijvingen 2004 met afschrijvingstermijn 10 | H42: € | I42: 0
E43: Opgegeven afschrijvingen 2004 met afschrijvingstermijn 5 | H43: € | I43: 0
B45: Opgegeven Cumulatieve Afschrijvingen Bij Desinvesteringen 2004
E46: Opgegeven c.a.d. 2004 met afschrijvingstermijn 55 | H46: € | I46: =SUM(K46:DF46) -> 0
E47: Opgegeven c.a.d. 2004 met afschrijvingstermijn 45 | H47: € | I47: 0
E48: Opgegeven c.a.d. 2004 met afschrijvingstermijn 30 | H48: € | I48: 0
E49: Opgegeven c.a.d. 2004 met afschrijvingstermijn 25 | H49: € | I49: 0
E50: Opgegeven c.a.d. 2004 met afschrijvingstermijn 10 | H50: € | I50: 0
E51: Opgegeven c.a.d. 2004 met afschrijvingstermijn 5 | H51: € | I51: 0
B53: Bijzondere Waardeverminderingen Op Activa 2004
E54: Bijzondere waardeverminderingen op activa 2004 met afschrijvingstermijn 55 | H54: € | I54: =SUM(K54:DF54) -> 0
E55: Bijzondere waardeverminderingen op activa 2004 met afschrijvingstermijn 45 | H55: € | I55: 0
E56: Bijzondere waardeverminderingen op activa 2004 met afschrijvingstermijn 30 | H56: € | I56: 0
E57: Bijzondere waardeverminderingen op activa 2004 met afschrijvingstermijn 25 | H57: € | I57: 0
